Workbook

Sheet Beschreibung
B1: Tabellenblatt | C1: Beschreibung | D1: Hinweis
A2: Schritt 1 | B2: "Tageswerte": | C2: Alle farblich unterlegten Zeilen sind entsprechend Spaltenüberschriften auszufüllen | D2: siehe SLP- Leitfaden
A4: Schritt 2 | B4: "Kundenwerte": | C4: Die Summen der monatlichen Kundenwerte je angewandten SLP- Profil sind in den farblich hinterlegten Zeilen einzutragen | D4: siehe SLP- Leitfaden
A7: Schritt 3 | B7: "Koeffizientenübersicht NB": | C7: Die angewendeten Profilparameter und Tagesfaktoren sind hier den farblich hinterlegten Zeilen einzutragen.
A11: Schritt 4 | C11: Berechnungen der Nachweispflicht starten! Es kann durchaus einige Minuten dauern, bis die Überprüfungsergebnisse angezeigt werden!
A14: Schritt 5 | B14: "Überprüfungsergebnisse"
C18: Entscheidungsmatrix: | D18: Ergebnis der Prüfroutine:
C19: Anwendung der GPT bei eigenen Profilen bringt eine Verbesserung der Allokationsgüte im Mittel um mehr als 10% und nie eine Verschlechterung in den Nachweisjahren: | D19: Die Gasprognosetemperatur ist gemäß den Kriterien des LF BKM im Abschnitt 11.7 anzuwenden!
C23: Anwendung der BDEW Profilen zusammen mit der GPT bringt eine nochmalige Verbesserung der Allokationsgüte im Mittel um mehr als 10% und nie eine Verschlechterung in den Nachweisjahren: | D23: Die Profilausprägung ist gemäß den Kriterien des LF BKM im Abschnitt 11.7 zu ändern!

Sheet Tageswerte
A1: Datum (D) | B1: SLP- Allokations-menge (D-1) für (D) [kWh] | C1: Restlast (D) an M + 2 M + 10 WT [kWh] | D1: SLP- Als-Ob-Allokation Basis: Ist- Temperatur [kWh] | E1: SLP- Als-Ob-Allokation Basis: Progn. - Temperatur [kWh] | F1: SLP- Als-Ob-Allokations-menge Basis: Gasprognose-temperatur [kWh] | G1: SLP- Als-Ob-Allokations-menge Basis: BDEW 03er Profile + GPT [kWh] | H1: SLP- Als-Ob-Allokations-menge Basis: BDEW 04er Profile + GPT [kWh] | I1: Ist-Temperatur [°C] | J1: Allokations-Temperatur [°C] | K1: Gasprognose-temperatur [°C]
D2: ='Allokationstool Ist-Temp. NB'!C2 -> 0 | E2: ='Mengen und Temperaturen'!J2 -> 0 | F2: ='Allokationstool GPT NB'!C2 -> 0 | G2: ='Allokationstool GPT 03'!C2 -> 0 | H2: ='Allokationstool GPT 04'!C2 -> 0
D3: ='Allokationstool Ist-Temp. NB'!C3 -> 0 | E3: ='Mengen und Temperaturen'!J3 -> 0 | F3: ='Allokationstool GPT NB'!C3 -> 0 | G3: ='Allokationstool GPT 03'!C3 -> 0 | H3: ='Allokationstool GPT 04'!C3 -> 0
D4: ='Allokationstool Ist-Temp. NB'!C4 -> 0 | E4: ='Mengen und Temperaturen'!J4 -> 0 | F4: ='Allokationstool GPT NB'!C4 -> 0 | G4: ='Allokationstool GPT 03'!C4 -> 0 | H4: ='Allokationstool GPT 04'!C4 -> 0
D5: ='Allokationstool Ist-Temp. NB'!C5 -> 0 | E5: ='Mengen und Temperaturen'!J5 -> 0 | F5: ='Allokationstool GPT NB'!C5 -> 0 | G5: ='Allokationstool GPT 03'!C5 -> 0 | H5: ='Allokationstool GPT 04'!C5 -> 0
D6: ='Allokationstool Ist-Temp. NB'!C6 -> 0 | E6: ='Mengen und Temperaturen'!J6 -> 0 | F6: ='Allokationstool GPT NB'!C6 -> 0 | G6: ='Allokationstool GPT 03'!C6 -> 0 | H6: ='Allokationstool GPT 04'!C6 -> 0
D7: ='Allokationstool Ist-Temp. NB'!C7 -> 0 | E7: ='Mengen und Temperaturen'!J7 -> 0 | F7: ='Allokationstool GPT NB'!C7 -> 0 | G7: ='Allokationstool GPT 03'!C7 -> 0 | H7: ='Allokationstool GPT 04'!C7 -> 0
D8: ='Allokationstool Ist-Temp. NB'!C8 -> 0 | E8: ='Mengen und Temperaturen'!J8 -> 0 | F8: ='Allokationstool GPT NB'!C8 -> 0 | G8: ='Allokationstool GPT 03'!C8 -> 0 | H8: ='Allokationstool GPT 04'!C8 -> 0
D9: ='Allokationstool Ist-Temp. NB'!C9 -> 0 | E9: ='Mengen und Temperaturen'!J9 -> 0 | F9: ='Allokationstool GPT NB'!C9 -> 0 | G9: ='Allokationstool GPT 03'!C9 -> 0 | H9: ='Allokationstool GPT 04'!C9 -> 0
D10: ='Allokationstool Ist-Temp. NB'!C10 -> 0 | E10: ='Mengen und Temperaturen'!J10 -> 0 | F10: ='Allokationstool GPT NB'!C10 -> 0 | G10: ='Allokationstool GPT 03'!C10 -> 0 | H10: ='Allokationstool GPT 04'!C10 -> 0
D11: ='Allokationstool Ist-Temp. NB'!C11 -> 0 | E11: ='Mengen und Temperaturen'!J11 -> 0 | F11: ='Allokationstool GPT NB'!C11 -> 0 | G11: ='Allokationstool GPT 03'!C11 -> 0 | H11: ='Allokationstool GPT 04'!C11 -> 0
D12: ='Allokationstool Ist-Temp. NB'!C12 -> 0 | E12: ='Mengen und Temperaturen'!J12 -> 0 | F12: ='Allokationstool GPT NB'!C12 -> 0 | G12: ='Allokationstool GPT 03'!C12 -> 0 | H12: ='Allokationstool GPT 04'!C12 -> 0
D13: ='Allokationstool Ist-Temp. NB'!C13 -> 0 | E13: ='Mengen und Temperaturen'!J13 -> 0 | F13: ='Allokationstool GPT NB'!C13 -> 0 | G13: ='Allokationstool GPT 03'!C13 -> 0 | H13: ='Allokationstool GPT 04'!C13 -> 0
D14: ='Allokationstool Ist-Temp. NB'!C14 -> 0 | E14: ='Mengen und Temperaturen'!J14 -> 0 | F14: ='Allokationstool GPT NB'!C14 -> 0 | G14: ='Allokationstool GPT 03'!C14 -> 0 | H14: ='Allokationstool GPT 04'!C14 -> 0
D15: ='Allokationstool Ist-Temp. NB'!C15 -> 0 | E15: ='Mengen und Temperaturen'!J15 -> 0 | F15: ='Allokationstool GPT NB'!C15 -> 0 | G15: ='Allokationstool GPT 03'!C15 -> 0 | H15: ='Allokationstool GPT 04'!C15 -> 0
D16: ='Allokationstool Ist-Temp. NB'!C16 -> 0 | E16: ='Mengen und Temperaturen'!J16 -> 0 | F16: ='Allokationstool GPT NB'!C16 -> 0 | G16: ='Allokationstool GPT 03'!C16 -> 0 | H16: ='Allokationstool GPT 04'!C16 -> 0
D17: ='Allokationstool Ist-Temp. NB'!C17 -> 0 | E17: ='Mengen und Temperaturen'!J17 -> 0 | F17: ='Allokationstool GPT NB'!C17 -> 0 | G17: ='Allokationstool GPT 03'!C17 -> 0 | H17: ='Allokationstool GPT 04'!C17 -> 0
D18: ='Allokationstool Ist-Temp. NB'!C18 -> 0 | E18: ='Mengen und Temperaturen'!J18 -> 0 | F18: ='Allokationstool GPT NB'!C18 -> 0 | G18: ='Allokationstool GPT 03'!C18 -> 0 | H18: ='Allokationstool GPT 04'!C18 -> 0
D19: ='Allokationstool Ist-Temp. NB'!C19 -> 0 | E19: ='Mengen und Temperaturen'!J19 -> 0 | F19: ='Allokationstool GPT NB'!C19 -> 0 | G19: ='Allokationstool GPT 03'!C19 -> 0 | H19: ='Allokationstool GPT 04'!C19 -> 0
D20: ='Allokationstool Ist-Temp. NB'!C20 -> 0 | E20: ='Mengen und Temperaturen'!J20 -> 0 | F20: ='Allokationstool GPT NB'!C20 -> 0 | G20: ='Allokationstool GPT 03'!C20 -> 0 | H20: ='Allokationstool GPT 04'!C20 -> 0
D21: ='Allokationstool Ist-Temp. NB'!C21 -> 0 | E21: ='Mengen und Temperaturen'!J21 -> 0 | F21: ='Allokationstool GPT NB'!C21 -> 0 | G21: ='Allokationstool GPT 03'!C21 -> 0 | H21: ='Allokationstool GPT 04'!C21 -> 0
D22: ='Allokationstool Ist-Temp. NB'!C22 -> 0 | E22: ='Mengen und Temperaturen'!J22 -> 0 | F22: ='Allokationstool GPT NB'!C22 -> 0 | G22: ='Allokationstool GPT 03'!C22 -> 0 | H22: ='Allokationstool GPT 04'!C22 -> 0
D23: ='Allokationstool Ist-Temp. NB'!C23 -> 0 | E23: ='Mengen und Temperaturen'!J23 -> 0 | F23: ='Allokationstool GPT NB'!C23 -> 0 | G23: ='Allokationstool GPT 03'!C23 -> 0 | H23: ='Allokationstool GPT 04'!C23 -> 0
D24: ='Allokationstool Ist-Temp. NB'!C24 -> 0 | E24: ='Mengen und Temperaturen'!J24 -> 0 | F24: ='Allokationstool GPT NB'!C24 -> 0 | G24: ='Allokationstool GPT 03'!C24 -> 0 | H24: ='Allokationstool GPT 04'!C24 -> 0
D25: ='Allokationstool Ist-Temp. NB'!C25 -> 0 | E25: ='Mengen und Temperaturen'!J25 -> 0 | F25: ='Allokationstool GPT NB'!C25 -> 0 | G25: ='Allokationstool GPT 03'!C25 -> 0 | H25: ='Allokationstool GPT 04'!C25 -> 0
D26: ='Allokationstool Ist-Temp. NB'!C26 -> 0 | E26: ='Mengen und Temperaturen'!J26 -> 0 | F26: ='Allokationstool GPT NB'!C26 -> 0 | G26: ='Allokationstool GPT 03'!C26 -> 0 | H26: ='Allokationstool GPT 04'!C26 -> 0
D27: ='Allokationstool Ist-Temp. NB'!C27 -> 0 | E27: ='Mengen und Temperaturen'!J27 -> 0 | F27: ='Allokationstool GPT NB'!C27 -> 0 | G27: ='Allokationstool GPT 03'!C27 -> 0 | H27: ='Allokationstool GPT 04'!C27 -> 0
D28: ='Allokationstool Ist-Temp. NB'!C28 -> 0 | E28: ='Mengen und Temperaturen'!J28 -> 0 | F28: ='Allokationstool GPT NB'!C28 -> 0 | G28: ='Allokationstool GPT 03'!C28 -> 0 | H28: ='Allokationstool GPT 04'!C28 -> 0
D29: ='Allokationstool Ist-Temp. NB'!C29 -> 0 | E29: ='Mengen und Temperaturen'!J29 -> 0 | F29: ='Allokationstool GPT NB'!C29 -> 0 | G29: ='Allokationstool GPT 03'!C29 -> 0 | H29: ='Allokationstool GPT 04'!C29 -> 0
D30: ='Allokationstool Ist-Temp. NB'!C30 -> 0 | E30: ='Mengen und Temperaturen'!J30 -> 0 | F30: ='Allokationstool GPT NB'!C30 -> 0 | G30: ='Allokationstool GPT 03'!C30 -> 0 | H30: ='Allokationstool GPT 04'!C30 -> 0
D31: ='Allokationstool Ist-Temp. NB'!C31 -> 0 | E31: ='Mengen und Temperaturen'!J31 -> 0 | F31: ='Allokationstool GPT NB'!C31 -> 0 | G31: ='Allokationstool GPT 03'!C31 -> 0 | H31: ='Allokationstool GPT 04'!C31 -> 0
D32: ='Allokationstool Ist-Temp. NB'!C32 -> 0 | E32: ='Mengen und Temperaturen'!J32 -> 0 | F32: ='Allokationstool GPT NB'!C32 -> 0 | G32: ='Allokationstool GPT 03'!C32 -> 0 | H32: ='Allokationstool GPT 04'!C32 -> 0
D33: ='Allokationstool Ist-Temp. NB'!C33 -> 0 | E33: ='Mengen und Temperaturen'!J33 -> 0 | F33: ='Allokationstool GPT NB'!C33 -> 0 | G33: ='Allokationstool GPT 03'!C33 -> 0 | H33: ='Allokationstool GPT 04'!C33 -> 0
D34: ='Allokationstool Ist-Temp. NB'!C34 -> 0 | E34: ='Mengen und Temperaturen'!J34 -> 0 | F34: ='Allokationstool GPT NB'!C34 -> 0 | G34: ='Allokationstool GPT 03'!C34 -> 0 | H34: ='Allokationstool GPT 04'!C34 -> 0
D35: ='Allokationstool Ist-Temp. NB'!C35 -> 0 | E35: ='Mengen und Temperaturen'!J35 -> 0 | F35: ='Allokationstool GPT NB'!C35 -> 0 | G35: ='Allokationstool GPT 03'!C35 -> 0 | H35: ='Allokationstool GPT 04'!C35 -> 0
D36: ='Allokationstool Ist-Temp. NB'!C36 -> 0 | E36: ='Mengen und Temperaturen'!J36 -> 0 | F36: ='Allokationstool GPT NB'!C36 -> 0 | G36: ='Allokationstool GPT 03'!C36 -> 0 | H36: ='Allokationstool GPT 04'!C36 -> 0
D37: ='Allokationstool Ist-Temp. NB'!C37 -> 0 | E37: ='Mengen und Temperaturen'!J37 -> 0 | F37: ='Allokationstool GPT NB'!C37 -> 0 | G37: ='Allokationstool GPT 03'!C37 -> 0 | H37: ='Allokationstool GPT 04'!C37 -> 0
D38: ='Allokationstool Ist-Temp. NB'!C38 -> 0 | E38: ='Mengen und Temperaturen'!J38 -> 0 | F38: ='Allokationstool GPT NB'!C38 -> 0 | G38: ='Allokationstool GPT 03'!C38 -> 0 | H38: ='Allokationstool GPT 04'!C38 -> 0
D39: ='Allokationstool Ist-Temp. NB'!C39 -> 0 | E39: ='Mengen und Temperaturen'!J39 -> 0 | F39: ='Allokationstool GPT NB'!C39 -> 0 | G39: ='Allokationstool GPT 03'!C39 -> 0 | H39: ='Allokationstool GPT 04'!C39 -> 0
D40: ='Allokationstool Ist-Temp. NB'!C40 -> 0 | E40: ='Mengen und Temperaturen'!J40 -> 0 | F40: ='Allokationstool GPT NB'!C40 -> 0 | G40: ='Allokationstool GPT 03'!C40 -> 0 | H40: ='Allokationstool GPT 04'!C40 -> 0
D41: ='Allokationstool Ist-Temp. NB'!C41 -> 0 | E41: ='Mengen und Temperaturen'!J41 -> 0 | F41: ='Allokationstool GPT NB'!C41 -> 0 | G41: ='Allokationstool GPT 03'!C41 -> 0 | H41: ='Allokationstool GPT 04'!C41 -> 0
D42: ='Allokationstool Ist-Temp. NB'!C42 -> 0 | E42: ='Mengen und Temperaturen'!J42 -> 0 | F42: ='Allokationstool GPT NB'!C42 -> 0 | G42: ='Allokationstool GPT 03'!C42 -> 0 | H42: ='Allokationstool GPT 04'!C42 -> 0
D43: ='Allokationstool Ist-Temp. NB'!C43 -> 0 | E43: ='Mengen und Temperaturen'!J43 -> 0 | F43: ='Allokationstool GPT NB'!C43 -> 0 | G43: ='Allokationstool GPT 03'!C43 -> 0 | H43: ='Allokationstool GPT 04'!C43 -> 0
D44: ='Allokationstool Ist-Temp. NB'!C44 -> 0 | E44: ='Mengen und Temperaturen'!J44 -> 0 | F44: ='Allokationstool GPT NB'!C44 -> 0 | G44: ='Allokationstool GPT 03'!C44 -> 0 | H44: ='Allokationstool GPT 04'!C44 -> 0
D45: ='Allokationstool Ist-Temp. NB'!C45 -> 0 | E45: ='Mengen und Temperaturen'!J45 -> 0 | F45: ='Allokationstool GPT NB'!C45 -> 0 | G45: ='Allokationstool GPT 03'!C45 -> 0 | H45: ='Allokationstool GPT 04'!C45 -> 0
D46: ='Allokationstool Ist-Temp. NB'!C46 -> 0 | E46: ='Mengen und Temperaturen'!J46 -> 0 | F46: ='Allokationstool GPT NB'!C46 -> 0 | G46: ='Allokationstool GPT 03'!C46 -> 0 | H46: ='Allokationstool GPT 04'!C46 -> 0
D47: ='Allokationstool Ist-Temp. NB'!C47 -> 0 | E47: ='Mengen und Temperaturen'!J47 -> 0 | F47: ='Allokationstool GPT NB'!C47 -> 0 | G47: ='Allokationstool GPT 03'!C47 -> 0 | H47: ='Allokationstool GPT 04'!C47 -> 0
D48: ='Allokationstool Ist-Temp. NB'!C48 -> 0 | E48: ='Mengen und Temperaturen'!J48 -> 0 | F48: ='Allokationstool GPT NB'!C48 -> 0 | G48: ='Allokationstool GPT 03'!C48 -> 0 | H48: ='Allokationstool GPT 04'!C48 -> 0
D49: ='Allokationstool Ist-Temp. NB'!C49 -> 0 | E49: ='Mengen und Temperaturen'!J49 -> 0 | F49: ='Allokationstool GPT NB'!C49 -> 0 | G49: ='Allokationstool GPT 03'!C49 -> 0 | H49: ='Allokationstool GPT 04'!C49 -> 0
D50: ='Allokationstool Ist-Temp. NB'!C50 -> 0 | E50: ='Mengen und Temperaturen'!J50 -> 0 | F50: ='Allokationstool GPT NB'!C50 -> 0 | G50: ='Allokationstool GPT 03'!C50 -> 0 | H50: ='Allokationstool GPT 04'!C50 -> 0
D51: ='Allokationstool Ist-Temp. NB'!C51 -> 0 | E51: ='Mengen und Temperaturen'!J51 -> 0 | F51: ='Allokationstool GPT NB'!C51 -> 0 | G51: ='Allokationstool GPT 03'!C51 -> 0 | H51: ='Allokationstool GPT 04'!C51 -> 0
D52: ='Allokationstool Ist-Temp. NB'!C52 -> 0 | E52: ='Mengen und Temperaturen'!J52 -> 0 | F52: ='Allokationstool GPT NB'!C52 -> 0 | G52: ='Allokationstool GPT 03'!C52 -> 0 | H52: ='Allokationstool GPT 04'!C52 -> 0
D53: ='Allokationstool Ist-Temp. NB'!C53 -> 0 | E53: ='Mengen und Temperaturen'!J53 -> 0 | F53: ='Allokationstool GPT NB'!C53 -> 0 | G53: ='Allokationstool GPT 03'!C53 -> 0 | H53: ='Allokationstool GPT 04'!C53 -> 0
D54: ='Allokationstool Ist-Temp. NB'!C54 -> 0 | E54: ='Mengen und Temperaturen'!J54 -> 0 | F54: ='Allokationstool GPT NB'!C54 -> 0 | G54: ='Allokationstool GPT 03'!C54 -> 0 | H54: ='Allokationstool GPT 04'!C54 -> 0
D55: ='Allokationstool Ist-Temp. NB'!C55 -> 0 | E55: ='Mengen und Temperaturen'!J55 -> 0 | F55: ='Allokationstool GPT NB'!C55 -> 0 | G55: ='Allokationstool GPT 03'!C55 -> 0 | H55: ='Allokationstool GPT 04'!C55 -> 0
D56: ='Allokationstool Ist-Temp. NB'!C56 -> 0 | E56: ='Mengen und Temperaturen'!J56 -> 0 | F56: ='Allokationstool GPT NB'!C56 -> 0 | G56: ='Allokationstool GPT 03'!C56 -> 0 | H56: ='Allokationstool GPT 04'!C56 -> 0
D57: ='Allokationstool Ist-Temp. NB'!C57 -> 0 | E57: ='Mengen und Temperaturen'!J57 -> 0 | F57: ='Allokationstool GPT NB'!C57 -> 0 | G57: ='Allokationstool GPT 03'!C57 -> 0 | H57: ='Allokationstool GPT 04'!C57 -> 0
D58: ='Allokationstool Ist-Temp. NB'!C58 -> 0 | E58: ='Mengen und Temperaturen'!J58 -> 0 | F58: ='Allokationstool GPT NB'!C58 -> 0 | G58: ='Allokationstool GPT 03'!C58 -> 0 | H58: ='Allokationstool GPT 04'!C58 -> 0
D59: ='Allokationstool Ist-Temp. NB'!C59 -> 0 | E59: ='Mengen und Temperaturen'!J59 -> 0 | F59: ='Allokationstool GPT NB'!C59 -> 0 | G59: ='Allokationstool GPT 03'!C59 -> 0 | H59: ='Allokationstool GPT 04'!C59 -> 0
D60: ='Allokationstool Ist-Temp. NB'!C60 -> 0 | E60: ='Mengen und Temperaturen'!J60 -> 0 | F60: ='Allokationstool GPT NB'!C60 -> 0 | G60: ='Allokationstool GPT 03'!C60 -> 0 | H60: ='Allokationstool GPT 04'!C60 -> 0
D61: ='Allokationstool Ist-Temp. NB'!C61 -> 0 | E61: ='Mengen und Temperaturen'!J61 -> 0 | F61: ='Allokationstool GPT NB'!C61 -> 0 | G61: ='Allokationstool GPT 03'!C61 -> 0 | H61: ='Allokationstool GPT 04'!C61 -> 0
D62: ='Allokationstool Ist-Temp. NB'!C62 -> 0 | E62: ='Mengen und Temperaturen'!J62 -> 0 | F62: ='Allokationstool GPT NB'!C62 -> 0 | G62: ='Allokationstool GPT 03'!C62 -> 0 | H62: ='Allokationstool GPT 04'!C62 -> 0
D63: ='Allokationstool Ist-Temp. NB'!C63 -> 0 | E63: ='Mengen und Temperaturen'!J63 -> 0 | F63: ='Allokationstool GPT NB'!C63 -> 0 | G63: ='Allokationstool GPT 03'!C63 -> 0 | H63: ='Allokationstool GPT 04'!C63 -> 0
D64: ='Allokationstool Ist-Temp. NB'!C64 -> 0 | E64: ='Mengen und Temperaturen'!J64 -> 0 | F64: ='Allokationstool GPT NB'!C64 -> 0 | G64: ='Allokationstool GPT 03'!C64 -> 0 | H64: ='Allokationstool GPT 04'!C64 -> 0
D65: ='Allokationstool Ist-Temp. NB'!C65 -> 0 | E65: ='Mengen und Temperaturen'!J65 -> 0 | F65: ='Allokationstool GPT NB'!C65 -> 0 | G65: ='Allokationstool GPT 03'!C65 -> 0 | H65: ='Allokationstool GPT 04'!C65 -> 0
D66: ='Allokationstool Ist-Temp. NB'!C66 -> 0 | E66: ='Mengen und Temperaturen'!J66 -> 0 | F66: ='Allokationstool GPT NB'!C66 -> 0 | G66: ='Allokationstool GPT 03'!C66 -> 0 | H66: ='Allokationstool GPT 04'!C66 -> 0
D67: ='Allokationstool Ist-Temp. NB'!C67 -> 0 | E67: ='Mengen und Temperaturen'!J67 -> 0 | F67: ='Allokationstool GPT NB'!C67 -> 0 | G67: ='Allokationstool GPT 03'!C67 -> 0 | H67: ='Allokationstool GPT 04'!C67 -> 0
D68: ='Allokationstool Ist-Temp. NB'!C68 -> 0 | E68: ='Mengen und Temperaturen'!J68 -> 0 | F68: ='Allokationstool GPT NB'!C68 -> 0 | G68: ='Allokationstool GPT 03'!C68 -> 0 | H68: ='Allokationstool GPT 04'!C68 -> 0
D69: ='Allokationstool Ist-Temp. NB'!C69 -> 0 | E69: ='Mengen und Temperaturen'!J69 -> 0 | F69: ='Allokationstool GPT NB'!C69 -> 0 | G69: ='Allokationstool GPT 03'!C69 -> 0 | H69: ='Allokationstool GPT 04'!C69 -> 0
D70: ='Allokationstool Ist-Temp. NB'!C70 -> 0 | E70: ='Mengen und Temperaturen'!J70 -> 0 | F70: ='Allokationstool GPT NB'!C70 -> 0 | G70: ='Allokationstool GPT 03'!C70 -> 0 | H70: ='Allokationstool GPT 04'!C70 -> 0
D71: ='Allokationstool Ist-Temp. NB'!C71 -> 0 | E71: ='Mengen und Temperaturen'!J71 -> 0 | F71: ='Allokationstool GPT NB'!C71 -> 0 | G71: ='Allokationstool GPT 03'!C71 -> 0 | H71: ='Allokationstool GPT 04'!C71 -> 0
D72: ='Allokationstool Ist-Temp. NB'!C72 -> 0 | E72: ='Mengen und Temperaturen'!J72 -> 0 | F72: ='Allokationstool GPT NB'!C72 -> 0 | G72: ='Allokationstool GPT 03'!C72 -> 0 | H72: ='Allokationstool GPT 04'!C72 -> 0
D73: ='Allokationstool Ist-Temp. NB'!C73 -> 0 | E73: ='Mengen und Temperaturen'!J73 -> 0 | F73: ='Allokationstool GPT NB'!C73 -> 0 | G73: ='Allokationstool GPT 03'!C73 -> 0 | H73: ='Allokationstool GPT 04'!C73 -> 0
D74: ='Allokationstool Ist-Temp. NB'!C74 -> 0 | E74: ='Mengen und Temperaturen'!J74 -> 0 | F74: ='Allokationstool GPT NB'!C74 -> 0 | G74: ='Allokationstool GPT 03'!C74 -> 0 | H74: ='Allokationstool GPT 04'!C74 -> 0
D75: ='Allokationstool Ist-Temp. NB'!C75 -> 0 | E75: ='Mengen und Temperaturen'!J75 -> 0 | F75: ='Allokationstool GPT NB'!C75 -> 0 | G75: ='Allokationstool GPT 03'!C75 -> 0 | H75: ='Allokationstool GPT 04'!C75 -> 0
D76: ='Allokationstool Ist-Temp. NB'!C76 -> 0 | E76: ='Mengen und Temperaturen'!J76 -> 0 | F76: ='Allokationstool GPT NB'!C76 -> 0 | G76: ='Allokationstool GPT 03'!C76 -> 0 | H76: ='Allokationstool GPT 04'!C76 -> 0
D77: ='Allokationstool Ist-Temp. NB'!C77 -> 0 | E77: ='Mengen und Temperaturen'!J77 -> 0 | F77: ='Allokationstool GPT NB'!C77 -> 0 | G77: ='Allokationstool GPT 03'!C77 -> 0 | H77: ='Allokationstool GPT 04'!C77 -> 0
D78: ='Allokationstool Ist-Temp. NB'!C78 -> 0 | E78: ='Mengen und Temperaturen'!J78 -> 0 | F78: ='Allokationstool GPT NB'!C78 -> 0 | G78: ='Allokationstool GPT 03'!C78 -> 0 | H78: ='Allokationstool GPT 04'!C78 -> 0
D79: ='Allokationstool Ist-Temp. NB'!C79 -> 0 | E79: ='Mengen und Temperaturen'!J79 -> 0 | F79: ='Allokationstool GPT NB'!C79 -> 0 | G79: ='Allokationstool GPT 03'!C79 -> 0 | H79: ='Allokationstool GPT 04'!C79 -> 0
D80: ='Allokationstool Ist-Temp. NB'!C80 -> 0 | E80: ='Mengen und Temperaturen'!J80 -> 0 | F80: ='Allokationstool GPT NB'!C80 -> 0 | G80: ='Allokationstool GPT 03'!C80 -> 0 | H80: ='Allokationstool GPT 04'!C80 -> 0
D81: ='Allokationstool Ist-Temp. NB'!C81 -> 0 | E81: ='Mengen und Temperaturen'!J81 -> 0 | F81: ='Allokationstool GPT NB'!C81 -> 0 | G81: ='Allokationstool GPT 03'!C81 -> 0 | H81: ='Allokationstool GPT 04'!C81 -> 0
D82: ='Allokationstool Ist-Temp. NB'!C82 -> 0 | E82: ='Mengen und Temperaturen'!J82 -> 0 | F82: ='Allokationstool GPT NB'!C82 -> 0 | G82: ='Allokationstool GPT 03'!C82 -> 0 | H82: ='Allokationstool GPT 04'!C82 -> 0
D83: ='Allokationstool Ist-Temp. NB'!C83 -> 0 | E83: ='Mengen und Temperaturen'!J83 -> 0 | F83: ='Allokationstool GPT NB'!C83 -> 0 | G83: ='Allokationstool GPT 03'!C83 -> 0 | H83: ='Allokationstool GPT 04'!C83 -> 0
D84: ='Allokationstool Ist-Temp. NB'!C84 -> 0 | E84: ='Mengen und Temperaturen'!J84 -> 0 | F84: ='Allokationstool GPT NB'!C84 -> 0 | G84: ='Allokationstool GPT 03'!C84 -> 0 | H84: ='Allokationstool GPT 04'!C84 -> 0
D85: ='Allokationstool Ist-Temp. NB'!C85 -> 0 | E85: ='Mengen und Temperaturen'!J85 -> 0 | F85: ='Allokationstool GPT NB'!C85 -> 0 | G85: ='Allokationstool GPT 03'!C85 -> 0 | H85: ='Allokationstool GPT 04'!C85 -> 0
D86: ='Allokationstool Ist-Temp. NB'!C86 -> 0 | E86: ='Mengen und Temperaturen'!J86 -> 0 | F86: ='Allokationstool GPT NB'!C86 -> 0 | G86: ='Allokationstool GPT 03'!C86 -> 0 | H86: ='Allokationstool GPT 04'!C86 -> 0
D87: ='Allokationstool Ist-Temp. NB'!C87 -> 0 | E87: ='Mengen und Temperaturen'!J87 -> 0 | F87: ='Allokationstool GPT NB'!C87 -> 0 | G87: ='Allokationstool GPT 03'!C87 -> 0 | H87: ='Allokationstool GPT 04'!C87 -> 0
D88: ='Allokationstool Ist-Temp. NB'!C88 -> 0 | E88: ='Mengen und Temperaturen'!J88 -> 0 | F88: ='Allokationstool GPT NB'!C88 -> 0 | G88: ='Allokationstool GPT 03'!C88 -> 0 | H88: ='Allokationstool GPT 04'!C88 -> 0
D89: ='Allokationstool Ist-Temp. NB'!C89 -> 0 | E89: ='Mengen und Temperaturen'!J89 -> 0 | F89: ='Allokationstool GPT NB'!C89 -> 0 | G89: ='Allokationstool GPT 03'!C89 -> 0 | H89: ='Allokationstool GPT 04'!C89 -> 0
D90: ='Allokationstool Ist-Temp. NB'!C90 -> 0 | E90: ='Mengen und Temperaturen'!J90 -> 0 | F90: ='Allokationstool GPT NB'!C90 -> 0 | G90: ='Allokationstool GPT 03'!C90 -> 0 | H90: ='Allokationstool GPT 04'!C90 -> 0
D91: ='Allokationstool Ist-Temp. NB'!C91 -> 0 | E91: ='Mengen und Temperaturen'!J91 -> 0 | F91: ='Allokationstool GPT NB'!C91 -> 0 | G91: ='Allokationstool GPT 03'!C91 -> 0 | H91: ='Allokationstool GPT 04'!C91 -> 0
D92: ='Allokationstool Ist-Temp. NB'!C92 -> 0 | E92: ='Mengen und Temperaturen'!J92 -> 0 | F92: ='Allokationstool GPT NB'!C92 -> 0 | G92: ='Allokationstool GPT 03'!C92 -> 0 | H92: ='Allokationstool GPT 04'!C92 -> 0
D93: ='Allokationstool Ist-Temp. NB'!C93 -> 0 | E93: ='Mengen und Temperaturen'!J93 -> 0 | F93: ='Allokationstool GPT NB'!C93 -> 0 | G93: ='Allokationstool GPT 03'!C93 -> 0 | H93: ='Allokationstool GPT 04'!C93 -> 0
D94: ='Allokationstool Ist-Temp. NB'!C94 -> 0 | E94: ='Mengen und Temperaturen'!J94 -> 0 | F94: ='Allokationstool GPT NB'!C94 -> 0 | G94: ='Allokationstool GPT 03'!C94 -> 0 | H94: ='Allokationstool GPT 04'!C94 -> 0
D95: ='Allokationstool Ist-Temp. NB'!C95 -> 0 | E95: ='Mengen und Temperaturen'!J95 -> 0 | F95: ='Allokationstool GPT NB'!C95 -> 0 | G95: ='Allokationstool GPT 03'!C95 -> 0 | H95: ='Allokationstool GPT 04'!C95 -> 0
D96: ='Allokationstool Ist-Temp. NB'!C96 -> 0 | E96: ='Mengen und Temperaturen'!J96 -> 0 | F96: ='Allokationstool GPT NB'!C96 -> 0 | G96: ='Allokationstool GPT 03'!C96 -> 0 | H96: ='Allokationstool GPT 04'!C96 -> 0
D97: ='Allokationstool Ist-Temp. NB'!C97 -> 0 | E97: ='Mengen und Temperaturen'!J97 -> 0 | F97: ='Allokationstool GPT NB'!C97 -> 0 | G97: ='Allokationstool GPT 03'!C97 -> 0 | H97: ='Allokationstool GPT 04'!C97 -> 0
D98: ='Allokationstool Ist-Temp. NB'!C98 -> 0 | E98: ='Mengen und Temperaturen'!J98 -> 0 | F98: ='Allokationstool GPT NB'!C98 -> 0 | G98: ='Allokationstool GPT 03'!C98 -> 0 | H98: ='Allokationstool GPT 04'!C98 -> 0
D99: ='Allokationstool Ist-Temp. NB'!C99 -> 0 | E99: ='Mengen und Temperaturen'!J99 -> 0 | F99: ='Allokationstool GPT NB'!C99 -> 0 | G99: ='Allokationstool GPT 03'!C99 -> 0 | H99: ='Allokationstool GPT 04'!C99 -> 0
D100: ='Allokationstool Ist-Temp. NB'!C100 -> 0 | E100: ='Mengen und Temperaturen'!J100 -> 0 | F100: ='Allokationstool GPT NB'!C100 -> 0 | G100: ='Allokationstool GPT 03'!C100 -> 0 | H100: ='Allokationstool GPT 04'!C100 -> 0
D101: ='Allokationstool Ist-Temp. NB'!C101 -> 0 | E101: ='Mengen und Temperaturen'!J101 -> 0 | F101: ='Allokationstool GPT NB'!C101 -> 0 | G101: ='Allokationstool GPT 03'!C101 -> 0 | H101: ='Allokationstool GPT 04'!C101 -> 0
D102: ='Allokationstool Ist-Temp. NB'!C102 -> 0 | E102: ='Mengen und Temperaturen'!J102 -> 0 | F102: ='Allokationstool GPT NB'!C102 -> 0 | G102: ='Allokationstool GPT 03'!C102 -> 0 | H102: ='Allokationstool GPT 04'!C102 -> 0
D103: ='Allokationstool Ist-Temp. NB'!C103 -> 0 | E103: ='Mengen und Temperaturen'!J103 -> 0 | F103: ='Allokationstool GPT NB'!C103 -> 0 | G103: ='Allokationstool GPT 03'!C103 -> 0 | H103: ='Allokationstool GPT 04'!C103 -> 0
D104: ='Allokationstool Ist-Temp. NB'!C104 -> 0 | E104: ='Mengen und Temperaturen'!J104 -> 0 | F104: ='Allokationstool GPT NB'!C104 -> 0 | G104: ='Allokationstool GPT 03'!C104 -> 0 | H104: ='Allokationstool GPT 04'!C104 -> 0
D105: ='Allokationstool Ist-Temp. NB'!C105 -> 0 | E105: ='Mengen und Temperaturen'!J105 -> 0 | F105: ='Allokationstool GPT NB'!C105 -> 0 | G105: ='Allokationstool GPT 03'!C105 -> 0 | H105: ='Allokationstool GPT 04'!C105 -> 0
D106: ='Allokationstool Ist-Temp. NB'!C106 -> 0 | E106: ='Mengen und Temperaturen'!J106 -> 0 | F106: ='Allokationstool GPT NB'!C106 -> 0 | G106: ='Allokationstool GPT 03'!C106 -> 0 | H106: ='Allokationstool GPT 04'!C106 -> 0
D107: ='Allokationstool Ist-Temp. NB'!C107 -> 0 | E107: ='Mengen und Temperaturen'!J107 -> 0 | F107: ='Allokationstool GPT NB'!C107 -> 0 | G107: ='Allokationstool GPT 03'!C107 -> 0 | H107: ='Allokationstool GPT 04'!C107 -> 0
D108: ='Allokationstool Ist-Temp. NB'!C108 -> 0 | E108: ='Mengen und Temperaturen'!J108 -> 0 | F108: ='Allokationstool GPT NB'!C108 -> 0 | G108: ='Allokationstool GPT 03'!C108 -> 0 | H108: ='Allokationstool GPT 04'!C108 -> 0
D109: ='Allokationstool Ist-Temp. NB'!C109 -> 0 | E109: ='Mengen und Temperaturen'!J109 -> 0 | F109: ='Allokationstool GPT NB'!C109 -> 0 | G109: ='Allokationstool GPT 03'!C109 -> 0 | H109: ='Allokationstool GPT 04'!C109 -> 0
D110: ='Allokationstool Ist-Temp. NB'!C110 -> 0 | E110: ='Mengen und Temperaturen'!J110 -> 0 | F110: ='Allokationstool GPT NB'!C110 -> 0 | G110: ='Allokationstool GPT 03'!C110 -> 0 | H110: ='Allokationstool GPT 04'!C110 -> 0
D111: ='Allokationstool Ist-Temp. NB'!C111 -> 0 | E111: ='Mengen und Temperaturen'!J111 -> 0 | F111: ='Allokationstool GPT NB'!C111 -> 0 | G111: ='Allokationstool GPT 03'!C111 -> 0 | H111: ='Allokationstool GPT 04'!C111 -> 0
D112: ='Allokationstool Ist-Temp. NB'!C112 -> 0 | E112: ='Mengen und Temperaturen'!J112 -> 0 | F112: ='Allokationstool GPT NB'!C112 -> 0 | G112: ='Allokationstool GPT 03'!C112 -> 0 | H112: ='Allokationstool GPT 04'!C112 -> 0
D113: ='Allokationstool Ist-Temp. NB'!C113 -> 0 | E113: ='Mengen und Temperaturen'!J113 -> 0 | F113: ='Allokationstool GPT NB'!C113 -> 0 | G113: ='Allokationstool GPT 03'!C113 -> 0 | H113: ='Allokationstool GPT 04'!C113 -> 0
D114: ='Allokationstool Ist-Temp. NB'!C114 -> 0 | E114: ='Mengen und Temperaturen'!J114 -> 0 | F114: ='Allokationstool GPT NB'!C114 -> 0 | G114: ='Allokationstool GPT 03'!C114 -> 0 | H114: ='Allokationstool GPT 04'!C114 -> 0
D115: ='Allokationstool Ist-Temp. NB'!C115 -> 0 | E115: ='Mengen und Temperaturen'!J115 -> 0 | F115: ='Allokationstool GPT NB'!C115 -> 0 | G115: ='Allokationstool GPT 03'!C115 -> 0 | H115: ='Allokationstool GPT 04'!C115 -> 0
D116: ='Allokationstool Ist-Temp. NB'!C116 -> 0 | E116: ='Mengen und Temperaturen'!J116 -> 0 | F116: ='Allokationstool GPT NB'!C116 -> 0 | G116: ='Allokationstool GPT 03'!C116 -> 0 | H116: ='Allokationstool GPT 04'!C116 -> 0
D117: ='Allokationstool Ist-Temp. NB'!C117 -> 0 | E117: ='Mengen und Temperaturen'!J117 -> 0 | F117: ='Allokationstool GPT NB'!C117 -> 0 | G117: ='Allokationstool GPT 03'!C117 -> 0 | H117: ='Allokationstool GPT 04'!C117 -> 0
D118: ='Allokationstool Ist-Temp. NB'!C118 -> 0 | E118: ='Mengen und Temperaturen'!J118 -> 0 | F118: ='Allokationstool GPT NB'!C118 -> 0 | G118: ='Allokationstool GPT 03'!C118 -> 0 | H118: ='Allokationstool GPT 04'!C118 -> 0
D119: ='Allokationstool Ist-Temp. NB'!C119 -> 0 | E119: ='Mengen und Temperaturen'!J119 -> 0 | F119: ='Allokationstool GPT NB'!C119 -> 0 | G119: ='Allokationstool GPT 03'!C119 -> 0 | H119: ='Allokationstool GPT 04'!C119 -> 0
D120: ='Allokationstool Ist-Temp. NB'!C120 -> 0 | E120: ='Mengen und Temperaturen'!J120 -> 0 | F120: ='Allokationstool GPT NB'!C120 -> 0 | G120: ='Allokationstool GPT 03'!C120 -> 0 | H120: ='Allokationstool GPT 04'!C120 -> 0
D121: ='Allokationstool Ist-Temp. NB'!C121 -> 0 | E121: ='Mengen und Temperaturen'!J121 -> 0 | F121: ='Allokationstool GPT NB'!C121 -> 0 | G121: ='Allokationstool GPT 03'!C121 -> 0 | H121: ='Allokationstool GPT 04'!C121 -> 0
D122: ='Allokationstool Ist-Temp. NB'!C122 -> 0 | E122: ='Mengen und Temperaturen'!J122 -> 0 | F122: ='Allokationstool GPT NB'!C122 -> 0 | G122: ='Allokationstool GPT 03'!C122 -> 0 | H122: ='Allokationstool GPT 04'!C122 -> 0
D123: ='Allokationstool Ist-Temp. NB'!C123 -> 0 | E123: ='Mengen und Temperaturen'!J123 -> 0 | F123: ='Allokationstool GPT NB'!C123 -> 0 | G123: ='Allokationstool GPT 03'!C123 -> 0 | H123: ='Allokationstool GPT 04'!C123 -> 0
D124: ='Allokationstool Ist-Temp. NB'!C124 -> 0 | E124: ='Mengen und Temperaturen'!J124 -> 0 | F124: ='Allokationstool GPT NB'!C124 -> 0 | G124: ='Allokationstool GPT 03'!C124 -> 0 | H124: ='Allokationstool GPT 04'!C124 -> 0
D125: ='Allokationstool Ist-Temp. NB'!C125 -> 0 | E125: ='Mengen und Temperaturen'!J125 -> 0 | F125: ='Allokationstool GPT NB'!C125 -> 0 | G125: ='Allokationstool GPT 03'!C125 -> 0 | H125: ='Allokationstool GPT 04'!C125 -> 0
D126: ='Allokationstool Ist-Temp. NB'!C126 -> 0 | E126: ='Mengen und Temperaturen'!J126 -> 0 | F126: ='Allokationstool GPT NB'!C126 -> 0 | G126: ='Allokationstool GPT 03'!C126 -> 0 | H126: ='Allokationstool GPT 04'!C126 -> 0
D127: ='Allokationstool Ist-Temp. NB'!C127 -> 0 | E127: ='Mengen und Temperaturen'!J127 -> 0 | F127: ='Allokationstool GPT NB'!C127 -> 0 | G127: ='Allokationstool GPT 03'!C127 -> 0 | H127: ='Allokationstool GPT 04'!C127 -> 0
D128: ='Allokationstool Ist-Temp. NB'!C128 -> 0 | E128: ='Mengen und Temperaturen'!J128 -> 0 | F128: ='Allokationstool GPT NB'!C128 -> 0 | G128: ='Allokationstool GPT 03'!C128 -> 0 | H128: ='Allokationstool GPT 04'!C128 -> 0
D129: ='Allokationstool Ist-Temp. NB'!C129 -> 0 | E129: ='Mengen und Temperaturen'!J129 -> 0 | F129: ='Allokationstool GPT NB'!C129 -> 0 | G129: ='Allokationstool GPT 03'!C129 -> 0 | H129: ='Allokationstool GPT 04'!C129 -> 0
D130: ='Allokationstool Ist-Temp. NB'!C130 -> 0 | E130: ='Mengen und Temperaturen'!J130 -> 0 | F130: ='Allokationstool GPT NB'!C130 -> 0 | G130: ='Allokationstool GPT 03'!C130 -> 0 | H130: ='Allokationstool GPT 04'!C130 -> 0
D131: ='Allokationstool Ist-Temp. NB'!C131 -> 0 | E131: ='Mengen und Temperaturen'!J131 -> 0 | F131: ='Allokationstool GPT NB'!C131 -> 0 | G131: ='Allokationstool GPT 03'!C131 -> 0 | H131: ='Allokationstool GPT 04'!C131 -> 0
D132: ='Allokationstool Ist-Temp. NB'!C132 -> 0 | E132: ='Mengen und Temperaturen'!J132 -> 0 | F132: ='Allokationstool GPT NB'!C132 -> 0 | G132: ='Allokationstool GPT 03'!C132 -> 0 | H132: ='Allokationstool GPT 04'!C132 -> 0
D133: ='Allokationstool Ist-Temp. NB'!C133 -> 0 | E133: ='Mengen und Temperaturen'!J133 -> 0 | F133: ='Allokationstool GPT NB'!C133 -> 0 | G133: ='Allokationstool GPT 03'!C133 -> 0 | H133: ='Allokationstool GPT 04'!C133 -> 0
D134: ='Allokationstool Ist-Temp. NB'!C134 -> 0 | E134: ='Mengen und Temperaturen'!J134 -> 0 | F134: ='Allokationstool GPT NB'!C134 -> 0 | G134: ='Allokationstool GPT 03'!C134 -> 0 | H134: ='Allokationstool GPT 04'!C134 -> 0
D135: ='Allokationstool Ist-Temp. NB'!C135 -> 0 | E135: ='Mengen und Temperaturen'!J135 -> 0 | F135: ='Allokationstool GPT NB'!C135 -> 0 | G135: ='Allokationstool GPT 03'!C135 -> 0 | H135: ='Allokationstool GPT 04'!C135 -> 0
D136: ='Allokationstool Ist-Temp. NB'!C136 -> 0 | E136: ='Mengen und Temperaturen'!J136 -> 0 | F136: ='Allokationstool GPT NB'!C136 -> 0 | G136: ='Allokationstool GPT 03'!C136 -> 0 | H136: ='Allokationstool GPT 04'!C136 -> 0
D137: ='Allokationstool Ist-Temp. NB'!C137 -> 0 | E137: ='Mengen und Temperaturen'!J137 -> 0 | F137: ='Allokationstool GPT NB'!C137 -> 0 | G137: ='Allokationstool GPT 03'!C137 -> 0 | H137: ='Allokationstool GPT 04'!C137 -> 0
D138: ='Allokationstool Ist-Temp. NB'!C138 -> 0 | E138: ='Mengen und Temperaturen'!J138 -> 0 | F138: ='Allokationstool GPT NB'!C138 -> 0 | G138: ='Allokationstool GPT 03'!C138 -> 0 | H138: ='Allokationstool GPT 04'!C138 -> 0
D139: ='Allokationstool Ist-Temp. NB'!C139 -> 0 | E139: ='Mengen und Temperaturen'!J139 -> 0 | F139: ='Allokationstool GPT NB'!C139 -> 0 | G139: ='Allokationstool GPT 03'!C139 -> 0 | H139: ='Allokationstool GPT 04'!C139 -> 0
D140: ='Allokationstool Ist-Temp. NB'!C140 -> 0 | E140: ='Mengen und Temperaturen'!J140 -> 0 | F140: ='Allokationstool GPT NB'!C140 -> 0 | G140: ='Allokationstool GPT 03'!C140 -> 0 | H140: ='Allokationstool GPT 04'!C140 -> 0
D141: ='Allokationstool Ist-Temp. NB'!C141 -> 0 | E141: ='Mengen und Temperaturen'!J141 -> 0 | F141: ='Allokationstool GPT NB'!C141 -> 0 | G141: ='Allokationstool GPT 03'!C141 -> 0 | H141: ='Allokationstool GPT 04'!C141 -> 0
D142: ='Allokationstool Ist-Temp. NB'!C142 -> 0 | E142: ='Mengen und Temperaturen'!J142 -> 0 | F142: ='Allokationstool GPT NB'!C142 -> 0 | G142: ='Allokationstool GPT 03'!C142 -> 0 | H142: ='Allokationstool GPT 04'!C142 -> 0
D143: ='Allokationstool Ist-Temp. NB'!C143 -> 0 | E143: ='Mengen und Temperaturen'!J143 -> 0 | F143: ='Allokationstool GPT NB'!C143 -> 0 | G143: ='Allokationstool GPT 03'!C143 -> 0 | H143: ='Allokationstool GPT 04'!C143 -> 0
D144: ='Allokationstool Ist-Temp. NB'!C144 -> 0 | E144: ='Mengen und Temperaturen'!J144 -> 0 | F144: ='Allokationstool GPT NB'!C144 -> 0 | G144: ='Allokationstool GPT 03'!C144 -> 0 | H144: ='Allokationstool GPT 04'!C144 -> 0
D145: ='Allokationstool Ist-Temp. NB'!C145 -> 0 | E145: ='Mengen und Temperaturen'!J145 -> 0 | F145: ='Allokationstool GPT NB'!C145 -> 0 | G145: ='Allokationstool GPT 03'!C145 -> 0 | H145: ='Allokationstool GPT 04'!C145 -> 0
D146: ='Allokationstool Ist-Temp. NB'!C146 -> 0 | E146: ='Mengen und Temperaturen'!J146 -> 0 | F146: ='Allokationstool GPT NB'!C146 -> 0 | G146: ='Allokationstool GPT 03'!C146 -> 0 | H146: ='Allokationstool GPT 04'!C146 -> 0
D147: ='Allokationstool Ist-Temp. NB'!C147 -> 0 | E147: ='Mengen und Temperaturen'!J147 -> 0 | F147: ='Allokationstool GPT NB'!C147 -> 0 | G147: ='Allokationstool GPT 03'!C147 -> 0 | H147: ='Allokationstool GPT 04'!C147 -> 0
D148: ='Allokationstool Ist-Temp. NB'!C148 -> 0 | E148: ='Mengen und Temperaturen'!J148 -> 0 | F148: ='Allokationstool GPT NB'!C148 -> 0 | G148: ='Allokationstool GPT 03'!C148 -> 0 | H148: ='Allokationstool GPT 04'!C148 -> 0
D149: ='Allokationstool Ist-Temp. NB'!C149 -> 0 | E149: ='Mengen und Temperaturen'!J149 -> 0 | F149: ='Allokationstool GPT NB'!C149 -> 0 | G149: ='Allokationstool GPT 03'!C149 -> 0 | H149: ='Allokationstool GPT 04'!C149 -> 0
D150: ='Allokationstool Ist-Temp. NB'!C150 -> 0 | E150: ='Mengen und Temperaturen'!J150 -> 0 | F150: ='Allokationstool GPT NB'!C150 -> 0 | G150: ='Allokationstool GPT 03'!C150 -> 0 | H150: ='Allokationstool GPT 04'!C150 -> 0
D151: ='Allokationstool Ist-Temp. NB'!C151 -> 0 | E151: ='Mengen und Temperaturen'!J151 -> 0 | F151: ='Allokationstool GPT NB'!C151 -> 0 | G151: ='Allokationstool GPT 03'!C151 -> 0 | H151: ='Allokationstool GPT 04'!C151 -> 0
D152: ='Allokationstool Ist-Temp. NB'!C152 -> 0 | E152: ='Mengen und Temperaturen'!J152 -> 0 | F152: ='Allokationstool GPT NB'!C152 -> 0 | G152: ='Allokationstool GPT 03'!C152 -> 0 | H152: ='Allokationstool GPT 04'!C152 -> 0
D153: ='Allokationstool Ist-Temp. NB'!C153 -> 0 | E153: ='Mengen und Temperaturen'!J153 -> 0 | F153: ='Allokationstool GPT NB'!C153 -> 0 | G153: ='Allokationstool GPT 03'!C153 -> 0 | H153: ='Allokationstool GPT 04'!C153 -> 0
D154: ='Allokationstool Ist-Temp. NB'!C154 -> 0 | E154: ='Mengen und Temperaturen'!J154 -> 0 | F154: ='Allokationstool GPT NB'!C154 -> 0 | G154: ='Allokationstool GPT 03'!C154 -> 0 | H154: ='Allokationstool GPT 04'!C154 -> 0
D155: ='Allokationstool Ist-Temp. NB'!C155 -> 0 | E155: ='Mengen und Temperaturen'!J155 -> 0 | F155: ='Allokationstool GPT NB'!C155 -> 0 | G155: ='Allokationstool GPT 03'!C155 -> 0 | H155: ='Allokationstool GPT 04'!C155 -> 0
D156: ='Allokationstool Ist-Temp. NB'!C156 -> 0 | E156: ='Mengen und Temperaturen'!J156 -> 0 | F156: ='Allokationstool GPT NB'!C156 -> 0 | G156: ='Allokationstool GPT 03'!C156 -> 0 | H156: ='Allokationstool GPT 04'!C156 -> 0
D157: ='Allokationstool Ist-Temp. NB'!C157 -> 0 | E157: ='Mengen und Temperaturen'!J157 -> 0 | F157: ='Allokationstool GPT NB'!C157 -> 0 | G157: ='Allokationstool GPT 03'!C157 -> 0 | H157: ='Allokationstool GPT 04'!C157 -> 0
D158: ='Allokationstool Ist-Temp. NB'!C158 -> 0 | E158: ='Mengen und Temperaturen'!J158 -> 0 | F158: ='Allokationstool GPT NB'!C158 -> 0 | G158: ='Allokationstool GPT 03'!C158 -> 0 | H158: ='Allokationstool GPT 04'!C158 -> 0
D159: ='Allokationstool Ist-Temp. NB'!C159 -> 0 | E159: ='Mengen und Temperaturen'!J159 -> 0 | F159: ='Allokationstool GPT NB'!C159 -> 0 | G159: ='Allokationstool GPT 03'!C159 -> 0 | H159: ='Allokationstool GPT 04'!C159 -> 0
D160: ='Allokationstool Ist-Temp. NB'!C160 -> 0 | E160: ='Mengen und Temperaturen'!J160 -> 0 | F160: ='Allokationstool GPT NB'!C160 -> 0 | G160: ='Allokationstool GPT 03'!C160 -> 0 | H160: ='Allokationstool GPT 04'!C160 -> 0
D161: ='Allokationstool Ist-Temp. NB'!C161 -> 0 | E161: ='Mengen und Temperaturen'!J161 -> 0 | F161: ='Allokationstool GPT NB'!C161 -> 0 | G161: ='Allokationstool GPT 03'!C161 -> 0 | H161: ='Allokationstool GPT 04'!C161 -> 0
D162: ='Allokationstool Ist-Temp. NB'!C162 -> 0 | E162: ='Mengen und Temperaturen'!J162 -> 0 | F162: ='Allokationstool GPT NB'!C162 -> 0 | G162: ='Allokationstool GPT 03'!C162 -> 0 | H162: ='Allokationstool GPT 04'!C162 -> 0
D163: ='Allokationstool Ist-Temp. NB'!C163 -> 0 | E163: ='Mengen und Temperaturen'!J163 -> 0 | F163: ='Allokationstool GPT NB'!C163 -> 0 | G163: ='Allokationstool GPT 03'!C163 -> 0 | H163: ='Allokationstool GPT 04'!C163 -> 0
D164: ='Allokationstool Ist-Temp. NB'!C164 -> 0 | E164: ='Mengen und Temperaturen'!J164 -> 0 | F164: ='Allokationstool GPT NB'!C164 -> 0 | G164: ='Allokationstool GPT 03'!C164 -> 0 | H164: ='Allokationstool GPT 04'!C164 -> 0
D165: ='Allokationstool Ist-Temp. NB'!C165 -> 0 | E165: ='Mengen und Temperaturen'!J165 -> 0 | F165: ='Allokationstool GPT NB'!C165 -> 0 | G165: ='Allokationstool GPT 03'!C165 -> 0 | H165: ='Allokationstool GPT 04'!C165 -> 0
D166: ='Allokationstool Ist-Temp. NB'!C166 -> 0 | E166: ='Mengen und Temperaturen'!J166 -> 0 | F166: ='Allokationstool GPT NB'!C166 -> 0 | G166: ='Allokationstool GPT 03'!C166 -> 0 | H166: ='Allokationstool GPT 04'!C166 -> 0
D167: ='Allokationstool Ist-Temp. NB'!C167 -> 0 | E167: ='Mengen und Temperaturen'!J167 -> 0 | F167: ='Allokationstool GPT NB'!C167 -> 0 | G167: ='Allokationstool GPT 03'!C167 -> 0 | H167: ='Allokationstool GPT 04'!C167 -> 0
D168: ='Allokationstool Ist-Temp. NB'!C168 -> 0 | E168: ='Mengen und Temperaturen'!J168 -> 0 | F168: ='Allokationstool GPT NB'!C168 -> 0 | G168: ='Allokationstool GPT 03'!C168 -> 0 | H168: ='Allokationstool GPT 04'!C168 -> 0
D169: ='Allokationstool Ist-Temp. NB'!C169 -> 0 | E169: ='Mengen und Temperaturen'!J169 -> 0 | F169: ='Allokationstool GPT NB'!C169 -> 0 | G169: ='Allokationstool GPT 03'!C169 -> 0 | H169: ='Allokationstool GPT 04'!C169 -> 0
D170: ='Allokationstool Ist-Temp. NB'!C170 -> 0 | E170: ='Mengen und Temperaturen'!J170 -> 0 | F170: ='Allokationstool GPT NB'!C170 -> 0 | G170: ='Allokationstool GPT 03'!C170 -> 0 | H170: ='Allokationstool GPT 04'!C170 -> 0
D171: ='Allokationstool Ist-Temp. NB'!C171 -> 0 | E171: ='Mengen und Temperaturen'!J171 -> 0 | F171: ='Allokationstool GPT NB'!C171 -> 0 | G171: ='Allokationstool GPT 03'!C171 -> 0 | H171: ='Allokationstool GPT 04'!C171 -> 0
D172: ='Allokationstool Ist-Temp. NB'!C172 -> 0 | E172: ='Mengen und Temperaturen'!J172 -> 0 | F172: ='Allokationstool GPT NB'!C172 -> 0 | G172: ='Allokationstool GPT 03'!C172 -> 0 | H172: ='Allokationstool GPT 04'!C172 -> 0
D173: ='Allokationstool Ist-Temp. NB'!C173 -> 0 | E173: ='Mengen und Temperaturen'!J173 -> 0 | F173: ='Allokationstool GPT NB'!C173 -> 0 | G173: ='Allokationstool GPT 03'!C173 -> 0 | H173: ='Allokationstool GPT 04'!C173 -> 0
D174: ='Allokationstool Ist-Temp. NB'!C174 -> 0 | E174: ='Mengen und Temperaturen'!J174 -> 0 | F174: ='Allokationstool GPT NB'!C174 -> 0 | G174: ='Allokationstool GPT 03'!C174 -> 0 | H174: ='Allokationstool GPT 04'!C174 -> 0
D175: ='Allokationstool Ist-Temp. NB'!C175 -> 0 | E175: ='Mengen und Temperaturen'!J175 -> 0 | F175: ='Allokationstool GPT NB'!C175 -> 0 | G175: ='Allokationstool GPT 03'!C175 -> 0 | H175: ='Allokationstool GPT 04'!C175 -> 0
D176: ='Allokationstool Ist-Temp. NB'!C176 -> 0 | E176: ='Mengen und Temperaturen'!J176 -> 0 | F176: ='Allokationstool GPT NB'!C176 -> 0 | G176: ='Allokationstool GPT 03'!C176 -> 0 | H176: ='Allokationstool GPT 04'!C176 -> 0
D177: ='Allokationstool Ist-Temp. NB'!C177 -> 0 | E177: ='Mengen und Temperaturen'!J177 -> 0 | F177: ='Allokationstool GPT NB'!C177 -> 0 | G177: ='Allokationstool GPT 03'!C177 -> 0 | H177: ='Allokationstool GPT 04'!C177 -> 0
D178: ='Allokationstool Ist-Temp. NB'!C178 -> 0 | E178: ='Mengen und Temperaturen'!J178 -> 0 | F178: ='Allokationstool GPT NB'!C178 -> 0 | G178: ='Allokationstool GPT 03'!C178 -> 0 | H178: ='Allokationstool GPT 04'!C178 -> 0
D179: ='Allokationstool Ist-Temp. NB'!C179 -> 0 | E179: ='Mengen und Temperaturen'!J179 -> 0 | F179: ='Allokationstool GPT NB'!C179 -> 0 | G179: ='Allokationstool GPT 03'!C179 -> 0 | H179: ='Allokationstool GPT 04'!C179 -> 0
D180: ='Allokationstool Ist-Temp. NB'!C180 -> 0 | E180: ='Mengen und Temperaturen'!J180 -> 0 | F180: ='Allokationstool GPT NB'!C180 -> 0 | G180: ='Allokationstool GPT 03'!C180 -> 0 | H180: ='Allokationstool GPT 04'!C180 -> 0
D181: ='Allokationstool Ist-Temp. NB'!C181 -> 0 | E181: ='Mengen und Temperaturen'!J181 -> 0 | F181: ='Allokationstool GPT NB'!C181 -> 0 | G181: ='Allokationstool GPT 03'!C181 -> 0 | H181: ='Allokationstool GPT 04'!C181 -> 0
D182: ='Allokationstool Ist-Temp. NB'!C182 -> 0 | E182: ='Mengen und Temperaturen'!J182 -> 0 | F182: ='Allokationstool GPT NB'!C182 -> 0 | G182: ='Allokationstool GPT 03'!C182 -> 0 | H182: ='Allokationstool GPT 04'!C182 -> 0
D183: ='Allokationstool Ist-Temp. NB'!C183 -> 0 | E183: ='Mengen und Temperaturen'!J183 -> 0 | F183: ='Allokationstool GPT NB'!C183 -> 0 | G183: ='Allokationstool GPT 03'!C183 -> 0 | H183: ='Allokationstool GPT 04'!C183 -> 0
D184: ='Allokationstool Ist-Temp. NB'!C184 -> 0 | E184: ='Mengen und Temperaturen'!J184 -> 0 | F184: ='Allokationstool GPT NB'!C184 -> 0 | G184: ='Allokationstool GPT 03'!C184 -> 0 | H184: ='Allokationstool GPT 04'!C184 -> 0
D185: ='Allokationstool Ist-Temp. NB'!C185 -> 0 | E185: ='Mengen und Temperaturen'!J185 -> 0 | F185: ='Allokationstool GPT NB'!C185 -> 0 | G185: ='Allokationstool GPT 03'!C185 -> 0 | H185: ='Allokationstool GPT 04'!C185 -> 0
D186: ='Allokationstool Ist-Temp. NB'!C186 -> 0 | E186: ='Mengen und Temperaturen'!J186 -> 0 | F186: ='Allokationstool GPT NB'!C186 -> 0 | G186: ='Allokationstool GPT 03'!C186 -> 0 | H186: ='Allokationstool GPT 04'!C186 -> 0
D187: ='Allokationstool Ist-Temp. NB'!C187 -> 0 | E187: ='Mengen und Temperaturen'!J187 -> 0 | F187: ='Allokationstool GPT NB'!C187 -> 0 | G187: ='Allokationstool GPT 03'!C187 -> 0 | H187: ='Allokationstool GPT 04'!C187 -> 0
D188: ='Allokationstool Ist-Temp. NB'!C188 -> 0 | E188: ='Mengen und Temperaturen'!J188 -> 0 | F188: ='Allokationstool GPT NB'!C188 -> 0 | G188: ='Allokationstool GPT 03'!C188 -> 0 | H188: ='Allokationstool GPT 04'!C188 -> 0
D189: ='Allokationstool Ist-Temp. NB'!C189 -> 0 | E189: ='Mengen und Temperaturen'!J189 -> 0 | F189: ='Allokationstool GPT NB'!C189 -> 0 | G189: ='Allokationstool GPT 03'!C189 -> 0 | H189: ='Allokationstool GPT 04'!C189 -> 0
D190: ='Allokationstool Ist-Temp. NB'!C190 -> 0 | E190: ='Mengen und Temperaturen'!J190 -> 0 | F190: ='Allokationstool GPT NB'!C190 -> 0 | G190: ='Allokationstool GPT 03'!C190 -> 0 | H190: ='Allokationstool GPT 04'!C190 -> 0
D191: ='Allokationstool Ist-Temp. NB'!C191 -> 0 | E191: ='Mengen und Temperaturen'!J191 -> 0 | F191: ='Allokationstool GPT NB'!C191 -> 0 | G191: ='Allokationstool GPT 03'!C191 -> 0 | H191: ='Allokationstool GPT 04'!C191 -> 0
D192: ='Allokationstool Ist-Temp. NB'!C192 -> 0 | E192: ='Mengen und Temperaturen'!J192 -> 0 | F192: ='Allokationstool GPT NB'!C192 -> 0 | G192: ='Allokationstool GPT 03'!C192 -> 0 | H192: ='Allokationstool GPT 04'!C192 -> 0
D193: ='Allokationstool Ist-Temp. NB'!C193 -> 0 | E193: ='Mengen und Temperaturen'!J193 -> 0 | F193: ='Allokationstool GPT NB'!C193 -> 0 | G193: ='Allokationstool GPT 03'!C193 -> 0 | H193: ='Allokationstool GPT 04'!C193 -> 0
D194: ='Allokationstool Ist-Temp. NB'!C194 -> 0 | E194: ='Mengen und Temperaturen'!J194 -> 0 | F194: ='Allokationstool GPT NB'!C194 -> 0 | G194: ='Allokationstool GPT 03'!C194 -> 0 | H194: ='Allokationstool GPT 04'!C194 -> 0
D195: ='Allokationstool Ist-Temp. NB'!C195 -> 0 | E195: ='Mengen und Temperaturen'!J195 -> 0 | F195: ='Allokationstool GPT NB'!C195 -> 0 | G195: ='Allokationstool GPT 03'!C195 -> 0 | H195: ='Allokationstool GPT 04'!C195 -> 0
D196: ='Allokationstool Ist-Temp. NB'!C196 -> 0 | E196: ='Mengen und Temperaturen'!J196 -> 0 | F196: ='Allokationstool GPT NB'!C196 -> 0 | G196: ='Allokationstool GPT 03'!C196 -> 0 | H196: ='Allokationstool GPT 04'!C196 -> 0
D197: ='Allokationstool Ist-Temp. NB'!C197 -> 0 | E197: ='Mengen und Temperaturen'!J197 -> 0 | F197: ='Allokationstool GPT NB'!C197 -> 0 | G197: ='Allokationstool GPT 03'!C197 -> 0 | H197: ='Allokationstool GPT 04'!C197 -> 0
D198: ='Allokationstool Ist-Temp. NB'!C198 -> 0 | E198: ='Mengen und Temperaturen'!J198 -> 0 | F198: ='Allokationstool GPT NB'!C198 -> 0 | G198: ='Allokationstool GPT 03'!C198 -> 0 | H198: ='Allokationstool GPT 04'!C198 -> 0
D199: ='Allokationstool Ist-Temp. NB'!C199 -> 0 | E199: ='Mengen und Temperaturen'!J199 -> 0 | F199: ='Allokationstool GPT NB'!C199 -> 0 | G199: ='Allokationstool GPT 03'!C199 -> 0 | H199: ='Allokationstool GPT 04'!C199 -> 0
D200: ='Allokationstool Ist-Temp. NB'!C200 -> 0 | E200: ='Mengen und Temperaturen'!J200 -> 0 | F200: ='Allokationstool GPT NB'!C200 -> 0 | G200: ='Allokationstool GPT 03'!C200 -> 0 | H200: ='Allokationstool GPT 04'!C200 -> 0
... 532 more rows

Sheet Kundenwerte
A1: Monat | B1: Jahr | C1: Z13 | D1: Z14 | E1: Z15 | F1: Z23 | G1: Z24 | H1: Z25 | I1: HK3 | J1: BA1 | K1: BA2 | L1: BA3 | M1: BA4 | N1: BA5 | O1: BD1 | P1: BD2 | Q1: BD3 | R1: BD4 | S1: BD5 | T1: BH1 | U1: BH2 | V1: BH3 | W1: BH4 | X1: BH5 | Y1: GA1 | Z1: GA2 | AA1: GA3 | AB1: GA4 | AC1: GA5 | AD1: GB1 | AE1: GB2 | AF1: GB3 | AG1: GB4 | AH1: GB5 | AI1: HA1 | AJ1: HA2 | AK1: HA3 | AL1: HA4 | AM1: HA5 | AN1: KO1 | AO1: KO2 | AP1: KO3 | AQ1: KO4 | AR1: KO5 | AS1: MK1 | AT1: MK2 | AU1: MK3 | AV1: MK4 | AW1: MK5 | AX1: MF1 | AY1: MF2 | AZ1: MF3 | BA1: MF4 | BB1: MF5 | BC1: PD1 | BD1: PD2 | BE1: PD3 | BF1: PD4 | BG1: PD5 | BH1: WA1 | BI1: WA2 | BJ1: WA3 | BK1: WA4 | BL1: WA5 | BM1: GHD03 | BN1: GHD04 | BO1: Monatssumme
A2: 1 | B2: ='Koeffizientenübersicht BDEW'!$S$19 ->  | BO2: =SUM(C2:BN2) -> 0
A3: 2 | B3: ='Koeffizientenübersicht BDEW'!$S$19 ->  | BO3: 0
A4: 3 | B4: ='Koeffizientenübersicht BDEW'!$S$19 ->  | BO4: 0
A5: 4 | B5: ='Koeffizientenübersicht BDEW'!$S$19 ->  | BO5: 0
A6: 5 | B6: ='Koeffizientenübersicht BDEW'!$S$19 ->  | BO6: 0
A7: 6 | B7: ='Koeffizientenübersicht BDEW'!$S$19 ->  | BO7: 0
A8: 7 | B8: ='Koeffizientenübersicht BDEW'!$S$19 ->  | BO8: 0
A9: 8 | B9: ='Koeffizientenübersicht BDEW'!$S$19 ->  | BO9: 0
A10: 9 | B10: ='Koeffizientenübersicht BDEW'!$S$19 ->  | BO10: 0
A11: 10 | B11: ='Koeffizientenübersicht BDEW'!$S$19 ->  | BO11: 0
A12: 11 | B12: ='Koeffizientenübersicht BDEW'!$S$19 ->  | BO12: 0
A13: 12 | B13: ='Koeffizientenübersicht BDEW'!$S$19 ->  | BO13: 0
A14: 1 | B14: ='Koeffizientenübersicht BDEW'!$S$20 ->  | BO14: 0
A15: 2 | B15: ='Koeffizientenübersicht BDEW'!$S$20 ->  | BO15: 0
A16: 3 | B16: ='Koeffizientenübersicht BDEW'!$S$20 ->  | BO16: 0
A17: 4 | B17: ='Koeffizientenübersicht BDEW'!$S$20 ->  | BO17: 0
A18: 5 | B18: ='Koeffizientenübersicht BDEW'!$S$20 ->  | BO18: 0
A19: 6 | B19: ='Koeffizientenübersicht BDEW'!$S$20 ->  | BO19: 0
A20: 7 | B20: ='Koeffizientenübersicht BDEW'!$S$20 ->  | BO20: 0
A21: 8 | B21: ='Koeffizientenübersicht BDEW'!$S$20 ->  | BO21: 0
A22: 9 | B22: ='Koeffizientenübersicht BDEW'!$S$20 ->  | BO22: 0
A23: 10 | B23: ='Koeffizientenübersicht BDEW'!$S$20 ->  | BO23: 0
A24: 11 | B24: ='Koeffizientenübersicht BDEW'!$S$20 ->  | BO24: 0
A25: 12 | B25: ='Koeffizientenübersicht BDEW'!$S$20 ->  | BO25: 0
C27: Jahres h-Werte Netzbetreiber
C28: =C1 -> Z13 | D28: =D1 -> Z14 | E28: Z15 | F28: Z23 | G28: Z24 | H28: Z25 | I28: HK3 | J28: BA1 | K28: BA2 | L28: BA3 | M28: BA4 | N28: BA5 | O28: BD1 | P28: BD2 | Q28: BD3 | R28: BD4 | S28: BD5 | T28: BH1 | U28: BH2 | V28: BH3 | W28: BH4 | X28: BH5 | Y28: GA1 | Z28: GA2 | AA28: GA3 | AB28: GA4 | AC28: GA5 | AD28: GB1 | AE28: GB2 | AF28: GB3 | AG28: GB4 | AH28: GB5 | AI28: HA1 | AJ28: HA2 | AK28: HA3 | AL28: HA4 | AM28: HA5 | AN28: KO1 | AO28: KO2 | AP28: KO3 | AQ28: KO4 | AR28: KO5 | AS28: MK1 | AT28: MK2 | AU28: MK3 | AV28: MK4 | AW28: MK5 | AX28: MF1 | AY28: MF2 | AZ28: MF3 | BA28: MF4 | BB28: MF5 | BC28: PD1 | BD28: PD2 | BE28: PD3 | BF28: PD4 | BG28: PD5 | BH28: WA1 | BI28: WA2 | BJ28: WA3 | BK28: WA4 | BL28: WA5 | BM28: GHD03 | BN28: GHD04
B29: =B2 ->  | C29: ='Jahres h- Wertberechnung NB'!G20 -> 0 | D29: ='Jahres h- Wertberechnung NB'!M20 -> 0 | E29: ='Jahres h- Wertberechnung NB'!S20 -> 0 | F29: ='Jahres h- Wertberechnung NB'!Y20 -> 0 | G29: ='Jahres h- Wertberechnung NB'!AE20 -> 0 | H29: ='Jahres h- Wertberechnung NB'!AK20 -> 0 | I29: ='Jahres h- Wertberechnung NB'!AQ20 -> 0 | J29: ='Jahres h- Wertberechnung NB'!KC20 -> 0 | K29: ='Jahres h- Wertberechnung NB'!KI20 -> 0 | L29: ='Jahres h- Wertberechnung NB'!KO20 -> 0 | M29: ='Jahres h- Wertberechnung NB'!KV20 -> 0 | N29: ='Jahres h- Wertberechnung NB'!LB20 -> 0 | O29: ='Jahres h- Wertberechnung NB'!EI20 -> 0 | P29: ='Jahres h- Wertberechnung NB'!EO20 -> 0 | Q29: ='Jahres h- Wertberechnung NB'!EU20 -> 0 | R29: ='Jahres h- Wertberechnung NB'!FA20 -> 0 | S29: ='Jahres h- Wertberechnung NB'!FG20 -> 0 | T29: ='Jahres h- Wertberechnung NB'!GQ20 -> 0 | U29: ='Jahres h- Wertberechnung NB'!GW20 -> 0 | V29: ='Jahres h- Wertberechnung NB'!HC20 -> 0 | W29: ='Jahres h- Wertberechnung NB'!HI20 -> 0 | X29: ='Jahres h- Wertberechnung NB'!HO20 -> 0 | Y29: ='Jahres h- Wertberechnung NB'!FM20 -> 0 | Z29: ='Jahres h- Wertberechnung NB'!FS20 -> 0 | AA29: ='Jahres h- Wertberechnung NB'!FY20 -> 0 | AB29: ='Jahres h- Wertberechnung NB'!GE20 -> 0 | AC29: ='Jahres h- Wertberechnung NB'!GK20 -> 0 | AD29: ='Jahres h- Wertberechnung NB'!IY20 -> 0 | AE29: ='Jahres h- Wertberechnung NB'!JE20 -> 0 | AF29: ='Jahres h- Wertberechnung NB'!JK20 -> 0 | AG29: ='Jahres h- Wertberechnung NB'!JQ20 -> 0 | AH29: ='Jahres h- Wertberechnung NB'!JW20 -> 0 | AI29: ='Jahres h- Wertberechnung NB'!CA20 -> 0 | AJ29: ='Jahres h- Wertberechnung NB'!CG20 -> 0 | AK29: ='Jahres h- Wertberechnung NB'!CM20 -> 0 | AL29: ='Jahres h- Wertberechnung NB'!CS20 -> 0 | AM29: ='Jahres h- Wertberechnung NB'!CY20 -> 0 | AN29: ='Jahres h- Wertberechnung NB'!DE20 -> 0 | AO29: ='Jahres h- Wertberechnung NB'!DK20 -> 0 | AP29: ='Jahres h- Wertberechnung NB'!DQ20 -> 0 | AQ29: ='Jahres h- Wertberechnung NB'!DW20 -> 0 | AR29: ='Jahres h- Wertberechnung NB'!EC20 -> 0 | AS29: ='Jahres h- Wertberechnung NB'!AW20 -> 0 | AT29: ='Jahres h- Wertberechnung NB'!BC20 -> 0 | AU29: ='Jahres h- Wertberechnung NB'!BI20 -> 0 | AV29: ='Jahres h- Wertberechnung NB'!BO20 -> 0 | AW29: ='Jahres h- Wertberechnung NB'!BU20 -> 0 | AX29: ='Jahres h- Wertberechnung NB'!ML20 -> 0 | AY29: ='Jahres h- Wertberechnung NB'!MR20 -> 0 | AZ29: ='Jahres h- Wertberechnung NB'!MX20 -> 0 | BA29: ='Jahres h- Wertberechnung NB'!ND20 -> 0 | BB29: ='Jahres h- Wertberechnung NB'!NJ20 -> 0 | BC29: ='Jahres h- Wertberechnung NB'!LH20 -> 0 | BD29: ='Jahres h- Wertberechnung NB'!LN20 -> 0 | BE29: ='Jahres h- Wertberechnung NB'!LT20 -> 0 | BF29: ='Jahres h- Wertberechnung NB'!LZ20 -> 0 | BG29: ='Jahres h- Wertberechnung NB'!MF20 -> 0 | BH29: ='Jahres h- Wertberechnung NB'!HU20 -> 0 | BI29: ='Jahres h- Wertberechnung NB'!IA20 -> 0 | BJ29: ='Jahres h- Wertberechnung NB'!IG20 -> 0 | BK29: ='Jahres h- Wertberechnung NB'!IM20 -> 0 | BL29: ='Jahres h- Wertberechnung NB'!IS20 -> 0 | BM29: ='Jahres h- Wertberechnung NB'!NP20 -> 0 | BN29: ='Jahres h- Wertberechnung NB'!NV20 -> 0
B30: =B14 ->  | C30: ='Jahres h- Wertberechnung NB'!G25 -> 0 | D30: ='Jahres h- Wertberechnung NB'!M25 -> 0 | E30: ='Jahres h- Wertberechnung NB'!S25 -> 0 | F30: ='Jahres h- Wertberechnung NB'!Y25 -> 0 | G30: ='Jahres h- Wertberechnung NB'!AE25 -> 0 | H30: ='Jahres h- Wertberechnung NB'!AK25 -> 0 | I30: ='Jahres h- Wertberechnung NB'!AQ25 -> 0 | J30: ='Jahres h- Wertberechnung NB'!KC25 -> 0 | K30: ='Jahres h- Wertberechnung NB'!KI25 -> 0 | L30: ='Jahres h- Wertberechnung NB'!KO25 -> 0 | M30: ='Jahres h- Wertberechnung NB'!KV25 -> 0 | N30: ='Jahres h- Wertberechnung NB'!LB25 -> 0 | O30: ='Jahres h- Wertberechnung NB'!EI25 -> 0 | P30: ='Jahres h- Wertberechnung NB'!EO25 -> 0 | Q30: ='Jahres h- Wertberechnung NB'!EU25 -> 0 | R30: ='Jahres h- Wertberechnung NB'!FA25 -> 0 | S30: ='Jahres h- Wertberechnung NB'!FG25 -> 0 | T30: ='Jahres h- Wertberechnung NB'!GQ25 -> 0 | U30: ='Jahres h- Wertberechnung NB'!GW25 -> 0 | V30: ='Jahres h- Wertberechnung NB'!HC25 -> 0 | W30: ='Jahres h- Wertberechnung NB'!HI25 -> 0 | X30: ='Jahres h- Wertberechnung NB'!HO25 -> 0 | Y30: ='Jahres h- Wertberechnung NB'!FM25 -> 0 | Z30: ='Jahres h- Wertberechnung NB'!FS25 -> 0 | AA30: ='Jahres h- Wertberechnung NB'!FY25 -> 0 | AB30: ='Jahres h- Wertberechnung NB'!GE25 -> 0 | AC30: ='Jahres h- Wertberechnung NB'!GK25 -> 0 | AD30: ='Jahres h- Wertberechnung NB'!IY25 -> 0 | AE30: ='Jahres h- Wertberechnung NB'!JE25 -> 0 | AF30: ='Jahres h- Wertberechnung NB'!JK25 -> 0 | AG30: ='Jahres h- Wertberechnung NB'!JQ25 -> 0 | AH30: ='Jahres h- Wertberechnung NB'!JW25 -> 0 | AI30: ='Jahres h- Wertberechnung NB'!CA25 -> 0 | AJ30: ='Jahres h- Wertberechnung NB'!CG25 -> 0 | AK30: ='Jahres h- Wertberechnung NB'!CM25 -> 0 | AL30: ='Jahres h- Wertberechnung NB'!CS25 -> 0 | AM30: ='Jahres h- Wertberechnung NB'!CY25 -> 0 | AN30: ='Jahres h- Wertberechnung NB'!DE25 -> 0 | AO30: ='Jahres h- Wertberechnung NB'!DK25 -> 0 | AP30: ='Jahres h- Wertberechnung NB'!DQ25 -> 0 | AQ30: ='Jahres h- Wertberechnung NB'!DW25 -> 0 | AR30: ='Jahres h- Wertberechnung NB'!EC25 -> 0 | AS30: ='Jahres h- Wertberechnung NB'!AW25 -> 0 | AT30: ='Jahres h- Wertberechnung NB'!BC25 -> 0 | AU30: ='Jahres h- Wertberechnung NB'!BI25 -> 0 | AV30: ='Jahres h- Wertberechnung NB'!BO25 -> 0 | AW30: ='Jahres h- Wertberechnung NB'!BU25 -> 0 | AX30: ='Jahres h- Wertberechnung NB'!ML25 -> 0 | AY30: ='Jahres h- Wertberechnung NB'!MR25 -> 0 | AZ30: ='Jahres h- Wertberechnung NB'!MX25 -> 0 | BA30: ='Jahres h- Wertberechnung NB'!ND25 -> 0 | BB30: ='Jahres h- Wertberechnung NB'!NJ25 -> 0 | BC30: ='Jahres h- Wertberechnung NB'!LH25 -> 0 | BD30: ='Jahres h- Wertberechnung NB'!LN25 -> 0 | BE30: ='Jahres h- Wertberechnung NB'!LT25 -> 0 | BF30: ='Jahres h- Wertberechnung NB'!LZ25 -> 0 | BG30: ='Jahres h- Wertberechnung NB'!MF25 -> 0 | BH30: ='Jahres h- Wertberechnung NB'!HU25 -> 0 | BI30: ='Jahres h- Wertberechnung NB'!IA25 -> 0 | BJ30: ='Jahres h- Wertberechnung NB'!IG25 -> 0 | BK30: ='Jahres h- Wertberechnung NB'!IM25 -> 0 | BL30: ='Jahres h- Wertberechnung NB'!IS25 -> 0 | BM30: ='Jahres h- Wertberechnung NB'!NP25 -> 0 | BN30: ='Jahres h- Wertberechnung NB'!NV25 -> 0
C32: Jahresmengen
A33: =B29 ->  | B33: =A2 -> 1 | C33: =C2*C$29 -> 0 | D33: 0 | E33: 0 | F33: 0 | G33: 0 | H33: 0 | I33: 0 | J33: 0 | K33: 0 | L33: 0 | M33: 0 | N33: 0 | O33: 0 | P33: 0 | Q33: 0 | R33: 0 | S33: 0 | T33: 0 | U33: 0 | V33: 0 | W33: 0 | X33: 0 | Y33: 0 | Z33: 0 | AA33: 0 | AB33: 0 | AC33: 0 | AD33: 0 | AE33: 0 | AF33: 0 | AG33: 0 | AH33: 0 | AI33: =AI2*AI$29 -> 0 | AJ33: 0 | AK33: 0 | AL33: 0 | AM33: 0 | AN33: 0 | AO33: 0 | AP33: 0 | AQ33: 0 | AR33: 0 | AS33: 0 | AT33: 0 | AU33: 0 | AV33: 0 | AW33: 0 | AX33: 0 | AY33: 0 | AZ33: 0 | BA33: 0 | BB33: 0 | BC33: 0 | BD33: 0 | BE33: 0 | BF33: 0 | BG33: 0 | BH33: 0 | BI33: 0 | BJ33: 0 | BK33: 0 | BL33: 0 | BM33: 0 | BN33: 0
B34: 2 | C34: =C3*C$29 -> 0 | D34: 0 | E34: 0 | F34: 0 | G34: 0 | H34: 0 | I34: 0 | J34: 0 | K34: 0 | L34: 0 | M34: 0 | N34: 0 | O34: 0 | P34: 0 | Q34: 0 | R34: 0 | S34: 0 | T34: 0 | U34: 0 | V34: 0 | W34: 0 | X34: 0 | Y34: 0 | Z34: 0 | AA34: 0 | AB34: 0 | AC34: 0 | AD34: 0 | AE34: 0 | AF34: 0 | AG34: 0 | AH34: 0 | AI34: =AI3*AI$29 -> 0 | AJ34: 0 | AK34: 0 | AL34: 0 | AM34: 0 | AN34: 0 | AO34: 0 | AP34: 0 | AQ34: 0 | AR34: 0 | AS34: 0 | AT34: 0 | AU34: 0 | AV34: 0 | AW34: 0 | AX34: 0 | AY34: 0 | AZ34: 0 | BA34: 0 | BB34: 0 | BC34: 0 | BD34: 0 | BE34: 0 | BF34: 0 | BG34: 0 | BH34: 0 | BI34: 0 | BJ34: 0 | BK34: 0 | BL34: 0 | BM34: 0 | BN34: 0
B35: 3 | C35: =C4*C$29 -> 0 | D35: 0 | E35: 0 | F35: 0 | G35: 0 | H35: 0 | I35: 0 | J35: 0 | K35: 0 | L35: 0 | M35: 0 | N35: 0 | O35: 0 | P35: 0 | Q35: 0 | R35: 0 | S35: 0 | T35: 0 | U35: 0 | V35: 0 | W35: 0 | X35: 0 | Y35: 0 | Z35: 0 | AA35: 0 | AB35: 0 | AC35: 0 | AD35: 0 | AE35: 0 | AF35: 0 | AG35: 0 | AH35: 0 | AI35: =AI4*AI$29 -> 0 | AJ35: 0 | AK35: 0 | AL35: 0 | AM35: 0 | AN35: 0 | AO35: 0 | AP35: 0 | AQ35: 0 | AR35: 0 | AS35: 0 | AT35: 0 | AU35: 0 | AV35: 0 | AW35: 0 | AX35: 0 | AY35: 0 | AZ35: 0 | BA35: 0 | BB35: 0 | BC35: 0 | BD35: 0 | BE35: 0 | BF35: 0 | BG35: 0 | BH35: 0 | BI35: 0 | BJ35: 0 | BK35: 0 | BL35: 0 | BM35: 0 | BN35: 0
B36: 4 | C36: =C5*C$29 -> 0 | D36: 0 | E36: 0 | F36: 0 | G36: 0 | H36: 0 | I36: 0 | J36: 0 | K36: 0 | L36: 0 | M36: 0 | N36: 0 | O36: 0 | P36: 0 | Q36: 0 | R36: 0 | S36: 0 | T36: 0 | U36: 0 | V36: 0 | W36: 0 | X36: 0 | Y36: 0 | Z36: 0 | AA36: 0 | AB36: 0 | AC36: 0 | AD36: 0 | AE36: 0 | AF36: 0 | AG36: 0 | AH36: 0 | AI36: =AI5*AI$29 -> 0 | AJ36: 0 | AK36: 0 | AL36: 0 | AM36: 0 | AN36: 0 | AO36: 0 | AP36: 0 | AQ36: 0 | AR36: 0 | AS36: 0 | AT36: 0 | AU36: 0 | AV36: 0 | AW36: 0 | AX36: 0 | AY36: 0 | AZ36: 0 | BA36: 0 | BB36: 0 | BC36: 0 | BD36: 0 | BE36: 0 | BF36: 0 | BG36: 0 | BH36: 0 | BI36: 0 | BJ36: 0 | BK36: 0 | BL36: 0 | BM36: 0 | BN36: 0
B37: 5 | C37: =C6*C$29 -> 0 | D37: 0 | E37: 0 | F37: 0 | G37: 0 | H37: 0 | I37: 0 | J37: 0 | K37: 0 | L37: 0 | M37: 0 | N37: 0 | O37: 0 | P37: 0 | Q37: 0 | R37: 0 | S37: 0 | T37: 0 | U37: 0 | V37: 0 | W37: 0 | X37: 0 | Y37: 0 | Z37: 0 | AA37: 0 | AB37: 0 | AC37: 0 | AD37: 0 | AE37: 0 | AF37: 0 | AG37: 0 | AH37: 0 | AI37: =AI6*AI$29 -> 0 | AJ37: 0 | AK37: 0 | AL37: 0 | AM37: 0 | AN37: 0 | AO37: 0 | AP37: 0 | AQ37: 0 | AR37: 0 | AS37: 0 | AT37: 0 | AU37: 0 | AV37: 0 | AW37: 0 | AX37: 0 | AY37: 0 | AZ37: 0 | BA37: 0 | BB37: 0 | BC37: 0 | BD37: 0 | BE37: 0 | BF37: 0 | BG37: 0 | BH37: 0 | BI37: 0 | BJ37: 0 | BK37: 0 | BL37: 0 | BM37: 0 | BN37: 0
B38: 6 | C38: =C7*C$29 -> 0 | D38: 0 | E38: 0 | F38: 0 | G38: 0 | H38: 0 | I38: 0 | J38: 0 | K38: 0 | L38: 0 | M38: 0 | N38: 0 | O38: 0 | P38: 0 | Q38: 0 | R38: 0 | S38: 0 | T38: 0 | U38: 0 | V38: 0 | W38: 0 | X38: 0 | Y38: 0 | Z38: 0 | AA38: 0 | AB38: 0 | AC38: 0 | AD38: 0 | AE38: 0 | AF38: 0 | AG38: 0 | AH38: 0 | AI38: =AI7*AI$29 -> 0 | AJ38: 0 | AK38: 0 | AL38: 0 | AM38: 0 | AN38: 0 | AO38: 0 | AP38: 0 | AQ38: 0 | AR38: 0 | AS38: 0 | AT38: 0 | AU38: 0 | AV38: 0 | AW38: 0 | AX38: 0 | AY38: 0 | AZ38: 0 | BA38: 0 | BB38: 0 | BC38: 0 | BD38: 0 | BE38: 0 | BF38: 0 | BG38: 0 | BH38: 0 | BI38: 0 | BJ38: 0 | BK38: 0 | BL38: 0 | BM38: 0 | BN38: 0
B39: 7 | C39: =C8*C$29 -> 0 | D39: 0 | E39: 0 | F39: 0 | G39: 0 | H39: 0 | I39: 0 | J39: 0 | K39: 0 | L39: 0 | M39: 0 | N39: 0 | O39: 0 | P39: 0 | Q39: 0 | R39: 0 | S39: 0 | T39: 0 | U39: 0 | V39: 0 | W39: 0 | X39: 0 | Y39: 0 | Z39: 0 | AA39: 0 | AB39: 0 | AC39: 0 | AD39: 0 | AE39: 0 | AF39: 0 | AG39: 0 | AH39: 0 | AI39: =AI8*AI$29 -> 0 | AJ39: 0 | AK39: 0 | AL39: 0 | AM39: 0 | AN39: 0 | AO39: 0 | AP39: 0 | AQ39: 0 | AR39: 0 | AS39: 0 | AT39: 0 | AU39: 0 | AV39: 0 | AW39: 0 | AX39: 0 | AY39: 0 | AZ39: 0 | BA39: 0 | BB39: 0 | BC39: 0 | BD39: 0 | BE39: 0 | BF39: 0 | BG39: 0 | BH39: 0 | BI39: 0 | BJ39: 0 | BK39: 0 | BL39: 0 | BM39: 0 | BN39: 0
B40: 8 | C40: =C9*C$29 -> 0 | D40: 0 | E40: 0 | F40: 0 | G40: 0 | H40: 0 | I40: 0 | J40: 0 | K40: 0 | L40: 0 | M40: 0 | N40: 0 | O40: 0 | P40: 0 | Q40: 0 | R40: 0 | S40: 0 | T40: 0 | U40: 0 | V40: 0 | W40: 0 | X40: 0 | Y40: 0 | Z40: 0 | AA40: 0 | AB40: 0 | AC40: 0 | AD40: 0 | AE40: 0 | AF40: 0 | AG40: 0 | AH40: 0 | AI40: =AI9*AI$29 -> 0 | AJ40: 0 | AK40: 0 | AL40: 0 | AM40: 0 | AN40: 0 | AO40: 0 | AP40: 0 | AQ40: 0 | AR40: 0 | AS40: 0 | AT40: 0 | AU40: 0 | AV40: 0 | AW40: 0 | AX40: 0 | AY40: 0 | AZ40: 0 | BA40: 0 | BB40: 0 | BC40: 0 | BD40: 0 | BE40: 0 | BF40: 0 | BG40: 0 | BH40: 0 | BI40: 0 | BJ40: 0 | BK40: 0 | BL40: 0 | BM40: 0 | BN40: 0
B41: 9 | C41: =C10*C$29 -> 0 | D41: 0 | E41: 0 | F41: 0 | G41: 0 | H41: 0 | I41: 0 | J41: 0 | K41: 0 | L41: 0 | M41: 0 | N41: 0 | O41: 0 | P41: 0 | Q41: 0 | R41: 0 | S41: 0 | T41: 0 | U41: 0 | V41: 0 | W41: 0 | X41: 0 | Y41: 0 | Z41: 0 | AA41: 0 | AB41: 0 | AC41: 0 | AD41: 0 | AE41: 0 | AF41: 0 | AG41: 0 | AH41: 0 | AI41: =AI10*AI$29 -> 0 | AJ41: 0 | AK41: 0 | AL41: 0 | AM41: 0 | AN41: 0 | AO41: 0 | AP41: 0 | AQ41: 0 | AR41: 0 | AS41: 0 | AT41: 0 | AU41: 0 | AV41: 0 | AW41: 0 | AX41: 0 | AY41: 0 | AZ41: 0 | BA41: 0 | BB41: 0 | BC41: 0 | BD41: 0 | BE41: 0 | BF41: 0 | BG41: 0 | BH41: 0 | BI41: 0 | BJ41: 0 | BK41: 0 | BL41: 0 | BM41: 0 | BN41: 0
B42: 10 | C42: =C11*C$29 -> 0 | D42: 0 | E42: 0 | F42: 0 | G42: 0 | H42: 0 | I42: 0 | J42: 0 | K42: 0 | L42: 0 | M42: 0 | N42: 0 | O42: 0 | P42: 0 | Q42: 0 | R42: 0 | S42: 0 | T42: 0 | U42: 0 | V42: 0 | W42: 0 | X42: 0 | Y42: 0 | Z42: 0 | AA42: 0 | AB42: 0 | AC42: 0 | AD42: 0 | AE42: 0 | AF42: 0 | AG42: 0 | AH42: 0 | AI42: =AI11*AI$29 -> 0 | AJ42: 0 | AK42: 0 | AL42: 0 | AM42: 0 | AN42: 0 | AO42: 0 | AP42: 0 | AQ42: 0 | AR42: 0 | AS42: 0 | AT42: 0 | AU42: 0 | AV42: 0 | AW42: 0 | AX42: 0 | AY42: 0 | AZ42: 0 | BA42: 0 | BB42: 0 | BC42: 0 | BD42: 0 | BE42: 0 | BF42: 0 | BG42: 0 | BH42: 0 | BI42: 0 | BJ42: 0 | BK42: 0 | BL42: 0 | BM42: 0 | BN42: 0
B43: 11 | C43: =C12*C$29 -> 0 | D43: 0 | E43: 0 | F43: 0 | G43: 0 | H43: 0 | I43: 0 | J43: 0 | K43: 0 | L43: 0 | M43: 0 | N43: 0 | O43: 0 | P43: 0 | Q43: 0 | R43: 0 | S43: 0 | T43: 0 | U43: 0 | V43: 0 | W43: 0 | X43: 0 | Y43: 0 | Z43: 0 | AA43: 0 | AB43: 0 | AC43: 0 | AD43: 0 | AE43: 0 | AF43: 0 | AG43: 0 | AH43: 0 | AI43: =AI12*AI$29 -> 0 | AJ43: 0 | AK43: 0 | AL43: 0 | AM43: 0 | AN43: 0 | AO43: 0 | AP43: 0 | AQ43: 0 | AR43: 0 | AS43: 0 | AT43: 0 | AU43: 0 | AV43: 0 | AW43: 0 | AX43: 0 | AY43: 0 | AZ43: 0 | BA43: 0 | BB43: 0 | BC43: 0 | BD43: 0 | BE43: 0 | BF43: 0 | BG43: 0 | BH43: 0 | BI43: 0 | BJ43: 0 | BK43: 0 | BL43: 0 | BM43: 0 | BN43: 0
B44: 12 | C44: =C13*C$29 -> 0 | D44: 0 | E44: 0 | F44: 0 | G44: 0 | H44: 0 | I44: 0 | J44: 0 | K44: 0 | L44: 0 | M44: 0 | N44: 0 | O44: 0 | P44: 0 | Q44: 0 | R44: 0 | S44: 0 | T44: 0 | U44: 0 | V44: 0 | W44: 0 | X44: 0 | Y44: 0 | Z44: 0 | AA44: 0 | AB44: 0 | AC44: 0 | AD44: 0 | AE44: 0 | AF44: 0 | AG44: 0 | AH44: 0 | AI44: =AI13*AI$29 -> 0 | AJ44: 0 | AK44: 0 | AL44: 0 | AM44: 0 | AN44: 0 | AO44: 0 | AP44: 0 | AQ44: 0 | AR44: 0 | AS44: 0 | AT44: 0 | AU44: 0 | AV44: 0 | AW44: 0 | AX44: 0 | AY44: 0 | AZ44: 0 | BA44: 0 | BB44: 0 | BC44: 0 | BD44: 0 | BE44: 0 | BF44: 0 | BG44: 0 | BH44: 0 | BI44: 0 | BJ44: 0 | BK44: 0 | BL44: 0 | BM44: 0 | BN44: 0
A45: =B30 ->  | B45: 1 | C45: =C14*C$30 -> 0 | D45: 0 | E45: 0 | F45: 0 | G45: 0 | H45: 0 | I45: 0 | J45: 0 | K45: 0 | L45: 0 | M45: 0 | N45: 0 | O45: 0 | P45: 0 | Q45: 0 | R45: 0 | S45: 0 | T45: 0 | U45: 0 | V45: 0 | W45: 0 | X45: 0 | Y45: 0 | Z45: 0 | AA45: 0 | AB45: 0 | AC45: 0 | AD45: 0 | AE45: 0 | AF45: 0 | AG45: 0 | AH45: 0 | AI45: =AI14*AI$30 -> 0 | AJ45: 0 | AK45: 0 | AL45: 0 | AM45: 0 | AN45: 0 | AO45: 0 | AP45: 0 | AQ45: 0 | AR45: 0 | AS45: 0 | AT45: 0 | AU45: 0 | AV45: 0 | AW45: 0 | AX45: 0 | AY45: 0 | AZ45: 0 | BA45: 0 | BB45: 0 | BC45: 0 | BD45: 0 | BE45: 0 | BF45: 0 | BG45: 0 | BH45: 0 | BI45: 0 | BJ45: 0 | BK45: 0 | BL45: 0 | BM45: 0 | BN45: 0
B46: 2 | C46: =C15*C$30 -> 0 | D46: 0 | E46: 0 | F46: 0 | G46: 0 | H46: 0 | I46: 0 | J46: 0 | K46: 0 | L46: 0 | M46: 0 | N46: 0 | O46: 0 | P46: 0 | Q46: 0 | R46: 0 | S46: 0 | T46: 0 | U46: 0 | V46: 0 | W46: 0 | X46: 0 | Y46: 0 | Z46: 0 | AA46: 0 | AB46: 0 | AC46: 0 | AD46: 0 | AE46: 0 | AF46: 0 | AG46: 0 | AH46: 0 | AI46: =AI15*AI$30 -> 0 | AJ46: 0 | AK46: 0 | AL46: 0 | AM46: 0 | AN46: 0 | AO46: 0 | AP46: 0 | AQ46: 0 | AR46: 0 | AS46: 0 | AT46: 0 | AU46: 0 | AV46: 0 | AW46: 0 | AX46: 0 | AY46: 0 | AZ46: 0 | BA46: 0 | BB46: 0 | BC46: 0 | BD46: 0 | BE46: 0 | BF46: 0 | BG46: 0 | BH46: 0 | BI46: 0 | BJ46: 0 | BK46: 0 | BL46: 0 | BM46: 0 | BN46: 0
B47: 3 | C47: =C16*C$30 -> 0 | D47: 0 | E47: 0 | F47: 0 | G47: 0 | H47: 0 | I47: 0 | J47: 0 | K47: 0 | L47: 0 | M47: 0 | N47: 0 | O47: 0 | P47: 0 | Q47: 0 | R47: 0 | S47: 0 | T47: 0 | U47: 0 | V47: 0 | W47: 0 | X47: 0 | Y47: 0 | Z47: 0 | AA47: 0 | AB47: 0 | AC47: 0 | AD47: 0 | AE47: 0 | AF47: 0 | AG47: 0 | AH47: 0 | AI47: =AI16*AI$30 -> 0 | AJ47: 0 | AK47: 0 | AL47: 0 | AM47: 0 | AN47: 0 | AO47: 0 | AP47: 0 | AQ47: 0 | AR47: 0 | AS47: 0 | AT47: 0 | AU47: 0 | AV47: 0 | AW47: 0 | AX47: 0 | AY47: 0 | AZ47: 0 | BA47: 0 | BB47: 0 | BC47: 0 | BD47: 0 | BE47: 0 | BF47: 0 | BG47: 0 | BH47: 0 | BI47: 0 | BJ47: 0 | BK47: 0 | BL47: 0 | BM47: 0 | BN47: 0
B48: 4 | C48: =C17*C$30 -> 0 | D48: 0 | E48: 0 | F48: 0 | G48: 0 | H48: 0 | I48: 0 | J48: 0 | K48: 0 | L48: 0 | M48: 0 | N48: 0 | O48: 0 | P48: 0 | Q48: 0 | R48: 0 | S48: 0 | T48: 0 | U48: 0 | V48: 0 | W48: 0 | X48: 0 | Y48: 0 | Z48: 0 | AA48: 0 | AB48: 0 | AC48: 0 | AD48: 0 | AE48: 0 | AF48: 0 | AG48: 0 | AH48: 0 | AI48: =AI17*AI$30 -> 0 | AJ48: 0 | AK48: 0 | AL48: 0 | AM48: 0 | AN48: 0 | AO48: 0 | AP48: 0 | AQ48: 0 | AR48: 0 | AS48: 0 | AT48: 0 | AU48: 0 | AV48: 0 | AW48: 0 | AX48: 0 | AY48: 0 | AZ48: 0 | BA48: 0 | BB48: 0 | BC48: 0 | BD48: 0 | BE48: 0 | BF48: 0 | BG48: 0 | BH48: 0 | BI48: 0 | BJ48: 0 | BK48: 0 | BL48: 0 | BM48: 0 | BN48: 0
B49: 5 | C49: =C18*C$30 -> 0 | D49: 0 | E49: 0 | F49: 0 | G49: 0 | H49: 0 | I49: 0 | J49: 0 | K49: 0 | L49: 0 | M49: 0 | N49: 0 | O49: 0 | P49: 0 | Q49: 0 | R49: 0 | S49: 0 | T49: 0 | U49: 0 | V49: 0 | W49: 0 | X49: 0 | Y49: 0 | Z49: 0 | AA49: 0 | AB49: 0 | AC49: 0 | AD49: 0 | AE49: 0 | AF49: 0 | AG49: 0 | AH49: 0 | AI49: =AI18*AI$30 -> 0 | AJ49: 0 | AK49: 0 | AL49: 0 | AM49: 0 | AN49: 0 | AO49: 0 | AP49: 0 | AQ49: 0 | AR49: 0 | AS49: 0 | AT49: 0 | AU49: 0 | AV49: 0 | AW49: 0 | AX49: 0 | AY49: 0 | AZ49: 0 | BA49: 0 | BB49: 0 | BC49: 0 | BD49: 0 | BE49: 0 | BF49: 0 | BG49: 0 | BH49: 0 | BI49: 0 | BJ49: 0 | BK49: 0 | BL49: 0 | BM49: 0 | BN49: 0
B50: 6 | C50: =C19*C$30 -> 0 | D50: 0 | E50: 0 | F50: 0 | G50: 0 | H50: 0 | I50: 0 | J50: 0 | K50: 0 | L50: 0 | M50: 0 | N50: 0 | O50: 0 | P50: 0 | Q50: 0 | R50: 0 | S50: 0 | T50: 0 | U50: 0 | V50: 0 | W50: 0 | X50: 0 | Y50: 0 | Z50: 0 | AA50: 0 | AB50: 0 | AC50: 0 | AD50: 0 | AE50: 0 | AF50: 0 | AG50: 0 | AH50: 0 | AI50: =AI19*AI$30 -> 0 | AJ50: 0 | AK50: 0 | AL50: 0 | AM50: 0 | AN50: 0 | AO50: 0 | AP50: 0 | AQ50: 0 | AR50: 0 | AS50: 0 | AT50: 0 | AU50: 0 | AV50: 0 | AW50: 0 | AX50: 0 | AY50: 0 | AZ50: 0 | BA50: 0 | BB50: 0 | BC50: 0 | BD50: 0 | BE50: 0 | BF50: 0 | BG50: 0 | BH50: 0 | BI50: 0 | BJ50: 0 | BK50: 0 | BL50: 0 | BM50: 0 | BN50: 0
B51: 7 | C51: =C20*C$30 -> 0 | D51: 0 | E51: 0 | F51: 0 | G51: 0 | H51: 0 | I51: 0 | J51: 0 | K51: 0 | L51: 0 | M51: 0 | N51: 0 | O51: 0 | P51: 0 | Q51: 0 | R51: 0 | S51: 0 | T51: 0 | U51: 0 | V51: 0 | W51: 0 | X51: 0 | Y51: 0 | Z51: 0 | AA51: 0 | AB51: 0 | AC51: 0 | AD51: 0 | AE51: 0 | AF51: 0 | AG51: 0 | AH51: 0 | AI51: =AI20*AI$30 -> 0 | AJ51: 0 | AK51: 0 | AL51: 0 | AM51: 0 | AN51: 0 | AO51: 0 | AP51: 0 | AQ51: 0 | AR51: 0 | AS51: 0 | AT51: 0 | AU51: 0 | AV51: 0 | AW51: 0 | AX51: 0 | AY51: 0 | AZ51: 0 | BA51: 0 | BB51: 0 | BC51: 0 | BD51: 0 | BE51: 0 | BF51: 0 | BG51: 0 | BH51: 0 | BI51: 0 | BJ51: 0 | BK51: 0 | BL51: 0 | BM51: 0 | BN51: 0
B52: 8 | C52: =C21*C$30 -> 0 | D52: 0 | E52: 0 | F52: 0 | G52: 0 | H52: 0 | I52: 0 | J52: 0 | K52: 0 | L52: 0 | M52: 0 | N52: 0 | O52: 0 | P52: 0 | Q52: 0 | R52: 0 | S52: 0 | T52: 0 | U52: 0 | V52: 0 | W52: 0 | X52: 0 | Y52: 0 | Z52: 0 | AA52: 0 | AB52: 0 | AC52: 0 | AD52: 0 | AE52: 0 | AF52: 0 | AG52: 0 | AH52: 0 | AI52: =AI21*AI$30 -> 0 | AJ52: 0 | AK52: 0 | AL52: 0 | AM52: 0 | AN52: 0 | AO52: 0 | AP52: 0 | AQ52: 0 | AR52: 0 | AS52: 0 | AT52: 0 | AU52: 0 | AV52: 0 | AW52: 0 | AX52: 0 | AY52: 0 | AZ52: 0 | BA52: 0 | BB52: 0 | BC52: 0 | BD52: 0 | BE52: 0 | BF52: 0 | BG52: 0 | BH52: 0 | BI52: 0 | BJ52: 0 | BK52: 0 | BL52: 0 | BM52: 0 | BN52: 0
B53: 9 | C53: =C22*C$30 -> 0 | D53: 0 | E53: 0 | F53: 0 | G53: 0 | H53: 0 | I53: 0 | J53: 0 | K53: 0 | L53: 0 | M53: 0 | N53: 0 | O53: 0 | P53: 0 | Q53: 0 | R53: 0 | S53: 0 | T53: 0 | U53: 0 | V53: 0 | W53: 0 | X53: 0 | Y53: 0 | Z53: 0 | AA53: 0 | AB53: 0 | AC53: 0 | AD53: 0 | AE53: 0 | AF53: 0 | AG53: 0 | AH53: 0 | AI53: =AI22*AI$30 -> 0 | AJ53: 0 | AK53: 0 | AL53: 0 | AM53: 0 | AN53: 0 | AO53: 0 | AP53: 0 | AQ53: 0 | AR53: 0 | AS53: 0 | AT53: 0 | AU53: 0 | AV53: 0 | AW53: 0 | AX53: 0 | AY53: 0 | AZ53: 0 | BA53: 0 | BB53: 0 | BC53: 0 | BD53: 0 | BE53: 0 | BF53: 0 | BG53: 0 | BH53: 0 | BI53: 0 | BJ53: 0 | BK53: 0 | BL53: 0 | BM53: 0 | BN53: 0
B54: 10 | C54: =C23*C$30 -> 0 | D54: 0 | E54: 0 | F54: 0 | G54: 0 | H54: 0 | I54: 0 | J54: 0 | K54: 0 | L54: 0 | M54: 0 | N54: 0 | O54: 0 | P54: 0 | Q54: 0 | R54: 0 | S54: 0 | T54: 0 | U54: 0 | V54: 0 | W54: 0 | X54: 0 | Y54: 0 | Z54: 0 | AA54: 0 | AB54: 0 | AC54: 0 | AD54: 0 | AE54: 0 | AF54: 0 | AG54: 0 | AH54: 0 | AI54: =AI23*AI$30 -> 0 | AJ54: 0 | AK54: 0 | AL54: 0 | AM54: 0 | AN54: 0 | AO54: 0 | AP54: 0 | AQ54: 0 | AR54: 0 | AS54: 0 | AT54: 0 | AU54: 0 | AV54: 0 | AW54: 0 | AX54: 0 | AY54: 0 | AZ54: 0 | BA54: 0 | BB54: 0 | BC54: 0 | BD54: 0 | BE54: 0 | BF54: 0 | BG54: 0 | BH54: 0 | BI54: 0 | BJ54: 0 | BK54: 0 | BL54: 0 | BM54: 0 | BN54: 0
B55: 11 | C55: =C24*C$30 -> 0 | D55: 0 | E55: 0 | F55: 0 | G55: 0 | H55: 0 | I55: 0 | J55: 0 | K55: 0 | L55: 0 | M55: 0 | N55: 0 | O55: 0 | P55: 0 | Q55: 0 | R55: 0 | S55: 0 | T55: 0 | U55: 0 | V55: 0 | W55: 0 | X55: 0 | Y55: 0 | Z55: 0 | AA55: 0 | AB55: 0 | AC55: 0 | AD55: 0 | AE55: 0 | AF55: 0 | AG55: 0 | AH55: 0 | AI55: =AI24*AI$30 -> 0 | AJ55: 0 | AK55: 0 | AL55: 0 | AM55: 0 | AN55: 0 | AO55: 0 | AP55: 0 | AQ55: 0 | AR55: 0 | AS55: 0 | AT55: 0 | AU55: 0 | AV55: 0 | AW55: 0 | AX55: 0 | AY55: 0 | AZ55: 0 | BA55: 0 | BB55: 0 | BC55: 0 | BD55: 0 | BE55: 0 | BF55: 0 | BG55: 0 | BH55: 0 | BI55: 0 | BJ55: 0 | BK55: 0 | BL55: 0 | BM55: 0 | BN55: 0
B56: 12 | C56: =C25*C$30 -> 0 | D56: 0 | E56: 0 | F56: 0 | G56: 0 | H56: 0 | I56: 0 | J56: 0 | K56: 0 | L56: 0 | M56: 0 | N56: 0 | O56: 0 | P56: 0 | Q56: 0 | R56: 0 | S56: 0 | T56: 0 | U56: 0 | V56: 0 | W56: 0 | X56: 0 | Y56: 0 | Z56: 0 | AA56: 0 | AB56: 0 | AC56: 0 | AD56: 0 | AE56: 0 | AF56: 0 | AG56: 0 | AH56: 0 | AI56: =AI25*AI$30 -> 0 | AJ56: 0 | AK56: 0 | AL56: 0 | AM56: 0 | AN56: 0 | AO56: 0 | AP56: 0 | AQ56: 0 | AR56: 0 | AS56: 0 | AT56: 0 | AU56: 0 | AV56: 0 | AW56: 0 | AX56: 0 | AY56: 0 | AZ56: 0 | BA56: 0 | BB56: 0 | BC56: 0 | BD56: 0 | BE56: 0 | BF56: 0 | BG56: 0 | BH56: 0 | BI56: 0 | BJ56: 0 | BK56: 0 | BL56: 0 | BM56: 0 | BN56: 0
C58: Jahres h-Werte BDEW Profile
B59: =B29 ->  | C59: ='Jahres h- Wertberechnung'!G20 -> 0 | D59: ='Jahres h- Wertberechnung'!M20 -> 0 | E59: ='Jahres h- Wertberechnung'!S20 -> 0 | F59: ='Jahres h- Wertberechnung'!Y20 -> 0 | G59: ='Jahres h- Wertberechnung'!AE20 -> 0 | H59: ='Jahres h- Wertberechnung'!AK20 -> 0 | I59: ='Jahres h- Wertberechnung'!AQ20 -> 0 | J59: ='Jahres h- Wertberechnung'!KD20 -> 0 | K59: ='Jahres h- Wertberechnung'!KJ20 -> 0 | L59: ='Jahres h- Wertberechnung'!KP20 -> 0 | M59: ='Jahres h- Wertberechnung'!KV20 -> 0 | N59: ='Jahres h- Wertberechnung'!LB20 -> 0 | O59: ='Jahres h- Wertberechnung'!EI20 -> 0 | P59: ='Jahres h- Wertberechnung'!EO20 -> 0 | Q59: ='Jahres h- Wertberechnung'!EU20 -> 0 | R59: ='Jahres h- Wertberechnung'!FA20 -> 0 | S59: ='Jahres h- Wertberechnung'!FG20 -> 0 | T59: ='Jahres h- Wertberechnung'!GQ20 -> 0 | U59: ='Jahres h- Wertberechnung'!GW20 -> 0 | V59: ='Jahres h- Wertberechnung'!HC20 -> 0 | W59: ='Jahres h- Wertberechnung'!HI20 -> 0 | X59: ='Jahres h- Wertberechnung'!HO20 -> Summe h-Werte | Y59: ='Jahres h- Wertberechnung'!FM20 -> 0 | Z59: ='Jahres h- Wertberechnung'!FS20 -> 0 | AA59: ='Jahres h- Wertberechnung'!FY20 -> 0 | AB59: ='Jahres h- Wertberechnung'!GE20 -> 0 | AC59: ='Jahres h- Wertberechnung'!GK20 -> 0 | AD59: ='Jahres h- Wertberechnung'!IZ20 -> 0 | AE59: ='Jahres h- Wertberechnung'!JF20 -> 0 | AF59: ='Jahres h- Wertberechnung'!JL20 -> 0 | AG59: ='Jahres h- Wertberechnung'!JR20 -> 0 | AH59: ='Jahres h- Wertberechnung'!JX20 -> 0 | AI59: ='Jahres h- Wertberechnung'!CA20 -> 0 | AJ59: ='Jahres h- Wertberechnung'!CG20 -> 0 | AK59: ='Jahres h- Wertberechnung'!CM20 -> 0 | AL59: ='Jahres h- Wertberechnung'!CS20 -> 0 | AM59: ='Jahres h- Wertberechnung'!CY20 -> 0 | AN59: ='Jahres h- Wertberechnung'!DE20 -> 0 | AO59: ='Jahres h- Wertberechnung'!DK20 -> 0 | AP59: ='Jahres h- Wertberechnung'!DQ20 -> 0 | AQ59: ='Jahres h- Wertberechnung'!DW20 -> 0 | AR59: ='Jahres h- Wertberechnung'!EC20 -> 0 | AS59: ='Jahres h- Wertberechnung'!AW20 -> 0 | AT59: ='Jahres h- Wertberechnung'!BC20 -> 0 | AU59: ='Jahres h- Wertberechnung'!BI20 -> 0 | AV59: ='Jahres h- Wertberechnung'!BO20 -> 0 | AW59: ='Jahres h- Wertberechnung'!BU20 -> 0 | AX59: ='Jahres h- Wertberechnung'!ML20 -> 0 | AY59: ='Jahres h- Wertberechnung'!MR20 -> 0 | AZ59: ='Jahres h- Wertberechnung'!MX20 -> 0 | BA59: ='Jahres h- Wertberechnung'!ND20 -> 0 | BB59: ='Jahres h- Wertberechnung'!NJ20 -> 0 | BC59: ='Jahres h- Wertberechnung'!LH20 -> 0 | BD59: ='Jahres h- Wertberechnung'!LN20 -> 0 | BE59: ='Jahres h- Wertberechnung'!LT20 -> 0 | BF59: ='Jahres h- Wertberechnung'!LZ20 -> 0 | BG59: ='Jahres h- Wertberechnung'!MF20 -> 0 | BH59: ='Jahres h- Wertberechnung'!HV20 -> 0 | BI59: ='Jahres h- Wertberechnung'!IB20 -> 0 | BJ59: ='Jahres h- Wertberechnung'!IH20 -> 0 | BK59: ='Jahres h- Wertberechnung'!IN20 -> 0 | BL59: ='Jahres h- Wertberechnung'!IT20 -> 0 | BM59: ='Jahres h- Wertberechnung'!NP20 -> 0 | BN59: ='Jahres h- Wertberechnung'!NV20 -> 0
B60: =B30 ->  | C60: ='Jahres h- Wertberechnung'!G25 -> 0 | D60: ='Jahres h- Wertberechnung'!M25 -> 0 | E60: ='Jahres h- Wertberechnung'!S25 -> 0 | F60: ='Jahres h- Wertberechnung'!Y25 -> 0 | G60: ='Jahres h- Wertberechnung'!AE25 -> 0 | H60: ='Jahres h- Wertberechnung'!AK25 -> 0 | I60: ='Jahres h- Wertberechnung'!AQ25 -> 0 | J60: ='Jahres h- Wertberechnung'!KD25 -> 0 | K60: ='Jahres h- Wertberechnung'!KJ25 -> 0 | L60: ='Jahres h- Wertberechnung'!KP25 -> 0 | M60: ='Jahres h- Wertberechnung'!KV25 -> 0 | N60: ='Jahres h- Wertberechnung'!LB25 -> 0 | O60: ='Jahres h- Wertberechnung'!EI25 -> 0 | P60: ='Jahres h- Wertberechnung'!EO25 -> 0 | Q60: ='Jahres h- Wertberechnung'!EU25 -> 0 | R60: ='Jahres h- Wertberechnung'!FA25 -> 0 | S60: ='Jahres h- Wertberechnung'!FG25 -> 0 | T60: ='Jahres h- Wertberechnung'!GQ25 -> 0 | U60: ='Jahres h- Wertberechnung'!GW25 -> 0 | V60: ='Jahres h- Wertberechnung'!HC25 -> 0 | W60: ='Jahres h- Wertberechnung'!HI25 -> 0 | X60: ='Jahres h- Wertberechnung'!HO25 -> Summe h-Werte | Y60: ='Jahres h- Wertberechnung'!FM25 -> 0 | Z60: ='Jahres h- Wertberechnung'!FS25 -> 0 | AA60: ='Jahres h- Wertberechnung'!FY25 -> 0 | AB60: ='Jahres h- Wertberechnung'!GE25 -> 0 | AC60: ='Jahres h- Wertberechnung'!GK25 -> 0 | AD60: ='Jahres h- Wertberechnung'!IZ25 -> 0 | AE60: ='Jahres h- Wertberechnung'!JF25 -> 0 | AF60: ='Jahres h- Wertberechnung'!JL25 -> 0 | AG60: ='Jahres h- Wertberechnung'!JR25 -> 0 | AH60: ='Jahres h- Wertberechnung'!JX25 -> 0 | AI60: ='Jahres h- Wertberechnung'!CA25 -> 0 | AJ60: ='Jahres h- Wertberechnung'!CG25 -> 0 | AK60: ='Jahres h- Wertberechnung'!CM25 -> 0 | AL60: ='Jahres h- Wertberechnung'!CS25 -> 0 | AM60: ='Jahres h- Wertberechnung'!CY25 -> 0 | AN60: ='Jahres h- Wertberechnung'!DE25 -> 0 | AO60: ='Jahres h- Wertberechnung'!DK25 -> 0 | AP60: ='Jahres h- Wertberechnung'!DQ25 -> 0 | AQ60: ='Jahres h- Wertberechnung'!DW25 -> 0 | AR60: ='Jahres h- Wertberechnung'!EC25 -> 0 | AS60: ='Jahres h- Wertberechnung'!AW25 -> 0 | AT60: ='Jahres h- Wertberechnung'!BC25 -> 0 | AU60: ='Jahres h- Wertberechnung'!BI25 -> 0 | AV60: ='Jahres h- Wertberechnung'!BO25 -> 0 | AW60: ='Jahres h- Wertberechnung'!BU25 -> 0 | AX60: ='Jahres h- Wertberechnung'!ML25 -> 0 | AY60: ='Jahres h- Wertberechnung'!MR25 -> 0 | AZ60: ='Jahres h- Wertberechnung'!MX25 -> 0 | BA60: ='Jahres h- Wertberechnung'!ND25 -> 0 | BB60: ='Jahres h- Wertberechnung'!NJ25 -> 0 | BC60: ='Jahres h- Wertberechnung'!LH25 -> 0 | BD60: ='Jahres h- Wertberechnung'!LN25 -> 0 | BE60: ='Jahres h- Wertberechnung'!LT25 -> 0 | BF60: ='Jahres h- Wertberechnung'!LZ25 -> 0 | BG60: ='Jahres h- Wertberechnung'!MF25 -> 0 | BH60: ='Jahres h- Wertberechnung'!HV25 -> 0 | BI60: ='Jahres h- Wertberechnung'!IB25 -> 0 | BJ60: ='Jahres h- Wertberechnung'!IH25 -> 0 | BK60: ='Jahres h- Wertberechnung'!IN25 -> 0 | BL60: ='Jahres h- Wertberechnung'!IT25 -> 0 | BM60: ='Jahres h- Wertberechnung'!NP25 -> 0 | BN60: ='Jahres h- Wertberechnung'!NV25 -> 0

Sheet Koeffizientenübersicht NB
B1: Netzbetreibereigene Parameter | F1: Wochentagfaktoren TU München
A2: Profilname | B2: A | C2: B | D2: C | E2: D | F2: Montag | G2: Dienstag | H2: Mittwoch | I2: Donnerstag | J2: Freitag | K2: Samstag | L2: Sonntag
A3: =Kundenwerte!C1 -> Z13 | B3: 3.04696946 | C3: -37.18331413 | D3: 5.672784662 | E3: 0.09619306 | F3: 1 | G3: 1 | H3: 1 | I3: 1 | J3: 1 | K3: 1 | L3: 1
A4: =Kundenwerte!D1 -> Z14 | B4: 3.18501913 | C4: -37.41241549 | D4: 6.172317873 | E4: 0.076109594 | F4: 1 | G4: 1 | H4: 1 | I4: 1 | J4: 1 | K4: 1 | L4: 1
A5: =Kundenwerte!E1 -> Z15 | B5: 3.345666672 | C5: -37.52683159 | D5: 6.432893683 | E5: 0.056256618 | F5: 1 | G5: 1 | H5: 1 | I5: 1 | J5: 1 | K5: 1 | L5: 1
A6: =Kundenwerte!F1 -> Z23 | B6: 2.387761791 | C6: -34.72136051 | D6: 5.816430402 | E6: 0.120819368 | F6: 1 | G6: 1 | H6: 1 | I6: 1 | J6: 1 | K6: 1 | L6: 1
A7: =Kundenwerte!G1 -> Z24 | B7: 2.518777519 | C7: -35.03337542 | D7: 6.224063396 | E7: 0.101078172 | F7: 1 | G7: 1 | H7: 1 | I7: 1 | J7: 1 | K7: 1 | L7: 1
A8: =Kundenwerte!H1 -> Z25 | B8: 2.656440592 | C8: -35.25169267 | D8: 6.518265862 | E8: 0.081205866 | F8: 1 | G8: 1 | H8: 1 | I8: 1 | J8: 1 | K8: 1 | L8: 1
A9: HK3 | B9: 0.4040932 | C9: -24.4392968 | D9: 6.5718175 | E9: 0.710771 | F9: 1 | G9: 1 | H9: 1 | I9: 1 | J9: 1 | K9: 1 | L9: 1
A10: MK1 | B10: 1.864453364 | C10: -30.70716325 | D10: 6.462693731 | E10: 0.104833866 | F10: 1.0699 | G10: 1.0365 | H10: 0.9933 | I10: 0.9948 | J10: 1.0659 | K10: 0.9362 | L10: 0.9034
A11: MK2 | B11: 2.290818386 | C11: -33.14768673 | D11: 6.371476504 | E11: 0.081002321 | F11: 1.0699 | G11: 1.0365 | H11: 0.9933 | I11: 0.9948 | J11: 1.0659 | K11: 0.9362 | L11: 0.9034
A12: MK3 | B12: 2.788242394 | C12: -34.88061302 | D12: 6.595189922 | E12: 0.054032911 | F12: 1.0699 | G12: 1.0365 | H12: 0.9933 | I12: 0.9948 | J12: 1.0659 | K12: 0.9362 | L12: 0.9034
A13: MK4 | B13: 3.117724811 | C13: -35.87150622 | D13: 7.518682887 | E13: 0.034330093 | F13: 1.0699 | G13: 1.0365 | H13: 0.9933 | I13: 0.9948 | J13: 1.0659 | K13: 0.9362 | L13: 0.9034
A14: MK5 | B14: 3.586235525 | C14: -37.08029935 | D14: 8.242057176 | E14: 0.014600757 | F14: 1.0699 | G14: 1.0365 | H14: 0.9933 | I14: 0.9948 | J14: 1.0659 | K14: 0.9362 | L14: 0.9034
A15: HA1 | B15: 2.374282771 | C15: -34.75955014 | D15: 5.998703683 | E15: 0.149441144 | F15: 1.0358 | G15: 1.0232 | H15: 1.0252 | I15: 1.0295 | J15: 1.0253 | K15: 0.9675 | L15: 0.8935
A16: HA2 | B16: 2.854474853 | C16: -35.62942308 | D16: 7.005826443 | E16: 0.116477221 | F16: 1.0358 | G16: 1.0232 | H16: 1.0252 | I16: 1.0295 | J16: 1.0253 | K16: 0.9675 | L16: 0.8935
A17: HA3 | B17: 3.58112137 | C17: -36.96500652 | D17: 7.225694671 | E17: 0.044841567 | F17: 1.0358 | G17: 1.0232 | H17: 1.0252 | I17: 1.0295 | J17: 1.0253 | K17: 0.9675 | L17: 0.8935
A18: HA4 | B18: 4.019690204 | C18: -37.82820366 | D18: 8.159336876 | E18: 0.047284495 | F18: 1.0358 | G18: 1.0232 | H18: 1.0252 | I18: 1.0295 | J18: 1.0253 | K18: 0.9675 | L18: 0.8935
A19: HA5 | B19: 4.825237566 | C19: -39.2802564 | D19: 8.624021689 | E19: 0.009994463 | F19: 1.0358 | G19: 1.0232 | H19: 1.0252 | I19: 1.0295 | J19: 1.0253 | K19: 0.9675 | L19: 0.8935
A20: KO1 | B20: 1.415957087 | C20: -30.84251916 | D20: 6.346755701 | E20: 0.321179065 | F20: 1.0354 | G20: 1.0523 | H20: 1.0449 | I20: 1.0494 | J20: 0.9885 | K20: 0.886 | L20: 0.9435
A21: KO2 | B21: 2.06605007 | C21: -33.60165203 | D21: 6.675360994 | E21: 0.230912468 | F21: 1.0354 | G21: 1.0523 | H21: 1.0449 | I21: 1.0494 | J21: 0.9885 | K21: 0.886 | L21: 0.9435
A22: KO3 | B22: 2.717228844 | C22: -35.14125631 | D22: 7.130339509 | E22: 0.14184717 | F22: 1.0354 | G22: 1.0523 | H22: 1.0449 | I22: 1.0494 | J22: 0.9885 | K22: 0.886 | L22: 0.9435
A23: KO4 | B23: 3.442894287 | C23: -36.65905041 | D23: 7.608322616 | E23: 0.07468501 | F23: 1.0354 | G23: 1.0523 | H23: 1.0449 | I23: 1.0494 | J23: 0.9885 | K23: 0.886 | L23: 0.9435
A24: KO5 | B24: 4.3624833 | C24: -38.66340216 | D24: 7.597464428 | E24: 0.008326418 | F24: 1.0354 | G24: 1.0523 | H24: 1.0449 | I24: 1.0494 | J24: 0.9885 | K24: 0.886 | L24: 0.9435
A25: BD1 | B25: 1.290350459 | C25: -35.23498683 | D25: 2.106424688 | E25: 0.455725333 | F25: 1.1052 | G25: 1.0857 | H25: 1.0378 | I25: 1.0622 | J25: 1.0266 | K25: 0.7629 | L25: 0.9196
A26: BD2 | B26: 2.109587843 | C26: -35.84445084 | D26: 5.215467228 | E26: 0.285458254 | F26: 1.1052 | G26: 1.0857 | H26: 1.0378 | I26: 1.0622 | J26: 1.0266 | K26: 0.7629 | L26: 0.9196
A27: BD3 | B27: 2.917702722 | C27: -36.17941165 | D27: 5.926516165 | E27: 0.115191176 | F27: 1.1052 | G27: 1.0857 | H27: 1.0378 | I27: 1.0622 | J27: 1.0266 | K27: 0.7629 | L27: 0.9196
A28: BD4 | B28: 3.75 | C28: -37.5 | D28: 6.8 | E28: 0.060911265 | F28: 1.1052 | G28: 1.0857 | H28: 1.0378 | I28: 1.0622 | J28: 1.0266 | K28: 0.7629 | L28: 0.9196
A29: BD5 | B29: 4.569950565 | C29: -38.53533924 | D29: 7.597699099 | E29: 0.006631354 | F29: 1.1052 | G29: 1.0857 | H29: 1.0378 | I29: 1.0622 | J29: 1.0266 | K29: 0.7629 | L29: 0.9196
A30: GA1 | B30: 1.177034538 | C30: -39.1599914 | D30: 4.207610964 | E30: 0.660473932 | F30: 0.9322 | G30: 0.9894 | H30: 1.0033 | I30: 1.0109 | J30: 1.018 | K30: 1.0356 | L30: 1.0106
A31: GA2 | B31: 1.648762294 | C31: -36.39927357 | D31: 6.214917209 | E31: 0.487763733 | F31: 0.9322 | G31: 0.9894 | H31: 1.0033 | I31: 1.0109 | J31: 1.018 | K31: 1.0356 | L31: 1.0106
A32: GA3 | B32: 2.285016474 | C32: -36.28785839 | D32: 6.588512639 | E32: 0.315053534 | F32: 0.9322 | G32: 0.9894 | H32: 1.0033 | I32: 1.0109 | J32: 1.018 | K32: 1.0356 | L32: 1.0106
A33: GA4 | B33: 2.819565615 | C33: -36 | D33: 7.736851768 | E33: 0.15728098 | F33: 0.9322 | G33: 0.9894 | H33: 1.0033 | I33: 1.0109 | J33: 1.018 | K33: 1.0356 | L33: 1.0106
A34: GA5 | B34: 3.329557482 | C34: -36.01462112 | D34: 8.776746471 | E34: 0 | F34: 0.9322 | G34: 0.9894 | H34: 1.0033 | I34: 1.0109 | J34: 1.018 | K34: 1.0356 | L34: 1.0106
A35: BH1 | B35: 1.477178569 | C35: -35.08344471 | D35: 5.412342465 | E35: 0.474426408 | F35: 1.0848 | G35: 1.1211 | H35: 1.0769 | I35: 1.1353 | J35: 1.1402 | K35: 0.4852 | L35: 0.9565
A36: BH2 | B36: 1.70052794 | C36: -35.15 | D36: 6.163273851 | E36: 0.429826085 | F36: 1.0848 | G36: 1.1211 | H36: 1.0769 | I36: 1.1353 | J36: 1.1402 | K36: 0.4852 | L36: 0.9565
A37: BH3 | B37: 2.010247173 | C37: -35.25321235 | D37: 6.154440641 | E37: 0.329474097 | F37: 1.0848 | G37: 1.1211 | H37: 1.0769 | I37: 1.1353 | J37: 1.1402 | K37: 0.4852 | L37: 0.9565
A38: BH4 | B38: 2.459518061 | C38: -35.25321235 | D38: 6.058700072 | E38: 0.164737049 | F38: 1.0848 | G38: 1.1211 | H38: 1.0769 | I38: 1.1353 | J38: 1.1402 | K38: 0.4852 | L38: 0.9565
A39: BH5 | B39: 2.98 | C39: -35.8 | D39: 5.634058062 | E39: 0 | F39: 1.0848 | G39: 1.1211 | H39: 1.0769 | I39: 1.1353 | J39: 1.1402 | K39: 0.4852 | L39: 0.9565
A40: WA1 | B40: 0.4 | C40: -40.51494818 | D40: 2.874795695 | E40: 0.935107584 | F40: 1.2457 | G40: 1.2615 | H40: 1.2707 | I40: 1.243 | J40: 1.1276 | K40: 0.3877 | L40: 0.4638
A41: WA2 | B41: 0.616622893 | C41: -38.4 | D41: 3.870535189 | E41: 0.870025031 | F41: 1.2457 | G41: 1.2615 | H41: 1.2707 | I41: 1.243 | J41: 1.1276 | K41: 0.3877 | L41: 0.4638
A42: WA3 | B42: 0.765729012 | C42: -36.02379115 | D42: 4.866274683 | E42: 0.804942478 | F42: 1.2457 | G42: 1.2615 | H42: 1.2707 | I42: 1.243 | J42: 1.1276 | K42: 0.3877 | L42: 0.4638
A43: WA4 | B43: 1.053587472 | C43: -35.3 | D43: 4.866274683 | E43: 0.681104234 | F43: 1.2457 | G43: 1.2615 | H43: 1.2707 | I43: 1.243 | J43: 1.1276 | K43: 0.3877 | L43: 0.4638
A44: WA5 | B44: 1.276885373 | C44: -34.34243707 | D44: 5.451882242 | E44: 0.55726599 | F44: 1.2457 | G44: 1.2615 | H44: 1.2707 | I44: 1.243 | J44: 1.1276 | K44: 0.3877 | L44: 0.4638
A45: GB1 | B45: 3.176194476 | C45: -40.83666086 | D45: 3.678589174 | E45: 0.150215576 | F45: 0.9897 | G45: 0.9627 | H45: 1.0507 | I45: 1.0552 | J45: 1.0297 | K45: 0.9767 | L45: 0.9353
A46: GB2 | B46: 3.390464506 | C46: -39.28752164 | D46: 4.490574046 | E46: 0.083478317 | F46: 0.9897 | G46: 0.9627 | H46: 1.0507 | I46: 1.0552 | J46: 1.0297 | K46: 0.9767 | L46: 0.9353
A47: GB3 | B47: 3.257274213 | C47: -37.5 | D47: 6.346214795 | E47: 0.08662265 | F47: 0.9897 | G47: 0.9627 | H47: 1.0507 | I47: 1.0552 | J47: 1.0297 | K47: 0.9767 | L47: 0.9353
A48: GB4 | B48: 3.601773562 | C48: -37.88253684 | D48: 6.983607029 | E48: 0.054826186 | F48: 0.9897 | G48: 0.9627 | H48: 1.0507 | I48: 1.0552 | J48: 1.0297 | K48: 0.9767 | L48: 0.9353
A49: GB5 | B49: 3.932053248 | C49: -38.14332482 | D49: 7.618587098 | E49: 0.023029723 | F49: 0.9897 | G49: 0.9627 | H49: 1.0507 | I49: 1.0552 | J49: 1.0297 | K49: 0.9767 | L49: 0.9353
A50: BA1 | B50: 0.15 | C50: -36 | D50: 2 | E50: 1 | F50: 1.0848 | G50: 1.1211 | H50: 1.0769 | I50: 1.1353 | J50: 1.1402 | K50: 0.4852 | L50: 0.9565
A51: BA2 | B51: 0.387919104 | C51: -35.5 | D51: 4 | E51: 0.905481543 | F51: 1.0848 | G51: 1.1211 | H51: 1.0769 | I51: 1.1353 | J51: 1.1402 | K51: 0.4852 | L51: 0.9565
A52: BA3 | B52: 0.626196216 | C52: -33 | D52: 5.72123025 | E52: 0.78556546 | F52: 1.0848 | G52: 1.1211 | H52: 1.0769 | I52: 1.1353 | J52: 1.1402 | K52: 0.4852 | L52: 0.9565
A53: BA4 | B53: 0.931588901 | C53: -33.35 | D53: 5.72123025 | E53: 0.665649377 | F53: 1.0848 | G53: 1.1211 | H53: 1.0769 | I53: 1.1353 | J53: 1.1402 | K53: 0.4852 | L53: 0.9565
A54: BA5 | B54: 1.27795673 | C54: -34.517392 | D54: 5.72123025 | E54: 0.545733294 | F54: 1.0848 | G54: 1.1211 | H54: 1.0769 | I54: 1.1353 | J54: 1.1402 | K54: 0.4852 | L54: 0.9565
A55: PD1 | B55: 1.489402246 | C55: -32.42526775 | D55: 8.173261208 | E55: 0.390598736 | F55: 1.0214 | G55: 1.0866 | H55: 1.072 | I55: 1.0557 | J55: 1.0117 | K55: 0.9001 | L55: 0.8525
A56: PD2 | B56: 2.578417254 | C56: -34.7321261 | D56: 6.480503514 | E56: 0.140772912 | F56: 1.0214 | G56: 1.0866 | H56: 1.072 | I56: 1.0557 | J56: 1.0117 | K56: 0.9001 | L56: 0.8525
A57: PD3 | B57: 3.2 | C57: -35.8 | D57: 8.4 | E57: 0.093848608 | F57: 1.0214 | G57: 1.0866 | H57: 1.072 | I57: 1.0557 | J57: 1.0117 | K57: 0.9001 | L57: 0.8525
A58: PD4 | B58: 3.85 | C58: -37 | D58: 10.2405021 | E58: 0.046924304 | F58: 1.0214 | G58: 1.0866 | H58: 1.072 | I58: 1.0557 | J58: 1.0117 | K58: 0.9001 | L58: 0.8525
A59: PD5 | B59: 4.746281392 | C59: -38.75042939 | D59: 10.27533341 | E59: 0 | F59: 1.0214 | G59: 1.0866 | H59: 1.072 | I59: 1.0557 | J59: 1.0117 | K59: 0.9001 | L59: 0.8525
A60: MF1 | B60: 2.116353087 | C60: -34.26286231 | D60: 5.176387424 | E60: 0.160694541 | F60: 1.0354 | G60: 1.0523 | H60: 1.0449 | I60: 1.0494 | J60: 0.9885 | K60: 0.886 | L60: 0.9435
A61: MF2 | B61: 2.248633329 | C61: -34.54284307 | D61: 5.554524484 | E61: 0.140821963 | F61: 1.0354 | G61: 1.0523 | H61: 1.0449 | I61: 1.0494 | J61: 0.9885 | K61: 0.886 | L61: 0.9435
A62: MF3 | B62: 2.387761791 | C62: -34.72136051 | D62: 5.816430402 | E62: 0.120819368 | F62: 1.0354 | G62: 1.0523 | H62: 1.0449 | I62: 1.0494 | J62: 0.9885 | K62: 0.886 | L62: 0.9435
A63: MF4 | B63: 2.518777519 | C63: -35.03337542 | D63: 6.224063396 | E63: 0.101078172 | F63: 1.0354 | G63: 1.0523 | H63: 1.0449 | I63: 1.0494 | J63: 0.9885 | K63: 0.886 | L63: 0.9435
A64: MF5 | B64: 2.656440592 | C64: -35.25169267 | D64: 6.518265862 | E64: 0.081205866 | F64: 1.0354 | G64: 1.0523 | H64: 1.0449 | I64: 1.0494 | J64: 0.9885 | K64: 0.886 | L64: 0.9435
A65: HD3 | B65: 2.579251014 | C65: -35.6816144 | D65: 6.685797612 | E65: 0.199554099 | F65: 1.03 | G65: 1.03 | H65: 1.02 | I65: 1.03 | J65: 1.01 | K65: 0.93 | L65: 0.95
A66: HD4 | B66: 3.008434556 | C66: -36.60784527 | D66: 7.321186953 | E66: 0.154966031 | F66: 1.03 | G66: 1.03 | H66: 1.02 | I66: 1.03 | J66: 1.01 | K66: 0.93 | L66: 0.95

Sheet Überprüfungsergebnisse
B2: Ergebnisse der Prüfroutine zur Anwendung von Lastprofilen
B3: zur Bilanzierung Gas im synthetischen Lastprofilverfahren nach § 50 Ziff. 11 KoV
B4: Jahr | C4: ="Kumulierte absolute Netzkontoabweichung "&E26 -> Kumulierte absolute Netzkontoabweichung Als-Ob-Allokation GPT NB individuelle Profile | D4: ="Kumulierte absolute Netzkontoabweichung "&F26 -> Kumulierte absolute Netzkontoabweichung Als-Ob-Allokation alternative Ausprägung GPT BDEW 03 | E4: ="Kumulierte absolute Netzkontoabweichung "&G26 -> Kumulierte absolute Netzkontoabweichung Als-Ob-Allokation alternative Ausprägung GPT BDEW 04 | F4: Ergebnis der Prüfroutine:
B5: =IF(Tageswerte!A2="","",B18) ->  | C5: =IF(Tageswerte!$A$2="","",($C$27-E27)/$C$27) ->  | D5: =IF(Tageswerte!$A$2="","",($C$27-F27)/$C$27) ->  | E5: =IF(Tageswerte!$A$2="","",($C$27-G27)/$C$27) ->  | F5: =IF(C5="","",IF('Koeffizientenübersicht BDEW'!T7=0,'Koeffizientenübersicht BDEW'!Z8,'Koeffizientenübersicht BDEW'!Z9)) -> 
B6: =IF(Tageswerte!A2="","",B19) ->  | C6: =IF(Tageswerte!$A$2="","",($C$28-E28)/$C$28) ->  | D6: =IF(Tageswerte!$A$2="","",($C$28-F28)/$C$28) ->  | E6: =IF(Tageswerte!$A$2="","",($C$28-G28)/$C$28) -> 
B7: Mittelwerte über beide Jahre | C7: =IF(C6="","",AVERAGE(C5:C6)) ->  | D7: =IF(D6="","",AVERAGE(D5:D6)) ->  | E7: =IF(E6="","",AVERAGE(E5:E6)) ->  | F7: =IF(C5="","",IF('Koeffizientenübersicht BDEW'!T6=0,'Koeffizientenübersicht BDEW'!Z6,'Koeffizientenübersicht BDEW'!Z7)) -> 
B10: Bemerkungen:
B16: Darstellung der Berechnungsergebnisse | I16: Kontrollrechnung
B17: Jahr | C17: Restlast | D17: Allokationsmenge | E17: Als-Ob-Allokationsmenge Ist- Temperatur | F17: Als-Ob-Allokationsmenge GPT NB indi. Profil | G17: Als-Ob-Allokationsmenge alternative Ausprägung GPT BDEW 03 | H17: Als-Ob-Allokationsmenge alternative Ausprägung GPT BDEW 04 | I17: Als-Ob-Allokationsmenge Allokationstemperatur
B18: =IF(Tageswerte!A2="","",'Koeffizientenübersicht BDEW'!S19) ->  | C18: ='Mengen und Temperaturen'!AD2 -> 0 | D18: ='Mengen und Temperaturen'!AE2 -> 0 | E18: ='Mengen und Temperaturen'!AF2 -> 0 | F18: ='Mengen und Temperaturen'!AG2 -> 0 | G18: ='Mengen und Temperaturen'!AH2 -> 0 | H18: ='Mengen und Temperaturen'!AI2 -> 0 | I18: ='Mengen und Temperaturen'!AJ2 -> 0
B19: =IF(Tageswerte!A2="","",'Koeffizientenübersicht BDEW'!S20) ->  | C19: ='Mengen und Temperaturen'!AD3 -> 0 | D19: ='Mengen und Temperaturen'!AE3 -> 0 | E19: ='Mengen und Temperaturen'!AF3 -> 0 | F19: ='Mengen und Temperaturen'!AG3 -> 0 | G19: ='Mengen und Temperaturen'!AH3 -> 0 | H19: ='Mengen und Temperaturen'!AI3 -> 0 | I19: ='Mengen und Temperaturen'!AJ3 -> 0
B20: ="Differenz "&B18 -> Differenz | D20: =IF(Tageswerte!A2="","",(D18-C18)/D18) ->  | E20: =IF(Tageswerte!A2="","",(E18-C18)/E18) ->  | F20: =IF(Tageswerte!A2="","",(F18-C18)/F18) ->  | G20: =IF(Tageswerte!A2="","",(G18-C18)/G18) ->  | H20: =IF(Tageswerte!A2="","",(H18-C18)/H18) ->  | I20: =IF(Tageswerte!A2="","","Differenz: "&B18&" "&ROUND('Koeffizientenübersicht BDEW'!T15*100,1)&" %") -> 
B21: ="Differenz "&B19 -> Differenz | D21: =IF(Tageswerte!A2="","",(D19-C19)/D19) ->  | E21: =IF(Tageswerte!A2="","",(E19-C19)/E19) ->  | F21: =IF(Tageswerte!A2="","",(F19-C19)/F19) ->  | G21: =IF(Tageswerte!A2="","",(G19-C19)/G19) ->  | H21: =IF(Tageswerte!A2="","",(H19-C19)/H19) ->  | I21: =IF(Tageswerte!A2="","","Differenz: "&B19&" "&ROUND('Koeffizientenübersicht BDEW'!T16*100,1)&" %") -> 
B22: Kundenwertberechnung: | D22: =IF(Tageswerte!D2=0,"",IF(E20>4%,"Kundenwertberechnung bitte überprüfen!",IF(E21>4%,"Kundenwertberechnung bitte überprüfen!",IF(E20<-4%,"Kundenwertberechnung bitte überprüfen!",IF(E21<-4%,"Kundenwertberechnung bitte überprüfen!","Kundenwertberechnung ist plausibel!"))))) -> 
B23: Ergebnis der Kontrollrechnung: | D23: =IF(I18=0,"",IF((D18-I18)/D18*100>1,"Allokationsmengen bitte überprüfen!",IF((D19-I19)/D19*100>1,"Allokationsmengen bitte überprüfen!",IF((D18-I18)/D18*100<-1,"Allokationsmengen bitte überprüfen!",IF((D19-I19)/D19*100<-1,"Allokationsmengen bitte überprüfenn!","Allokationsmengen sind plausibel!"))))) -> 
C25: Kumulierte absolute Netzkontoabweichung
B26: Jahr | C26: SLP Allokation (an D-1 für D) | D26: Als-Ob-Allokation Ist Temperatur | E26: Als-Ob-Allokation GPT NB individuelle Profile | F26: Als-Ob-Allokation alternative Ausprägung GPT BDEW 03 | G26: Als-Ob-Allokation alternative Ausprägung GPT BDEW 04
B27: =B18 ->  | C27: =IF(Tageswerte!A2="","",'Mengen und Temperaturen'!AP2/'Mengen und Temperaturen'!AE2*1000) ->  | D27: =IF(Tageswerte!A2="","",'Mengen und Temperaturen'!AQ2/'Mengen und Temperaturen'!AF2*1000) ->  | E27: =IF(Tageswerte!A2="","",'Mengen und Temperaturen'!AR2/'Mengen und Temperaturen'!AG2*1000) ->  | F27: =IF(Tageswerte!A2="","",'Mengen und Temperaturen'!AS2/'Mengen und Temperaturen'!AH2*1000) ->  | G27: =IF(Tageswerte!A2="","",'Mengen und Temperaturen'!AT2/'Mengen und Temperaturen'!AI2*1000) -> 
B28: =B19 ->  | C28: =IF(Tageswerte!A2="","",'Mengen und Temperaturen'!AP3/'Mengen und Temperaturen'!AE3*1000) ->  | D28: =IF(Tageswerte!A2="","",'Mengen und Temperaturen'!AQ3/'Mengen und Temperaturen'!AF3*1000) ->  | E28: =IF(Tageswerte!A2="","",'Mengen und Temperaturen'!AR3/'Mengen und Temperaturen'!AG3*1000) ->  | F28: =IF(Tageswerte!A2="","",'Mengen und Temperaturen'!AS3/'Mengen und Temperaturen'!AH3*1000) ->  | G28: =IF(Tageswerte!A2="","",'Mengen und Temperaturen'!AT3/'Mengen und Temperaturen'!AI3*1000) -> 

Sheet Allokationstool Ist-Temp. NB
A1: Datum | B1: =Tageswerte!I1 -> Ist-Temperatur [°C] | C1: Allokationsmenge | D1: Wochentag gemäß Feiertags-kalender | O1: Monat/Jahr der Berechnung | P1: Temperatur | Q1: Wochentag | R1: Tages h-Werte und Tagesfaktoren entsprechend dem Wochentag (mit Berücksichtigung des Feiertagskalenders!) | AC1: Lastprofil | AD1: A | AE1: B | AF1: C | AG1: D | AJ1: Lastprofil | AM1: Summe Kundenwerte | AN1: Tagesmenge | AO1: =Kundenwerte!A1 -> Monat | AP1: =Kundenwerte!C1 -> Z13 | AQ1: =Kundenwerte!D1 -> Z14 | AR1: =Kundenwerte!E1 -> Z15 | AS1: =Kundenwerte!F1 -> Z23 | AT1: =Kundenwerte!G1 -> Z24 | AU1: =Kundenwerte!H1 -> Z25 | AV1: =Kundenwerte!I1 -> HK3 | AW1: =Kundenwerte!J1 -> BA1 | AX1: =Kundenwerte!K1 -> BA2 | AY1: =Kundenwerte!L1 -> BA3 | AZ1: =Kundenwerte!M1 -> BA4 | BA1: =Kundenwerte!N1 -> BA5 | BB1: =Kundenwerte!O1 -> BD1 | BC1: =Kundenwerte!P1 -> BD2 | BD1: =Kundenwerte!Q1 -> BD3 | BE1: =Kundenwerte!R1 -> BD4 | BF1: =Kundenwerte!S1 -> BD5 | BG1: =Kundenwerte!T1 -> BH1 | BH1: =Kundenwerte!U1 -> BH2 | BI1: =Kundenwerte!V1 -> BH3 | BJ1: =Kundenwerte!W1 -> BH4 | BK1: =Kundenwerte!X1 -> BH5 | BL1: =Kundenwerte!Y1 -> GA1 | BM1: =Kundenwerte!Z1 -> GA2 | BN1: =Kundenwerte!AA1 -> GA3 | BO1: =Kundenwerte!AB1 -> GA4 | BP1: =Kundenwerte!AC1 -> GA5 | BQ1: =Kundenwerte!AD1 -> GB1 | BR1: =Kundenwerte!AE1 -> GB2 | BS1: =Kundenwerte!AF1 -> GB3 | BT1: =Kundenwerte!AG1 -> GB4 | BU1: =Kundenwerte!AH1 -> GB5 | BV1: =Kundenwerte!AI1 -> HA1 | BW1: =Kundenwerte!AJ1 -> HA2 | BX1: =Kundenwerte!AK1 -> HA3 | BY1: =Kundenwerte!AL1 -> HA4 | BZ1: =Kundenwerte!AM1 -> HA5 | CA1: =Kundenwerte!AN1 -> KO1 | CB1: =Kundenwerte!AO1 -> KO2 | CC1: =Kundenwerte!AP1 -> KO3 | CD1: =Kundenwerte!AQ1 -> KO4 | CE1: =Kundenwerte!AR1 -> KO5 | CF1: =Kundenwerte!AS1 -> MK1 | CG1: =Kundenwerte!AT1 -> MK2 | CH1: =Kundenwerte!AU1 -> MK3 | CI1: =Kundenwerte!AV1 -> MK4 | CJ1: =Kundenwerte!AW1 -> MK5 | CK1: =Kundenwerte!AX1 -> MF1 | CL1: =Kundenwerte!AY1 -> MF2 | CM1: =Kundenwerte!AZ1 -> MF3 | CN1: =Kundenwerte!BA1 -> MF4 | CO1: =Kundenwerte!BB1 -> MF5 | CP1: =Kundenwerte!BC1 -> PD1 | CQ1: =Kundenwerte!BD1 -> PD2 | CR1: =Kundenwerte!BE1 -> PD3 | CS1: =Kundenwerte!BF1 -> PD4 | CT1: =Kundenwerte!BG1 -> PD5 | CU1: =Kundenwerte!BH1 -> WA1 | CV1: =Kundenwerte!BI1 -> WA2 | CW1: =Kundenwerte!BJ1 -> WA3 | CX1: =Kundenwerte!BK1 -> WA4 | CY1: =Kundenwerte!BL1 -> WA5 | CZ1: =Kundenwerte!BM1 -> GHD03 | DA1: =Kundenwerte!BN1 -> GHD04 | DB1: =Kundenwerte!BO1 -> Monatssumme
A2: =Tageswerte!A2 -> 00:00:00 | B2: =Tageswerte!I2 -> 0 | D2: =IF(A2="","",Feiertage!B2) -> 6 | O2: 122020 | P2: 2 | Q2: 4 | AJ2: =Kundenwerte!C1 -> Z13 | AM2: =VLOOKUP($O$2,$AO$2:$DA$25,2,FALSE) ->  | AN2: =AM2*S4 ->  | AO2: ='Koeffizientenübersicht BDEW'!T25 -> 1 | AP2: =Kundenwerte!C2 -> 0 | AQ2: =Kundenwerte!D2 -> 0 | AR2: =Kundenwerte!E2 -> 0 | AS2: =Kundenwerte!F2 -> 0 | AT2: =Kundenwerte!G2 -> 0 | AU2: =Kundenwerte!H2 -> 0 | AV2: =Kundenwerte!I2 -> 0 | AW2: =Kundenwerte!J2 -> 0 | AX2: =Kundenwerte!K2 -> 0 | AY2: =Kundenwerte!L2 -> 0 | AZ2: =Kundenwerte!M2 -> 0 | BA2: =Kundenwerte!N2 -> 0 | BB2: =Kundenwerte!O2 -> 0 | BC2: =Kundenwerte!P2 -> 0 | BD2: =Kundenwerte!Q2 -> 0 | BE2: =Kundenwerte!R2 -> 0 | BF2: =Kundenwerte!S2 -> 0 | BG2: =Kundenwerte!T2 -> 0 | BH2: =Kundenwerte!U2 -> 0 | BI2: =Kundenwerte!V2 -> 0 | BJ2: =Kundenwerte!W2 -> 0 | BK2: =Kundenwerte!X2 -> 0 | BL2: =Kundenwerte!Y2 -> 0 | BM2: =Kundenwerte!Z2 -> 0 | BN2: =Kundenwerte!AA2 -> 0 | BO2: =Kundenwerte!AB2 -> 0 | BP2: =Kundenwerte!AC2 -> 0 | BQ2: =Kundenwerte!AD2 -> 0 | BR2: =Kundenwerte!AE2 -> 0 | BS2: =Kundenwerte!AF2 -> 0 | BT2: =Kundenwerte!AG2 -> 0 | BU2: =Kundenwerte!AH2 -> 0 | BV2: =Kundenwerte!AI2 -> 0 | BW2: =Kundenwerte!AJ2 -> 0 | BX2: =Kundenwerte!AK2 -> 0 | BY2: =Kundenwerte!AL2 -> 0 | BZ2: =Kundenwerte!AM2 -> 0 | CA2: =Kundenwerte!AN2 -> 0 | CB2: =Kundenwerte!AO2 -> 0 | CC2: =Kundenwerte!AP2 -> 0 | CD2: =Kundenwerte!AQ2 -> 0 | CE2: =Kundenwerte!AR2 -> 0 | CF2: =Kundenwerte!AS2 -> 0 | CG2: =Kundenwerte!AT2 -> 0 | CH2: =Kundenwerte!AU2 -> 0 | CI2: =Kundenwerte!AV2 -> 0 | CJ2: =Kundenwerte!AW2 -> 0 | CK2: =Kundenwerte!AX2 -> 0 | CL2: =Kundenwerte!AY2 -> 0 | CM2: =Kundenwerte!AZ2 -> 0 | CN2: =Kundenwerte!BA2 -> 0 | CO2: =Kundenwerte!BB2 -> 0 | CP2: =Kundenwerte!BC2 -> 0 | CQ2: =Kundenwerte!BD2 -> 0 | CR2: =Kundenwerte!BE2 -> 0 | CS2: =Kundenwerte!BF2 -> 0 | CT2: =Kundenwerte!BG2 -> 0 | CU2: =Kundenwerte!BH2 -> 0 | CV2: =Kundenwerte!BI2 -> 0 | CW2: =Kundenwerte!BJ2 -> 0 | CX2: =Kundenwerte!BK2 -> 0 | CY2: =Kundenwerte!BL2 -> 0 | CZ2: =Kundenwerte!BM2 -> 0 | DA2: =Kundenwerte!BN2 -> 0 | DB2: =SUM(AP2:DA2) -> 0
A3: =Tageswerte!A3 -> 00:00:00 | B3: =Tageswerte!I3 -> 0 | D3: =IF(A3="","",Feiertage!B3) -> 7 | AJ3: =AQ1 -> Z14 | AM3: =VLOOKUP($O$2,$AO$2:$DA$25,3,FALSE) ->  | AN3: =AM3*S5 ->  | AO3: ='Koeffizientenübersicht BDEW'!T26 -> 2 | AP3: =Kundenwerte!C3 -> 0 | AQ3: =Kundenwerte!D3 -> 0 | AR3: =Kundenwerte!E3 -> 0 | AS3: =Kundenwerte!F3 -> 0 | AT3: =Kundenwerte!G3 -> 0 | AU3: =Kundenwerte!H3 -> 0 | AV3: =Kundenwerte!I3 -> 0 | AW3: =Kundenwerte!J3 -> 0 | AX3: =Kundenwerte!K3 -> 0 | AY3: =Kundenwerte!L3 -> 0 | AZ3: =Kundenwerte!M3 -> 0 | BA3: =Kundenwerte!N3 -> 0 | BB3: =Kundenwerte!O3 -> 0 | BC3: =Kundenwerte!P3 -> 0 | BD3: =Kundenwerte!Q3 -> 0 | BE3: =Kundenwerte!R3 -> 0 | BF3: =Kundenwerte!S3 -> 0 | BG3: =Kundenwerte!T3 -> 0 | BH3: =Kundenwerte!U3 -> 0 | BI3: =Kundenwerte!V3 -> 0 | BJ3: =Kundenwerte!W3 -> 0 | BK3: =Kundenwerte!X3 -> 0 | BL3: =Kundenwerte!Y3 -> 0 | BM3: =Kundenwerte!Z3 -> 0 | BN3: =Kundenwerte!AA3 -> 0 | BO3: =Kundenwerte!AB3 -> 0 | BP3: =Kundenwerte!AC3 -> 0 | BQ3: =Kundenwerte!AD3 -> 0 | BR3: =Kundenwerte!AE3 -> 0 | BS3: =Kundenwerte!AF3 -> 0 | BT3: =Kundenwerte!AG3 -> 0 | BU3: =Kundenwerte!AH3 -> 0 | BV3: =Kundenwerte!AI3 -> 0 | BW3: =Kundenwerte!AJ3 -> 0 | BX3: =Kundenwerte!AK3 -> 0 | BY3: =Kundenwerte!AL3 -> 0 | BZ3: =Kundenwerte!AM3 -> 0 | CA3: =Kundenwerte!AN3 -> 0 | CB3: =Kundenwerte!AO3 -> 0 | CC3: =Kundenwerte!AP3 -> 0 | CD3: =Kundenwerte!AQ3 -> 0 | CE3: =Kundenwerte!AR3 -> 0 | CF3: =Kundenwerte!AS3 -> 0 | CG3: =Kundenwerte!AT3 -> 0 | CH3: =Kundenwerte!AU3 -> 0 | CI3: =Kundenwerte!AV3 -> 0 | CJ3: =Kundenwerte!AW3 -> 0 | CK3: =Kundenwerte!AX3 -> 0 | CL3: =Kundenwerte!AY3 -> 0 | CM3: =Kundenwerte!AZ3 -> 0 | CN3: =Kundenwerte!BA3 -> 0 | CO3: =Kundenwerte!BB3 -> 0 | CP3: =Kundenwerte!BC3 -> 0 | CQ3: =Kundenwerte!BD3 -> 0 | CR3: =Kundenwerte!BE3 -> 0 | CS3: =Kundenwerte!BF3 -> 0 | CT3: =Kundenwerte!BG3 -> 0 | CU3: =Kundenwerte!BH3 -> 0 | CV3: =Kundenwerte!BI3 -> 0 | CW3: =Kundenwerte!BJ3 -> 0 | CX3: =Kundenwerte!BK3 -> 0 | CY3: =Kundenwerte!BL3 -> 0 | CZ3: =Kundenwerte!BM3 -> 0 | DA3: =Kundenwerte!BN3 -> 0 | DB3: =SUM(AP3:DA3) -> 0
A4: =Tageswerte!A4 -> 00:00:00 | B4: =Tageswerte!I4 -> 0 | D4: =IF(A4="","",Feiertage!B4) -> 7 | R4: =AC4 -> Z13 | S4: =(AD4/(1+(AE4/(P2-40))^AF4))+AG4 -> 1.713441722 | V4: =AC7 -> Z23 | W4: =(AD7/(1+(AE7/($P$2-40))^AF7))+AG7 -> 1.620989958 | AC4: ='Koeffizientenübersicht NB'!A3 -> Z13 | AD4: ='Koeffizientenübersicht NB'!B3 -> 3.04696946 | AE4: ='Koeffizientenübersicht NB'!C3 -> -37.18331413 | AF4: ='Koeffizientenübersicht NB'!D3 -> 5.672784662 | AG4: ='Koeffizientenübersicht NB'!E3 -> 0.09619306 | AJ4: D15 | AM4: =VLOOKUP($O$2,$AO$2:$DA$25,4,FALSE) ->  | AN4: =AM4*S6 ->  | AO4: ='Koeffizientenübersicht BDEW'!T27 -> 3 | AP4: =Kundenwerte!C4 -> 0 | AQ4: =Kundenwerte!D4 -> 0 | AR4: =Kundenwerte!E4 -> 0 | AS4: =Kundenwerte!F4 -> 0 | AT4: =Kundenwerte!G4 -> 0 | AU4: =Kundenwerte!H4 -> 0 | AV4: =Kundenwerte!I4 -> 0 | AW4: =Kundenwerte!J4 -> 0 | AX4: =Kundenwerte!K4 -> 0 | AY4: =Kundenwerte!L4 -> 0 | AZ4: =Kundenwerte!M4 -> 0 | BA4: =Kundenwerte!N4 -> 0 | BB4: =Kundenwerte!O4 -> 0 | BC4: =Kundenwerte!P4 -> 0 | BD4: =Kundenwerte!Q4 -> 0 | BE4: =Kundenwerte!R4 -> 0 | BF4: =Kundenwerte!S4 -> 0 | BG4: =Kundenwerte!T4 -> 0 | BH4: =Kundenwerte!U4 -> 0 | BI4: =Kundenwerte!V4 -> 0 | BJ4: =Kundenwerte!W4 -> 0 | BK4: =Kundenwerte!X4 -> 0 | BL4: =Kundenwerte!Y4 -> 0 | BM4: =Kundenwerte!Z4 -> 0 | BN4: =Kundenwerte!AA4 -> 0 | BO4: =Kundenwerte!AB4 -> 0 | BP4: =Kundenwerte!AC4 -> 0 | BQ4: =Kundenwerte!AD4 -> 0 | BR4: =Kundenwerte!AE4 -> 0 | BS4: =Kundenwerte!AF4 -> 0 | BT4: =Kundenwerte!AG4 -> 0 | BU4: =Kundenwerte!AH4 -> 0 | BV4: =Kundenwerte!AI4 -> 0 | BW4: =Kundenwerte!AJ4 -> 0 | BX4: =Kundenwerte!AK4 -> 0 | BY4: =Kundenwerte!AL4 -> 0 | BZ4: =Kundenwerte!AM4 -> 0 | CA4: =Kundenwerte!AN4 -> 0 | CB4: =Kundenwerte!AO4 -> 0 | CC4: =Kundenwerte!AP4 -> 0 | CD4: =Kundenwerte!AQ4 -> 0 | CE4: =Kundenwerte!AR4 -> 0 | CF4: =Kundenwerte!AS4 -> 0 | CG4: =Kundenwerte!AT4 -> 0 | CH4: =Kundenwerte!AU4 -> 0 | CI4: =Kundenwerte!AV4 -> 0 | CJ4: =Kundenwerte!AW4 -> 0 | CK4: =Kundenwerte!AX4 -> 0 | CL4: =Kundenwerte!AY4 -> 0 | CM4: =Kundenwerte!AZ4 -> 0 | CN4: =Kundenwerte!BA4 -> 0 | CO4: =Kundenwerte!BB4 -> 0 | CP4: =Kundenwerte!BC4 -> 0 | CQ4: =Kundenwerte!BD4 -> 0 | CR4: =Kundenwerte!BE4 -> 0 | CS4: =Kundenwerte!BF4 -> 0 | CT4: =Kundenwerte!BG4 -> 0 | CU4: =Kundenwerte!BH4 -> 0 | CV4: =Kundenwerte!BI4 -> 0 | CW4: =Kundenwerte!BJ4 -> 0 | CX4: =Kundenwerte!BK4 -> 0 | CY4: =Kundenwerte!BL4 -> 0 | CZ4: =Kundenwerte!BM4 -> 0 | DA4: =Kundenwerte!BN4 -> 0 | DB4: 0
A5: =Tageswerte!A5 -> 00:00:00 | B5: =Tageswerte!I5 -> 0 | D5: =IF(A5="","",Feiertage!B5) -> 2 | R5: =AC5 -> Z14 | S5: =(AD5/(1+(AE5/(P2-40))^AF5))+AG5 -> 1.745149201 | V5: =AC8 -> Z24 | W5: =(AD8/(1+(AE8/($P$2-40))^AF8))+AG8 -> 1.672418028 | AC5: ='Koeffizientenübersicht NB'!A4 -> Z14 | AD5: ='Koeffizientenübersicht NB'!B4 -> 3.18501913 | AE5: ='Koeffizientenübersicht NB'!C4 -> -37.41241549 | AF5: ='Koeffizientenübersicht NB'!D4 -> 6.172317873 | AG5: ='Koeffizientenübersicht NB'!E4 -> 0.076109594 | AJ5: =AS1 -> Z23 | AM5: =VLOOKUP($O$2,$AO$2:$DA$25,5,FALSE) ->  | AN5: =AM5*W4 ->  | AO5: ='Koeffizientenübersicht BDEW'!T28 -> 4 | AP5: =Kundenwerte!C5 -> 0 | AQ5: =Kundenwerte!D5 -> 0 | AR5: =Kundenwerte!E5 -> 0 | AS5: =Kundenwerte!F5 -> 0 | AT5: =Kundenwerte!G5 -> 0 | AU5: =Kundenwerte!H5 -> 0 | AV5: =Kundenwerte!I5 -> 0 | AW5: =Kundenwerte!J5 -> 0 | AX5: =Kundenwerte!K5 -> 0 | AY5: =Kundenwerte!L5 -> 0 | AZ5: =Kundenwerte!M5 -> 0 | BA5: =Kundenwerte!N5 -> 0 | BB5: =Kundenwerte!O5 -> 0 | BC5: =Kundenwerte!P5 -> 0 | BD5: =Kundenwerte!Q5 -> 0 | BE5: =Kundenwerte!R5 -> 0 | BF5: =Kundenwerte!S5 -> 0 | BG5: =Kundenwerte!T5 -> 0 | BH5: =Kundenwerte!U5 -> 0 | BI5: =Kundenwerte!V5 -> 0 | BJ5: =Kundenwerte!W5 -> 0 | BK5: =Kundenwerte!X5 -> 0 | BL5: =Kundenwerte!Y5 -> 0 | BM5: =Kundenwerte!Z5 -> 0 | BN5: =Kundenwerte!AA5 -> 0 | BO5: =Kundenwerte!AB5 -> 0 | BP5: =Kundenwerte!AC5 -> 0 | BQ5: =Kundenwerte!AD5 -> 0 | BR5: =Kundenwerte!AE5 -> 0 | BS5: =Kundenwerte!AF5 -> 0 | BT5: =Kundenwerte!AG5 -> 0 | BU5: =Kundenwerte!AH5 -> 0 | BV5: =Kundenwerte!AI5 -> 0 | BW5: =Kundenwerte!AJ5 -> 0 | BX5: =Kundenwerte!AK5 -> 0 | BY5: =Kundenwerte!AL5 -> 0 | BZ5: =Kundenwerte!AM5 -> 0 | CA5: =Kundenwerte!AN5 -> 0 | CB5: =Kundenwerte!AO5 -> 0 | CC5: =Kundenwerte!AP5 -> 0 | CD5: =Kundenwerte!AQ5 -> 0 | CE5: =Kundenwerte!AR5 -> 0 | CF5: =Kundenwerte!AS5 -> 0 | CG5: =Kundenwerte!AT5 -> 0 | CH5: =Kundenwerte!AU5 -> 0 | CI5: =Kundenwerte!AV5 -> 0 | CJ5: =Kundenwerte!AW5 -> 0 | CK5: =Kundenwerte!AX5 -> 0 | CL5: =Kundenwerte!AY5 -> 0 | CM5: =Kundenwerte!AZ5 -> 0 | CN5: =Kundenwerte!BA5 -> 0 | CO5: =Kundenwerte!BB5 -> 0 | CP5: =Kundenwerte!BC5 -> 0 | CQ5: =Kundenwerte!BD5 -> 0 | CR5: =Kundenwerte!BE5 -> 0 | CS5: =Kundenwerte!BF5 -> 0 | CT5: =Kundenwerte!BG5 -> 0 | CU5: =Kundenwerte!BH5 -> 0 | CV5: =Kundenwerte!BI5 -> 0 | CW5: =Kundenwerte!BJ5 -> 0 | CX5: =Kundenwerte!BK5 -> 0 | CY5: =Kundenwerte!BL5 -> 0 | CZ5: =Kundenwerte!BM5 -> 0 | DA5: =Kundenwerte!BN5 -> 0 | DB5: 0
A6: =Tageswerte!A6 -> 00:00:00 | B6: =Tageswerte!I6 -> 0 | D6: =IF(A6="","",Feiertage!B6) -> 3 | R6: =AC6 -> Z15 | S6: =(AD6 / (1 + (AE6 / (P2 - 40)) ^ AF6)) + AG6 -> 1.796471995 | V6: D25 | W6: =(AD9 / (1 + (AE9 / ($P$2 - 40)) ^ AF9)) + AG9 -> 1.728070743 | AC6: ='Koeffizientenübersicht NB'!A5 -> Z15 | AD6: ='Koeffizientenübersicht NB'!B5 -> 3.345666672 | AE6: ='Koeffizientenübersicht NB'!C5 -> -37.52683159 | AF6: ='Koeffizientenübersicht NB'!D5 -> 6.432893683 | AG6: ='Koeffizientenübersicht NB'!E5 -> 0.056256618 | AJ6: =AT1 -> Z24 | AM6: =VLOOKUP($O$2,$AO$2:$DA$25,6,FALSE) ->  | AN6: =AM6*W5 ->  | AO6: ='Koeffizientenübersicht BDEW'!T29 -> 5 | AP6: =Kundenwerte!C6 -> 0 | AQ6: =Kundenwerte!D6 -> 0 | AR6: =Kundenwerte!E6 -> 0 | AS6: =Kundenwerte!F6 -> 0 | AT6: =Kundenwerte!G6 -> 0 | AU6: =Kundenwerte!H6 -> 0 | AV6: =Kundenwerte!I6 -> 0 | AW6: =Kundenwerte!J6 -> 0 | AX6: =Kundenwerte!K6 -> 0 | AY6: =Kundenwerte!L6 -> 0 | AZ6: =Kundenwerte!M6 -> 0 | BA6: =Kundenwerte!N6 -> 0 | BB6: =Kundenwerte!O6 -> 0 | BC6: =Kundenwerte!P6 -> 0 | BD6: =Kundenwerte!Q6 -> 0 | BE6: =Kundenwerte!R6 -> 0 | BF6: =Kundenwerte!S6 -> 0 | BG6: =Kundenwerte!T6 -> 0 | BH6: =Kundenwerte!U6 -> 0 | BI6: =Kundenwerte!V6 -> 0 | BJ6: =Kundenwerte!W6 -> 0 | BK6: =Kundenwerte!X6 -> 0 | BL6: =Kundenwerte!Y6 -> 0 | BM6: =Kundenwerte!Z6 -> 0 | BN6: =Kundenwerte!AA6 -> 0 | BO6: =Kundenwerte!AB6 -> 0 | BP6: =Kundenwerte!AC6 -> 0 | BQ6: =Kundenwerte!AD6 -> 0 | BR6: =Kundenwerte!AE6 -> 0 | BS6: =Kundenwerte!AF6 -> 0 | BT6: =Kundenwerte!AG6 -> 0 | BU6: =Kundenwerte!AH6 -> 0 | BV6: =Kundenwerte!AI6 -> 0 | BW6: =Kundenwerte!AJ6 -> 0 | BX6: =Kundenwerte!AK6 -> 0 | BY6: =Kundenwerte!AL6 -> 0 | BZ6: =Kundenwerte!AM6 -> 0 | CA6: =Kundenwerte!AN6 -> 0 | CB6: =Kundenwerte!AO6 -> 0 | CC6: =Kundenwerte!AP6 -> 0 | CD6: =Kundenwerte!AQ6 -> 0 | CE6: =Kundenwerte!AR6 -> 0 | CF6: =Kundenwerte!AS6 -> 0 | CG6: =Kundenwerte!AT6 -> 0 | CH6: =Kundenwerte!AU6 -> 0 | CI6: =Kundenwerte!AV6 -> 0 | CJ6: =Kundenwerte!AW6 -> 0 | CK6: =Kundenwerte!AX6 -> 0 | CL6: =Kundenwerte!AY6 -> 0 | CM6: =Kundenwerte!AZ6 -> 0 | CN6: =Kundenwerte!BA6 -> 0 | CO6: =Kundenwerte!BB6 -> 0 | CP6: =Kundenwerte!BC6 -> 0 | CQ6: =Kundenwerte!BD6 -> 0 | CR6: =Kundenwerte!BE6 -> 0 | CS6: =Kundenwerte!BF6 -> 0 | CT6: =Kundenwerte!BG6 -> 0 | CU6: =Kundenwerte!BH6 -> 0 | CV6: =Kundenwerte!BI6 -> 0 | CW6: =Kundenwerte!BJ6 -> 0 | CX6: =Kundenwerte!BK6 -> 0 | CY6: =Kundenwerte!BL6 -> 0 | CZ6: =Kundenwerte!BM6 -> 0 | DA6: =Kundenwerte!BN6 -> 0 | DB6: 0
A7: =Tageswerte!A7 -> 00:00:00 | B7: =Tageswerte!I7 -> 0 | D7: =IF(A7="","",Feiertage!B7) -> 4 | AC7: ='Koeffizientenübersicht NB'!A6 -> Z23 | AD7: ='Koeffizientenübersicht NB'!B6 -> 2.387761791 | AE7: ='Koeffizientenübersicht NB'!C6 -> -34.72136051 | AF7: ='Koeffizientenübersicht NB'!D6 -> 5.816430402 | AG7: ='Koeffizientenübersicht NB'!E6 -> 0.120819368 | AJ7: D25 | AM7: =VLOOKUP($O$2,$AO$2:$DA$25,7,FALSE) ->  | AN7: =AM7*W6 ->  | AO7: ='Koeffizientenübersicht BDEW'!T30 -> 6 | AP7: =Kundenwerte!C7 -> 0 | AQ7: =Kundenwerte!D7 -> 0 | AR7: =Kundenwerte!E7 -> 0 | AS7: =Kundenwerte!F7 -> 0 | AT7: =Kundenwerte!G7 -> 0 | AU7: =Kundenwerte!H7 -> 0 | AV7: =Kundenwerte!I7 -> 0 | AW7: =Kundenwerte!J7 -> 0 | AX7: =Kundenwerte!K7 -> 0 | AY7: =Kundenwerte!L7 -> 0 | AZ7: =Kundenwerte!M7 -> 0 | BA7: =Kundenwerte!N7 -> 0 | BB7: =Kundenwerte!O7 -> 0 | BC7: =Kundenwerte!P7 -> 0 | BD7: =Kundenwerte!Q7 -> 0 | BE7: =Kundenwerte!R7 -> 0 | BF7: =Kundenwerte!S7 -> 0 | BG7: =Kundenwerte!T7 -> 0 | BH7: =Kundenwerte!U7 -> 0 | BI7: =Kundenwerte!V7 -> 0 | BJ7: =Kundenwerte!W7 -> 0 | BK7: =Kundenwerte!X7 -> 0 | BL7: =Kundenwerte!Y7 -> 0 | BM7: =Kundenwerte!Z7 -> 0 | BN7: =Kundenwerte!AA7 -> 0 | BO7: =Kundenwerte!AB7 -> 0 | BP7: =Kundenwerte!AC7 -> 0 | BQ7: =Kundenwerte!AD7 -> 0 | BR7: =Kundenwerte!AE7 -> 0 | BS7: =Kundenwerte!AF7 -> 0 | BT7: =Kundenwerte!AG7 -> 0 | BU7: =Kundenwerte!AH7 -> 0 | BV7: =Kundenwerte!AI7 -> 0 | BW7: =Kundenwerte!AJ7 -> 0 | BX7: =Kundenwerte!AK7 -> 0 | BY7: =Kundenwerte!AL7 -> 0 | BZ7: =Kundenwerte!AM7 -> 0 | CA7: =Kundenwerte!AN7 -> 0 | CB7: =Kundenwerte!AO7 -> 0 | CC7: =Kundenwerte!AP7 -> 0 | CD7: =Kundenwerte!AQ7 -> 0 | CE7: =Kundenwerte!AR7 -> 0 | CF7: =Kundenwerte!AS7 -> 0 | CG7: =Kundenwerte!AT7 -> 0 | CH7: =Kundenwerte!AU7 -> 0 | CI7: =Kundenwerte!AV7 -> 0 | CJ7: =Kundenwerte!AW7 -> 0 | CK7: =Kundenwerte!AX7 -> 0 | CL7: =Kundenwerte!AY7 -> 0 | CM7: =Kundenwerte!AZ7 -> 0 | CN7: =Kundenwerte!BA7 -> 0 | CO7: =Kundenwerte!BB7 -> 0 | CP7: =Kundenwerte!BC7 -> 0 | CQ7: =Kundenwerte!BD7 -> 0 | CR7: =Kundenwerte!BE7 -> 0 | CS7: =Kundenwerte!BF7 -> 0 | CT7: =Kundenwerte!BG7 -> 0 | CU7: =Kundenwerte!BH7 -> 0 | CV7: =Kundenwerte!BI7 -> 0 | CW7: =Kundenwerte!BJ7 -> 0 | CX7: =Kundenwerte!BK7 -> 0 | CY7: =Kundenwerte!BL7 -> 0 | CZ7: =Kundenwerte!BM7 -> 0 | DA7: =Kundenwerte!BN7 -> 0 | DB7: 0
A8: =Tageswerte!A8 -> 00:00:00 | B8: =Tageswerte!I8 -> 0 | D8: =IF(A8="","",Feiertage!B8) -> 5 | R8: Kochgas | AC8: ='Koeffizientenübersicht NB'!A7 -> Z24 | AD8: ='Koeffizientenübersicht NB'!B7 -> 2.518777519 | AE8: ='Koeffizientenübersicht NB'!C7 -> -35.03337542 | AF8: ='Koeffizientenübersicht NB'!D7 -> 6.224063396 | AG8: ='Koeffizientenübersicht NB'!E7 -> 0.101078172 | AJ8: HK3 | AM8: =VLOOKUP($O$2,$AO$2:$DA$25,8,FALSE) ->  | AN8: =AM8*S11 ->  | AO8: ='Koeffizientenübersicht BDEW'!T31 -> 7 | AP8: =Kundenwerte!C8 -> 0 | AQ8: =Kundenwerte!D8 -> 0 | AR8: =Kundenwerte!E8 -> 0 | AS8: =Kundenwerte!F8 -> 0 | AT8: =Kundenwerte!G8 -> 0 | AU8: =Kundenwerte!H8 -> 0 | AV8: =Kundenwerte!I8 -> 0 | AW8: =Kundenwerte!J8 -> 0 | AX8: =Kundenwerte!K8 -> 0 | AY8: =Kundenwerte!L8 -> 0 | AZ8: =Kundenwerte!M8 -> 0 | BA8: =Kundenwerte!N8 -> 0 | BB8: =Kundenwerte!O8 -> 0 | BC8: =Kundenwerte!P8 -> 0 | BD8: =Kundenwerte!Q8 -> 0 | BE8: =Kundenwerte!R8 -> 0 | BF8: =Kundenwerte!S8 -> 0 | BG8: =Kundenwerte!T8 -> 0 | BH8: =Kundenwerte!U8 -> 0 | BI8: =Kundenwerte!V8 -> 0 | BJ8: =Kundenwerte!W8 -> 0 | BK8: =Kundenwerte!X8 -> 0 | BL8: =Kundenwerte!Y8 -> 0 | BM8: =Kundenwerte!Z8 -> 0 | BN8: =Kundenwerte!AA8 -> 0 | BO8: =Kundenwerte!AB8 -> 0 | BP8: =Kundenwerte!AC8 -> 0 | BQ8: =Kundenwerte!AD8 -> 0 | BR8: =Kundenwerte!AE8 -> 0 | BS8: =Kundenwerte!AF8 -> 0 | BT8: =Kundenwerte!AG8 -> 0 | BU8: =Kundenwerte!AH8 -> 0 | BV8: =Kundenwerte!AI8 -> 0 | BW8: =Kundenwerte!AJ8 -> 0 | BX8: =Kundenwerte!AK8 -> 0 | BY8: =Kundenwerte!AL8 -> 0 | BZ8: =Kundenwerte!AM8 -> 0 | CA8: =Kundenwerte!AN8 -> 0 | CB8: =Kundenwerte!AO8 -> 0 | CC8: =Kundenwerte!AP8 -> 0 | CD8: =Kundenwerte!AQ8 -> 0 | CE8: =Kundenwerte!AR8 -> 0 | CF8: =Kundenwerte!AS8 -> 0 | CG8: =Kundenwerte!AT8 -> 0 | CH8: =Kundenwerte!AU8 -> 0 | CI8: =Kundenwerte!AV8 -> 0 | CJ8: =Kundenwerte!AW8 -> 0 | CK8: =Kundenwerte!AX8 -> 0 | CL8: =Kundenwerte!AY8 -> 0 | CM8: =Kundenwerte!AZ8 -> 0 | CN8: =Kundenwerte!BA8 -> 0 | CO8: =Kundenwerte!BB8 -> 0 | CP8: =Kundenwerte!BC8 -> 0 | CQ8: =Kundenwerte!BD8 -> 0 | CR8: =Kundenwerte!BE8 -> 0 | CS8: =Kundenwerte!BF8 -> 0 | CT8: =Kundenwerte!BG8 -> 0 | CU8: =Kundenwerte!BH8 -> 0 | CV8: =Kundenwerte!BI8 -> 0 | CW8: =Kundenwerte!BJ8 -> 0 | CX8: =Kundenwerte!BK8 -> 0 | CY8: =Kundenwerte!BL8 -> 0 | CZ8: =Kundenwerte!BM8 -> 0 | DA8: =Kundenwerte!BN8 -> 0 | DB8: 0
A9: =Tageswerte!A9 -> 00:00:00 | B9: =Tageswerte!I9 -> 0 | D9: =IF(A9="","",Feiertage!B9) -> 6 | AC9: ='Koeffizientenübersicht BDEW'!A10 -> D25 | AD9: ='Koeffizientenübersicht NB'!B8 -> 2.656440592 | AE9: ='Koeffizientenübersicht NB'!C8 -> -35.25169267 | AF9: ='Koeffizientenübersicht NB'!D8 -> 6.518265862 | AG9: ='Koeffizientenübersicht NB'!E8 -> 0.081205866 | AJ9: BA1 | AM9: =VLOOKUP($O$2,$AO$2:$DA$25,9,FALSE) ->  | AN9: =AM9*S16*T16*U16*V16*W16*X16*Y16 ->  | AO9: ='Koeffizientenübersicht BDEW'!T32 -> 8 | AP9: =Kundenwerte!C9 -> 0 | AQ9: =Kundenwerte!D9 -> 0 | AR9: =Kundenwerte!E9 -> 0 | AS9: =Kundenwerte!F9 -> 0 | AT9: =Kundenwerte!G9 -> 0 | AU9: =Kundenwerte!H9 -> 0 | AV9: =Kundenwerte!I9 -> 0 | AW9: =Kundenwerte!J9 -> 0 | AX9: =Kundenwerte!K9 -> 0 | AY9: =Kundenwerte!L9 -> 0 | AZ9: =Kundenwerte!M9 -> 0 | BA9: =Kundenwerte!N9 -> 0 | BB9: =Kundenwerte!O9 -> 0 | BC9: =Kundenwerte!P9 -> 0 | BD9: =Kundenwerte!Q9 -> 0 | BE9: =Kundenwerte!R9 -> 0 | BF9: =Kundenwerte!S9 -> 0 | BG9: =Kundenwerte!T9 -> 0 | BH9: =Kundenwerte!U9 -> 0 | BI9: =Kundenwerte!V9 -> 0 | BJ9: =Kundenwerte!W9 -> 0 | BK9: =Kundenwerte!X9 -> 0 | BL9: =Kundenwerte!Y9 -> 0 | BM9: =Kundenwerte!Z9 -> 0 | BN9: =Kundenwerte!AA9 -> 0 | BO9: =Kundenwerte!AB9 -> 0 | BP9: =Kundenwerte!AC9 -> 0 | BQ9: =Kundenwerte!AD9 -> 0 | BR9: =Kundenwerte!AE9 -> 0 | BS9: =Kundenwerte!AF9 -> 0 | BT9: =Kundenwerte!AG9 -> 0 | BU9: =Kundenwerte!AH9 -> 0 | BV9: =Kundenwerte!AI9 -> 0 | BW9: =Kundenwerte!AJ9 -> 0 | BX9: =Kundenwerte!AK9 -> 0 | BY9: =Kundenwerte!AL9 -> 0 | BZ9: =Kundenwerte!AM9 -> 0 | CA9: =Kundenwerte!AN9 -> 0 | CB9: =Kundenwerte!AO9 -> 0 | CC9: =Kundenwerte!AP9 -> 0 | CD9: =Kundenwerte!AQ9 -> 0 | CE9: =Kundenwerte!AR9 -> 0 | CF9: =Kundenwerte!AS9 -> 0 | CG9: =Kundenwerte!AT9 -> 0 | CH9: =Kundenwerte!AU9 -> 0 | CI9: =Kundenwerte!AV9 -> 0 | CJ9: =Kundenwerte!AW9 -> 0 | CK9: =Kundenwerte!AX9 -> 0 | CL9: =Kundenwerte!AY9 -> 0 | CM9: =Kundenwerte!AZ9 -> 0 | CN9: =Kundenwerte!BA9 -> 0 | CO9: =Kundenwerte!BB9 -> 0 | CP9: =Kundenwerte!BC9 -> 0 | CQ9: =Kundenwerte!BD9 -> 0 | CR9: =Kundenwerte!BE9 -> 0 | CS9: =Kundenwerte!BF9 -> 0 | CT9: =Kundenwerte!BG9 -> 0 | CU9: =Kundenwerte!BH9 -> 0 | CV9: =Kundenwerte!BI9 -> 0 | CW9: =Kundenwerte!BJ9 -> 0 | CX9: =Kundenwerte!BK9 -> 0 | CY9: =Kundenwerte!BL9 -> 0 | CZ9: =Kundenwerte!BM9 -> 0 | DA9: =Kundenwerte!BN9 -> 0 | DB9: 0
A10: =Tageswerte!A10 -> 00:00:00 | B10: =Tageswerte!I10 -> 0 | D10: =IF(A10="","",Feiertage!B10) -> 7 | AJ10: BA2 | AM10: =VLOOKUP($O$2,$AO$2:$DA$25,10,FALSE) ->  | AN10: =AM10*S17*T17*U17*V17*W17*X17*Y17 ->  | AO10: ='Koeffizientenübersicht BDEW'!T33 -> 9 | AP10: =Kundenwerte!C10 -> 0 | AQ10: =Kundenwerte!D10 -> 0 | AR10: =Kundenwerte!E10 -> 0 | AS10: =Kundenwerte!F10 -> 0 | AT10: =Kundenwerte!G10 -> 0 | AU10: =Kundenwerte!H10 -> 0 | AV10: =Kundenwerte!I10 -> 0 | AW10: =Kundenwerte!J10 -> 0 | AX10: =Kundenwerte!K10 -> 0 | AY10: =Kundenwerte!L10 -> 0 | AZ10: =Kundenwerte!M10 -> 0 | BA10: =Kundenwerte!N10 -> 0 | BB10: =Kundenwerte!O10 -> 0 | BC10: =Kundenwerte!P10 -> 0 | BD10: =Kundenwerte!Q10 -> 0 | BE10: =Kundenwerte!R10 -> 0 | BF10: =Kundenwerte!S10 -> 0 | BG10: =Kundenwerte!T10 -> 0 | BH10: =Kundenwerte!U10 -> 0 | BI10: =Kundenwerte!V10 -> 0 | BJ10: =Kundenwerte!W10 -> 0 | BK10: =Kundenwerte!X10 -> 0 | BL10: =Kundenwerte!Y10 -> 0 | BM10: =Kundenwerte!Z10 -> 0 | BN10: =Kundenwerte!AA10 -> 0 | BO10: =Kundenwerte!AB10 -> 0 | BP10: =Kundenwerte!AC10 -> 0 | BQ10: =Kundenwerte!AD10 -> 0 | BR10: =Kundenwerte!AE10 -> 0 | BS10: =Kundenwerte!AF10 -> 0 | BT10: =Kundenwerte!AG10 -> 0 | BU10: =Kundenwerte!AH10 -> 0 | BV10: =Kundenwerte!AI10 -> 0 | BW10: =Kundenwerte!AJ10 -> 0 | BX10: =Kundenwerte!AK10 -> 0 | BY10: =Kundenwerte!AL10 -> 0 | BZ10: =Kundenwerte!AM10 -> 0 | CA10: =Kundenwerte!AN10 -> 0 | CB10: =Kundenwerte!AO10 -> 0 | CC10: =Kundenwerte!AP10 -> 0 | CD10: =Kundenwerte!AQ10 -> 0 | CE10: =Kundenwerte!AR10 -> 0 | CF10: =Kundenwerte!AS10 -> 0 | CG10: =Kundenwerte!AT10 -> 0 | CH10: =Kundenwerte!AU10 -> 0 | CI10: =Kundenwerte!AV10 -> 0 | CJ10: =Kundenwerte!AW10 -> 0 | CK10: =Kundenwerte!AX10 -> 0 | CL10: =Kundenwerte!AY10 -> 0 | CM10: =Kundenwerte!AZ10 -> 0 | CN10: =Kundenwerte!BA10 -> 0 | CO10: =Kundenwerte!BB10 -> 0 | CP10: =Kundenwerte!BC10 -> 0 | CQ10: =Kundenwerte!BD10 -> 0 | CR10: =Kundenwerte!BE10 -> 0 | CS10: =Kundenwerte!BF10 -> 0 | CT10: =Kundenwerte!BG10 -> 0 | CU10: =Kundenwerte!BH10 -> 0 | CV10: =Kundenwerte!BI10 -> 0 | CW10: =Kundenwerte!BJ10 -> 0 | CX10: =Kundenwerte!BK10 -> 0 | CY10: =Kundenwerte!BL10 -> 0 | CZ10: =Kundenwerte!BM10 -> 0 | DA10: =Kundenwerte!BN10 -> 0 | DB10: 0
A11: =Tageswerte!A11 -> 00:00:00 | B11: =Tageswerte!I11 -> 0 | D11: =IF(A11="","",Feiertage!B11) -> 1 | R11: =AC11 -> HK3 | S11: =(AD11 / (1 + (AE11 / (P2 - 40)) ^ AF11)) + AG11 -> 1.093804466 | AC11: HK3 | AD11: ='Koeffizientenübersicht NB'!B9 -> 0.4040932 | AE11: ='Koeffizientenübersicht NB'!C9 -> -24.4392968 | AF11: ='Koeffizientenübersicht NB'!D9 -> 6.5718175 | AG11: ='Koeffizientenübersicht NB'!E9 -> 0.710771 | AJ11: BA3 | AM11: =VLOOKUP($O$2,$AO$2:$DA$25,11,FALSE) ->  | AO11: ='Koeffizientenübersicht BDEW'!T34 -> 10 | AP11: =Kundenwerte!C11 -> 0 | AQ11: =Kundenwerte!D11 -> 0 | AR11: =Kundenwerte!E11 -> 0 | AS11: =Kundenwerte!F11 -> 0 | AT11: =Kundenwerte!G11 -> 0 | AU11: =Kundenwerte!H11 -> 0 | AV11: =Kundenwerte!I11 -> 0 | AW11: =Kundenwerte!J11 -> 0 | AX11: =Kundenwerte!K11 -> 0 | AY11: =Kundenwerte!L11 -> 0 | AZ11: =Kundenwerte!M11 -> 0 | BA11: =Kundenwerte!N11 -> 0 | BB11: =Kundenwerte!O11 -> 0 | BC11: =Kundenwerte!P11 -> 0 | BD11: =Kundenwerte!Q11 -> 0 | BE11: =Kundenwerte!R11 -> 0 | BF11: =Kundenwerte!S11 -> 0 | BG11: =Kundenwerte!T11 -> 0 | BH11: =Kundenwerte!U11 -> 0 | BI11: =Kundenwerte!V11 -> 0 | BJ11: =Kundenwerte!W11 -> 0 | BK11: =Kundenwerte!X11 -> 0 | BL11: =Kundenwerte!Y11 -> 0 | BM11: =Kundenwerte!Z11 -> 0 | BN11: =Kundenwerte!AA11 -> 0 | BO11: =Kundenwerte!AB11 -> 0 | BP11: =Kundenwerte!AC11 -> 0 | BQ11: =Kundenwerte!AD11 -> 0 | BR11: =Kundenwerte!AE11 -> 0 | BS11: =Kundenwerte!AF11 -> 0 | BT11: =Kundenwerte!AG11 -> 0 | BU11: =Kundenwerte!AH11 -> 0 | BV11: =Kundenwerte!AI11 -> 0 | BW11: =Kundenwerte!AJ11 -> 0 | BX11: =Kundenwerte!AK11 -> 0 | BY11: =Kundenwerte!AL11 -> 0 | BZ11: =Kundenwerte!AM11 -> 0 | CA11: =Kundenwerte!AN11 -> 0 | CB11: =Kundenwerte!AO11 -> 0 | CC11: =Kundenwerte!AP11 -> 0 | CD11: =Kundenwerte!AQ11 -> 0 | CE11: =Kundenwerte!AR11 -> 0 | CF11: =Kundenwerte!AS11 -> 0 | CG11: =Kundenwerte!AT11 -> 0 | CH11: =Kundenwerte!AU11 -> 0 | CI11: =Kundenwerte!AV11 -> 0 | CJ11: =Kundenwerte!AW11 -> 0 | CK11: =Kundenwerte!AX11 -> 0 | CL11: =Kundenwerte!AY11 -> 0 | CM11: =Kundenwerte!AZ11 -> 0 | CN11: =Kundenwerte!BA11 -> 0 | CO11: =Kundenwerte!BB11 -> 0 | CP11: =Kundenwerte!BC11 -> 0 | CQ11: =Kundenwerte!BD11 -> 0 | CR11: =Kundenwerte!BE11 -> 0 | CS11: =Kundenwerte!BF11 -> 0 | CT11: =Kundenwerte!BG11 -> 0 | CU11: =Kundenwerte!BH11 -> 0 | CV11: =Kundenwerte!BI11 -> 0 | CW11: =Kundenwerte!BJ11 -> 0 | CX11: =Kundenwerte!BK11 -> 0 | CY11: =Kundenwerte!BL11 -> 0 | CZ11: =Kundenwerte!BM11 -> 0 | DA11: =Kundenwerte!BN11 -> 0 | DB11: 0
A12: =Tageswerte!A12 -> 00:00:00 | B12: =Tageswerte!I12 -> 0 | D12: =IF(A12="","",Feiertage!B12) -> 2 | AJ12: BA4 | AM12: =VLOOKUP($O$2,$AO$2:$DA$25,12,FALSE) ->  | AN12: =AM12*S19*T19*U19*V19*W19*X19*Y19 ->  | AO12: ='Koeffizientenübersicht BDEW'!T35 -> 11 | AP12: =Kundenwerte!C12 -> 0 | AQ12: =Kundenwerte!D12 -> 0 | AR12: =Kundenwerte!E12 -> 0 | AS12: =Kundenwerte!F12 -> 0 | AT12: =Kundenwerte!G12 -> 0 | AU12: =Kundenwerte!H12 -> 0 | AV12: =Kundenwerte!I12 -> 0 | AW12: =Kundenwerte!J12 -> 0 | AX12: =Kundenwerte!K12 -> 0 | AY12: =Kundenwerte!L12 -> 0 | AZ12: =Kundenwerte!M12 -> 0 | BA12: =Kundenwerte!N12 -> 0 | BB12: =Kundenwerte!O12 -> 0 | BC12: =Kundenwerte!P12 -> 0 | BD12: =Kundenwerte!Q12 -> 0 | BE12: =Kundenwerte!R12 -> 0 | BF12: =Kundenwerte!S12 -> 0 | BG12: =Kundenwerte!T12 -> 0 | BH12: =Kundenwerte!U12 -> 0 | BI12: =Kundenwerte!V12 -> 0 | BJ12: =Kundenwerte!W12 -> 0 | BK12: =Kundenwerte!X12 -> 0 | BL12: =Kundenwerte!Y12 -> 0 | BM12: =Kundenwerte!Z12 -> 0 | BN12: =Kundenwerte!AA12 -> 0 | BO12: =Kundenwerte!AB12 -> 0 | BP12: =Kundenwerte!AC12 -> 0 | BQ12: =Kundenwerte!AD12 -> 0 | BR12: =Kundenwerte!AE12 -> 0 | BS12: =Kundenwerte!AF12 -> 0 | BT12: =Kundenwerte!AG12 -> 0 | BU12: =Kundenwerte!AH12 -> 0 | BV12: =Kundenwerte!AI12 -> 0 | BW12: =Kundenwerte!AJ12 -> 0 | BX12: =Kundenwerte!AK12 -> 0 | BY12: =Kundenwerte!AL12 -> 0 | BZ12: =Kundenwerte!AM12 -> 0 | CA12: =Kundenwerte!AN12 -> 0 | CB12: =Kundenwerte!AO12 -> 0 | CC12: =Kundenwerte!AP12 -> 0 | CD12: =Kundenwerte!AQ12 -> 0 | CE12: =Kundenwerte!AR12 -> 0 | CF12: =Kundenwerte!AS12 -> 0 | CG12: =Kundenwerte!AT12 -> 0 | CH12: =Kundenwerte!AU12 -> 0 | CI12: =Kundenwerte!AV12 -> 0 | CJ12: =Kundenwerte!AW12 -> 0 | CK12: =Kundenwerte!AX12 -> 0 | CL12: =Kundenwerte!AY12 -> 0 | CM12: =Kundenwerte!AZ12 -> 0 | CN12: =Kundenwerte!BA12 -> 0 | CO12: =Kundenwerte!BB12 -> 0 | CP12: =Kundenwerte!BC12 -> 0 | CQ12: =Kundenwerte!BD12 -> 0 | CR12: =Kundenwerte!BE12 -> 0 | CS12: =Kundenwerte!BF12 -> 0 | CT12: =Kundenwerte!BG12 -> 0 | CU12: =Kundenwerte!BH12 -> 0 | CV12: =Kundenwerte!BI12 -> 0 | CW12: =Kundenwerte!BJ12 -> 0 | CX12: =Kundenwerte!BK12 -> 0 | CY12: =Kundenwerte!BL12 -> 0 | CZ12: =Kundenwerte!BM12 -> 0 | DA12: =Kundenwerte!BN12 -> 0 | DB12: 0
A13: =Tageswerte!A13 -> 00:00:00 | B13: =Tageswerte!I13 -> 0 | D13: =IF(A13="","",Feiertage!B13) -> 3 | R13: Bäckereien | Z13: Tagesfaktoren | AJ13: BA5 | AM13: =VLOOKUP($O$2,$AO$2:$DA$25,13,FALSE) ->  | AO13: ='Koeffizientenübersicht BDEW'!T36 -> 12 | AP13: =Kundenwerte!C13 -> 0 | AQ13: =Kundenwerte!D13 -> 0 | AR13: =Kundenwerte!E13 -> 0 | AS13: =Kundenwerte!F13 -> 0 | AT13: =Kundenwerte!G13 -> 0 | AU13: =Kundenwerte!H13 -> 0 | AV13: =Kundenwerte!I13 -> 0 | AW13: =Kundenwerte!J13 -> 0 | AX13: =Kundenwerte!K13 -> 0 | AY13: =Kundenwerte!L13 -> 0 | AZ13: =Kundenwerte!M13 -> 0 | BA13: =Kundenwerte!N13 -> 0 | BB13: =Kundenwerte!O13 -> 0 | BC13: =Kundenwerte!P13 -> 0 | BD13: =Kundenwerte!Q13 -> 0 | BE13: =Kundenwerte!R13 -> 0 | BF13: =Kundenwerte!S13 -> 0 | BG13: =Kundenwerte!T13 -> 0 | BH13: =Kundenwerte!U13 -> 0 | BI13: =Kundenwerte!V13 -> 0 | BJ13: =Kundenwerte!W13 -> 0 | BK13: =Kundenwerte!X13 -> 0 | BL13: =Kundenwerte!Y13 -> 0 | BM13: =Kundenwerte!Z13 -> 0 | BN13: =Kundenwerte!AA13 -> 0 | BO13: =Kundenwerte!AB13 -> 0 | BP13: =Kundenwerte!AC13 -> 0 | BQ13: =Kundenwerte!AD13 -> 0 | BR13: =Kundenwerte!AE13 -> 0 | BS13: =Kundenwerte!AF13 -> 0 | BT13: =Kundenwerte!AG13 -> 0 | BU13: =Kundenwerte!AH13 -> 0 | BV13: =Kundenwerte!AI13 -> 0 | BW13: =Kundenwerte!AJ13 -> 0 | BX13: =Kundenwerte!AK13 -> 0 | BY13: =Kundenwerte!AL13 -> 0 | BZ13: =Kundenwerte!AM13 -> 0 | CA13: =Kundenwerte!AN13 -> 0 | CB13: =Kundenwerte!AO13 -> 0 | CC13: =Kundenwerte!AP13 -> 0 | CD13: =Kundenwerte!AQ13 -> 0 | CE13: =Kundenwerte!AR13 -> 0 | CF13: =Kundenwerte!AS13 -> 0 | CG13: =Kundenwerte!AT13 -> 0 | CH13: =Kundenwerte!AU13 -> 0 | CI13: =Kundenwerte!AV13 -> 0 | CJ13: =Kundenwerte!AW13 -> 0 | CK13: =Kundenwerte!AX13 -> 0 | CL13: =Kundenwerte!AY13 -> 0 | CM13: =Kundenwerte!AZ13 -> 0 | CN13: =Kundenwerte!BA13 -> 0 | CO13: =Kundenwerte!BB13 -> 0 | CP13: =Kundenwerte!BC13 -> 0 | CQ13: =Kundenwerte!BD13 -> 0 | CR13: =Kundenwerte!BE13 -> 0 | CS13: =Kundenwerte!BF13 -> 0 | CT13: =Kundenwerte!BG13 -> 0 | CU13: =Kundenwerte!BH13 -> 0 | CV13: =Kundenwerte!BI13 -> 0 | CW13: =Kundenwerte!BJ13 -> 0 | CX13: =Kundenwerte!BK13 -> 0 | CY13: =Kundenwerte!BL13 -> 0 | CZ13: =Kundenwerte!BM13 -> 0 | DA13: =Kundenwerte!BN13 -> 0 | DB13: 0
A14: =Tageswerte!A14 -> 00:00:00 | B14: =Tageswerte!I14 -> 0 | D14: =IF(A14="","",Feiertage!B14) -> 4 | Z14: 1 | AA14: ='Koeffizientenübersicht NB'!$F$50 -> 1.0848 | AJ14: BD1 | AM14: =VLOOKUP($O$2,$AO$2:$DA$25,14,FALSE) ->  | AN14: =AM14*S70*T70*U70*V70*W70*X70*Y70 ->  | AO14: ='Koeffizientenübersicht BDEW'!T37 -> 1 | AP14: =Kundenwerte!C14 -> 0 | AQ14: =Kundenwerte!D14 -> 0 | AR14: =Kundenwerte!E14 -> 0 | AS14: =Kundenwerte!F14 -> 0 | AT14: =Kundenwerte!G14 -> 0 | AU14: =Kundenwerte!H14 -> 0 | AV14: =Kundenwerte!I14 -> 0 | AW14: =Kundenwerte!J14 -> 0 | AX14: =Kundenwerte!K14 -> 0 | AY14: =Kundenwerte!L14 -> 0 | AZ14: =Kundenwerte!M14 -> 0 | BA14: =Kundenwerte!N14 -> 0 | BB14: =Kundenwerte!O14 -> 0 | BC14: =Kundenwerte!P14 -> 0 | BD14: =Kundenwerte!Q14 -> 0 | BE14: =Kundenwerte!R14 -> 0 | BF14: =Kundenwerte!S14 -> 0 | BG14: =Kundenwerte!T14 -> 0 | BH14: =Kundenwerte!U14 -> 0 | BI14: =Kundenwerte!V14 -> 0 | BJ14: =Kundenwerte!W14 -> 0 | BK14: =Kundenwerte!X14 -> 0 | BL14: =Kundenwerte!Y14 -> 0 | BM14: =Kundenwerte!Z14 -> 0 | BN14: =Kundenwerte!AA14 -> 0 | BO14: =Kundenwerte!AB14 -> 0 | BP14: =Kundenwerte!AC14 -> 0 | BQ14: =Kundenwerte!AD14 -> 0 | BR14: =Kundenwerte!AE14 -> 0 | BS14: =Kundenwerte!AF14 -> 0 | BT14: =Kundenwerte!AG14 -> 0 | BU14: =Kundenwerte!AH14 -> 0 | BV14: =Kundenwerte!AI14 -> 0 | BW14: =Kundenwerte!AJ14 -> 0 | BX14: =Kundenwerte!AK14 -> 0 | BY14: =Kundenwerte!AL14 -> 0 | BZ14: =Kundenwerte!AM14 -> 0 | CA14: =Kundenwerte!AN14 -> 0 | CB14: =Kundenwerte!AO14 -> 0 | CC14: =Kundenwerte!AP14 -> 0 | CD14: =Kundenwerte!AQ14 -> 0 | CE14: =Kundenwerte!AR14 -> 0 | CF14: =Kundenwerte!AS14 -> 0 | CG14: =Kundenwerte!AT14 -> 0 | CH14: =Kundenwerte!AU14 -> 0 | CI14: =Kundenwerte!AV14 -> 0 | CJ14: =Kundenwerte!AW14 -> 0 | CK14: =Kundenwerte!AX14 -> 0 | CL14: =Kundenwerte!AY14 -> 0 | CM14: =Kundenwerte!AZ14 -> 0 | CN14: =Kundenwerte!BA14 -> 0 | CO14: =Kundenwerte!BB14 -> 0 | CP14: =Kundenwerte!BC14 -> 0 | CQ14: =Kundenwerte!BD14 -> 0 | CR14: =Kundenwerte!BE14 -> 0 | CS14: =Kundenwerte!BF14 -> 0 | CT14: =Kundenwerte!BG14 -> 0 | CU14: =Kundenwerte!BH14 -> 0 | CV14: =Kundenwerte!BI14 -> 0 | CW14: =Kundenwerte!BJ14 -> 0 | CX14: =Kundenwerte!BK14 -> 0 | CY14: =Kundenwerte!BL14 -> 0 | CZ14: =Kundenwerte!BM14 -> 0 | DA14: =Kundenwerte!BN14 -> 0 | DB14: 0
A15: =Tageswerte!A15 -> 00:00:00 | B15: =Tageswerte!I15 -> 0 | D15: =IF(A15="","",Feiertage!B15) -> 5 | S15: Montag | T15: Dienstag | U15: Mittwoch | V15: Donnerstag | W15: Freitag | X15: Samstag | Y15: Sonntag | Z15: 2 | AA15: ='Koeffizientenübersicht NB'!$G$50 -> 1.1211 | AJ15: BD2 | AM15: =VLOOKUP($O$2,$AO$2:$DA$25,15,FALSE) ->  | AN15: =AM15*S71*T71*U71*V71*W71*X71*Y71 ->  | AO15: ='Koeffizientenübersicht BDEW'!T38 -> 2 | AP15: =Kundenwerte!C15 -> 0 | AQ15: =Kundenwerte!D15 -> 0 | AR15: =Kundenwerte!E15 -> 0 | AS15: =Kundenwerte!F15 -> 0 | AT15: =Kundenwerte!G15 -> 0 | AU15: =Kundenwerte!H15 -> 0 | AV15: =Kundenwerte!I15 -> 0 | AW15: =Kundenwerte!J15 -> 0 | AX15: =Kundenwerte!K15 -> 0 | AY15: =Kundenwerte!L15 -> 0 | AZ15: =Kundenwerte!M15 -> 0 | BA15: =Kundenwerte!N15 -> 0 | BB15: =Kundenwerte!O15 -> 0 | BC15: =Kundenwerte!P15 -> 0 | BD15: =Kundenwerte!Q15 -> 0 | BE15: =Kundenwerte!R15 -> 0 | BF15: =Kundenwerte!S15 -> 0 | BG15: =Kundenwerte!T15 -> 0 | BH15: =Kundenwerte!U15 -> 0 | BI15: =Kundenwerte!V15 -> 0 | BJ15: =Kundenwerte!W15 -> 0 | BK15: =Kundenwerte!X15 -> 0 | BL15: =Kundenwerte!Y15 -> 0 | BM15: =Kundenwerte!Z15 -> 0 | BN15: =Kundenwerte!AA15 -> 0 | BO15: =Kundenwerte!AB15 -> 0 | BP15: =Kundenwerte!AC15 -> 0 | BQ15: =Kundenwerte!AD15 -> 0 | BR15: =Kundenwerte!AE15 -> 0 | BS15: =Kundenwerte!AF15 -> 0 | BT15: =Kundenwerte!AG15 -> 0 | BU15: =Kundenwerte!AH15 -> 0 | BV15: =Kundenwerte!AI15 -> 0 | BW15: =Kundenwerte!AJ15 -> 0 | BX15: =Kundenwerte!AK15 -> 0 | BY15: =Kundenwerte!AL15 -> 0 | BZ15: =Kundenwerte!AM15 -> 0 | CA15: =Kundenwerte!AN15 -> 0 | CB15: =Kundenwerte!AO15 -> 0 | CC15: =Kundenwerte!AP15 -> 0 | CD15: =Kundenwerte!AQ15 -> 0 | CE15: =Kundenwerte!AR15 -> 0 | CF15: =Kundenwerte!AS15 -> 0 | CG15: =Kundenwerte!AT15 -> 0 | CH15: =Kundenwerte!AU15 -> 0 | CI15: =Kundenwerte!AV15 -> 0 | CJ15: =Kundenwerte!AW15 -> 0 | CK15: =Kundenwerte!AX15 -> 0 | CL15: =Kundenwerte!AY15 -> 0 | CM15: =Kundenwerte!AZ15 -> 0 | CN15: =Kundenwerte!BA15 -> 0 | CO15: =Kundenwerte!BB15 -> 0 | CP15: =Kundenwerte!BC15 -> 0 | CQ15: =Kundenwerte!BD15 -> 0 | CR15: =Kundenwerte!BE15 -> 0 | CS15: =Kundenwerte!BF15 -> 0 | CT15: =Kundenwerte!BG15 -> 0 | CU15: =Kundenwerte!BH15 -> 0 | CV15: =Kundenwerte!BI15 -> 0 | CW15: =Kundenwerte!BJ15 -> 0 | CX15: =Kundenwerte!BK15 -> 0 | CY15: =Kundenwerte!BL15 -> 0 | CZ15: =Kundenwerte!BM15 -> 0 | DA15: =Kundenwerte!BN15 -> 0 | DB15: 0
A16: =Tageswerte!A16 -> 00:00:00 | B16: =Tageswerte!I16 -> 0 | D16: =IF(A16="","",Feiertage!B16) -> 6 | R16: =AC16 -> BA1 | S16: =IF($Q$2=1,(AD16/(1+(AE16/(P$2-40))^AF16)+AG16)*VLOOKUP($Q$2,$Z$14:$AA$20,2),1) -> 1 | T16: =IF($Q$2=2,(AD16/(1+(AE16/(P$2-40))^AF16)+AG16)*VLOOKUP($Q$2,$Z$14:$AA$20,2),1) -> 1 | U16: =IF($Q$2=3,(AD16/(1+(AE16/(P$2-40))^AF16)+AG16)*VLOOKUP($Q$2,$Z$14:$AA$20,2),1) -> 1 | V16: =IF($Q$2=4,(AD16/(1+(AE16/(P$2-40))^AF16)+AG16)*VLOOKUP($Q$2,$Z$14:$AA$20,2),1) -> 1.225046708 | W16: =IF($Q$2=5,(AD16/(1+(AE16/(P$2-40))^AF16)+AG16)*VLOOKUP($Q$2,$Z$14:$AA$20,2),1) -> 1 | X16: =IF($Q$2=6,(AD16/(1+(AE16/(P$2-40))^AF16)+AG16)*VLOOKUP($Q$2,$Z$14:$AA$20,2),1) -> 1 | Y16: =IF($Q$2=7,(AD16/(1+(AE16/(P$2-40))^AF16)+AG16)*VLOOKUP($Q$2,$Z$14:$AA$20,2),1) -> 1 | Z16: 3 | AA16: ='Koeffizientenübersicht NB'!$H$50 -> 1.0769 | AC16: BA1 | AD16: ='Koeffizientenübersicht NB'!B50 -> 0.15 | AE16: ='Koeffizientenübersicht NB'!C50 -> -36 | AF16: ='Koeffizientenübersicht NB'!D50 -> 2 | AG16: ='Koeffizientenübersicht NB'!E50 -> 1 | AJ16: BD3 | AM16: =VLOOKUP($O$2,$AO$2:$DA$25,16,FALSE) ->  | AO16: ='Koeffizientenübersicht BDEW'!T39 -> 3 | AP16: =Kundenwerte!C16 -> 0 | AQ16: =Kundenwerte!D16 -> 0 | AR16: =Kundenwerte!E16 -> 0 | AS16: =Kundenwerte!F16 -> 0 | AT16: =Kundenwerte!G16 -> 0 | AU16: =Kundenwerte!H16 -> 0 | AV16: =Kundenwerte!I16 -> 0 | AW16: =Kundenwerte!J16 -> 0 | AX16: =Kundenwerte!K16 -> 0 | AY16: =Kundenwerte!L16 -> 0 | AZ16: =Kundenwerte!M16 -> 0 | BA16: =Kundenwerte!N16 -> 0 | BB16: =Kundenwerte!O16 -> 0 | BC16: =Kundenwerte!P16 -> 0 | BD16: =Kundenwerte!Q16 -> 0 | BE16: =Kundenwerte!R16 -> 0 | BF16: =Kundenwerte!S16 -> 0 | BG16: =Kundenwerte!T16 -> 0 | BH16: =Kundenwerte!U16 -> 0 | BI16: =Kundenwerte!V16 -> 0 | BJ16: =Kundenwerte!W16 -> 0 | BK16: =Kundenwerte!X16 -> 0 | BL16: =Kundenwerte!Y16 -> 0 | BM16: =Kundenwerte!Z16 -> 0 | BN16: =Kundenwerte!AA16 -> 0 | BO16: =Kundenwerte!AB16 -> 0 | BP16: =Kundenwerte!AC16 -> 0 | BQ16: =Kundenwerte!AD16 -> 0 | BR16: =Kundenwerte!AE16 -> 0 | BS16: =Kundenwerte!AF16 -> 0 | BT16: =Kundenwerte!AG16 -> 0 | BU16: =Kundenwerte!AH16 -> 0 | BV16: =Kundenwerte!AI16 -> 0 | BW16: =Kundenwerte!AJ16 -> 0 | BX16: =Kundenwerte!AK16 -> 0 | BY16: =Kundenwerte!AL16 -> 0 | BZ16: =Kundenwerte!AM16 -> 0 | CA16: =Kundenwerte!AN16 -> 0 | CB16: =Kundenwerte!AO16 -> 0 | CC16: =Kundenwerte!AP16 -> 0 | CD16: =Kundenwerte!AQ16 -> 0 | CE16: =Kundenwerte!AR16 -> 0 | CF16: =Kundenwerte!AS16 -> 0 | CG16: =Kundenwerte!AT16 -> 0 | CH16: =Kundenwerte!AU16 -> 0 | CI16: =Kundenwerte!AV16 -> 0 | CJ16: =Kundenwerte!AW16 -> 0 | CK16: =Kundenwerte!AX16 -> 0 | CL16: =Kundenwerte!AY16 -> 0 | CM16: =Kundenwerte!AZ16 -> 0 | CN16: =Kundenwerte!BA16 -> 0 | CO16: =Kundenwerte!BB16 -> 0 | CP16: =Kundenwerte!BC16 -> 0 | CQ16: =Kundenwerte!BD16 -> 0 | CR16: =Kundenwerte!BE16 -> 0 | CS16: =Kundenwerte!BF16 -> 0 | CT16: =Kundenwerte!BG16 -> 0 | CU16: =Kundenwerte!BH16 -> 0 | CV16: =Kundenwerte!BI16 -> 0 | CW16: =Kundenwerte!BJ16 -> 0 | CX16: =Kundenwerte!BK16 -> 0 | CY16: =Kundenwerte!BL16 -> 0 | CZ16: =Kundenwerte!BM16 -> 0 | DA16: =Kundenwerte!BN16 -> 0 | DB16: 0
A17: =Tageswerte!A17 -> 00:00:00 | B17: =Tageswerte!I17 -> 0 | D17: =IF(A17="","",Feiertage!B17) -> 7 | R17: =AC17 -> BA2 | S17: =IF($Q$2=1,(AD17/(1+(AE17/(P$2-40))^AF17)+AG17)*VLOOKUP($Q$2,$Z$14:$AA$20,2),1) -> 1 | T17: =IF($Q$2=2,(AD17/(1+(AE17/(P$2-40))^AF17)+AG17)*VLOOKUP($Q$2,$Z$14:$AA$20,2),1) -> 1 | U17: =IF($Q$2=3,(AD17/(1+(AE17/(P$2-40))^AF17)+AG17)*VLOOKUP($Q$2,$Z$14:$AA$20,2),1) -> 1 | V17: =IF($Q$2=4,(AD17/(1+(AE17/(P$2-40))^AF17)+AG17)*VLOOKUP($Q$2,$Z$14:$AA$20,2),1) -> 1.27798282 | W17: =IF($Q$2=5,(AD17/(1+(AE17/(P$2-40))^AF17)+AG17)*VLOOKUP($Q$2,$Z$14:$AA$20,2),1) -> 1 | X17: =IF($Q$2=6,(AD17/(1+(AE17/(P$2-40))^AF17)+AG17)*VLOOKUP($Q$2,$Z$14:$AA$20,2),1) -> 1 | Y17: =IF($Q$2=7,(AD17/(1+(AE17/(P$2-40))^AF17)+AG17)*VLOOKUP($Q$2,$Z$14:$AA$20,2),1) -> 1 | Z17: 4 | AA17: ='Koeffizientenübersicht NB'!$I$50 -> 1.1353 | AC17: BA2 | AD17: ='Koeffizientenübersicht NB'!B51 -> 0.387919104 | AE17: ='Koeffizientenübersicht NB'!C51 -> -35.5 | AF17: ='Koeffizientenübersicht NB'!D51 -> 4 | AG17: ='Koeffizientenübersicht NB'!E51 -> 0.905481543 | AJ17: BD4 | AM17: =VLOOKUP($O$2,$AO$2:$DA$25,17,FALSE) ->  | AO17: ='Koeffizientenübersicht BDEW'!T40 -> 4 | AP17: =Kundenwerte!C17 -> 0 | AQ17: =Kundenwerte!D17 -> 0 | AR17: =Kundenwerte!E17 -> 0 | AS17: =Kundenwerte!F17 -> 0 | AT17: =Kundenwerte!G17 -> 0 | AU17: =Kundenwerte!H17 -> 0 | AV17: =Kundenwerte!I17 -> 0 | AW17: =Kundenwerte!J17 -> 0 | AX17: =Kundenwerte!K17 -> 0 | AY17: =Kundenwerte!L17 -> 0 | AZ17: =Kundenwerte!M17 -> 0 | BA17: =Kundenwerte!N17 -> 0 | BB17: =Kundenwerte!O17 -> 0 | BC17: =Kundenwerte!P17 -> 0 | BD17: =Kundenwerte!Q17 -> 0 | BE17: =Kundenwerte!R17 -> 0 | BF17: =Kundenwerte!S17 -> 0 | BG17: =Kundenwerte!T17 -> 0 | BH17: =Kundenwerte!U17 -> 0 | BI17: =Kundenwerte!V17 -> 0 | BJ17: =Kundenwerte!W17 -> 0 | BK17: =Kundenwerte!X17 -> 0 | BL17: =Kundenwerte!Y17 -> 0 | BM17: =Kundenwerte!Z17 -> 0 | BN17: =Kundenwerte!AA17 -> 0 | BO17: =Kundenwerte!AB17 -> 0 | BP17: =Kundenwerte!AC17 -> 0 | BQ17: =Kundenwerte!AD17 -> 0 | BR17: =Kundenwerte!AE17 -> 0 | BS17: =Kundenwerte!AF17 -> 0 | BT17: =Kundenwerte!AG17 -> 0 | BU17: =Kundenwerte!AH17 -> 0 | BV17: =Kundenwerte!AI17 -> 0 | BW17: =Kundenwerte!AJ17 -> 0 | BX17: =Kundenwerte!AK17 -> 0 | BY17: =Kundenwerte!AL17 -> 0 | BZ17: =Kundenwerte!AM17 -> 0 | CA17: =Kundenwerte!AN17 -> 0 | CB17: =Kundenwerte!AO17 -> 0 | CC17: =Kundenwerte!AP17 -> 0 | CD17: =Kundenwerte!AQ17 -> 0 | CE17: =Kundenwerte!AR17 -> 0 | CF17: =Kundenwerte!AS17 -> 0 | CG17: =Kundenwerte!AT17 -> 0 | CH17: =Kundenwerte!AU17 -> 0 | CI17: =Kundenwerte!AV17 -> 0 | CJ17: =Kundenwerte!AW17 -> 0 | CK17: =Kundenwerte!AX17 -> 0 | CL17: =Kundenwerte!AY17 -> 0 | CM17: =Kundenwerte!AZ17 -> 0 | CN17: =Kundenwerte!BA17 -> 0 | CO17: =Kundenwerte!BB17 -> 0 | CP17: =Kundenwerte!BC17 -> 0 | CQ17: =Kundenwerte!BD17 -> 0 | CR17: =Kundenwerte!BE17 -> 0 | CS17: =Kundenwerte!BF17 -> 0 | CT17: =Kundenwerte!BG17 -> 0 | CU17: =Kundenwerte!BH17 -> 0 | CV17: =Kundenwerte!BI17 -> 0 | CW17: =Kundenwerte!BJ17 -> 0 | CX17: =Kundenwerte!BK17 -> 0 | CY17: =Kundenwerte!BL17 -> 0 | CZ17: =Kundenwerte!BM17 -> 0 | DA17: =Kundenwerte!BN17 -> 0 | DB17: 0
A18: =Tageswerte!A18 -> 00:00:00 | B18: =Tageswerte!I18 -> 0 | D18: =IF(A18="","",Feiertage!B18) -> 1 | R18: =AC18 -> BA3 | S18: =IF($Q$2=1,(AD18/(1+(AE18/(P$2-40))^AF18)+AG18)*VLOOKUP($Q$2,$Z$14:$AA$20,2),1) -> 1 | T18: =IF($Q$2=2,(AD18/(1+(AE18/(P$2-40))^AF18)+AG18)*VLOOKUP($Q$2,$Z$14:$AA$20,2),1) -> 1 | U18: =IF($Q$2=3,(AD18/(1+(AE18/(P$2-40))^AF18)+AG18)*VLOOKUP($Q$2,$Z$14:$AA$20,2),1) -> 1 | V18: =IF($Q$2=4,(AD18/(1+(AE18/(P$2-40))^AF18)+AG18)*VLOOKUP($Q$2,$Z$14:$AA$20,2),1) -> 1.383454315 | W18: =IF($Q$2=5,(AD18/(1+(AE18/(P$2-40))^AF18)+AG18)*VLOOKUP($Q$2,$Z$14:$AA$20,2),1) -> 1 | X18: =IF($Q$2=6,(AD18/(1+(AE18/(P$2-40))^AF18)+AG18)*VLOOKUP($Q$2,$Z$14:$AA$20,2),1) -> 1 | Y18: =IF($Q$2=7,(AD18/(1+(AE18/(P$2-40))^AF18)+AG18)*VLOOKUP($Q$2,$Z$14:$AA$20,2),1) -> 1 | Z18: 5 | AA18: ='Koeffizientenübersicht NB'!$J$50 -> 1.1402 | AC18: BA3 | AD18: ='Koeffizientenübersicht NB'!B52 -> 0.626196216 | AE18: ='Koeffizientenübersicht NB'!C52 -> -33 | AF18: ='Koeffizientenübersicht NB'!D52 -> 5.72123025 | AG18: ='Koeffizientenübersicht NB'!E52 -> 0.78556546 | AJ18: BD5 | AM18: =VLOOKUP($O$2,$AO$2:$DA$25,18,FALSE) ->  | AO18: ='Koeffizientenübersicht BDEW'!T41 -> 5 | AP18: =Kundenwerte!C18 -> 0 | AQ18: =Kundenwerte!D18 -> 0 | AR18: =Kundenwerte!E18 -> 0 | AS18: =Kundenwerte!F18 -> 0 | AT18: =Kundenwerte!G18 -> 0 | AU18: =Kundenwerte!H18 -> 0 | AV18: =Kundenwerte!I18 -> 0 | AW18: =Kundenwerte!J18 -> 0 | AX18: =Kundenwerte!K18 -> 0 | AY18: =Kundenwerte!L18 -> 0 | AZ18: =Kundenwerte!M18 -> 0 | BA18: =Kundenwerte!N18 -> 0 | BB18: =Kundenwerte!O18 -> 0 | BC18: =Kundenwerte!P18 -> 0 | BD18: =Kundenwerte!Q18 -> 0 | BE18: =Kundenwerte!R18 -> 0 | BF18: =Kundenwerte!S18 -> 0 | BG18: =Kundenwerte!T18 -> 0 | BH18: =Kundenwerte!U18 -> 0 | BI18: =Kundenwerte!V18 -> 0 | BJ18: =Kundenwerte!W18 -> 0 | BK18: =Kundenwerte!X18 -> 0 | BL18: =Kundenwerte!Y18 -> 0 | BM18: =Kundenwerte!Z18 -> 0 | BN18: =Kundenwerte!AA18 -> 0 | BO18: =Kundenwerte!AB18 -> 0 | BP18: =Kundenwerte!AC18 -> 0 | BQ18: =Kundenwerte!AD18 -> 0 | BR18: =Kundenwerte!AE18 -> 0 | BS18: =Kundenwerte!AF18 -> 0 | BT18: =Kundenwerte!AG18 -> 0 | BU18: =Kundenwerte!AH18 -> 0 | BV18: =Kundenwerte!AI18 -> 0 | BW18: =Kundenwerte!AJ18 -> 0 | BX18: =Kundenwerte!AK18 -> 0 | BY18: =Kundenwerte!AL18 -> 0 | BZ18: =Kundenwerte!AM18 -> 0 | CA18: =Kundenwerte!AN18 -> 0 | CB18: =Kundenwerte!AO18 -> 0 | CC18: =Kundenwerte!AP18 -> 0 | CD18: =Kundenwerte!AQ18 -> 0 | CE18: =Kundenwerte!AR18 -> 0 | CF18: =Kundenwerte!AS18 -> 0 | CG18: =Kundenwerte!AT18 -> 0 | CH18: =Kundenwerte!AU18 -> 0 | CI18: =Kundenwerte!AV18 -> 0 | CJ18: =Kundenwerte!AW18 -> 0 | CK18: =Kundenwerte!AX18 -> 0 | CL18: =Kundenwerte!AY18 -> 0 | CM18: =Kundenwerte!AZ18 -> 0 | CN18: =Kundenwerte!BA18 -> 0 | CO18: =Kundenwerte!BB18 -> 0 | CP18: =Kundenwerte!BC18 -> 0 | CQ18: =Kundenwerte!BD18 -> 0 | CR18: =Kundenwerte!BE18 -> 0 | CS18: =Kundenwerte!BF18 -> 0 | CT18: =Kundenwerte!BG18 -> 0 | CU18: =Kundenwerte!BH18 -> 0 | CV18: =Kundenwerte!BI18 -> 0 | CW18: =Kundenwerte!BJ18 -> 0 | CX18: =Kundenwerte!BK18 -> 0 | CY18: =Kundenwerte!BL18 -> 0 | CZ18: =Kundenwerte!BM18 -> 0 | DA18: =Kundenwerte!BN18 -> 0 | DB18: 0
A19: =Tageswerte!A19 -> 00:00:00 | B19: =Tageswerte!I19 -> 0 | D19: =IF(A19="","",Feiertage!B19) -> 2 | R19: =AC19 -> BA4 | S19: =IF($Q$2=1,(AD19/(1+(AE19/(P$2-40))^AF19)+AG19)*VLOOKUP($Q$2,$Z$14:$AA$20,2),1) -> 1 | T19: =IF($Q$2=2,(AD19/(1+(AE19/(P$2-40))^AF19)+AG19)*VLOOKUP($Q$2,$Z$14:$AA$20,2),1) -> 1 | U19: =IF($Q$2=3,(AD19/(1+(AE19/(P$2-40))^AF19)+AG19)*VLOOKUP($Q$2,$Z$14:$AA$20,2),1) -> 1 | V19: =IF($Q$2=4,(AD19/(1+(AE19/(P$2-40))^AF19)+AG19)*VLOOKUP($Q$2,$Z$14:$AA$20,2),1) -> 1.473291657 | W19: =IF($Q$2=5,(AD19/(1+(AE19/(P$2-40))^AF19)+AG19)*VLOOKUP($Q$2,$Z$14:$AA$20,2),1) -> 1 | X19: =IF($Q$2=6,(AD19/(1+(AE19/(P$2-40))^AF19)+AG19)*VLOOKUP($Q$2,$Z$14:$AA$20,2),1) -> 1 | Y19: =IF($Q$2=7,(AD19/(1+(AE19/(P$2-40))^AF19)+AG19)*VLOOKUP($Q$2,$Z$14:$AA$20,2),1) -> 1 | Z19: 6 | AA19: ='Koeffizientenübersicht NB'!$K$50 -> 0.4852 | AC19: BA4 | AD19: ='Koeffizientenübersicht NB'!B53 -> 0.931588901 | AE19: ='Koeffizientenübersicht NB'!C53 -> -33.35 | AF19: ='Koeffizientenübersicht NB'!D53 -> 5.72123025 | AG19: ='Koeffizientenübersicht NB'!E53 -> 0.665649377 | AJ19: BH1 | AM19: =VLOOKUP($O$2,$AO$2:$DA$25,19,FALSE) ->  | AN19: =AM19*S25*T25*U25*V25*W25*X25*Y25 ->  | AO19: ='Koeffizientenübersicht BDEW'!T42 -> 6 | AP19: =Kundenwerte!C19 -> 0 | AQ19: =Kundenwerte!D19 -> 0 | AR19: =Kundenwerte!E19 -> 0 | AS19: =Kundenwerte!F19 -> 0 | AT19: =Kundenwerte!G19 -> 0 | AU19: =Kundenwerte!H19 -> 0 | AV19: =Kundenwerte!I19 -> 0 | AW19: =Kundenwerte!J19 -> 0 | AX19: =Kundenwerte!K19 -> 0 | AY19: =Kundenwerte!L19 -> 0 | AZ19: =Kundenwerte!M19 -> 0 | BA19: =Kundenwerte!N19 -> 0 | BB19: =Kundenwerte!O19 -> 0 | BC19: =Kundenwerte!P19 -> 0 | BD19: =Kundenwerte!Q19 -> 0 | BE19: =Kundenwerte!R19 -> 0 | BF19: =Kundenwerte!S19 -> 0 | BG19: =Kundenwerte!T19 -> 0 | BH19: =Kundenwerte!U19 -> 0 | BI19: =Kundenwerte!V19 -> 0 | BJ19: =Kundenwerte!W19 -> 0 | BK19: =Kundenwerte!X19 -> 0 | BL19: =Kundenwerte!Y19 -> 0 | BM19: =Kundenwerte!Z19 -> 0 | BN19: =Kundenwerte!AA19 -> 0 | BO19: =Kundenwerte!AB19 -> 0 | BP19: =Kundenwerte!AC19 -> 0 | BQ19: =Kundenwerte!AD19 -> 0 | BR19: =Kundenwerte!AE19 -> 0 | BS19: =Kundenwerte!AF19 -> 0 | BT19: =Kundenwerte!AG19 -> 0 | BU19: =Kundenwerte!AH19 -> 0 | BV19: =Kundenwerte!AI19 -> 0 | BW19: =Kundenwerte!AJ19 -> 0 | BX19: =Kundenwerte!AK19 -> 0 | BY19: =Kundenwerte!AL19 -> 0 | BZ19: =Kundenwerte!AM19 -> 0 | CA19: =Kundenwerte!AN19 -> 0 | CB19: =Kundenwerte!AO19 -> 0 | CC19: =Kundenwerte!AP19 -> 0 | CD19: =Kundenwerte!AQ19 -> 0 | CE19: =Kundenwerte!AR19 -> 0 | CF19: =Kundenwerte!AS19 -> 0 | CG19: =Kundenwerte!AT19 -> 0 | CH19: =Kundenwerte!AU19 -> 0 | CI19: =Kundenwerte!AV19 -> 0 | CJ19: =Kundenwerte!AW19 -> 0 | CK19: =Kundenwerte!AX19 -> 0 | CL19: =Kundenwerte!AY19 -> 0 | CM19: =Kundenwerte!AZ19 -> 0 | CN19: =Kundenwerte!BA19 -> 0 | CO19: =Kundenwerte!BB19 -> 0 | CP19: =Kundenwerte!BC19 -> 0 | CQ19: =Kundenwerte!BD19 -> 0 | CR19: =Kundenwerte!BE19 -> 0 | CS19: =Kundenwerte!BF19 -> 0 | CT19: =Kundenwerte!BG19 -> 0 | CU19: =Kundenwerte!BH19 -> 0 | CV19: =Kundenwerte!BI19 -> 0 | CW19: =Kundenwerte!BJ19 -> 0 | CX19: =Kundenwerte!BK19 -> 0 | CY19: =Kundenwerte!BL19 -> 0 | CZ19: =Kundenwerte!BM19 -> 0 | DA19: =Kundenwerte!BN19 -> 0 | DB19: 0
A20: =Tageswerte!A20 -> 00:00:00 | B20: =Tageswerte!I20 -> 0 | D20: =IF(A20="","",Feiertage!B20) -> 3 | R20: =AC20 -> BA5 | S20: =IF($Q$2=1,(AD20/(1+(AE20/(P$2-40))^AF20)+AG20)*VLOOKUP($Q$2,$Z$14:$AA$20,2),1) -> 1 | T20: =IF($Q$2=2,(AD20/(1+(AE20/(P$2-40))^AF20)+AG20)*VLOOKUP($Q$2,$Z$14:$AA$20,2),1) -> 1 | U20: =IF($Q$2=3,(AD20/(1+(AE20/(P$2-40))^AF20)+AG20)*VLOOKUP($Q$2,$Z$14:$AA$20,2),1) -> 1 | V20: =IF($Q$2=4,(AD20/(1+(AE20/(P$2-40))^AF20)+AG20)*VLOOKUP($Q$2,$Z$14:$AA$20,2),1) -> 1.539595803 | W20: =IF($Q$2=5,(AD20/(1+(AE20/(P$2-40))^AF20)+AG20)*VLOOKUP($Q$2,$Z$14:$AA$20,2),1) -> 1 | X20: =IF($Q$2=6,(AD20/(1+(AE20/(P$2-40))^AF20)+AG20)*VLOOKUP($Q$2,$Z$14:$AA$20,2),1) -> 1 | Y20: =IF($Q$2=7,(AD20/(1+(AE20/(P$2-40))^AF20)+AG20)*VLOOKUP($Q$2,$Z$14:$AA$20,2),1) -> 1 | Z20: 7 | AA20: ='Koeffizientenübersicht NB'!$L$50 -> 0.9565 | AC20: BA5 | AD20: ='Koeffizientenübersicht NB'!B54 -> 1.27795673 | AE20: ='Koeffizientenübersicht NB'!C54 -> -34.517392 | AF20: ='Koeffizientenübersicht NB'!D54 -> 5.72123025 | AG20: ='Koeffizientenübersicht NB'!E54 -> 0.545733294 | AJ20: BH2 | AM20: =VLOOKUP($O$2,$AO$2:$DA$25,20,FALSE) ->  | AN20: =AM20*S26*T26*U26*V26*W26*X26*Y26 ->  | AO20: ='Koeffizientenübersicht BDEW'!T43 -> 7 | AP20: =Kundenwerte!C20 -> 0 | AQ20: =Kundenwerte!D20 -> 0 | AR20: =Kundenwerte!E20 -> 0 | AS20: =Kundenwerte!F20 -> 0 | AT20: =Kundenwerte!G20 -> 0 | AU20: =Kundenwerte!H20 -> 0 | AV20: =Kundenwerte!I20 -> 0 | AW20: =Kundenwerte!J20 -> 0 | AX20: =Kundenwerte!K20 -> 0 | AY20: =Kundenwerte!L20 -> 0 | AZ20: =Kundenwerte!M20 -> 0 | BA20: =Kundenwerte!N20 -> 0 | BB20: =Kundenwerte!O20 -> 0 | BC20: =Kundenwerte!P20 -> 0 | BD20: =Kundenwerte!Q20 -> 0 | BE20: =Kundenwerte!R20 -> 0 | BF20: =Kundenwerte!S20 -> 0 | BG20: =Kundenwerte!T20 -> 0 | BH20: =Kundenwerte!U20 -> 0 | BI20: =Kundenwerte!V20 -> 0 | BJ20: =Kundenwerte!W20 -> 0 | BK20: =Kundenwerte!X20 -> 0 | BL20: =Kundenwerte!Y20 -> 0 | BM20: =Kundenwerte!Z20 -> 0 | BN20: =Kundenwerte!AA20 -> 0 | BO20: =Kundenwerte!AB20 -> 0 | BP20: =Kundenwerte!AC20 -> 0 | BQ20: =Kundenwerte!AD20 -> 0 | BR20: =Kundenwerte!AE20 -> 0 | BS20: =Kundenwerte!AF20 -> 0 | BT20: =Kundenwerte!AG20 -> 0 | BU20: =Kundenwerte!AH20 -> 0 | BV20: =Kundenwerte!AI20 -> 0 | BW20: =Kundenwerte!AJ20 -> 0 | BX20: =Kundenwerte!AK20 -> 0 | BY20: =Kundenwerte!AL20 -> 0 | BZ20: =Kundenwerte!AM20 -> 0 | CA20: =Kundenwerte!AN20 -> 0 | CB20: =Kundenwerte!AO20 -> 0 | CC20: =Kundenwerte!AP20 -> 0 | CD20: =Kundenwerte!AQ20 -> 0 | CE20: =Kundenwerte!AR20 -> 0 | CF20: =Kundenwerte!AS20 -> 0 | CG20: =Kundenwerte!AT20 -> 0 | CH20: =Kundenwerte!AU20 -> 0 | CI20: =Kundenwerte!AV20 -> 0 | CJ20: =Kundenwerte!AW20 -> 0 | CK20: =Kundenwerte!AX20 -> 0 | CL20: =Kundenwerte!AY20 -> 0 | CM20: =Kundenwerte!AZ20 -> 0 | CN20: =Kundenwerte!BA20 -> 0 | CO20: =Kundenwerte!BB20 -> 0 | CP20: =Kundenwerte!BC20 -> 0 | CQ20: =Kundenwerte!BD20 -> 0 | CR20: =Kundenwerte!BE20 -> 0 | CS20: =Kundenwerte!BF20 -> 0 | CT20: =Kundenwerte!BG20 -> 0 | CU20: =Kundenwerte!BH20 -> 0 | CV20: =Kundenwerte!BI20 -> 0 | CW20: =Kundenwerte!BJ20 -> 0 | CX20: =Kundenwerte!BK20 -> 0 | CY20: =Kundenwerte!BL20 -> 0 | CZ20: =Kundenwerte!BM20 -> 0 | DA20: =Kundenwerte!BN20 -> 0 | DB20: 0
A21: =Tageswerte!A21 -> 00:00:00 | B21: =Tageswerte!I21 -> 0 | D21: =IF(A21="","",Feiertage!B21) -> 4 | AJ21: BH3 | AM21: =VLOOKUP($O$2,$AO$2:$DA$25,21,FALSE) ->  | AO21: ='Koeffizientenübersicht BDEW'!T44 -> 8 | AP21: =Kundenwerte!C21 -> 0 | AQ21: =Kundenwerte!D21 -> 0 | AR21: =Kundenwerte!E21 -> 0 | AS21: =Kundenwerte!F21 -> 0 | AT21: =Kundenwerte!G21 -> 0 | AU21: =Kundenwerte!H21 -> 0 | AV21: =Kundenwerte!I21 -> 0 | AW21: =Kundenwerte!J21 -> 0 | AX21: =Kundenwerte!K21 -> 0 | AY21: =Kundenwerte!L21 -> 0 | AZ21: =Kundenwerte!M21 -> 0 | BA21: =Kundenwerte!N21 -> 0 | BB21: =Kundenwerte!O21 -> 0 | BC21: =Kundenwerte!P21 -> 0 | BD21: =Kundenwerte!Q21 -> 0 | BE21: =Kundenwerte!R21 -> 0 | BF21: =Kundenwerte!S21 -> 0 | BG21: =Kundenwerte!T21 -> 0 | BH21: =Kundenwerte!U21 -> 0 | BI21: =Kundenwerte!V21 -> 0 | BJ21: =Kundenwerte!W21 -> 0 | BK21: =Kundenwerte!X21 -> 0 | BL21: =Kundenwerte!Y21 -> 0 | BM21: =Kundenwerte!Z21 -> 0 | BN21: =Kundenwerte!AA21 -> 0 | BO21: =Kundenwerte!AB21 -> 0 | BP21: =Kundenwerte!AC21 -> 0 | BQ21: =Kundenwerte!AD21 -> 0 | BR21: =Kundenwerte!AE21 -> 0 | BS21: =Kundenwerte!AF21 -> 0 | BT21: =Kundenwerte!AG21 -> 0 | BU21: =Kundenwerte!AH21 -> 0 | BV21: =Kundenwerte!AI21 -> 0 | BW21: =Kundenwerte!AJ21 -> 0 | BX21: =Kundenwerte!AK21 -> 0 | BY21: =Kundenwerte!AL21 -> 0 | BZ21: =Kundenwerte!AM21 -> 0 | CA21: =Kundenwerte!AN21 -> 0 | CB21: =Kundenwerte!AO21 -> 0 | CC21: =Kundenwerte!AP21 -> 0 | CD21: =Kundenwerte!AQ21 -> 0 | CE21: =Kundenwerte!AR21 -> 0 | CF21: =Kundenwerte!AS21 -> 0 | CG21: =Kundenwerte!AT21 -> 0 | CH21: =Kundenwerte!AU21 -> 0 | CI21: =Kundenwerte!AV21 -> 0 | CJ21: =Kundenwerte!AW21 -> 0 | CK21: =Kundenwerte!AX21 -> 0 | CL21: =Kundenwerte!AY21 -> 0 | CM21: =Kundenwerte!AZ21 -> 0 | CN21: =Kundenwerte!BA21 -> 0 | CO21: =Kundenwerte!BB21 -> 0 | CP21: =Kundenwerte!BC21 -> 0 | CQ21: =Kundenwerte!BD21 -> 0 | CR21: =Kundenwerte!BE21 -> 0 | CS21: =Kundenwerte!BF21 -> 0 | CT21: =Kundenwerte!BG21 -> 0 | CU21: =Kundenwerte!BH21 -> 0 | CV21: =Kundenwerte!BI21 -> 0 | CW21: =Kundenwerte!BJ21 -> 0 | CX21: =Kundenwerte!BK21 -> 0 | CY21: =Kundenwerte!BL21 -> 0 | CZ21: =Kundenwerte!BM21 -> 0 | DA21: =Kundenwerte!BN21 -> 0 | DB21: 0
A22: =Tageswerte!A22 -> 00:00:00 | B22: =Tageswerte!I22 -> 0 | D22: =IF(A22="","",Feiertage!B22) -> 5 | R22: Beherbergung | Z22: Tagesfaktoren | AJ22: BH4 | AM22: =VLOOKUP($O$2,$AO$2:$DA$25,22,FALSE) ->  | AO22: ='Koeffizientenübersicht BDEW'!T45 -> 9 | AP22: =Kundenwerte!C22 -> 0 | AQ22: =Kundenwerte!D22 -> 0 | AR22: =Kundenwerte!E22 -> 0 | AS22: =Kundenwerte!F22 -> 0 | AT22: =Kundenwerte!G22 -> 0 | AU22: =Kundenwerte!H22 -> 0 | AV22: =Kundenwerte!I22 -> 0 | AW22: =Kundenwerte!J22 -> 0 | AX22: =Kundenwerte!K22 -> 0 | AY22: =Kundenwerte!L22 -> 0 | AZ22: =Kundenwerte!M22 -> 0 | BA22: =Kundenwerte!N22 -> 0 | BB22: =Kundenwerte!O22 -> 0 | BC22: =Kundenwerte!P22 -> 0 | BD22: =Kundenwerte!Q22 -> 0 | BE22: =Kundenwerte!R22 -> 0 | BF22: =Kundenwerte!S22 -> 0 | BG22: =Kundenwerte!T22 -> 0 | BH22: =Kundenwerte!U22 -> 0 | BI22: =Kundenwerte!V22 -> 0 | BJ22: =Kundenwerte!W22 -> 0 | BK22: =Kundenwerte!X22 -> 0 | BL22: =Kundenwerte!Y22 -> 0 | BM22: =Kundenwerte!Z22 -> 0 | BN22: =Kundenwerte!AA22 -> 0 | BO22: =Kundenwerte!AB22 -> 0 | BP22: =Kundenwerte!AC22 -> 0 | BQ22: =Kundenwerte!AD22 -> 0 | BR22: =Kundenwerte!AE22 -> 0 | BS22: =Kundenwerte!AF22 -> 0 | BT22: =Kundenwerte!AG22 -> 0 | BU22: =Kundenwerte!AH22 -> 0 | BV22: =Kundenwerte!AI22 -> 0 | BW22: =Kundenwerte!AJ22 -> 0 | BX22: =Kundenwerte!AK22 -> 0 | BY22: =Kundenwerte!AL22 -> 0 | BZ22: =Kundenwerte!AM22 -> 0 | CA22: =Kundenwerte!AN22 -> 0 | CB22: =Kundenwerte!AO22 -> 0 | CC22: =Kundenwerte!AP22 -> 0 | CD22: =Kundenwerte!AQ22 -> 0 | CE22: =Kundenwerte!AR22 -> 0 | CF22: =Kundenwerte!AS22 -> 0 | CG22: =Kundenwerte!AT22 -> 0 | CH22: =Kundenwerte!AU22 -> 0 | CI22: =Kundenwerte!AV22 -> 0 | CJ22: =Kundenwerte!AW22 -> 0 | CK22: =Kundenwerte!AX22 -> 0 | CL22: =Kundenwerte!AY22 -> 0 | CM22: =Kundenwerte!AZ22 -> 0 | CN22: =Kundenwerte!BA22 -> 0 | CO22: =Kundenwerte!BB22 -> 0 | CP22: =Kundenwerte!BC22 -> 0 | CQ22: =Kundenwerte!BD22 -> 0 | CR22: =Kundenwerte!BE22 -> 0 | CS22: =Kundenwerte!BF22 -> 0 | CT22: =Kundenwerte!BG22 -> 0 | CU22: =Kundenwerte!BH22 -> 0 | CV22: =Kundenwerte!BI22 -> 0 | CW22: =Kundenwerte!BJ22 -> 0 | CX22: =Kundenwerte!BK22 -> 0 | CY22: =Kundenwerte!BL22 -> 0 | CZ22: =Kundenwerte!BM22 -> 0 | DA22: =Kundenwerte!BN22 -> 0 | DB22: 0
A23: =Tageswerte!A23 -> 00:00:00 | B23: =Tageswerte!I23 -> 0 | D23: =IF(A23="","",Feiertage!B23) -> 6 | Z23: 1 | AA23: ='Koeffizientenübersicht NB'!$F$35 -> 1.0848 | AJ23: BH5 | AM23: =VLOOKUP($O$2,$AO$2:$DA$25,23,FALSE) ->  | AO23: ='Koeffizientenübersicht BDEW'!T46 -> 10 | AP23: =Kundenwerte!C23 -> 0 | AQ23: =Kundenwerte!D23 -> 0 | AR23: =Kundenwerte!E23 -> 0 | AS23: =Kundenwerte!F23 -> 0 | AT23: =Kundenwerte!G23 -> 0 | AU23: =Kundenwerte!H23 -> 0 | AV23: =Kundenwerte!I23 -> 0 | AW23: =Kundenwerte!J23 -> 0 | AX23: =Kundenwerte!K23 -> 0 | AY23: =Kundenwerte!L23 -> 0 | AZ23: =Kundenwerte!M23 -> 0 | BA23: =Kundenwerte!N23 -> 0 | BB23: =Kundenwerte!O23 -> 0 | BC23: =Kundenwerte!P23 -> 0 | BD23: =Kundenwerte!Q23 -> 0 | BE23: =Kundenwerte!R23 -> 0 | BF23: =Kundenwerte!S23 -> 0 | BG23: =Kundenwerte!T23 -> 0 | BH23: =Kundenwerte!U23 -> 0 | BI23: =Kundenwerte!V23 -> 0 | BJ23: =Kundenwerte!W23 -> 0 | BK23: =Kundenwerte!X23 -> 0 | BL23: =Kundenwerte!Y23 -> 0 | BM23: =Kundenwerte!Z23 -> 0 | BN23: =Kundenwerte!AA23 -> 0 | BO23: =Kundenwerte!AB23 -> 0 | BP23: =Kundenwerte!AC23 -> 0 | BQ23: =Kundenwerte!AD23 -> 0 | BR23: =Kundenwerte!AE23 -> 0 | BS23: =Kundenwerte!AF23 -> 0 | BT23: =Kundenwerte!AG23 -> 0 | BU23: =Kundenwerte!AH23 -> 0 | BV23: =Kundenwerte!AI23 -> 0 | BW23: =Kundenwerte!AJ23 -> 0 | BX23: =Kundenwerte!AK23 -> 0 | BY23: =Kundenwerte!AL23 -> 0 | BZ23: =Kundenwerte!AM23 -> 0 | CA23: =Kundenwerte!AN23 -> 0 | CB23: =Kundenwerte!AO23 -> 0 | CC23: =Kundenwerte!AP23 -> 0 | CD23: =Kundenwerte!AQ23 -> 0 | CE23: =Kundenwerte!AR23 -> 0 | CF23: =Kundenwerte!AS23 -> 0 | CG23: =Kundenwerte!AT23 -> 0 | CH23: =Kundenwerte!AU23 -> 0 | CI23: =Kundenwerte!AV23 -> 0 | CJ23: =Kundenwerte!AW23 -> 0 | CK23: =Kundenwerte!AX23 -> 0 | CL23: =Kundenwerte!AY23 -> 0 | CM23: =Kundenwerte!AZ23 -> 0 | CN23: =Kundenwerte!BA23 -> 0 | CO23: =Kundenwerte!BB23 -> 0 | CP23: =Kundenwerte!BC23 -> 0 | CQ23: =Kundenwerte!BD23 -> 0 | CR23: =Kundenwerte!BE23 -> 0 | CS23: =Kundenwerte!BF23 -> 0 | CT23: =Kundenwerte!BG23 -> 0 | CU23: =Kundenwerte!BH23 -> 0 | CV23: =Kundenwerte!BI23 -> 0 | CW23: =Kundenwerte!BJ23 -> 0 | CX23: =Kundenwerte!BK23 -> 0 | CY23: =Kundenwerte!BL23 -> 0 | CZ23: =Kundenwerte!BM23 -> 0 | DA23: =Kundenwerte!BN23 -> 0 | DB23: 0
A24: =Tageswerte!A24 -> 00:00:00 | B24: =Tageswerte!I24 -> 0 | D24: =IF(A24="","",Feiertage!B24) -> 7 | S24: Montag | T24: Dienstag | U24: Mittwoch | V24: Donnerstag | W24: Freitag | X24: Samstag | Y24: Sonntag | Z24: 2 | AA24: ='Koeffizientenübersicht NB'!$G$35 -> 1.1211 | AJ24: GA1 | AM24: =VLOOKUP($O$2,$AO$2:$DA$25,24,FALSE) ->  | AN24: =AM24*S79*T79*U79*V79*W79*X79*Y79 ->  | AO24: ='Koeffizientenübersicht BDEW'!T47 -> 11 | AP24: =Kundenwerte!C24 -> 0 | AQ24: =Kundenwerte!D24 -> 0 | AR24: =Kundenwerte!E24 -> 0 | AS24: =Kundenwerte!F24 -> 0 | AT24: =Kundenwerte!G24 -> 0 | AU24: =Kundenwerte!H24 -> 0 | AV24: =Kundenwerte!I24 -> 0 | AW24: =Kundenwerte!J24 -> 0 | AX24: =Kundenwerte!K24 -> 0 | AY24: =Kundenwerte!L24 -> 0 | AZ24: =Kundenwerte!M24 -> 0 | BA24: =Kundenwerte!N24 -> 0 | BB24: =Kundenwerte!O24 -> 0 | BC24: =Kundenwerte!P24 -> 0 | BD24: =Kundenwerte!Q24 -> 0 | BE24: =Kundenwerte!R24 -> 0 | BF24: =Kundenwerte!S24 -> 0 | BG24: =Kundenwerte!T24 -> 0 | BH24: =Kundenwerte!U24 -> 0 | BI24: =Kundenwerte!V24 -> 0 | BJ24: =Kundenwerte!W24 -> 0 | BK24: =Kundenwerte!X24 -> 0 | BL24: =Kundenwerte!Y24 -> 0 | BM24: =Kundenwerte!Z24 -> 0 | BN24: =Kundenwerte!AA24 -> 0 | BO24: =Kundenwerte!AB24 -> 0 | BP24: =Kundenwerte!AC24 -> 0 | BQ24: =Kundenwerte!AD24 -> 0 | BR24: =Kundenwerte!AE24 -> 0 | BS24: =Kundenwerte!AF24 -> 0 | BT24: =Kundenwerte!AG24 -> 0 | BU24: =Kundenwerte!AH24 -> 0 | BV24: =Kundenwerte!AI24 -> 0 | BW24: =Kundenwerte!AJ24 -> 0 | BX24: =Kundenwerte!AK24 -> 0 | BY24: =Kundenwerte!AL24 -> 0 | BZ24: =Kundenwerte!AM24 -> 0 | CA24: =Kundenwerte!AN24 -> 0 | CB24: =Kundenwerte!AO24 -> 0 | CC24: =Kundenwerte!AP24 -> 0 | CD24: =Kundenwerte!AQ24 -> 0 | CE24: =Kundenwerte!AR24 -> 0 | CF24: =Kundenwerte!AS24 -> 0 | CG24: =Kundenwerte!AT24 -> 0 | CH24: =Kundenwerte!AU24 -> 0 | CI24: =Kundenwerte!AV24 -> 0 | CJ24: =Kundenwerte!AW24 -> 0 | CK24: =Kundenwerte!AX24 -> 0 | CL24: =Kundenwerte!AY24 -> 0 | CM24: =Kundenwerte!AZ24 -> 0 | CN24: =Kundenwerte!BA24 -> 0 | CO24: =Kundenwerte!BB24 -> 0 | CP24: =Kundenwerte!BC24 -> 0 | CQ24: =Kundenwerte!BD24 -> 0 | CR24: =Kundenwerte!BE24 -> 0 | CS24: =Kundenwerte!BF24 -> 0 | CT24: =Kundenwerte!BG24 -> 0 | CU24: =Kundenwerte!BH24 -> 0 | CV24: =Kundenwerte!BI24 -> 0 | CW24: =Kundenwerte!BJ24 -> 0 | CX24: =Kundenwerte!BK24 -> 0 | CY24: =Kundenwerte!BL24 -> 0 | CZ24: =Kundenwerte!BM24 -> 0 | DA24: =Kundenwerte!BN24 -> 0 | DB24: 0
A25: =Tageswerte!A25 -> 00:00:00 | B25: =Tageswerte!I25 -> 0 | D25: =IF(A25="","",Feiertage!B25) -> 1 | R25: =AC25 -> BH1 | S25: =IF($Q$2=1,(AD25 / (1 + (AE25 / (P$2- 40)) ^ AF25) + AG25)*VLOOKUP($Q$2,$Z$23:$AA$29,2),1) -> 1 | T25: =IF($Q$2=2,(AD25 / (1 + (AE25 / (P$2- 40)) ^ AF25) + AG25)*VLOOKUP($Q$2,$Z$23:$AA$29,2),1) -> 1 | U25: =IF($Q$2=3,(AD25 / (1 + (AE25 / (P$2- 40)) ^ AF25) + AG25)*VLOOKUP($Q$2,$Z$23:$AA$29,2),1) -> 1 | V25: =IF($Q$2=4,(AD25 / (1 + (AE25 / (P$2- 40)) ^ AF25) + AG25)*VLOOKUP($Q$2,$Z$23:$AA$29,2),1) -> 1.555576937 | W25: =IF($Q$2=5,(AD25 / (1 + (AE25 / (P$2- 40)) ^ AF25) + AG25)*VLOOKUP($Q$2,$Z$23:$AA$29,2),1) -> 1 | X25: =IF($Q$2=6,(AD25 / (1 + (AE25 / (P$2- 40)) ^ AF25) + AG25)*VLOOKUP($Q$2,$Z$23:$AA$29,2),1) -> 1 | Y25: =IF($Q$2=7,(AD25 / (1 + (AE25 / (P$2- 40)) ^ AF25) + AG25)*VLOOKUP($Q$2,$Z$23:$AA$29,2),1) -> 1 | Z25: 3 | AA25: ='Koeffizientenübersicht NB'!$H$35 -> 1.0769 | AC25: BH1 | AD25: ='Koeffizientenübersicht NB'!B35 -> 1.477178569 | AE25: ='Koeffizientenübersicht NB'!C35 -> -35.08344471 | AF25: ='Koeffizientenübersicht NB'!D35 -> 5.412342465 | AG25: ='Koeffizientenübersicht NB'!E35 -> 0.474426408 | AJ25: GA2 | AM25: =VLOOKUP($O$2,$AO$2:$DA$25,25,FALSE) ->  | AN25: =AM25*S80*T80*U80*V80*W80*X80*Y80 ->  | AO25: ='Koeffizientenübersicht BDEW'!T48 -> 12 | AP25: =Kundenwerte!C25 -> 0 | AQ25: =Kundenwerte!D25 -> 0 | AR25: =Kundenwerte!E25 -> 0 | AS25: =Kundenwerte!F25 -> 0 | AT25: =Kundenwerte!G25 -> 0 | AU25: =Kundenwerte!H25 -> 0 | AV25: =Kundenwerte!I25 -> 0 | AW25: =Kundenwerte!J25 -> 0 | AX25: =Kundenwerte!K25 -> 0 | AY25: =Kundenwerte!L25 -> 0 | AZ25: =Kundenwerte!M25 -> 0 | BA25: =Kundenwerte!N25 -> 0 | BB25: =Kundenwerte!O25 -> 0 | BC25: =Kundenwerte!P25 -> 0 | BD25: =Kundenwerte!Q25 -> 0 | BE25: =Kundenwerte!R25 -> 0 | BF25: =Kundenwerte!S25 -> 0 | BG25: =Kundenwerte!T25 -> 0 | BH25: =Kundenwerte!U25 -> 0 | BI25: =Kundenwerte!V25 -> 0 | BJ25: =Kundenwerte!W25 -> 0 | BK25: =Kundenwerte!X25 -> 0 | BL25: =Kundenwerte!Y25 -> 0 | BM25: =Kundenwerte!Z25 -> 0 | BN25: =Kundenwerte!AA25 -> 0 | BO25: =Kundenwerte!AB25 -> 0 | BP25: =Kundenwerte!AC25 -> 0 | BQ25: =Kundenwerte!AD25 -> 0 | BR25: =Kundenwerte!AE25 -> 0 | BS25: =Kundenwerte!AF25 -> 0 | BT25: =Kundenwerte!AG25 -> 0 | BU25: =Kundenwerte!AH25 -> 0 | BV25: =Kundenwerte!AI25 -> 0 | BW25: =Kundenwerte!AJ25 -> 0 | BX25: =Kundenwerte!AK25 -> 0 | BY25: =Kundenwerte!AL25 -> 0 | BZ25: =Kundenwerte!AM25 -> 0 | CA25: =Kundenwerte!AN25 -> 0 | CB25: =Kundenwerte!AO25 -> 0 | CC25: =Kundenwerte!AP25 -> 0 | CD25: =Kundenwerte!AQ25 -> 0 | CE25: =Kundenwerte!AR25 -> 0 | CF25: =Kundenwerte!AS25 -> 0 | CG25: =Kundenwerte!AT25 -> 0 | CH25: =Kundenwerte!AU25 -> 0 | CI25: =Kundenwerte!AV25 -> 0 | CJ25: =Kundenwerte!AW25 -> 0 | CK25: =Kundenwerte!AX25 -> 0 | CL25: =Kundenwerte!AY25 -> 0 | CM25: =Kundenwerte!AZ25 -> 0 | CN25: =Kundenwerte!BA25 -> 0 | CO25: =Kundenwerte!BB25 -> 0 | CP25: =Kundenwerte!BC25 -> 0 | CQ25: =Kundenwerte!BD25 -> 0 | CR25: =Kundenwerte!BE25 -> 0 | CS25: =Kundenwerte!BF25 -> 0 | CT25: =Kundenwerte!BG25 -> 0 | CU25: =Kundenwerte!BH25 -> 0 | CV25: =Kundenwerte!BI25 -> 0 | CW25: =Kundenwerte!BJ25 -> 0 | CX25: =Kundenwerte!BK25 -> 0 | CY25: =Kundenwerte!BL25 -> 0 | CZ25: =Kundenwerte!BM25 -> 0 | DA25: =Kundenwerte!BN25 -> 0 | DB25: =SUM(AP25:DA25) -> 0
A26: =Tageswerte!A26 -> 00:00:00 | B26: =Tageswerte!I26 -> 0 | D26: =IF(A26="","",Feiertage!B26) -> 2 | R26: =AC26 -> BH2 | S26: =IF($Q$2=1,(AD26 / (1 + (AE26 / (P$2- 40)) ^ AF26) + AG26)*VLOOKUP($Q$2,$Z$23:$AA$29,2),1) -> 1 | T26: =IF($Q$2=2,(AD26 / (1 + (AE26 / (P$2- 40)) ^ AF26) + AG26)*VLOOKUP($Q$2,$Z$23:$AA$29,2),1) -> 1 | U26: =IF($Q$2=3,(AD26 / (1 + (AE26 / (P$2- 40)) ^ AF26) + AG26)*VLOOKUP($Q$2,$Z$23:$AA$29,2),1) -> 1 | V26: =IF($Q$2=4,(AD26 / (1 + (AE26 / (P$2- 40)) ^ AF26) + AG26)*VLOOKUP($Q$2,$Z$23:$AA$29,2),1) -> 1.680838558 | W26: =IF($Q$2=5,(AD26 / (1 + (AE26 / (P$2- 40)) ^ AF26) + AG26)*VLOOKUP($Q$2,$Z$23:$AA$29,2),1) -> 1 | X26: =IF($Q$2=6,(AD26 / (1 + (AE26 / (P$2- 40)) ^ AF26) + AG26)*VLOOKUP($Q$2,$Z$23:$AA$29,2),1) -> 1 | Y26: =IF($Q$2=7,(AD26 / (1 + (AE26 / (P$2- 40)) ^ AF26) + AG26)*VLOOKUP($Q$2,$Z$23:$AA$29,2),1) -> 1 | Z26: 4 | AA26: ='Koeffizientenübersicht NB'!$I$35 -> 1.1353 | AC26: BH2 | AD26: ='Koeffizientenübersicht NB'!B36 -> 1.70052794 | AE26: ='Koeffizientenübersicht NB'!C36 -> -35.15 | AF26: ='Koeffizientenübersicht NB'!D36 -> 6.163273851 | AG26: ='Koeffizientenübersicht NB'!E36 -> 0.429826085 | AJ26: GA3 | AM26: =VLOOKUP($O$2,$AO$2:$DA$25,26,FALSE) -> 
A27: =Tageswerte!A27 -> 00:00:00 | B27: =Tageswerte!I27 -> 0 | D27: =IF(A27="","",Feiertage!B27) -> 3 | R27: =AC27 -> BH3 | S27: =IF($Q$2=1,(AD27 / (1 + (AE27 / (P$2- 40)) ^ AF27) + AG27)*VLOOKUP($Q$2,$Z$23:$AA$29,2),1) -> 1 | T27: =IF($Q$2=2,(AD27 / (1 + (AE27 / (P$2- 40)) ^ AF27) + AG27)*VLOOKUP($Q$2,$Z$23:$AA$29,2),1) -> 1 | U27: =IF($Q$2=3,(AD27 / (1 + (AE27 / (P$2- 40)) ^ AF27) + AG27)*VLOOKUP($Q$2,$Z$23:$AA$29,2),1) -> 1 | V27: =IF($Q$2=4,(AD27 / (1 + (AE27 / (P$2- 40)) ^ AF27) + AG27)*VLOOKUP($Q$2,$Z$23:$AA$29,2),1) -> 1.774048698 | W27: =IF($Q$2=5,(AD27 / (1 + (AE27 / (P$2- 40)) ^ AF27) + AG27)*VLOOKUP($Q$2,$Z$23:$AA$29,2),1) -> 1 | X27: =IF($Q$2=6,(AD27 / (1 + (AE27 / (P$2- 40)) ^ AF27) + AG27)*VLOOKUP($Q$2,$Z$23:$AA$29,2),1) -> 1 | Y27: =IF($Q$2=7,(AD27 / (1 + (AE27 / (P$2- 40)) ^ AF27) + AG27)*VLOOKUP($Q$2,$Z$23:$AA$29,2),1) -> 1 | Z27: 5 | AA27: ='Koeffizientenübersicht NB'!$J$35 -> 1.1402 | AC27: BH3 | AD27: ='Koeffizientenübersicht NB'!B37 -> 2.010247173 | AE27: ='Koeffizientenübersicht NB'!C37 -> -35.25321235 | AF27: ='Koeffizientenübersicht NB'!D37 -> 6.154440641 | AG27: ='Koeffizientenübersicht NB'!E37 -> 0.329474097 | AJ27: GA4 | AM27: =VLOOKUP($O$2,$AO$2:$DA$25,27,FALSE) -> 
A28: =Tageswerte!A28 -> 00:00:00 | B28: =Tageswerte!I28 -> 0 | D28: =IF(A28="","",Feiertage!B28) -> 4 | R28: =AC28 -> BH4 | S28: =IF($Q$2=1,(AD28 / (1 + (AE28 / (P$2- 40)) ^ AF28) + AG28)*VLOOKUP($Q$2,$Z$23:$AA$29,2),1) -> 1 | T28: =IF($Q$2=2,(AD28 / (1 + (AE28 / (P$2- 40)) ^ AF28) + AG28)*VLOOKUP($Q$2,$Z$23:$AA$29,2),1) -> 1 | U28: =IF($Q$2=3,(AD28 / (1 + (AE28 / (P$2- 40)) ^ AF28) + AG28)*VLOOKUP($Q$2,$Z$23:$AA$29,2),1) -> 1 | V28: =IF($Q$2=4,(AD28 / (1 + (AE28 / (P$2- 40)) ^ AF28) + AG28)*VLOOKUP($Q$2,$Z$23:$AA$29,2),1) -> 1.895148238 | W28: =IF($Q$2=5,(AD28 / (1 + (AE28 / (P$2- 40)) ^ AF28) + AG28)*VLOOKUP($Q$2,$Z$23:$AA$29,2),1) -> 1 | X28: =IF($Q$2=6,(AD28 / (1 + (AE28 / (P$2- 40)) ^ AF28) + AG28)*VLOOKUP($Q$2,$Z$23:$AA$29,2),1) -> 1 | Y28: =IF($Q$2=7,(AD28 / (1 + (AE28 / (P$2- 40)) ^ AF28) + AG28)*VLOOKUP($Q$2,$Z$23:$AA$29,2),1) -> 1 | Z28: 6 | AA28: ='Koeffizientenübersicht NB'!$K$35 -> 0.4852 | AC28: BH4 | AD28: ='Koeffizientenübersicht NB'!B38 -> 2.459518061 | AE28: ='Koeffizientenübersicht NB'!C38 -> -35.25321235 | AF28: ='Koeffizientenübersicht NB'!D38 -> 6.058700072 | AG28: ='Koeffizientenübersicht NB'!E38 -> 0.164737049 | AJ28: GA5 | AM28: =VLOOKUP($O$2,$AO$2:$DA$25,28,FALSE) -> 
A29: =Tageswerte!A29 -> 00:00:00 | B29: =Tageswerte!I29 -> 0 | D29: =IF(A29="","",Feiertage!B29) -> 5 | R29: =AC29 -> BH5 | S29: =IF($Q$2=1,(AD29 / (1 + (AE29 / (P$2- 40)) ^ AF29) + AG29)*VLOOKUP($Q$2,$Z$23:$AA$29,2),1) -> 1 | T29: =IF($Q$2=2,(AD29 / (1 + (AE29 / (P$2- 40)) ^ AF29) + AG29)*VLOOKUP($Q$2,$Z$23:$AA$29,2),1) -> 1 | U29: =IF($Q$2=3,(AD29 / (1 + (AE29 / (P$2- 40)) ^ AF29) + AG29)*VLOOKUP($Q$2,$Z$23:$AA$29,2),1) -> 1 | V29: =IF($Q$2=4,(AD29 / (1 + (AE29 / (P$2- 40)) ^ AF29) + AG29)*VLOOKUP($Q$2,$Z$23:$AA$29,2),1) -> 1.973145982 | W29: =IF($Q$2=5,(AD29 / (1 + (AE29 / (P$2- 40)) ^ AF29) + AG29)*VLOOKUP($Q$2,$Z$23:$AA$29,2),1) -> 1 | X29: =IF($Q$2=6,(AD29 / (1 + (AE29 / (P$2- 40)) ^ AF29) + AG29)*VLOOKUP($Q$2,$Z$23:$AA$29,2),1) -> 1 | Y29: =IF($Q$2=7,(AD29 / (1 + (AE29 / (P$2- 40)) ^ AF29) + AG29)*VLOOKUP($Q$2,$Z$23:$AA$29,2),1) -> 1 | Z29: 7 | AA29: ='Koeffizientenübersicht NB'!$L$35 -> 0.9565 | AC29: BH5 | AD29: ='Koeffizientenübersicht NB'!B39 -> 2.98 | AE29: ='Koeffizientenübersicht NB'!C39 -> -35.8 | AF29: ='Koeffizientenübersicht NB'!D39 -> 5.634058062 | AG29: ='Koeffizientenübersicht NB'!E39 -> 0 | AJ29: GB1 | AM29: =VLOOKUP($O$2,$AO$2:$DA$25,29,FALSE) ->  | AN29: =AM29*S34*T34*U34*V34*W34*X34*Y34 -> 
A30: =Tageswerte!A30 -> 00:00:00 | B30: =Tageswerte!I30 -> 0 | D30: =IF(A30="","",Feiertage!B30) -> 6 | R30: =IF(O30="","",WEEKDAY(O30,2)) ->  | AJ30: GB2 | AM30: =VLOOKUP($O$2,$AO$2:$DA$25,30,FALSE) ->  | AN30: =AM30*S35*T35*U35*V35*W35*X35*Y35 -> 
A31: =Tageswerte!A31 -> 00:00:00 | B31: =Tageswerte!I31 -> 0 | D31: =IF(A31="","",Feiertage!B31) -> 7 | R31: Gartenbau | Z31: Tagesfaktoren | AJ31: GB3 | AM31: =VLOOKUP($O$2,$AO$2:$DA$25,31,FALSE) -> 
A32: =Tageswerte!A32 -> 00:00:00 | B32: =Tageswerte!I32 -> 0 | D32: =IF(A32="","",Feiertage!B32) -> 1 | R32: =IF(O32="","",WEEKDAY(O32,2)) ->  | Z32: 1 | AA32: ='Koeffizientenübersicht NB'!$F$45 -> 0.9897 | AJ32: GB4 | AM32: =VLOOKUP($O$2,$AO$2:$DA$25,32,FALSE) -> 
A33: =Tageswerte!A33 -> 00:00:00 | B33: =Tageswerte!I33 -> 0 | D33: =IF(A33="","",Feiertage!B33) -> 2 | S33: Montag | T33: Dienstag | U33: Mittwoch | V33: Donnerstag | W33: Freitag | X33: Samstag | Y33: Sonntag | Z33: 2 | AA33: ='Koeffizientenübersicht NB'!$G$45 -> 0.9627 | AJ33: GB5 | AM33: =VLOOKUP($O$2,$AO$2:$DA$25,33,FALSE) -> 
A34: =Tageswerte!A34 -> 00:00:00 | B34: =Tageswerte!I34 -> 0 | D34: =IF(A34="","",Feiertage!B34) -> 3 | R34: =AC34 -> GB1 | S34: =IF($Q$2=1,(AD34 / (1 + (AE34 / (P$2- 40)) ^ AF34) + AG34)*VLOOKUP($Q$2,$Z$32:$AA$38,2),1) -> 1 | T34: =IF($Q$2=2,(AD34 / (1 + (AE34 / (P$2- 40)) ^ AF34) + AG34)*VLOOKUP($Q$2,$Z$32:$AA$38,2),1) -> 1 | U34: =IF($Q$2=3,(AD34 / (1 + (AE34 / (P$2- 40)) ^ AF34) + AG34)*VLOOKUP($Q$2,$Z$32:$AA$38,2),1) -> 1 | V34: =IF($Q$2=4,(AD34 / (1 + (AE34 / (P$2- 40)) ^ AF34) + AG34)*VLOOKUP($Q$2,$Z$32:$AA$38,2),1) -> 1.613654314 | W34: =IF($Q$2=5,(AD34 / (1 + (AE34 / (P$2- 40)) ^ AF34) + AG34)*VLOOKUP($Q$2,$Z$32:$AA$38,2),1) -> 1 | X34: =IF($Q$2=6,(AD34 / (1 + (AE34 / (P$2- 40)) ^ AF34) + AG34)*VLOOKUP($Q$2,$Z$32:$AA$38,2),1) -> 1 | Y34: =IF($Q$2=7,(AD34 / (1 + (AE34 / (P$2- 40)) ^ AF34) + AG34)*VLOOKUP($Q$2,$Z$32:$AA$38,2),1) -> 1 | Z34: 3 | AA34: ='Koeffizientenübersicht NB'!$H$45 -> 1.0507 | AC34: GB1 | AD34: ='Koeffizientenübersicht NB'!B45 -> 3.176194476 | AE34: ='Koeffizientenübersicht NB'!C45 -> -40.83666086 | AF34: ='Koeffizientenübersicht NB'!D45 -> 3.678589174 | AG34: ='Koeffizientenübersicht NB'!E45 -> 0.150215576 | AJ34: HA1 | AM34: =VLOOKUP($O$2,$AO$2:$DA$25,34,FALSE) ->  | AN34: =AM34*S52*T52*U52*V52*W52*X52*Y52 -> 
A35: =Tageswerte!A35 -> 00:00:00 | B35: =Tageswerte!I35 -> 0 | D35: =IF(A35="","",Feiertage!B35) -> 4 | R35: =AC35 -> GB2 | S35: =IF($Q$2=1,(AD35 / (1 + (AE35 / (P$2- 40)) ^ AF35) + AG35)*VLOOKUP($Q$2,$Z$32:$AA$38,2),1) -> 1 | T35: =IF($Q$2=2,(AD35 / (1 + (AE35 / (P$2- 40)) ^ AF35) + AG35)*VLOOKUP($Q$2,$Z$32:$AA$38,2),1) -> 1 | U35: =IF($Q$2=3,(AD35 / (1 + (AE35 / (P$2- 40)) ^ AF35) + AG35)*VLOOKUP($Q$2,$Z$32:$AA$38,2),1) -> 1 | V35: =IF($Q$2=4,(AD35 / (1 + (AE35 / (P$2- 40)) ^ AF35) + AG35)*VLOOKUP($Q$2,$Z$32:$AA$38,2),1) -> 1.743315234 | W35: =IF($Q$2=5,(AD35 / (1 + (AE35 / (P$2- 40)) ^ AF35) + AG35)*VLOOKUP($Q$2,$Z$32:$AA$38,2),1) -> 1 | X35: =IF($Q$2=6,(AD35 / (1 + (AE35 / (P$2- 40)) ^ AF35) + AG35)*VLOOKUP($Q$2,$Z$32:$AA$38,2),1) -> 1 | Y35: =IF($Q$2=7,(AD35 / (1 + (AE35 / (P$2- 40)) ^ AF35) + AG35)*VLOOKUP($Q$2,$Z$32:$AA$38,2),1) -> 1 | Z35: 4 | AA35: ='Koeffizientenübersicht NB'!$I$45 -> 1.0552 | AC35: GB2 | AD35: ='Koeffizientenübersicht NB'!B46 -> 3.390464506 | AE35: ='Koeffizientenübersicht NB'!C46 -> -39.28752164 | AF35: ='Koeffizientenübersicht NB'!D46 -> 4.490574046 | AG35: ='Koeffizientenübersicht NB'!E46 -> 0.083478317 | AJ35: HA2 | AM35: =VLOOKUP($O$2,$AO$2:$DA$25,35,FALSE) ->  | AN35: =AM35*S53*T53*U53*V53*W53*X53*Y53 -> 
A36: =Tageswerte!A36 -> 00:00:00 | B36: =Tageswerte!I36 -> 0 | D36: =IF(A36="","",Feiertage!B36) -> 5 | R36: =AC36 -> GB3 | S36: =IF($Q$2=1,(AD36 / (1 + (AE36 / (P$2- 40)) ^ AF36) + AG36)*VLOOKUP($Q$2,$Z$32:$AA$38,2),1) -> 1 | T36: =IF($Q$2=2,(AD36 / (1 + (AE36 / (P$2- 40)) ^ AF36) + AG36)*VLOOKUP($Q$2,$Z$32:$AA$38,2),1) -> 1 | U36: =IF($Q$2=3,(AD36 / (1 + (AE36 / (P$2- 40)) ^ AF36) + AG36)*VLOOKUP($Q$2,$Z$32:$AA$38,2),1) -> 1 | V36: =IF($Q$2=4,(AD36 / (1 + (AE36 / (P$2- 40)) ^ AF36) + AG36)*VLOOKUP($Q$2,$Z$32:$AA$38,2),1) -> 1.882127213 | W36: =IF($Q$2=5,(AD36 / (1 + (AE36 / (P$2- 40)) ^ AF36) + AG36)*VLOOKUP($Q$2,$Z$32:$AA$38,2),1) -> 1 | X36: =IF($Q$2=6,(AD36 / (1 + (AE36 / (P$2- 40)) ^ AF36) + AG36)*VLOOKUP($Q$2,$Z$32:$AA$38,2),1) -> 1 | Y36: =IF($Q$2=7,(AD36 / (1 + (AE36 / (P$2- 40)) ^ AF36) + AG36)*VLOOKUP($Q$2,$Z$32:$AA$38,2),1) -> 1 | Z36: 5 | AA36: ='Koeffizientenübersicht NB'!$J$45 -> 1.0297 | AC36: GB3 | AD36: ='Koeffizientenübersicht NB'!B47 -> 3.257274213 | AE36: ='Koeffizientenübersicht NB'!C47 -> -37.5 | AF36: ='Koeffizientenübersicht NB'!D47 -> 6.346214795 | AG36: ='Koeffizientenübersicht NB'!E47 -> 0.08662265 | AJ36: HA3 | AM36: =VLOOKUP($O$2,$AO$2:$DA$25,36,FALSE) -> 
A37: =Tageswerte!A37 -> 00:00:00 | B37: =Tageswerte!I37 -> 0 | D37: =IF(A37="","",Feiertage!B37) -> 6 | R37: =AC37 -> GB4 | S37: =IF($Q$2=1,(AD37 / (1 + (AE37 / (P$2- 40)) ^ AF37) + AG37)*VLOOKUP($Q$2,$Z$32:$AA$38,2),1) -> 1 | T37: =IF($Q$2=2,(AD37 / (1 + (AE37 / (P$2- 40)) ^ AF37) + AG37)*VLOOKUP($Q$2,$Z$32:$AA$38,2),1) -> 1 | U37: =IF($Q$2=3,(AD37 / (1 + (AE37 / (P$2- 40)) ^ AF37) + AG37)*VLOOKUP($Q$2,$Z$32:$AA$38,2),1) -> 1 | V37: =IF($Q$2=4,(AD37 / (1 + (AE37 / (P$2- 40)) ^ AF37) + AG37)*VLOOKUP($Q$2,$Z$32:$AA$38,2),1) -> 1.978690395 | W37: =IF($Q$2=5,(AD37 / (1 + (AE37 / (P$2- 40)) ^ AF37) + AG37)*VLOOKUP($Q$2,$Z$32:$AA$38,2),1) -> 1 | X37: =IF($Q$2=6,(AD37 / (1 + (AE37 / (P$2- 40)) ^ AF37) + AG37)*VLOOKUP($Q$2,$Z$32:$AA$38,2),1) -> 1 | Y37: =IF($Q$2=7,(AD37 / (1 + (AE37 / (P$2- 40)) ^ AF37) + AG37)*VLOOKUP($Q$2,$Z$32:$AA$38,2),1) -> 1 | Z37: 6 | AA37: ='Koeffizientenübersicht NB'!$K$45 -> 0.9767 | AC37: GB4 | AD37: ='Koeffizientenübersicht NB'!B48 -> 3.601773562 | AE37: ='Koeffizientenübersicht NB'!C48 -> -37.88253684 | AF37: ='Koeffizientenübersicht NB'!D48 -> 6.983607029 | AG37: ='Koeffizientenübersicht NB'!E48 -> 0.054826186 | AJ37: HA4 | AM37: =VLOOKUP($O$2,$AO$2:$DA$25,37,FALSE) -> 
A38: =Tageswerte!A38 -> 00:00:00 | B38: =Tageswerte!I38 -> 0 | D38: =IF(A38="","",Feiertage!B38) -> 7 | R38: =AC38 -> GB5 | S38: =IF($Q$2=1,(AD38 / (1 + (AE38 / (P$2- 40)) ^ AF38) + AG38)*VLOOKUP($Q$2,$Z$32:$AA$38,2),1) -> 1 | T38: =IF($Q$2=2,(AD38 / (1 + (AE38 / (P$2- 40)) ^ AF38) + AG38)*VLOOKUP($Q$2,$Z$32:$AA$38,2),1) -> 1 | U38: =IF($Q$2=3,(AD38 / (1 + (AE38 / (P$2- 40)) ^ AF38) + AG38)*VLOOKUP($Q$2,$Z$32:$AA$38,2),1) -> 1 | V38: =IF($Q$2=4,(AD38 / (1 + (AE38 / (P$2- 40)) ^ AF38) + AG38)*VLOOKUP($Q$2,$Z$32:$AA$38,2),1) -> 2.069104178 | W38: =IF($Q$2=5,(AD38 / (1 + (AE38 / (P$2- 40)) ^ AF38) + AG38)*VLOOKUP($Q$2,$Z$32:$AA$38,2),1) -> 1 | X38: =IF($Q$2=6,(AD38 / (1 + (AE38 / (P$2- 40)) ^ AF38) + AG38)*VLOOKUP($Q$2,$Z$32:$AA$38,2),1) -> 1 | Y38: =IF($Q$2=7,(AD38 / (1 + (AE38 / (P$2- 40)) ^ AF38) + AG38)*VLOOKUP($Q$2,$Z$32:$AA$38,2),1) -> 1 | Z38: 7 | AA38: ='Koeffizientenübersicht NB'!$L$45 -> 0.9353 | AC38: GB5 | AD38: ='Koeffizientenübersicht NB'!B49 -> 3.932053248 | AE38: ='Koeffizientenübersicht NB'!C49 -> -38.14332482 | AF38: ='Koeffizientenübersicht NB'!D49 -> 7.618587098 | AG38: ='Koeffizientenübersicht NB'!E49 -> 0.023029723 | AJ38: HA5 | AM38: =VLOOKUP($O$2,$AO$2:$DA$25,38,FALSE) -> 
A39: =Tageswerte!A39 -> 00:00:00 | B39: =Tageswerte!I39 -> 0 | D39: =IF(A39="","",Feiertage!B39) -> 1 | AJ39: KO1 | AM39: =VLOOKUP($O$2,$AO$2:$DA$25,39,FALSE) ->  | AN39: =AM39*S43*T43*U43*V43*W43*X43*Y43 -> 
A40: =Tageswerte!A40 -> 00:00:00 | B40: =Tageswerte!I40 -> 0 | D40: =IF(A40="","",Feiertage!B40) -> 2 | R40: Gebietskörpersch., Kreditinst. u. Versich., Org. o. Erwerbszw. & öff. Einr. | Z40: Tagesfaktoren | AJ40: KO2 | AM40: =VLOOKUP($O$2,$AO$2:$DA$25,40,FALSE) ->  | AN40: =AM40*S44*T44*U44*V44*W44*X44*Y44 -> 
A41: =Tageswerte!A41 -> 00:00:00 | B41: =Tageswerte!I41 -> 0 | D41: =IF(A41="","",Feiertage!B41) -> 3 | R41: =IF(O41="","",WEEKDAY(O41,2)) ->  | Z41: 1 | AA41: ='Koeffizientenübersicht NB'!$F$20 -> 1.0354 | AJ41: KO3 | AM41: =VLOOKUP($O$2,$AO$2:$DA$25,41,FALSE) -> 
A42: =Tageswerte!A42 -> 00:00:00 | B42: =Tageswerte!I42 -> 0 | D42: =IF(A42="","",Feiertage!B42) -> 4 | S42: Montag | T42: Dienstag | U42: Mittwoch | V42: Donnerstag | W42: Freitag | X42: Samstag | Y42: Sonntag | Z42: 2 | AA42: ='Koeffizientenübersicht NB'!$G$20 -> 1.0523 | AJ42: KO4 | AM42: =VLOOKUP($O$2,$AO$2:$DA$25,42,FALSE) -> 
A43: =Tageswerte!A43 -> 00:00:00 | B43: =Tageswerte!I43 -> 0 | D43: =IF(A43="","",Feiertage!B43) -> 5 | R43: =AC43 -> KO1 | S43: =IF($Q$2=1,(AD43 / (1 + (AE43 / (P$2- 40)) ^ AF43) + AG43)*VLOOKUP($Q$2,$Z$41:$AA$47,2),1) -> 1 | T43: =IF($Q$2=2,(AD43 / (1 + (AE43 / (P$2- 40)) ^ AF43) + AG43)*VLOOKUP($Q$2,$Z$41:$AA$47,2),1) -> 1 | U43: =IF($Q$2=3,(AD43 / (1 + (AE43 / (P$2- 40)) ^ AF43) + AG43)*VLOOKUP($Q$2,$Z$41:$AA$47,2),1) -> 1 | V43: =IF($Q$2=4,(AD43 / (1 + (AE43 / (P$2- 40)) ^ AF43) + AG43)*VLOOKUP($Q$2,$Z$41:$AA$47,2),1) -> 1.510809784 | W43: =IF($Q$2=5,(AD43 / (1 + (AE43 / (P$2- 40)) ^ AF43) + AG43)*VLOOKUP($Q$2,$Z$41:$AA$47,2),1) -> 1 | X43: =IF($Q$2=6,(AD43 / (1 + (AE43 / (P$2- 40)) ^ AF43) + AG43)*VLOOKUP($Q$2,$Z$41:$AA$47,2),1) -> 1 | Y43: =IF($Q$2=7,(AD43 / (1 + (AE43 / (P$2- 40)) ^ AF43) + AG43)*VLOOKUP($Q$2,$Z$41:$AA$47,2),1) -> 1 | Z43: 3 | AA43: ='Koeffizientenübersicht NB'!$H$20 -> 1.0449 | AC43: KO1 | AD43: ='Koeffizientenübersicht NB'!B20 -> 1.415957087 | AE43: ='Koeffizientenübersicht NB'!C20 -> -30.84251916 | AF43: ='Koeffizientenübersicht NB'!D20 -> 6.346755701 | AG43: ='Koeffizientenübersicht NB'!E20 -> 0.321179065 | AJ43: KO5 | AM43: =VLOOKUP($O$2,$AO$2:$DA$25,43,FALSE) -> 
A44: =Tageswerte!A44 -> 00:00:00 | B44: =Tageswerte!I44 -> 0 | D44: =IF(A44="","",Feiertage!B44) -> 6 | R44: =AC44 -> KO2 | S44: =IF($Q$2=1,(AD44 / (1 + (AE44 / (P$2- 40)) ^ AF44) + AG44)*VLOOKUP($Q$2,$Z$41:$AA$47,2),1) -> 1 | T44: =IF($Q$2=2,(AD44 / (1 + (AE44 / (P$2- 40)) ^ AF44) + AG44)*VLOOKUP($Q$2,$Z$41:$AA$47,2),1) -> 1 | U44: =IF($Q$2=3,(AD44 / (1 + (AE44 / (P$2- 40)) ^ AF44) + AG44)*VLOOKUP($Q$2,$Z$41:$AA$47,2),1) -> 1 | V44: =IF($Q$2=4,(AD44 / (1 + (AE44 / (P$2- 40)) ^ AF44) + AG44)*VLOOKUP($Q$2,$Z$41:$AA$47,2),1) -> 1.748027961 | W44: =IF($Q$2=5,(AD44 / (1 + (AE44 / (P$2- 40)) ^ AF44) + AG44)*VLOOKUP($Q$2,$Z$41:$AA$47,2),1) -> 1 | X44: =IF($Q$2=6,(AD44 / (1 + (AE44 / (P$2- 40)) ^ AF44) + AG44)*VLOOKUP($Q$2,$Z$41:$AA$47,2),1) -> 1 | Y44: =IF($Q$2=7,(AD44 / (1 + (AE44 / (P$2- 40)) ^ AF44) + AG44)*VLOOKUP($Q$2,$Z$41:$AA$47,2),1) -> 1 | Z44: 4 | AA44: ='Koeffizientenübersicht NB'!$I$20 -> 1.0494 | AC44: KO2 | AD44: ='Koeffizientenübersicht NB'!B21 -> 2.06605007 | AE44: ='Koeffizientenübersicht NB'!C21 -> -33.60165203 | AF44: ='Koeffizientenübersicht NB'!D21 -> 6.675360994 | AG44: ='Koeffizientenübersicht NB'!E21 -> 0.230912468 | AJ44: MK1 | AM44: =VLOOKUP($O$2,$AO$2:$DA$25,44,FALSE) ->  | AN44: =AM44*S61*T61*U61*V61*W61*X61*Y61 -> 
A45: =Tageswerte!A45 -> 00:00:00 | B45: =Tageswerte!I45 -> 0 | D45: =IF(A45="","",Feiertage!B45) -> 7 | R45: =AC45 -> KO3 | S45: =IF($Q$2=1,(AD45 / (1 + (AE45 / (P$2- 40)) ^ AF45) + AG45)*VLOOKUP($Q$2,$Z$41:$AA$47,2),1) -> 1 | T45: =IF($Q$2=2,(AD45 / (1 + (AE45 / (P$2- 40)) ^ AF45) + AG45)*VLOOKUP($Q$2,$Z$41:$AA$47,2),1) -> 1 | U45: =IF($Q$2=3,(AD45 / (1 + (AE45 / (P$2- 40)) ^ AF45) + AG45)*VLOOKUP($Q$2,$Z$41:$AA$47,2),1) -> 1 | V45: =IF($Q$2=4,(AD45 / (1 + (AE45 / (P$2- 40)) ^ AF45) + AG45)*VLOOKUP($Q$2,$Z$41:$AA$47,2),1) -> 1.962133066 | W45: =IF($Q$2=5,(AD45 / (1 + (AE45 / (P$2- 40)) ^ AF45) + AG45)*VLOOKUP($Q$2,$Z$41:$AA$47,2),1) -> 1 | X45: =IF($Q$2=6,(AD45 / (1 + (AE45 / (P$2- 40)) ^ AF45) + AG45)*VLOOKUP($Q$2,$Z$41:$AA$47,2),1) -> 1 | Y45: =IF($Q$2=7,(AD45 / (1 + (AE45 / (P$2- 40)) ^ AF45) + AG45)*VLOOKUP($Q$2,$Z$41:$AA$47,2),1) -> 1 | Z45: 5 | AA45: ='Koeffizientenübersicht NB'!$J$20 -> 0.9885 | AC45: KO3 | AD45: ='Koeffizientenübersicht NB'!B22 -> 2.717228844 | AE45: ='Koeffizientenübersicht NB'!C22 -> -35.14125631 | AF45: ='Koeffizientenübersicht NB'!D22 -> 7.130339509 | AG45: ='Koeffizientenübersicht NB'!E22 -> 0.14184717 | AJ45: MK2 | AM45: =VLOOKUP($O$2,$AO$2:$DA$25,45,FALSE) ->  | AN45: =AM45*S62*T62*U62*V62*W62*X62*Y62 -> 
A46: =Tageswerte!A46 -> 00:00:00 | B46: =Tageswerte!I46 -> 0 | D46: =IF(A46="","",Feiertage!B46) -> 1 | R46: =AC46 -> KO4 | S46: =IF($Q$2=1,(AD46 / (1 + (AE46 / (P$2- 40)) ^ AF46) + AG46)*VLOOKUP($Q$2,$Z$41:$AA$47,2),1) -> 1 | T46: =IF($Q$2=2,(AD46 / (1 + (AE46 / (P$2- 40)) ^ AF46) + AG46)*VLOOKUP($Q$2,$Z$41:$AA$47,2),1) -> 1 | U46: =IF($Q$2=3,(AD46 / (1 + (AE46 / (P$2- 40)) ^ AF46) + AG46)*VLOOKUP($Q$2,$Z$41:$AA$47,2),1) -> 1 | V46: =IF($Q$2=4,(AD46 / (1 + (AE46 / (P$2- 40)) ^ AF46) + AG46)*VLOOKUP($Q$2,$Z$41:$AA$47,2),1) -> 2.130223571 | W46: =IF($Q$2=5,(AD46 / (1 + (AE46 / (P$2- 40)) ^ AF46) + AG46)*VLOOKUP($Q$2,$Z$41:$AA$47,2),1) -> 1 | X46: =IF($Q$2=6,(AD46 / (1 + (AE46 / (P$2- 40)) ^ AF46) + AG46)*VLOOKUP($Q$2,$Z$41:$AA$47,2),1) -> 1 | Y46: =IF($Q$2=7,(AD46 / (1 + (AE46 / (P$2- 40)) ^ AF46) + AG46)*VLOOKUP($Q$2,$Z$41:$AA$47,2),1) -> 1 | Z46: 6 | AA46: ='Koeffizientenübersicht NB'!$K$20 -> 0.886 | AC46: KO4 | AD46: ='Koeffizientenübersicht NB'!B23 -> 3.442894287 | AE46: ='Koeffizientenübersicht NB'!C23 -> -36.65905041 | AF46: ='Koeffizientenübersicht NB'!D23 -> 7.608322616 | AG46: ='Koeffizientenübersicht NB'!E23 -> 0.07468501 | AJ46: MK3 | AM46: =VLOOKUP($O$2,$AO$2:$DA$25,46,FALSE) -> 
A47: =Tageswerte!A47 -> 00:00:00 | B47: =Tageswerte!I47 -> 0 | D47: =IF(A47="","",Feiertage!B47) -> 2 | R47: =AC47 -> KO5 | S47: =IF($Q$2=1,(AD47 / (1 + (AE47 / (P$2- 40)) ^ AF47) + AG47)*VLOOKUP($Q$2,$Z$41:$AA$47,2),1) -> 1 | T47: =IF($Q$2=2,(AD47 / (1 + (AE47 / (P$2- 40)) ^ AF47) + AG47)*VLOOKUP($Q$2,$Z$41:$AA$47,2),1) -> 1 | U47: =IF($Q$2=3,(AD47 / (1 + (AE47 / (P$2- 40)) ^ AF47) + AG47)*VLOOKUP($Q$2,$Z$41:$AA$47,2),1) -> 1 | V47: =IF($Q$2=4,(AD47 / (1 + (AE47 / (P$2- 40)) ^ AF47) + AG47)*VLOOKUP($Q$2,$Z$41:$AA$47,2),1) -> 2.147457282 | W47: =IF($Q$2=5,(AD47 / (1 + (AE47 / (P$2- 40)) ^ AF47) + AG47)*VLOOKUP($Q$2,$Z$41:$AA$47,2),1) -> 1 | X47: =IF($Q$2=6,(AD47 / (1 + (AE47 / (P$2- 40)) ^ AF47) + AG47)*VLOOKUP($Q$2,$Z$41:$AA$47,2),1) -> 1 | Y47: =IF($Q$2=7,(AD47 / (1 + (AE47 / (P$2- 40)) ^ AF47) + AG47)*VLOOKUP($Q$2,$Z$41:$AA$47,2),1) -> 1 | Z47: 7 | AA47: ='Koeffizientenübersicht NB'!$L$20 -> 0.9435 | AC47: KO5 | AD47: ='Koeffizientenübersicht NB'!B24 -> 4.3624833 | AE47: ='Koeffizientenübersicht NB'!C24 -> -38.66340216 | AF47: ='Koeffizientenübersicht NB'!D24 -> 7.597464428 | AG47: ='Koeffizientenübersicht NB'!E24 -> 0.008326418 | AJ47: MK4 | AM47: =VLOOKUP($O$2,$AO$2:$DA$25,47,FALSE) -> 
A48: =Tageswerte!A48 -> 00:00:00 | B48: =Tageswerte!I48 -> 0 | D48: =IF(A48="","",Feiertage!B48) -> 3 | AJ48: MK5 | AM48: =VLOOKUP($O$2,$AO$2:$DA$25,48,FALSE) -> 
A49: =Tageswerte!A49 -> 00:00:00 | B49: =Tageswerte!I49 -> 0 | D49: =IF(A49="","",Feiertage!B49) -> 4 | R49: Einzelhandel, Großhandel | Z49: Tagesfaktoren | AJ49: MF1 | AM49: =VLOOKUP($O$2,$AO$2:$DA$25,49,FALSE) ->  | AN49: =AM49*S88*T88*U88*V88*W88*X88*Y88 -> 
A50: =Tageswerte!A50 -> 00:00:00 | B50: =Tageswerte!I50 -> 0 | D50: =IF(A50="","",Feiertage!B50) -> 5 | R50: =IF(O50="","",WEEKDAY(O50,2)) ->  | Z50: 1 | AA50: ='Koeffizientenübersicht NB'!$F$15 -> 1.0358 | AJ50: MF2 | AM50: =VLOOKUP($O$2,$AO$2:$DA$25,50,FALSE) ->  | AN50: =AM50*S89*T89*U89*V89*W89*X89*Y89 -> 
A51: =Tageswerte!A51 -> 00:00:00 | B51: =Tageswerte!I51 -> 0 | D51: =IF(A51="","",Feiertage!B51) -> 6 | S51: Montag | T51: Dienstag | U51: Mittwoch | V51: Donnerstag | W51: Freitag | X51: Samstag | Y51: Sonntag | Z51: 2 | AA51: ='Koeffizientenübersicht NB'!$G$15 -> 1.0232 | AJ51: MF3 | AM51: =VLOOKUP($O$2,$AO$2:$DA$25,51,FALSE) -> 
A52: =Tageswerte!A52 -> 00:00:00 | B52: =Tageswerte!I52 -> 0 | D52: =IF(A52="","",Feiertage!B52) -> 7 | R52: =AC52 -> HA1 | S52: =IF($Q$2=1,(AD52 / (1 + (AE52 / (P$2- 40)) ^ AF52) + AG52)*VLOOKUP($Q$2,$Z$50:$AA$56,2),1) -> 1 | T52: =IF($Q$2=2,(AD52 / (1 + (AE52 / (P$2- 40)) ^ AF52) + AG52)*VLOOKUP($Q$2,$Z$50:$AA$56,2),1) -> 1 | U52: =IF($Q$2=3,(AD52 / (1 + (AE52 / (P$2- 40)) ^ AF52) + AG52)*VLOOKUP($Q$2,$Z$50:$AA$56,2),1) -> 1 | V52: =IF($Q$2=4,(AD52 / (1 + (AE52 / (P$2- 40)) ^ AF52) + AG52)*VLOOKUP($Q$2,$Z$50:$AA$56,2),1) -> 1.695174157 | W52: =IF($Q$2=5,(AD52 / (1 + (AE52 / (P$2- 40)) ^ AF52) + AG52)*VLOOKUP($Q$2,$Z$50:$AA$56,2),1) -> 1 | X52: =IF($Q$2=6,(AD52 / (1 + (AE52 / (P$2- 40)) ^ AF52) + AG52)*VLOOKUP($Q$2,$Z$50:$AA$56,2),1) -> 1 | Y52: =IF($Q$2=7,(AD52 / (1 + (AE52 / (P$2- 40)) ^ AF52) + AG52)*VLOOKUP($Q$2,$Z$50:$AA$56,2),1) -> 1 | Z52: 3 | AA52: ='Koeffizientenübersicht NB'!$H$15 -> 1.0252 | AC52: HA1 | AD52: ='Koeffizientenübersicht NB'!B15 -> 2.374282771 | AE52: ='Koeffizientenübersicht NB'!C15 -> -34.75955014 | AF52: ='Koeffizientenübersicht NB'!D15 -> 5.998703683 | AG52: ='Koeffizientenübersicht NB'!E15 -> 0.149441144 | AJ52: MF4 | AM52: =VLOOKUP($O$2,$AO$2:$DA$25,52,FALSE) -> 
A53: =Tageswerte!A53 -> 00:00:00 | B53: =Tageswerte!I53 -> 0 | D53: =IF(A53="","",Feiertage!B53) -> 1 | R53: =AC53 -> HA2 | S53: =IF($Q$2=1,(AD53 / (1 + (AE53 / (P$2- 40)) ^ AF53) + AG53)*VLOOKUP($Q$2,$Z$50:$AA$56,2),1) -> 1 | T53: =IF($Q$2=2,(AD53 / (1 + (AE53 / (P$2- 40)) ^ AF53) + AG53)*VLOOKUP($Q$2,$Z$50:$AA$56,2),1) -> 1 | U53: =IF($Q$2=3,(AD53 / (1 + (AE53 / (P$2- 40)) ^ AF53) + AG53)*VLOOKUP($Q$2,$Z$50:$AA$56,2),1) -> 1 | V53: =IF($Q$2=4,(AD53 / (1 + (AE53 / (P$2- 40)) ^ AF53) + AG53)*VLOOKUP($Q$2,$Z$50:$AA$56,2),1) -> 1.915279091 | W53: =IF($Q$2=5,(AD53 / (1 + (AE53 / (P$2- 40)) ^ AF53) + AG53)*VLOOKUP($Q$2,$Z$50:$AA$56,2),1) -> 1 | X53: =IF($Q$2=6,(AD53 / (1 + (AE53 / (P$2- 40)) ^ AF53) + AG53)*VLOOKUP($Q$2,$Z$50:$AA$56,2),1) -> 1 | Y53: =IF($Q$2=7,(AD53 / (1 + (AE53 / (P$2- 40)) ^ AF53) + AG53)*VLOOKUP($Q$2,$Z$50:$AA$56,2),1) -> 1 | Z53: 4 | AA53: ='Koeffizientenübersicht NB'!$I$15 -> 1.0295 | AC53: HA2 | AD53: ='Koeffizientenübersicht NB'!B16 -> 2.854474853 | AE53: ='Koeffizientenübersicht NB'!C16 -> -35.62942308 | AF53: ='Koeffizientenübersicht NB'!D16 -> 7.005826443 | AG53: ='Koeffizientenübersicht NB'!E16 -> 0.116477221 | AJ53: MF5 | AM53: =VLOOKUP($O$2,$AO$2:$DA$25,53,FALSE) -> 
A54: =Tageswerte!A54 -> 00:00:00 | B54: =Tageswerte!I54 -> 0 | D54: =IF(A54="","",Feiertage!B54) -> 2 | R54: =AC54 -> HA3 | S54: =IF($Q$2=1,(AD54 / (1 + (AE54 / (P$2- 40)) ^ AF54) + AG54)*VLOOKUP($Q$2,$Z$50:$AA$56,2),1) -> 1 | T54: =IF($Q$2=2,(AD54 / (1 + (AE54 / (P$2- 40)) ^ AF54) + AG54)*VLOOKUP($Q$2,$Z$50:$AA$56,2),1) -> 1 | U54: =IF($Q$2=3,(AD54 / (1 + (AE54 / (P$2- 40)) ^ AF54) + AG54)*VLOOKUP($Q$2,$Z$50:$AA$56,2),1) -> 1 | V54: =IF($Q$2=4,(AD54 / (1 + (AE54 / (P$2- 40)) ^ AF54) + AG54)*VLOOKUP($Q$2,$Z$50:$AA$56,2),1) -> 2.072847292 | W54: =IF($Q$2=5,(AD54 / (1 + (AE54 / (P$2- 40)) ^ AF54) + AG54)*VLOOKUP($Q$2,$Z$50:$AA$56,2),1) -> 1 | X54: =IF($Q$2=6,(AD54 / (1 + (AE54 / (P$2- 40)) ^ AF54) + AG54)*VLOOKUP($Q$2,$Z$50:$AA$56,2),1) -> 1 | Y54: =IF($Q$2=7,(AD54 / (1 + (AE54 / (P$2- 40)) ^ AF54) + AG54)*VLOOKUP($Q$2,$Z$50:$AA$56,2),1) -> 1 | Z54: 5 | AA54: ='Koeffizientenübersicht NB'!$J$15 -> 1.0253 | AC54: HA3 | AD54: ='Koeffizientenübersicht NB'!B17 -> 3.58112137 | AE54: ='Koeffizientenübersicht NB'!C17 -> -36.96500652 | AF54: ='Koeffizientenübersicht NB'!D17 -> 7.225694671 | AG54: ='Koeffizientenübersicht NB'!E17 -> 0.044841567 | AJ54: PD1 | AM54: =VLOOKUP($O$2,$AO$2:$DA$25,54,FALSE) ->  | AN54: =AM54*S97*T97*U97*V97*W97*X97*Y97 -> 
A55: =Tageswerte!A55 -> 00:00:00 | B55: =Tageswerte!I55 -> 0 | D55: =IF(A55="","",Feiertage!B55) -> 3 | R55: =AC55 -> HA4 | S55: =IF($Q$2=1,(AD55 / (1 + (AE55 / (P$2- 40)) ^ AF55) + AG55)*VLOOKUP($Q$2,$Z$50:$AA$56,2),1) -> 1 | T55: =IF($Q$2=2,(AD55 / (1 + (AE55 / (P$2- 40)) ^ AF55) + AG55)*VLOOKUP($Q$2,$Z$50:$AA$56,2),1) -> 1 | U55: =IF($Q$2=3,(AD55 / (1 + (AE55 / (P$2- 40)) ^ AF55) + AG55)*VLOOKUP($Q$2,$Z$50:$AA$56,2),1) -> 1 | V55: =IF($Q$2=4,(AD55 / (1 + (AE55 / (P$2- 40)) ^ AF55) + AG55)*VLOOKUP($Q$2,$Z$50:$AA$56,2),1) -> 2.156060233 | W55: =IF($Q$2=5,(AD55 / (1 + (AE55 / (P$2- 40)) ^ AF55) + AG55)*VLOOKUP($Q$2,$Z$50:$AA$56,2),1) -> 1 | X55: =IF($Q$2=6,(AD55 / (1 + (AE55 / (P$2- 40)) ^ AF55) + AG55)*VLOOKUP($Q$2,$Z$50:$AA$56,2),1) -> 1 | Y55: =IF($Q$2=7,(AD55 / (1 + (AE55 / (P$2- 40)) ^ AF55) + AG55)*VLOOKUP($Q$2,$Z$50:$AA$56,2),1) -> 1 | Z55: 6 | AA55: ='Koeffizientenübersicht NB'!$K$15 -> 0.9675 | AC55: HA4 | AD55: ='Koeffizientenübersicht NB'!B18 -> 4.019690204 | AE55: ='Koeffizientenübersicht NB'!C18 -> -37.82820366 | AF55: ='Koeffizientenübersicht NB'!D18 -> 8.159336876 | AG55: ='Koeffizientenübersicht NB'!E18 -> 0.047284495 | AJ55: PD2 | AM55: =VLOOKUP($O$2,$AO$2:$DA$25,55,FALSE) ->  | AN55: =AM55*S98*T98*U98*V98*W98*X98*Y98 -> 
A56: =Tageswerte!A56 -> 00:00:00 | B56: =Tageswerte!I56 -> 0 | D56: =IF(A56="","",Feiertage!B56) -> 4 | R56: =AC56 -> HA5 | S56: =IF($Q$2=1,(AD56 / (1 + (AE56 / (P$2- 40)) ^ AF56) + AG56)*VLOOKUP($Q$2,$Z$50:$AA$56,2),1) -> 1 | T56: =IF($Q$2=2,(AD56 / (1 + (AE56 / (P$2- 40)) ^ AF56) + AG56)*VLOOKUP($Q$2,$Z$50:$AA$56,2),1) -> 1 | U56: =IF($Q$2=3,(AD56 / (1 + (AE56 / (P$2- 40)) ^ AF56) + AG56)*VLOOKUP($Q$2,$Z$50:$AA$56,2),1) -> 1 | V56: =IF($Q$2=4,(AD56 / (1 + (AE56 / (P$2- 40)) ^ AF56) + AG56)*VLOOKUP($Q$2,$Z$50:$AA$56,2),1) -> 2.141586432 | W56: =IF($Q$2=5,(AD56 / (1 + (AE56 / (P$2- 40)) ^ AF56) + AG56)*VLOOKUP($Q$2,$Z$50:$AA$56,2),1) -> 1 | X56: =IF($Q$2=6,(AD56 / (1 + (AE56 / (P$2- 40)) ^ AF56) + AG56)*VLOOKUP($Q$2,$Z$50:$AA$56,2),1) -> 1 | Y56: =IF($Q$2=7,(AD56 / (1 + (AE56 / (P$2- 40)) ^ AF56) + AG56)*VLOOKUP($Q$2,$Z$50:$AA$56,2),1) -> 1 | Z56: 7 | AA56: ='Koeffizientenübersicht NB'!$L$15 -> 0.8935 | AC56: HA5 | AD56: ='Koeffizientenübersicht NB'!B19 -> 4.825237566 | AE56: ='Koeffizientenübersicht NB'!C19 -> -39.2802564 | AF56: ='Koeffizientenübersicht NB'!D19 -> 8.624021689 | AG56: ='Koeffizientenübersicht NB'!E19 -> 0.009994463 | AJ56: PD3 | AM56: =VLOOKUP($O$2,$AO$2:$DA$25,56,FALSE) -> 
A57: =Tageswerte!A57 -> 00:00:00 | B57: =Tageswerte!I57 -> 0 | D57: =IF(A57="","",Feiertage!B57) -> 5 | AJ57: PD4 | AM57: =VLOOKUP($O$2,$AO$2:$DA$25,57,FALSE) -> 
A58: =Tageswerte!A58 -> 00:00:00 | B58: =Tageswerte!I58 -> 0 | D58: =IF(A58="","",Feiertage!B58) -> 6 | R58: Metall, Kfz | Z58: Tagesfaktoren | AJ58: PD5 | AM58: =VLOOKUP($O$2,$AO$2:$DA$25,58,FALSE) -> 
A59: =Tageswerte!A59 -> 00:00:00 | B59: =Tageswerte!I59 -> 0 | D59: =IF(A59="","",Feiertage!B59) -> 7 | R59: =IF(O59="","",WEEKDAY(O59,2)) ->  | Z59: 1 | AA59: ='Koeffizientenübersicht NB'!$F$10 -> 1.0699 | AJ59: WA1 | AM59: =VLOOKUP($O$2,$AO$2:$DA$25,59,FALSE) ->  | AN59: =AM59*S106*T106*U106*V106*W106*X106*Y106 -> 
A60: =Tageswerte!A60 -> 00:00:00 | B60: =Tageswerte!I60 -> 0 | D60: =IF(A60="","",Feiertage!B60) -> 1 | S60: Montag | T60: Dienstag | U60: Mittwoch | V60: Donnerstag | W60: Freitag | X60: Samstag | Y60: Sonntag | Z60: 2 | AA60: ='Koeffizientenübersicht NB'!$G$10 -> 1.0365 | AJ60: WA2 | AM60: =VLOOKUP($O$2,$AO$2:$DA$25,60,FALSE) ->  | AN60: =AM60*S107*T107*U107*V107*W107*X107*Y107 -> 
A61: =Tageswerte!A61 -> 00:00:00 | B61: =Tageswerte!I61 -> 0 | D61: =IF(A61="","",Feiertage!B61) -> 2 | R61: =AC61 -> MK1 | S61: =IF($Q$2=1,(AD61 / (1 + (AE61 / (P$2- 40)) ^ AF61) + AG61)*VLOOKUP($Q$2,$Z$59:$AA$65,2),1) -> 1 | T61: =IF($Q$2=2,(AD61 / (1 + (AE61 / (P$2- 40)) ^ AF61) + AG61)*VLOOKUP($Q$2,$Z$59:$AA$65,2),1) -> 1 | U61: =IF($Q$2=3,(AD61 / (1 + (AE61 / (P$2- 40)) ^ AF61) + AG61)*VLOOKUP($Q$2,$Z$59:$AA$65,2),1) -> 1 | V61: =IF($Q$2=4,(AD61 / (1 + (AE61 / (P$2- 40)) ^ AF61) + AG61)*VLOOKUP($Q$2,$Z$59:$AA$65,2),1) -> 1.585370191 | W61: =IF($Q$2=5,(AD61 / (1 + (AE61 / (P$2- 40)) ^ AF61) + AG61)*VLOOKUP($Q$2,$Z$59:$AA$65,2),1) -> 1 | X61: =IF($Q$2=6,(AD61 / (1 + (AE61 / (P$2- 40)) ^ AF61) + AG61)*VLOOKUP($Q$2,$Z$59:$AA$65,2),1) -> 1 | Y61: =IF($Q$2=7,(AD61 / (1 + (AE61 / (P$2- 40)) ^ AF61) + AG61)*VLOOKUP($Q$2,$Z$59:$AA$65,2),1) -> 1 | Z61: 3 | AA61: ='Koeffizientenübersicht NB'!$H$10 -> 0.9933 | AC61: MK1 | AD61: ='Koeffizientenübersicht NB'!B10 -> 1.864453364 | AE61: ='Koeffizientenübersicht NB'!C10 -> -30.70716325 | AF61: ='Koeffizientenübersicht NB'!D10 -> 6.462693731 | AG61: ='Koeffizientenübersicht NB'!E10 -> 0.104833866 | AJ61: WA3 | AM61: =VLOOKUP($O$2,$AO$2:$DA$25,61,FALSE) -> 
A62: =Tageswerte!A62 -> 00:00:00 | B62: =Tageswerte!I62 -> 0 | D62: =IF(A62="","",Feiertage!B62) -> 3 | R62: =AC62 -> MK2 | S62: =IF($Q$2=1,(AD62 / (1 + (AE62 / (P$2- 40)) ^ AF62) + AG62)*VLOOKUP($Q$2,$Z$59:$AA$65,2),1) -> 1 | T62: =IF($Q$2=2,(AD62 / (1 + (AE62 / (P$2- 40)) ^ AF62) + AG62)*VLOOKUP($Q$2,$Z$59:$AA$65,2),1) -> 1 | U62: =IF($Q$2=3,(AD62 / (1 + (AE62 / (P$2- 40)) ^ AF62) + AG62)*VLOOKUP($Q$2,$Z$59:$AA$65,2),1) -> 1 | V62: =IF($Q$2=4,(AD62 / (1 + (AE62 / (P$2- 40)) ^ AF62) + AG62)*VLOOKUP($Q$2,$Z$59:$AA$65,2),1) -> 1.686833322 | W62: =IF($Q$2=5,(AD62 / (1 + (AE62 / (P$2- 40)) ^ AF62) + AG62)*VLOOKUP($Q$2,$Z$59:$AA$65,2),1) -> 1 | X62: =IF($Q$2=6,(AD62 / (1 + (AE62 / (P$2- 40)) ^ AF62) + AG62)*VLOOKUP($Q$2,$Z$59:$AA$65,2),1) -> 1 | Y62: =IF($Q$2=7,(AD62 / (1 + (AE62 / (P$2- 40)) ^ AF62) + AG62)*VLOOKUP($Q$2,$Z$59:$AA$65,2),1) -> 1 | Z62: 4 | AA62: ='Koeffizientenübersicht NB'!$I$10 -> 0.9948 | AC62: MK2 | AD62: ='Koeffizientenübersicht NB'!B11 -> 2.290818386 | AE62: ='Koeffizientenübersicht NB'!C11 -> -33.14768673 | AF62: ='Koeffizientenübersicht NB'!D11 -> 6.371476504 | AG62: ='Koeffizientenübersicht NB'!E11 -> 0.081002321 | AJ62: WA4 | AM62: =VLOOKUP($O$2,$AO$2:$DA$25,62,FALSE) -> 
A63: =Tageswerte!A63 -> 00:00:00 | B63: =Tageswerte!I63 -> 0 | D63: =IF(A63="","",Feiertage!B63) -> 4 | R63: =AC63 -> MK3 | S63: =IF($Q$2=1,(AD63 / (1 + (AE63 / (P$2- 40)) ^ AF63) + AG63)*VLOOKUP($Q$2,$Z$59:$AA$65,2),1) -> 1 | T63: =IF($Q$2=2,(AD63 / (1 + (AE63 / (P$2- 40)) ^ AF63) + AG63)*VLOOKUP($Q$2,$Z$59:$AA$65,2),1) -> 1 | U63: =IF($Q$2=3,(AD63 / (1 + (AE63 / (P$2- 40)) ^ AF63) + AG63)*VLOOKUP($Q$2,$Z$59:$AA$65,2),1) -> 1 | V63: =IF($Q$2=4,(AD63 / (1 + (AE63 / (P$2- 40)) ^ AF63) + AG63)*VLOOKUP($Q$2,$Z$59:$AA$65,2),1) -> 1.82225771 | W63: =IF($Q$2=5,(AD63 / (1 + (AE63 / (P$2- 40)) ^ AF63) + AG63)*VLOOKUP($Q$2,$Z$59:$AA$65,2),1) -> 1 | X63: =IF($Q$2=6,(AD63 / (1 + (AE63 / (P$2- 40)) ^ AF63) + AG63)*VLOOKUP($Q$2,$Z$59:$AA$65,2),1) -> 1 | Y63: =IF($Q$2=7,(AD63 / (1 + (AE63 / (P$2- 40)) ^ AF63) + AG63)*VLOOKUP($Q$2,$Z$59:$AA$65,2),1) -> 1 | Z63: 5 | AA63: ='Koeffizientenübersicht NB'!$J$10 -> 1.0659 | AC63: MK3 | AD63: ='Koeffizientenübersicht NB'!B12 -> 2.788242394 | AE63: ='Koeffizientenübersicht NB'!C12 -> -34.88061302 | AF63: ='Koeffizientenübersicht NB'!D12 -> 6.595189922 | AG63: ='Koeffizientenübersicht NB'!E12 -> 0.054032911 | AJ63: WA5 | AM63: =VLOOKUP($O$2,$AO$2:$DA$25,63,FALSE) -> 
A64: =Tageswerte!A64 -> 00:00:00 | B64: =Tageswerte!I64 -> 0 | D64: =IF(A64="","",Feiertage!B64) -> 5 | R64: =AC64 -> MK4 | S64: =IF($Q$2=1,(AD64 / (1 + (AE64 / (P$2- 40)) ^ AF64) + AG64)*VLOOKUP($Q$2,$Z$59:$AA$65,2),1) -> 1 | T64: =IF($Q$2=2,(AD64 / (1 + (AE64 / (P$2- 40)) ^ AF64) + AG64)*VLOOKUP($Q$2,$Z$59:$AA$65,2),1) -> 1 | U64: =IF($Q$2=3,(AD64 / (1 + (AE64 / (P$2- 40)) ^ AF64) + AG64)*VLOOKUP($Q$2,$Z$59:$AA$65,2),1) -> 1 | V64: =IF($Q$2=4,(AD64 / (1 + (AE64 / (P$2- 40)) ^ AF64) + AG64)*VLOOKUP($Q$2,$Z$59:$AA$65,2),1) -> 1.915792498 | W64: =IF($Q$2=5,(AD64 / (1 + (AE64 / (P$2- 40)) ^ AF64) + AG64)*VLOOKUP($Q$2,$Z$59:$AA$65,2),1) -> 1 | X64: =IF($Q$2=6,(AD64 / (1 + (AE64 / (P$2- 40)) ^ AF64) + AG64)*VLOOKUP($Q$2,$Z$59:$AA$65,2),1) -> 1 | Y64: =IF($Q$2=7,(AD64 / (1 + (AE64 / (P$2- 40)) ^ AF64) + AG64)*VLOOKUP($Q$2,$Z$59:$AA$65,2),1) -> 1 | Z64: 6 | AA64: ='Koeffizientenübersicht NB'!$K$10 -> 0.9362 | AC64: MK4 | AD64: ='Koeffizientenübersicht NB'!B13 -> 3.117724811 | AE64: ='Koeffizientenübersicht NB'!C13 -> -35.87150622 | AF64: ='Koeffizientenübersicht NB'!D13 -> 7.518682887 | AG64: ='Koeffizientenübersicht NB'!E13 -> 0.034330093 | AJ64: GHD3 | AM64: =VLOOKUP($O$2,$AO$2:$DA$25,64,FALSE) ->  | AN64: =AM64*S115*T115*U115*V115*W115*X115*Y115 -> 
A65: =Tageswerte!A65 -> 00:00:00 | B65: =Tageswerte!I65 -> 0 | D65: =IF(A65="","",Feiertage!B65) -> 6 | R65: =AC65 -> MK5 | S65: =IF($Q$2=1,(AD65 / (1 + (AE65 / (P$2- 40)) ^ AF65) + AG65)*VLOOKUP($Q$2,$Z$59:$AA$65,2),1) -> 1 | T65: =IF($Q$2=2,(AD65 / (1 + (AE65 / (P$2- 40)) ^ AF65) + AG65)*VLOOKUP($Q$2,$Z$59:$AA$65,2),1) -> 1 | U65: =IF($Q$2=3,(AD65 / (1 + (AE65 / (P$2- 40)) ^ AF65) + AG65)*VLOOKUP($Q$2,$Z$59:$AA$65,2),1) -> 1 | V65: =IF($Q$2=4,(AD65 / (1 + (AE65 / (P$2- 40)) ^ AF65) + AG65)*VLOOKUP($Q$2,$Z$59:$AA$65,2),1) -> 1.977812477 | W65: =IF($Q$2=5,(AD65 / (1 + (AE65 / (P$2- 40)) ^ AF65) + AG65)*VLOOKUP($Q$2,$Z$59:$AA$65,2),1) -> 1 | X65: =IF($Q$2=6,(AD65 / (1 + (AE65 / (P$2- 40)) ^ AF65) + AG65)*VLOOKUP($Q$2,$Z$59:$AA$65,2),1) -> 1 | Y65: =IF($Q$2=7,(AD65 / (1 + (AE65 / (P$2- 40)) ^ AF65) + AG65)*VLOOKUP($Q$2,$Z$59:$AA$65,2),1) -> 1 | Z65: 7 | AA65: ='Koeffizientenübersicht NB'!$L$10 -> 0.9034 | AC65: MK5 | AD65: ='Koeffizientenübersicht NB'!B14 -> 3.586235525 | AE65: ='Koeffizientenübersicht NB'!C14 -> -37.08029935 | AF65: ='Koeffizientenübersicht NB'!D14 -> 8.242057176 | AG65: ='Koeffizientenübersicht NB'!E14 -> 0.014600757 | AJ65: GHD4 | AM65: =VLOOKUP($O$2,$AO$2:$DA$25,65,FALSE) ->  | AN65: =AM65*S116*T116*U116*V116*W116*X116*Y116 -> 
A66: =Tageswerte!A66 -> 00:00:00 | B66: =Tageswerte!I66 -> 0 | D66: =IF(A66="","",Feiertage!B66) -> 7 | AM66: =SUM(AM2:AM65) ->  | AN66: =SUM(AN2:AN65) -> 
A67: =Tageswerte!A67 -> 00:00:00 | B67: =Tageswerte!I67 -> 0 | D67: =IF(A67="","",Feiertage!B67) -> 1 | R67: sonst. betr. Dienstleistungen | Z67: Tagesfaktoren
A68: =Tageswerte!A68 -> 00:00:00 | B68: =Tageswerte!I68 -> 0 | D68: =IF(A68="","",Feiertage!B68) -> 2 | R68: =IF(O68="","",WEEKDAY(O68,2)) ->  | Z68: 1 | AA68: ='Koeffizientenübersicht NB'!$F$25 -> 1.1052
A69: =Tageswerte!A69 -> 00:00:00 | B69: =Tageswerte!I69 -> 0 | D69: =IF(A69="","",Feiertage!B69) -> 3 | S69: Montag | T69: Dienstag | U69: Mittwoch | V69: Donnerstag | W69: Freitag | X69: Samstag | Y69: Sonntag | Z69: 2 | AA69: ='Koeffizientenübersicht NB'!$G$25 -> 1.0857
A70: =Tageswerte!A70 -> 00:00:00 | B70: =Tageswerte!I70 -> 0 | D70: =IF(A70="","",Feiertage!B70) -> 4 | R70: =AC70 -> BD1 | S70: =IF($Q$2=1,(AD70 / (1 + (AE70 / (P$2- 40)) ^ AF70) + AG70)*VLOOKUP($Q$2,$Z$68:$AA$74,2),1) -> 1 | T70: =IF($Q$2=2,(AD70 / (1 + (AE70 / (P$2- 40)) ^ AF70) + AG70)*VLOOKUP($Q$2,$Z$68:$AA$74,2),1) -> 1 | U70: =IF($Q$2=3,(AD70 / (1 + (AE70 / (P$2- 40)) ^ AF70) + AG70)*VLOOKUP($Q$2,$Z$68:$AA$74,2),1) -> 1 | V70: =IF($Q$2=4,(AD70 / (1 + (AE70 / (P$2- 40)) ^ AF70) + AG70)*VLOOKUP($Q$2,$Z$68:$AA$74,2),1) -> 1.223789226 | W70: =IF($Q$2=5,(AD70 / (1 + (AE70 / (P$2- 40)) ^ AF70) + AG70)*VLOOKUP($Q$2,$Z$68:$AA$74,2),1) -> 1 | X70: =IF($Q$2=6,(AD70 / (1 + (AE70 / (P$2- 40)) ^ AF70) + AG70)*VLOOKUP($Q$2,$Z$68:$AA$74,2),1) -> 1 | Y70: =IF($Q$2=7,(AD70 / (1 + (AE70 / (P$2- 40)) ^ AF70) + AG70)*VLOOKUP($Q$2,$Z$68:$AA$74,2),1) -> 1 | Z70: 3 | AA70: ='Koeffizientenübersicht NB'!$H$25 -> 1.0378 | AC70: BD1 | AD70: ='Koeffizientenübersicht NB'!B25 -> 1.290350459 | AE70: ='Koeffizientenübersicht NB'!C25 -> -35.23498683 | AF70: ='Koeffizientenübersicht NB'!D25 -> 2.106424688 | AG70: ='Koeffizientenübersicht NB'!E25 -> 0.455725333
A71: =Tageswerte!A71 -> 00:00:00 | B71: =Tageswerte!I71 -> 0 | D71: =IF(A71="","",Feiertage!B71) -> 5 | R71: =AC71 -> BD2 | S71: =IF($Q$2=1,(AD71 / (1 + (AE71 / (P$2- 40)) ^ AF71) + AG71)*VLOOKUP($Q$2,$Z$68:$AA$74,2),1) -> 1 | T71: =IF($Q$2=2,(AD71 / (1 + (AE71 / (P$2- 40)) ^ AF71) + AG71)*VLOOKUP($Q$2,$Z$68:$AA$74,2),1) -> 1 | U71: =IF($Q$2=3,(AD71 / (1 + (AE71 / (P$2- 40)) ^ AF71) + AG71)*VLOOKUP($Q$2,$Z$68:$AA$74,2),1) -> 1 | V71: =IF($Q$2=4,(AD71 / (1 + (AE71 / (P$2- 40)) ^ AF71) + AG71)*VLOOKUP($Q$2,$Z$68:$AA$74,2),1) -> 1.592929309 | W71: =IF($Q$2=5,(AD71 / (1 + (AE71 / (P$2- 40)) ^ AF71) + AG71)*VLOOKUP($Q$2,$Z$68:$AA$74,2),1) -> 1 | X71: =IF($Q$2=6,(AD71 / (1 + (AE71 / (P$2- 40)) ^ AF71) + AG71)*VLOOKUP($Q$2,$Z$68:$AA$74,2),1) -> 1 | Y71: =IF($Q$2=7,(AD71 / (1 + (AE71 / (P$2- 40)) ^ AF71) + AG71)*VLOOKUP($Q$2,$Z$68:$AA$74,2),1) -> 1 | Z71: 4 | AA71: ='Koeffizientenübersicht NB'!$I$25 -> 1.0622 | AC71: BD2 | AD71: ='Koeffizientenübersicht NB'!B26 -> 2.109587843 | AE71: ='Koeffizientenübersicht NB'!C26 -> -35.84445084 | AF71: ='Koeffizientenübersicht NB'!D26 -> 5.215467228 | AG71: ='Koeffizientenübersicht NB'!E26 -> 0.285458254
A72: =Tageswerte!A72 -> 00:00:00 | B72: =Tageswerte!I72 -> 0 | D72: =IF(A72="","",Feiertage!B72) -> 6 | R72: =AC72 -> BD3 | S72: =IF($Q$2=1,(AD72 / (1 + (AE72 / (P$2- 40)) ^ AF72) + AG72)*VLOOKUP($Q$2,$Z$68:$AA$74,2),1) -> 1 | T72: =IF($Q$2=2,(AD72 / (1 + (AE72 / (P$2- 40)) ^ AF72) + AG72)*VLOOKUP($Q$2,$Z$68:$AA$74,2),1) -> 1 | U72: =IF($Q$2=3,(AD72 / (1 + (AE72 / (P$2- 40)) ^ AF72) + AG72)*VLOOKUP($Q$2,$Z$68:$AA$74,2),1) -> 1 | V72: =IF($Q$2=4,(AD72 / (1 + (AE72 / (P$2- 40)) ^ AF72) + AG72)*VLOOKUP($Q$2,$Z$68:$AA$74,2),1) -> 1.895811553 | W72: =IF($Q$2=5,(AD72 / (1 + (AE72 / (P$2- 40)) ^ AF72) + AG72)*VLOOKUP($Q$2,$Z$68:$AA$74,2),1) -> 1 | X72: =IF($Q$2=6,(AD72 / (1 + (AE72 / (P$2- 40)) ^ AF72) + AG72)*VLOOKUP($Q$2,$Z$68:$AA$74,2),1) -> 1 | Y72: =IF($Q$2=7,(AD72 / (1 + (AE72 / (P$2- 40)) ^ AF72) + AG72)*VLOOKUP($Q$2,$Z$68:$AA$74,2),1) -> 1 | Z72: 5 | AA72: ='Koeffizientenübersicht NB'!$J$25 -> 1.0266 | AC72: BD3 | AD72: ='Koeffizientenübersicht NB'!B27 -> 2.917702722 | AE72: ='Koeffizientenübersicht NB'!C27 -> -36.17941165 | AF72: ='Koeffizientenübersicht NB'!D27 -> 5.926516165 | AG72: ='Koeffizientenübersicht NB'!E27 -> 0.115191176
A73: =Tageswerte!A73 -> 00:00:00 | B73: =Tageswerte!I73 -> 0 | D73: =IF(A73="","",Feiertage!B73) -> 7 | R73: =AC73 -> BD4 | S73: =IF($Q$2=1,(AD73 / (1 + (AE73 / (P$2- 40)) ^ AF73) + AG73)*VLOOKUP($Q$2,$Z$68:$AA$74,2),1) -> 1 | T73: =IF($Q$2=2,(AD73 / (1 + (AE73 / (P$2- 40)) ^ AF73) + AG73)*VLOOKUP($Q$2,$Z$68:$AA$74,2),1) -> 1 | U73: =IF($Q$2=3,(AD73 / (1 + (AE73 / (P$2- 40)) ^ AF73) + AG73)*VLOOKUP($Q$2,$Z$68:$AA$74,2),1) -> 1 | V73: =IF($Q$2=4,(AD73 / (1 + (AE73 / (P$2- 40)) ^ AF73) + AG73)*VLOOKUP($Q$2,$Z$68:$AA$74,2),1) -> 2.145954747 | W73: =IF($Q$2=5,(AD73 / (1 + (AE73 / (P$2- 40)) ^ AF73) + AG73)*VLOOKUP($Q$2,$Z$68:$AA$74,2),1) -> 1 | X73: =IF($Q$2=6,(AD73 / (1 + (AE73 / (P$2- 40)) ^ AF73) + AG73)*VLOOKUP($Q$2,$Z$68:$AA$74,2),1) -> 1 | Y73: =IF($Q$2=7,(AD73 / (1 + (AE73 / (P$2- 40)) ^ AF73) + AG73)*VLOOKUP($Q$2,$Z$68:$AA$74,2),1) -> 1 | Z73: 6 | AA73: ='Koeffizientenübersicht NB'!$K$25 -> 0.7629 | AC73: BD4 | AD73: ='Koeffizientenübersicht NB'!B28 -> 3.75 | AE73: ='Koeffizientenübersicht NB'!C28 -> -37.5 | AF73: ='Koeffizientenübersicht NB'!D28 -> 6.8 | AG73: ='Koeffizientenübersicht NB'!E28 -> 0.060911265
A74: =Tageswerte!A74 -> 00:00:00 | B74: =Tageswerte!I74 -> 0 | D74: =IF(A74="","",Feiertage!B74) -> 1 | R74: =AC74 -> BD5 | S74: =IF($Q$2=1,(AD74 / (1 + (AE74 / (P$2- 40)) ^ AF74) + AG74)*VLOOKUP($Q$2,$Z$68:$AA$74,2),1) -> 1 | T74: =IF($Q$2=2,(AD74 / (1 + (AE74 / (P$2- 40)) ^ AF74) + AG74)*VLOOKUP($Q$2,$Z$68:$AA$74,2),1) -> 1 | U74: =IF($Q$2=3,(AD74 / (1 + (AE74 / (P$2- 40)) ^ AF74) + AG74)*VLOOKUP($Q$2,$Z$68:$AA$74,2),1) -> 1 | V74: =IF($Q$2=4,(AD74 / (1 + (AE74 / (P$2- 40)) ^ AF74) + AG74)*VLOOKUP($Q$2,$Z$68:$AA$74,2),1) -> 2.305279429 | W74: =IF($Q$2=5,(AD74 / (1 + (AE74 / (P$2- 40)) ^ AF74) + AG74)*VLOOKUP($Q$2,$Z$68:$AA$74,2),1) -> 1 | X74: =IF($Q$2=6,(AD74 / (1 + (AE74 / (P$2- 40)) ^ AF74) + AG74)*VLOOKUP($Q$2,$Z$68:$AA$74,2),1) -> 1 | Y74: =IF($Q$2=7,(AD74 / (1 + (AE74 / (P$2- 40)) ^ AF74) + AG74)*VLOOKUP($Q$2,$Z$68:$AA$74,2),1) -> 1 | Z74: 7 | AA74: ='Koeffizientenübersicht NB'!$L$25 -> 0.9196 | AC74: BD5 | AD74: ='Koeffizientenübersicht NB'!B29 -> 4.569950565 | AE74: ='Koeffizientenübersicht NB'!C29 -> -38.53533924 | AF74: ='Koeffizientenübersicht NB'!D29 -> 7.597699099 | AG74: ='Koeffizientenübersicht NB'!E29 -> 0.006631354
A75: =Tageswerte!A75 -> 00:00:00 | B75: =Tageswerte!I75 -> 0 | D75: =IF(A75="","",Feiertage!B75) -> 2
A76: =Tageswerte!A76 -> 00:00:00 | B76: =Tageswerte!I76 -> 0 | D76: =IF(A76="","",Feiertage!B76) -> 3 | R76: Gaststätten | Z76: Tagesfaktoren
A77: =Tageswerte!A77 -> 00:00:00 | B77: =Tageswerte!I77 -> 0 | D77: =IF(A77="","",Feiertage!B77) -> 4 | R77: =IF(O77="","",WEEKDAY(O77,2)) ->  | Z77: 1 | AA77: ='Koeffizientenübersicht NB'!$F$30 -> 0.9322
A78: =Tageswerte!A78 -> 00:00:00 | B78: =Tageswerte!I78 -> 0 | D78: =IF(A78="","",Feiertage!B78) -> 5 | S78: Montag | T78: Dienstag | U78: Mittwoch | V78: Donnerstag | W78: Freitag | X78: Samstag | Y78: Sonntag | Z78: 2 | AA78: ='Koeffizientenübersicht NB'!$G$30 -> 0.9894
A79: =Tageswerte!A79 -> 00:00:00 | B79: =Tageswerte!I79 -> 0 | D79: =IF(A79="","",Feiertage!B79) -> 6 | R79: =AC79 -> GA1 | S79: =IF($Q$2=1,(AD79 / (1 + (AE79 / (P$2- 40)) ^ AF79) + AG79)*VLOOKUP($Q$2,$Z$77:$AA$83,2),1) -> 1 | T79: =IF($Q$2=2,(AD79 / (1 + (AE79 / (P$2- 40)) ^ AF79) + AG79)*VLOOKUP($Q$2,$Z$77:$AA$83,2),1) -> 1 | U79: =IF($Q$2=3,(AD79 / (1 + (AE79 / (P$2- 40)) ^ AF79) + AG79)*VLOOKUP($Q$2,$Z$77:$AA$83,2),1) -> 1 | V79: =IF($Q$2=4,(AD79 / (1 + (AE79 / (P$2- 40)) ^ AF79) + AG79)*VLOOKUP($Q$2,$Z$77:$AA$83,2),1) -> 1.225019776 | W79: =IF($Q$2=5,(AD79 / (1 + (AE79 / (P$2- 40)) ^ AF79) + AG79)*VLOOKUP($Q$2,$Z$77:$AA$83,2),1) -> 1 | X79: =IF($Q$2=6,(AD79 / (1 + (AE79 / (P$2- 40)) ^ AF79) + AG79)*VLOOKUP($Q$2,$Z$77:$AA$83,2),1) -> 1 | Y79: =IF($Q$2=7,(AD79 / (1 + (AE79 / (P$2- 40)) ^ AF79) + AG79)*VLOOKUP($Q$2,$Z$77:$AA$83,2),1) -> 1 | Z79: 3 | AA79: ='Koeffizientenübersicht NB'!$H$30 -> 1.0033 | AC79: GA1 | AD79: ='Koeffizientenübersicht NB'!B30 -> 1.177034538 | AE79: ='Koeffizientenübersicht NB'!C30 -> -39.1599914 | AF79: ='Koeffizientenübersicht NB'!D30 -> 4.207610964 | AG79: ='Koeffizientenübersicht NB'!E30 -> 0.660473932
A80: =Tageswerte!A80 -> 00:00:00 | B80: =Tageswerte!I80 -> 0 | D80: =IF(A80="","",Feiertage!B80) -> 7 | R80: =AC80 -> GA2 | S80: =IF($Q$2=1,(AD80 / (1 + (AE80 / (P$2- 40)) ^ AF80) + AG80)*VLOOKUP($Q$2,$Z$77:$AA$83,2),1) -> 1 | T80: =IF($Q$2=2,(AD80 / (1 + (AE80 / (P$2- 40)) ^ AF80) + AG80)*VLOOKUP($Q$2,$Z$77:$AA$83,2),1) -> 1 | U80: =IF($Q$2=3,(AD80 / (1 + (AE80 / (P$2- 40)) ^ AF80) + AG80)*VLOOKUP($Q$2,$Z$77:$AA$83,2),1) -> 1 | V80: =IF($Q$2=4,(AD80 / (1 + (AE80 / (P$2- 40)) ^ AF80) + AG80)*VLOOKUP($Q$2,$Z$77:$AA$83,2),1) -> 1.43723931 | W80: =IF($Q$2=5,(AD80 / (1 + (AE80 / (P$2- 40)) ^ AF80) + AG80)*VLOOKUP($Q$2,$Z$77:$AA$83,2),1) -> 1 | X80: =IF($Q$2=6,(AD80 / (1 + (AE80 / (P$2- 40)) ^ AF80) + AG80)*VLOOKUP($Q$2,$Z$77:$AA$83,2),1) -> 1 | Y80: =IF($Q$2=7,(AD80 / (1 + (AE80 / (P$2- 40)) ^ AF80) + AG80)*VLOOKUP($Q$2,$Z$77:$AA$83,2),1) -> 1 | Z80: 4 | AA80: ='Koeffizientenübersicht NB'!$I$30 -> 1.0109 | AC80: GA2 | AD80: ='Koeffizientenübersicht NB'!B31 -> 1.648762294 | AE80: ='Koeffizientenübersicht NB'!C31 -> -36.39927357 | AF80: ='Koeffizientenübersicht NB'!D31 -> 6.214917209 | AG80: ='Koeffizientenübersicht NB'!E31 -> 0.487763733
A81: =Tageswerte!A81 -> 00:00:00 | B81: =Tageswerte!I81 -> 0 | D81: =IF(A81="","",Feiertage!B81) -> 1 | R81: =AC81 -> GA3 | S81: =IF($Q$2=1,(AD81 / (1 + (AE81 / (P$2- 40)) ^ AF81) + AG81)*VLOOKUP($Q$2,$Z$77:$AA$83,2),1) -> 1 | T81: =IF($Q$2=2,(AD81 / (1 + (AE81 / (P$2- 40)) ^ AF81) + AG81)*VLOOKUP($Q$2,$Z$77:$AA$83,2),1) -> 1 | U81: =IF($Q$2=3,(AD81 / (1 + (AE81 / (P$2- 40)) ^ AF81) + AG81)*VLOOKUP($Q$2,$Z$77:$AA$83,2),1) -> 1 | V81: =IF($Q$2=4,(AD81 / (1 + (AE81 / (P$2- 40)) ^ AF81) + AG81)*VLOOKUP($Q$2,$Z$77:$AA$83,2),1) -> 1.647522585 | W81: =IF($Q$2=5,(AD81 / (1 + (AE81 / (P$2- 40)) ^ AF81) + AG81)*VLOOKUP($Q$2,$Z$77:$AA$83,2),1) -> 1 | X81: =IF($Q$2=6,(AD81 / (1 + (AE81 / (P$2- 40)) ^ AF81) + AG81)*VLOOKUP($Q$2,$Z$77:$AA$83,2),1) -> 1 | Y81: =IF($Q$2=7,(AD81 / (1 + (AE81 / (P$2- 40)) ^ AF81) + AG81)*VLOOKUP($Q$2,$Z$77:$AA$83,2),1) -> 1 | Z81: 5 | AA81: ='Koeffizientenübersicht NB'!$J$30 -> 1.018 | AC81: GA3 | AD81: ='Koeffizientenübersicht NB'!B32 -> 2.285016474 | AE81: ='Koeffizientenübersicht NB'!C32 -> -36.28785839 | AF81: ='Koeffizientenübersicht NB'!D32 -> 6.588512639 | AG81: ='Koeffizientenübersicht NB'!E32 -> 0.315053534
A82: =Tageswerte!A82 -> 00:00:00 | B82: =Tageswerte!I82 -> 0 | D82: =IF(A82="","",Feiertage!B82) -> 2 | R82: =AC82 -> GA4 | S82: =IF($Q$2=1,(AD82 / (1 + (AE82 / (P$2- 40)) ^ AF82) + AG82)*VLOOKUP($Q$2,$Z$77:$AA$83,2),1) -> 1 | T82: =IF($Q$2=2,(AD82 / (1 + (AE82 / (P$2- 40)) ^ AF82) + AG82)*VLOOKUP($Q$2,$Z$77:$AA$83,2),1) -> 1 | U82: =IF($Q$2=3,(AD82 / (1 + (AE82 / (P$2- 40)) ^ AF82) + AG82)*VLOOKUP($Q$2,$Z$77:$AA$83,2),1) -> 1 | V82: =IF($Q$2=4,(AD82 / (1 + (AE82 / (P$2- 40)) ^ AF82) + AG82)*VLOOKUP($Q$2,$Z$77:$AA$83,2),1) -> 1.877950158 | W82: =IF($Q$2=5,(AD82 / (1 + (AE82 / (P$2- 40)) ^ AF82) + AG82)*VLOOKUP($Q$2,$Z$77:$AA$83,2),1) -> 1 | X82: =IF($Q$2=6,(AD82 / (1 + (AE82 / (P$2- 40)) ^ AF82) + AG82)*VLOOKUP($Q$2,$Z$77:$AA$83,2),1) -> 1 | Y82: =IF($Q$2=7,(AD82 / (1 + (AE82 / (P$2- 40)) ^ AF82) + AG82)*VLOOKUP($Q$2,$Z$77:$AA$83,2),1) -> 1 | Z82: 6 | AA82: ='Koeffizientenübersicht NB'!$K$30 -> 1.0356 | AC82: GA4 | AD82: ='Koeffizientenübersicht NB'!B33 -> 2.819565615 | AE82: ='Koeffizientenübersicht NB'!C33 -> -36 | AF82: ='Koeffizientenübersicht NB'!D33 -> 7.736851768 | AG82: ='Koeffizientenübersicht NB'!E33 -> 0.15728098
A83: =Tageswerte!A83 -> 00:00:00 | B83: =Tageswerte!I83 -> 0 | D83: =IF(A83="","",Feiertage!B83) -> 3 | R83: =AC83 -> GA5 | S83: =IF($Q$2=1,(AD83 / (1 + (AE83 / (P$2- 40)) ^ AF83) + AG83)*VLOOKUP($Q$2,$Z$77:$AA$83,2),1) -> 1 | T83: =IF($Q$2=2,(AD83 / (1 + (AE83 / (P$2- 40)) ^ AF83) + AG83)*VLOOKUP($Q$2,$Z$77:$AA$83,2),1) -> 1 | U83: =IF($Q$2=3,(AD83 / (1 + (AE83 / (P$2- 40)) ^ AF83) + AG83)*VLOOKUP($Q$2,$Z$77:$AA$83,2),1) -> 1 | V83: =IF($Q$2=4,(AD83 / (1 + (AE83 / (P$2- 40)) ^ AF83) + AG83)*VLOOKUP($Q$2,$Z$77:$AA$83,2),1) -> 2.072062198 | W83: =IF($Q$2=5,(AD83 / (1 + (AE83 / (P$2- 40)) ^ AF83) + AG83)*VLOOKUP($Q$2,$Z$77:$AA$83,2),1) -> 1 | X83: =IF($Q$2=6,(AD83 / (1 + (AE83 / (P$2- 40)) ^ AF83) + AG83)*VLOOKUP($Q$2,$Z$77:$AA$83,2),1) -> 1 | Y83: =IF($Q$2=7,(AD83 / (1 + (AE83 / (P$2- 40)) ^ AF83) + AG83)*VLOOKUP($Q$2,$Z$77:$AA$83,2),1) -> 1 | Z83: 7 | AA83: ='Koeffizientenübersicht NB'!$L$30 -> 1.0106 | AC83: GA5 | AD83: ='Koeffizientenübersicht NB'!B34 -> 3.329557482 | AE83: ='Koeffizientenübersicht NB'!C34 -> -36.01462112 | AF83: ='Koeffizientenübersicht NB'!D34 -> 8.776746471 | AG83: ='Koeffizientenübersicht NB'!E34 -> 0
A84: =Tageswerte!A84 -> 00:00:00 | B84: =Tageswerte!I84 -> 0 | D84: =IF(A84="","",Feiertage!B84) -> 4
A85: =Tageswerte!A85 -> 00:00:00 | B85: =Tageswerte!I85 -> 0 | D85: =IF(A85="","",Feiertage!B85) -> 5 | R85: Haushaltsähnliche Gewerbe | Z85: Tagesfaktoren
A86: =Tageswerte!A86 -> 00:00:00 | B86: =Tageswerte!I86 -> 0 | D86: =IF(A86="","",Feiertage!B86) -> 6 | R86: =IF(O59="","",WEEKDAY(O59,2)) ->  | Z86: 1 | AA86: ='Koeffizientenübersicht NB'!$F$60 -> 1.0354
A87: =Tageswerte!A87 -> 00:00:00 | B87: =Tageswerte!I87 -> 0 | D87: =IF(A87="","",Feiertage!B87) -> 7 | S87: Montag | T87: Dienstag | U87: Mittwoch | V87: Donnerstag | W87: Freitag | X87: Samstag | Y87: Sonntag | Z87: 2 | AA87: ='Koeffizientenübersicht NB'!$G$60 -> 1.0523
A88: =Tageswerte!A88 -> 00:00:00 | B88: =Tageswerte!I88 -> 0 | D88: =IF(A88="","",Feiertage!B88) -> 1 | R88: =AC88 -> MF1 | S88: =IF($Q$2=1,(AD88 / (1 + (AE88 / (P$2- 40)) ^ AF88) + AG88)*VLOOKUP($Q$2,$Z$86:$AA$92,2),1) -> 1 | T88: =IF($Q$2=2,(AD88 / (1 + (AE88 / (P$2- 40)) ^ AF88) + AG88)*VLOOKUP($Q$2,$Z$86:$AA$92,2),1) -> 1 | U88: =IF($Q$2=3,(AD88 / (1 + (AE88 / (P$2- 40)) ^ AF88) + AG88)*VLOOKUP($Q$2,$Z$86:$AA$92,2),1) -> 1 | V88: =IF($Q$2=4,(AD88 / (1 + (AE88 / (P$2- 40)) ^ AF88) + AG88)*VLOOKUP($Q$2,$Z$86:$AA$92,2),1) -> 1.569696437 | W88: =IF($Q$2=5,(AD88 / (1 + (AE88 / (P$2- 40)) ^ AF88) + AG88)*VLOOKUP($Q$2,$Z$86:$AA$92,2),1) -> 1 | X88: =IF($Q$2=6,(AD88 / (1 + (AE88 / (P$2- 40)) ^ AF88) + AG88)*VLOOKUP($Q$2,$Z$86:$AA$92,2),1) -> 1 | Y88: =IF($Q$2=7,(AD88 / (1 + (AE88 / (P$2- 40)) ^ AF88) + AG88)*VLOOKUP($Q$2,$Z$86:$AA$92,2),1) -> 1 | Z88: 3 | AA88: ='Koeffizientenübersicht NB'!$H$60 -> 1.0449 | AC88: MF1 | AD88: ='Koeffizientenübersicht NB'!B60 -> 2.116353087 | AE88: ='Koeffizientenübersicht NB'!C60 -> -34.26286231 | AF88: ='Koeffizientenübersicht NB'!D60 -> 5.176387424 | AG88: ='Koeffizientenübersicht NB'!E60 -> 0.160694541
A89: =Tageswerte!A89 -> 00:00:00 | B89: =Tageswerte!I89 -> 0 | D89: =IF(A89="","",Feiertage!B89) -> 2 | R89: =AC89 -> MF2 | S89: =IF($Q$2=1,(AD89 / (1 + (AE89 / (P$2- 40)) ^ AF89) + AG89)*VLOOKUP($Q$2,$Z$86:$AA$92,2),1) -> 1 | T89: =IF($Q$2=2,(AD89 / (1 + (AE89 / (P$2- 40)) ^ AF89) + AG89)*VLOOKUP($Q$2,$Z$86:$AA$92,2),1) -> 1 | U89: =IF($Q$2=3,(AD89 / (1 + (AE89 / (P$2- 40)) ^ AF89) + AG89)*VLOOKUP($Q$2,$Z$86:$AA$92,2),1) -> 1 | V89: =IF($Q$2=4,(AD89 / (1 + (AE89 / (P$2- 40)) ^ AF89) + AG89)*VLOOKUP($Q$2,$Z$86:$AA$92,2),1) -> 1.633082207 | W89: =IF($Q$2=5,(AD89 / (1 + (AE89 / (P$2- 40)) ^ AF89) + AG89)*VLOOKUP($Q$2,$Z$86:$AA$92,2),1) -> 1 | X89: =IF($Q$2=6,(AD89 / (1 + (AE89 / (P$2- 40)) ^ AF89) + AG89)*VLOOKUP($Q$2,$Z$86:$AA$92,2),1) -> 1 | Y89: =IF($Q$2=7,(AD89 / (1 + (AE89 / (P$2- 40)) ^ AF89) + AG89)*VLOOKUP($Q$2,$Z$86:$AA$92,2),1) -> 1 | Z89: 4 | AA89: ='Koeffizientenübersicht NB'!$I$60 -> 1.0494 | AC89: MF2 | AD89: ='Koeffizientenübersicht NB'!B61 -> 2.248633329 | AE89: ='Koeffizientenübersicht NB'!C61 -> -34.54284307 | AF89: ='Koeffizientenübersicht NB'!D61 -> 5.554524484 | AG89: ='Koeffizientenübersicht NB'!E61 -> 0.140821963
A90: =Tageswerte!A90 -> 00:00:00 | B90: =Tageswerte!I90 -> 0 | D90: =IF(A90="","",Feiertage!B90) -> 3 | R90: =AC90 -> MF3 | S90: =IF($Q$2=1,(AD90 / (1 + (AE90 / (P$2- 40)) ^ AF90) + AG90)*VLOOKUP($Q$2,$Z$86:$AA$92,2),1) -> 1 | T90: =IF($Q$2=2,(AD90 / (1 + (AE90 / (P$2- 40)) ^ AF90) + AG90)*VLOOKUP($Q$2,$Z$86:$AA$92,2),1) -> 1 | U90: =IF($Q$2=3,(AD90 / (1 + (AE90 / (P$2- 40)) ^ AF90) + AG90)*VLOOKUP($Q$2,$Z$86:$AA$92,2),1) -> 1 | V90: =IF($Q$2=4,(AD90 / (1 + (AE90 / (P$2- 40)) ^ AF90) + AG90)*VLOOKUP($Q$2,$Z$86:$AA$92,2),1) -> 1.701066862 | W90: =IF($Q$2=5,(AD90 / (1 + (AE90 / (P$2- 40)) ^ AF90) + AG90)*VLOOKUP($Q$2,$Z$86:$AA$92,2),1) -> 1 | X90: =IF($Q$2=6,(AD90 / (1 + (AE90 / (P$2- 40)) ^ AF90) + AG90)*VLOOKUP($Q$2,$Z$86:$AA$92,2),1) -> 1 | Y90: =IF($Q$2=7,(AD90 / (1 + (AE90 / (P$2- 40)) ^ AF90) + AG90)*VLOOKUP($Q$2,$Z$86:$AA$92,2),1) -> 1 | Z90: 5 | AA90: ='Koeffizientenübersicht NB'!$J$60 -> 0.9885 | AC90: MF3 | AD90: ='Koeffizientenübersicht NB'!B62 -> 2.387761791 | AE90: ='Koeffizientenübersicht NB'!C62 -> -34.72136051 | AF90: ='Koeffizientenübersicht NB'!D62 -> 5.816430402 | AG90: ='Koeffizientenübersicht NB'!E62 -> 0.120819368
A91: =Tageswerte!A91 -> 00:00:00 | B91: =Tageswerte!I91 -> 0 | D91: =IF(A91="","",Feiertage!B91) -> 4 | R91: =AC91 -> MF4 | S91: =IF($Q$2=1,(AD91 / (1 + (AE91 / (P$2- 40)) ^ AF91) + AG91)*VLOOKUP($Q$2,$Z$86:$AA$92,2),1) -> 1 | T91: =IF($Q$2=2,(AD91 / (1 + (AE91 / (P$2- 40)) ^ AF91) + AG91)*VLOOKUP($Q$2,$Z$86:$AA$92,2),1) -> 1 | U91: =IF($Q$2=3,(AD91 / (1 + (AE91 / (P$2- 40)) ^ AF91) + AG91)*VLOOKUP($Q$2,$Z$86:$AA$92,2),1) -> 1 | V91: =IF($Q$2=4,(AD91 / (1 + (AE91 / (P$2- 40)) ^ AF91) + AG91)*VLOOKUP($Q$2,$Z$86:$AA$92,2),1) -> 1.755035478 | W91: =IF($Q$2=5,(AD91 / (1 + (AE91 / (P$2- 40)) ^ AF91) + AG91)*VLOOKUP($Q$2,$Z$86:$AA$92,2),1) -> 1 | X91: =IF($Q$2=6,(AD91 / (1 + (AE91 / (P$2- 40)) ^ AF91) + AG91)*VLOOKUP($Q$2,$Z$86:$AA$92,2),1) -> 1 | Y91: =IF($Q$2=7,(AD91 / (1 + (AE91 / (P$2- 40)) ^ AF91) + AG91)*VLOOKUP($Q$2,$Z$86:$AA$92,2),1) -> 1 | Z91: 6 | AA91: ='Koeffizientenübersicht NB'!$K$60 -> 0.886 | AC91: MF4 | AD91: ='Koeffizientenübersicht NB'!B63 -> 2.518777519 | AE91: ='Koeffizientenübersicht NB'!C63 -> -35.03337542 | AF91: ='Koeffizientenübersicht NB'!D63 -> 6.224063396 | AG91: ='Koeffizientenübersicht NB'!E63 -> 0.101078172
A92: =Tageswerte!A92 -> 00:00:00 | B92: =Tageswerte!I92 -> 0 | D92: =IF(A92="","",Feiertage!B92) -> 5 | R92: =AC92 -> MF5 | S92: =IF($Q$2=1,(AD92 / (1 + (AE92 / (P$2- 40)) ^ AF92) + AG92)*VLOOKUP($Q$2,$Z$86:$AA$92,2),1) -> 1 | T92: =IF($Q$2=2,(AD92 / (1 + (AE92 / (P$2- 40)) ^ AF92) + AG92)*VLOOKUP($Q$2,$Z$86:$AA$92,2),1) -> 1 | U92: =IF($Q$2=3,(AD92 / (1 + (AE92 / (P$2- 40)) ^ AF92) + AG92)*VLOOKUP($Q$2,$Z$86:$AA$92,2),1) -> 1 | V92: =IF($Q$2=4,(AD92 / (1 + (AE92 / (P$2- 40)) ^ AF92) + AG92)*VLOOKUP($Q$2,$Z$86:$AA$92,2),1) -> 1.813437438 | W92: =IF($Q$2=5,(AD92 / (1 + (AE92 / (P$2- 40)) ^ AF92) + AG92)*VLOOKUP($Q$2,$Z$86:$AA$92,2),1) -> 1 | X92: =IF($Q$2=6,(AD92 / (1 + (AE92 / (P$2- 40)) ^ AF92) + AG92)*VLOOKUP($Q$2,$Z$86:$AA$92,2),1) -> 1 | Y92: =IF($Q$2=7,(AD92 / (1 + (AE92 / (P$2- 40)) ^ AF92) + AG92)*VLOOKUP($Q$2,$Z$86:$AA$92,2),1) -> 1 | Z92: 7 | AA92: ='Koeffizientenübersicht NB'!$L$60 -> 0.9435 | AC92: MF5 | AD92: ='Koeffizientenübersicht NB'!B64 -> 2.656440592 | AE92: ='Koeffizientenübersicht NB'!C64 -> -35.25169267 | AF92: ='Koeffizientenübersicht NB'!D64 -> 6.518265862 | AG92: ='Koeffizientenübersicht NB'!E64 -> 0.081205866
A93: =Tageswerte!A93 -> 00:00:00 | B93: =Tageswerte!I93 -> 0 | D93: =IF(A93="","",Feiertage!B93) -> 6
A94: =Tageswerte!A94 -> 00:00:00 | B94: =Tageswerte!I94 -> 0 | D94: =IF(A94="","",Feiertage!B94) -> 7 | R94: Papier und Druck | Z94: Tagesfaktoren
A95: =Tageswerte!A95 -> 00:00:00 | B95: =Tageswerte!I95 -> 0 | D95: =IF(A95="","",Feiertage!B95) -> 1 | R95: =IF(O68="","",WEEKDAY(O68,2)) ->  | Z95: 1 | AA95: ='Koeffizientenübersicht NB'!$F$55 -> 1.0214
A96: =Tageswerte!A96 -> 00:00:00 | B96: =Tageswerte!I96 -> 0 | D96: =IF(A96="","",Feiertage!B96) -> 2 | S96: Montag | T96: Dienstag | U96: Mittwoch | V96: Donnerstag | W96: Freitag | X96: Samstag | Y96: Sonntag | Z96: 2 | AA96: ='Koeffizientenübersicht NB'!$G$55 -> 1.0866
A97: =Tageswerte!A97 -> 00:00:00 | B97: =Tageswerte!I97 -> 0 | D97: =IF(A97="","",Feiertage!B97) -> 3 | R97: =AC97 -> PD1 | S97: =IF($Q$2=1,(AD97 / (1 + (AE97 / (P$2- 40)) ^ AF97) + AG97)*VLOOKUP($Q$2,$Z$95:$AA$101,2),1) -> 1 | T97: =IF($Q$2=2,(AD97 / (1 + (AE97 / (P$2- 40)) ^ AF97) + AG97)*VLOOKUP($Q$2,$Z$95:$AA$101,2),1) -> 1 | U97: =IF($Q$2=3,(AD97 / (1 + (AE97 / (P$2- 40)) ^ AF97) + AG97)*VLOOKUP($Q$2,$Z$95:$AA$101,2),1) -> 1 | V97: =IF($Q$2=4,(AD97 / (1 + (AE97 / (P$2- 40)) ^ AF97) + AG97)*VLOOKUP($Q$2,$Z$95:$AA$101,2),1) -> 1.647090852 | W97: =IF($Q$2=5,(AD97 / (1 + (AE97 / (P$2- 40)) ^ AF97) + AG97)*VLOOKUP($Q$2,$Z$95:$AA$101,2),1) -> 1 | X97: =IF($Q$2=6,(AD97 / (1 + (AE97 / (P$2- 40)) ^ AF97) + AG97)*VLOOKUP($Q$2,$Z$95:$AA$101,2),1) -> 1 | Y97: =IF($Q$2=7,(AD97 / (1 + (AE97 / (P$2- 40)) ^ AF97) + AG97)*VLOOKUP($Q$2,$Z$95:$AA$101,2),1) -> 1 | Z97: 3 | AA97: ='Koeffizientenübersicht NB'!$H$55 -> 1.072 | AC97: PD1 | AD97: ='Koeffizientenübersicht NB'!B55 -> 1.489402246 | AE97: ='Koeffizientenübersicht NB'!C55 -> -32.42526775 | AF97: ='Koeffizientenübersicht NB'!D55 -> 8.173261208 | AG97: ='Koeffizientenübersicht NB'!E55 -> 0.390598736
A98: =Tageswerte!A98 -> 00:00:00 | B98: =Tageswerte!I98 -> 0 | D98: =IF(A98="","",Feiertage!B98) -> 4 | R98: =AC98 -> PD2 | S98: =IF($Q$2=1,(AD98 / (1 + (AE98 / (P$2- 40)) ^ AF98) + AG98)*VLOOKUP($Q$2,$Z$95:$AA$101,2),1) -> 1 | T98: =IF($Q$2=2,(AD98 / (1 + (AE98 / (P$2- 40)) ^ AF98) + AG98)*VLOOKUP($Q$2,$Z$95:$AA$101,2),1) -> 1 | U98: =IF($Q$2=3,(AD98 / (1 + (AE98 / (P$2- 40)) ^ AF98) + AG98)*VLOOKUP($Q$2,$Z$95:$AA$101,2),1) -> 1 | V98: =IF($Q$2=4,(AD98 / (1 + (AE98 / (P$2- 40)) ^ AF98) + AG98)*VLOOKUP($Q$2,$Z$95:$AA$101,2),1) -> 1.895333604 | W98: =IF($Q$2=5,(AD98 / (1 + (AE98 / (P$2- 40)) ^ AF98) + AG98)*VLOOKUP($Q$2,$Z$95:$AA$101,2),1) -> 1 | X98: =IF($Q$2=6,(AD98 / (1 + (AE98 / (P$2- 40)) ^ AF98) + AG98)*VLOOKUP($Q$2,$Z$95:$AA$101,2),1) -> 1 | Y98: =IF($Q$2=7,(AD98 / (1 + (AE98 / (P$2- 40)) ^ AF98) + AG98)*VLOOKUP($Q$2,$Z$95:$AA$101,2),1) -> 1 | Z98: 4 | AA98: ='Koeffizientenübersicht NB'!$I$55 -> 1.0557 | AC98: PD2 | AD98: ='Koeffizientenübersicht NB'!B56 -> 2.578417254 | AE98: ='Koeffizientenübersicht NB'!C56 -> -34.7321261 | AF98: ='Koeffizientenübersicht NB'!D56 -> 6.480503514 | AG98: ='Koeffizientenübersicht NB'!E56 -> 0.140772912
A99: =Tageswerte!A99 -> 00:00:00 | B99: =Tageswerte!I99 -> 0 | D99: =IF(A99="","",Feiertage!B99) -> 5 | R99: =AC99 -> PD3 | S99: =IF($Q$2=1,(AD99 / (1 + (AE99 / (P$2- 40)) ^ AF99) + AG99)*VLOOKUP($Q$2,$Z$95:$AA$101,2),1) -> 1 | T99: =IF($Q$2=2,(AD99 / (1 + (AE99 / (P$2- 40)) ^ AF99) + AG99)*VLOOKUP($Q$2,$Z$95:$AA$101,2),1) -> 1 | U99: =IF($Q$2=3,(AD99 / (1 + (AE99 / (P$2- 40)) ^ AF99) + AG99)*VLOOKUP($Q$2,$Z$95:$AA$101,2),1) -> 1 | V99: =IF($Q$2=4,(AD99 / (1 + (AE99 / (P$2- 40)) ^ AF99) + AG99)*VLOOKUP($Q$2,$Z$95:$AA$101,2),1) -> 2.20265618 | W99: =IF($Q$2=5,(AD99 / (1 + (AE99 / (P$2- 40)) ^ AF99) + AG99)*VLOOKUP($Q$2,$Z$95:$AA$101,2),1) -> 1 | X99: =IF($Q$2=6,(AD99 / (1 + (AE99 / (P$2- 40)) ^ AF99) + AG99)*VLOOKUP($Q$2,$Z$95:$AA$101,2),1) -> 1 | Y99: =IF($Q$2=7,(AD99 / (1 + (AE99 / (P$2- 40)) ^ AF99) + AG99)*VLOOKUP($Q$2,$Z$95:$AA$101,2),1) -> 1 | Z99: 5 | AA99: ='Koeffizientenübersicht NB'!$J$55 -> 1.0117 | AC99: PD3 | AD99: ='Koeffizientenübersicht NB'!B57 -> 3.2 | AE99: ='Koeffizientenübersicht NB'!C57 -> -35.8 | AF99: ='Koeffizientenübersicht NB'!D57 -> 8.4 | AG99: ='Koeffizientenübersicht NB'!E57 -> 0.093848608
A100: =Tageswerte!A100 -> 00:00:00 | B100: =Tageswerte!I100 -> 0 | D100: =IF(A100="","",Feiertage!B100) -> 6 | R100: =AC100 -> PD4 | S100: =IF($Q$2=1,(AD100 / (1 + (AE100 / (P$2- 40)) ^ AF100) + AG100)*VLOOKUP($Q$2,$Z$95:$AA$101,2),1) -> 1 | T100: =IF($Q$2=2,(AD100 / (1 + (AE100 / (P$2- 40)) ^ AF100) + AG100)*VLOOKUP($Q$2,$Z$95:$AA$101,2),1) -> 1 | U100: =IF($Q$2=3,(AD100 / (1 + (AE100 / (P$2- 40)) ^ AF100) + AG100)*VLOOKUP($Q$2,$Z$95:$AA$101,2),1) -> 1 | V100: =IF($Q$2=4,(AD100 / (1 + (AE100 / (P$2- 40)) ^ AF100) + AG100)*VLOOKUP($Q$2,$Z$95:$AA$101,2),1) -> 2.357544742 | W100: =IF($Q$2=5,(AD100 / (1 + (AE100 / (P$2- 40)) ^ AF100) + AG100)*VLOOKUP($Q$2,$Z$95:$AA$101,2),1) -> 1 | X100: =IF($Q$2=6,(AD100 / (1 + (AE100 / (P$2- 40)) ^ AF100) + AG100)*VLOOKUP($Q$2,$Z$95:$AA$101,2),1) -> 1 | Y100: =IF($Q$2=7,(AD100 / (1 + (AE100 / (P$2- 40)) ^ AF100) + AG100)*VLOOKUP($Q$2,$Z$95:$AA$101,2),1) -> 1 | Z100: 6 | AA100: ='Koeffizientenübersicht NB'!$K$55 -> 0.9001 | AC100: PD4 | AD100: ='Koeffizientenübersicht NB'!B58 -> 3.85 | AE100: ='Koeffizientenübersicht NB'!C58 -> -37 | AF100: ='Koeffizientenübersicht NB'!D58 -> 10.2405021 | AG100: ='Koeffizientenübersicht NB'!E58 -> 0.046924304
A101: =Tageswerte!A101 -> 00:00:00 | B101: =Tageswerte!I101 -> 0 | D101: =IF(A101="","",Feiertage!B101) -> 7 | R101: =AC101 -> PD5 | S101: =IF($Q$2=1,(AD101 / (1 + (AE101 / (P$2- 40)) ^ AF101) + AG101)*VLOOKUP($Q$2,$Z$95:$AA$101,2),1) -> 1 | T101: =IF($Q$2=2,(AD101 / (1 + (AE101 / (P$2- 40)) ^ AF101) + AG101)*VLOOKUP($Q$2,$Z$95:$AA$101,2),1) -> 1 | U101: =IF($Q$2=3,(AD101 / (1 + (AE101 / (P$2- 40)) ^ AF101) + AG101)*VLOOKUP($Q$2,$Z$95:$AA$101,2),1) -> 1 | V101: =IF($Q$2=4,(AD101 / (1 + (AE101 / (P$2- 40)) ^ AF101) + AG101)*VLOOKUP($Q$2,$Z$95:$AA$101,2),1) -> 2.254456834 | W101: =IF($Q$2=5,(AD101 / (1 + (AE101 / (P$2- 40)) ^ AF101) + AG101)*VLOOKUP($Q$2,$Z$95:$AA$101,2),1) -> 1 | X101: =IF($Q$2=6,(AD101 / (1 + (AE101 / (P$2- 40)) ^ AF101) + AG101)*VLOOKUP($Q$2,$Z$95:$AA$101,2),1) -> 1 | Y101: =IF($Q$2=7,(AD101 / (1 + (AE101 / (P$2- 40)) ^ AF101) + AG101)*VLOOKUP($Q$2,$Z$95:$AA$101,2),1) -> 1 | Z101: 7 | AA101: ='Koeffizientenübersicht NB'!$L$55 -> 0.8525 | AC101: PD5 | AD101: ='Koeffizientenübersicht NB'!B59 -> 4.746281392 | AE101: ='Koeffizientenübersicht NB'!C59 -> -38.75042939 | AF101: ='Koeffizientenübersicht NB'!D59 -> 10.27533341 | AG101: ='Koeffizientenübersicht NB'!E59 -> 0
A102: =Tageswerte!A102 -> 00:00:00 | B102: =Tageswerte!I102 -> 0 | D102: =IF(A102="","",Feiertage!B102) -> 1
A103: =Tageswerte!A103 -> 00:00:00 | B103: =Tageswerte!I103 -> 0 | D103: =IF(A103="","",Feiertage!B103) -> 2 | R103: Wäschereien | Z103: Tagesfaktoren
A104: =Tageswerte!A104 -> 00:00:00 | B104: =Tageswerte!I104 -> 0 | D104: =IF(A104="","",Feiertage!B104) -> 3 | R104: =IF(O77="","",WEEKDAY(O77,2)) ->  | Z104: 1 | AA104: ='Koeffizientenübersicht NB'!$F$40 -> 1.2457
A105: =Tageswerte!A105 -> 00:00:00 | B105: =Tageswerte!I105 -> 0 | D105: =IF(A105="","",Feiertage!B105) -> 4 | S105: Montag | T105: Dienstag | U105: Mittwoch | V105: Donnerstag | W105: Freitag | X105: Samstag | Y105: Sonntag | Z105: 2 | AA105: ='Koeffizientenübersicht NB'!$G$40 -> 1.2615
A106: =Tageswerte!A106 -> 00:00:00 | B106: =Tageswerte!I106 -> 0 | D106: =IF(A106="","",Feiertage!B106) -> 7 | R106: =AC106 -> WA1 | S106: =IF($Q$2=1,(AD106 / (1 + (AE106 / (P$2- 40)) ^ AF106) + AG106)*VLOOKUP($Q$2,$Z$104:$AA$110,2),1) -> 1 | T106: =IF($Q$2=2,(AD106 / (1 + (AE106 / (P$2- 40)) ^ AF106) + AG106)*VLOOKUP($Q$2,$Z$104:$AA$110,2),1) -> 1 | U106: =IF($Q$2=3,(AD106 / (1 + (AE106 / (P$2- 40)) ^ AF106) + AG106)*VLOOKUP($Q$2,$Z$104:$AA$110,2),1) -> 1 | V106: =IF($Q$2=4,(AD106 / (1 + (AE106 / (P$2- 40)) ^ AF106) + AG106)*VLOOKUP($Q$2,$Z$104:$AA$110,2),1) -> 1.388103388 | W106: =IF($Q$2=5,(AD106 / (1 + (AE106 / (P$2- 40)) ^ AF106) + AG106)*VLOOKUP($Q$2,$Z$104:$AA$110,2),1) -> 1 | X106: =IF($Q$2=6,(AD106 / (1 + (AE106 / (P$2- 40)) ^ AF106) + AG106)*VLOOKUP($Q$2,$Z$104:$AA$110,2),1) -> 1 | Y106: =IF($Q$2=7,(AD106 / (1 + (AE106 / (P$2- 40)) ^ AF106) + AG106)*VLOOKUP($Q$2,$Z$104:$AA$110,2),1) -> 1 | Z106: 3 | AA106: ='Koeffizientenübersicht NB'!$H$40 -> 1.2707 | AC106: WA1 | AD106: ='Koeffizientenübersicht NB'!B40 -> 0.4 | AE106: ='Koeffizientenübersicht NB'!C40 -> -40.51494818 | AF106: ='Koeffizientenübersicht NB'!D40 -> 2.874795695 | AG106: ='Koeffizientenübersicht NB'!E40 -> 0.935107584
A107: =Tageswerte!A107 -> 00:00:00 | B107: =Tageswerte!I107 -> 0 | D107: =IF(A107="","",Feiertage!B107) -> 6 | R107: =AC107 -> WA2 | S107: =IF($Q$2=1,(AD107 / (1 + (AE107 / (P$2- 40)) ^ AF107) + AG107)*VLOOKUP($Q$2,$Z$104:$AA$110,2),1) -> 1 | T107: =IF($Q$2=2,(AD107 / (1 + (AE107 / (P$2- 40)) ^ AF107) + AG107)*VLOOKUP($Q$2,$Z$104:$AA$110,2),1) -> 1 | U107: =IF($Q$2=3,(AD107 / (1 + (AE107 / (P$2- 40)) ^ AF107) + AG107)*VLOOKUP($Q$2,$Z$104:$AA$110,2),1) -> 1 | V107: =IF($Q$2=4,(AD107 / (1 + (AE107 / (P$2- 40)) ^ AF107) + AG107)*VLOOKUP($Q$2,$Z$104:$AA$110,2),1) -> 1.456907215 | W107: =IF($Q$2=5,(AD107 / (1 + (AE107 / (P$2- 40)) ^ AF107) + AG107)*VLOOKUP($Q$2,$Z$104:$AA$110,2),1) -> 1 | X107: =IF($Q$2=6,(AD107 / (1 + (AE107 / (P$2- 40)) ^ AF107) + AG107)*VLOOKUP($Q$2,$Z$104:$AA$110,2),1) -> 1 | Y107: =IF($Q$2=7,(AD107 / (1 + (AE107 / (P$2- 40)) ^ AF107) + AG107)*VLOOKUP($Q$2,$Z$104:$AA$110,2),1) -> 1 | Z107: 4 | AA107: ='Koeffizientenübersicht NB'!$I$40 -> 1.243 | AC107: WA2 | AD107: ='Koeffizientenübersicht NB'!B41 -> 0.616622893 | AE107: ='Koeffizientenübersicht NB'!C41 -> -38.4 | AF107: ='Koeffizientenübersicht NB'!D41 -> 3.870535189 | AG107: ='Koeffizientenübersicht NB'!E41 -> 0.870025031
A108: =Tageswerte!A108 -> 00:00:00 | B108: =Tageswerte!I108 -> 0 | D108: =IF(A108="","",Feiertage!B108) -> 7 | R108: =AC108 -> WA3 | S108: =IF($Q$2=1,(AD108 / (1 + (AE108 / (P$2- 40)) ^ AF108) + AG108)*VLOOKUP($Q$2,$Z$104:$AA$110,2),1) -> 1 | T108: =IF($Q$2=2,(AD108 / (1 + (AE108 / (P$2- 40)) ^ AF108) + AG108)*VLOOKUP($Q$2,$Z$104:$AA$110,2),1) -> 1 | U108: =IF($Q$2=3,(AD108 / (1 + (AE108 / (P$2- 40)) ^ AF108) + AG108)*VLOOKUP($Q$2,$Z$104:$AA$110,2),1) -> 1 | V108: =IF($Q$2=4,(AD108 / (1 + (AE108 / (P$2- 40)) ^ AF108) + AG108)*VLOOKUP($Q$2,$Z$104:$AA$110,2),1) -> 1.53793949 | W108: =IF($Q$2=5,(AD108 / (1 + (AE108 / (P$2- 40)) ^ AF108) + AG108)*VLOOKUP($Q$2,$Z$104:$AA$110,2),1) -> 1 | X108: =IF($Q$2=6,(AD108 / (1 + (AE108 / (P$2- 40)) ^ AF108) + AG108)*VLOOKUP($Q$2,$Z$104:$AA$110,2),1) -> 1 | Y108: =IF($Q$2=7,(AD108 / (1 + (AE108 / (P$2- 40)) ^ AF108) + AG108)*VLOOKUP($Q$2,$Z$104:$AA$110,2),1) -> 1 | Z108: 5 | AA108: ='Koeffizientenübersicht NB'!$J$40 -> 1.1276 | AC108: WA3 | AD108: ='Koeffizientenübersicht NB'!B42 -> 0.765729012 | AE108: ='Koeffizientenübersicht NB'!C42 -> -36.02379115 | AF108: ='Koeffizientenübersicht NB'!D42 -> 4.866274683 | AG108: ='Koeffizientenübersicht NB'!E42 -> 0.804942478
A109: =Tageswerte!A109 -> 00:00:00 | B109: =Tageswerte!I109 -> 0 | D109: =IF(A109="","",Feiertage!B109) -> 7 | R109: =AC109 -> WA4 | S109: =IF($Q$2=1,(AD109 / (1 + (AE109 / (P$2- 40)) ^ AF109) + AG109)*VLOOKUP($Q$2,$Z$104:$AA$110,2),1) -> 1 | T109: =IF($Q$2=2,(AD109 / (1 + (AE109 / (P$2- 40)) ^ AF109) + AG109)*VLOOKUP($Q$2,$Z$104:$AA$110,2),1) -> 1 | U109: =IF($Q$2=3,(AD109 / (1 + (AE109 / (P$2- 40)) ^ AF109) + AG109)*VLOOKUP($Q$2,$Z$104:$AA$110,2),1) -> 1 | V109: =IF($Q$2=4,(AD109 / (1 + (AE109 / (P$2- 40)) ^ AF109) + AG109)*VLOOKUP($Q$2,$Z$104:$AA$110,2),1) -> 1.617600493 | W109: =IF($Q$2=5,(AD109 / (1 + (AE109 / (P$2- 40)) ^ AF109) + AG109)*VLOOKUP($Q$2,$Z$104:$AA$110,2),1) -> 1 | X109: =IF($Q$2=6,(AD109 / (1 + (AE109 / (P$2- 40)) ^ AF109) + AG109)*VLOOKUP($Q$2,$Z$104:$AA$110,2),1) -> 1 | Y109: =IF($Q$2=7,(AD109 / (1 + (AE109 / (P$2- 40)) ^ AF109) + AG109)*VLOOKUP($Q$2,$Z$104:$AA$110,2),1) -> 1 | Z109: 6 | AA109: ='Koeffizientenübersicht NB'!$K$40 -> 0.3877 | AC109: WA4 | AD109: ='Koeffizientenübersicht NB'!B43 -> 1.053587472 | AE109: ='Koeffizientenübersicht NB'!C43 -> -35.3 | AF109: ='Koeffizientenübersicht NB'!D43 -> 4.866274683 | AG109: ='Koeffizientenübersicht NB'!E43 -> 0.681104234
A110: =Tageswerte!A110 -> 00:00:00 | B110: =Tageswerte!I110 -> 0 | D110: =IF(A110="","",Feiertage!B110) -> 2 | R110: =AC110 -> WA5 | S110: =IF($Q$2=1,(AD110 / (1 + (AE110 / (P$2- 40)) ^ AF110) + AG110)*VLOOKUP($Q$2,$Z$104:$AA$110,2),1) -> 1 | T110: =IF($Q$2=2,(AD110 / (1 + (AE110 / (P$2- 40)) ^ AF110) + AG110)*VLOOKUP($Q$2,$Z$104:$AA$110,2),1) -> 1 | U110: =IF($Q$2=3,(AD110 / (1 + (AE110 / (P$2- 40)) ^ AF110) + AG110)*VLOOKUP($Q$2,$Z$104:$AA$110,2),1) -> 1 | V110: =IF($Q$2=4,(AD110 / (1 + (AE110 / (P$2- 40)) ^ AF110) + AG110)*VLOOKUP($Q$2,$Z$104:$AA$110,2),1) -> 1.699807454 | W110: =IF($Q$2=5,(AD110 / (1 + (AE110 / (P$2- 40)) ^ AF110) + AG110)*VLOOKUP($Q$2,$Z$104:$AA$110,2),1) -> 1 | X110: =IF($Q$2=6,(AD110 / (1 + (AE110 / (P$2- 40)) ^ AF110) + AG110)*VLOOKUP($Q$2,$Z$104:$AA$110,2),1) -> 1 | Y110: =IF($Q$2=7,(AD110 / (1 + (AE110 / (P$2- 40)) ^ AF110) + AG110)*VLOOKUP($Q$2,$Z$104:$AA$110,2),1) -> 1 | Z110: 7 | AA110: ='Koeffizientenübersicht NB'!$L$40 -> 0.4638 | AC110: WA5 | AD110: ='Koeffizientenübersicht NB'!B44 -> 1.276885373 | AE110: ='Koeffizientenübersicht NB'!C44 -> -34.34243707 | AF110: ='Koeffizientenübersicht NB'!D44 -> 5.451882242 | AG110: ='Koeffizientenübersicht NB'!E44 -> 0.55726599
A111: =Tageswerte!A111 -> 00:00:00 | B111: =Tageswerte!I111 -> 0 | D111: =IF(A111="","",Feiertage!B111) -> 3
A112: =Tageswerte!A112 -> 00:00:00 | B112: =Tageswerte!I112 -> 0 | D112: =IF(A112="","",Feiertage!B112) -> 4 | R112: GHD | Z112: Tagesfaktoren
A113: =Tageswerte!A113 -> 00:00:00 | B113: =Tageswerte!I113 -> 0 | D113: =IF(A113="","",Feiertage!B113) -> 5 | R113: =IF(O86="","",WEEKDAY(O86,2)) ->  | Z113: 1 | AA113: ='Koeffizientenübersicht NB'!$F$65 -> 1.03
A114: =Tageswerte!A114 -> 00:00:00 | B114: =Tageswerte!I114 -> 0 | D114: =IF(A114="","",Feiertage!B114) -> 6 | S114: Montag | T114: Dienstag | U114: Mittwoch | V114: Donnerstag | W114: Freitag | X114: Samstag | Y114: Sonntag | Z114: 2 | AA114: ='Koeffizientenübersicht NB'!$G$65 -> 1.03
A115: =Tageswerte!A115 -> 00:00:00 | B115: =Tageswerte!I115 -> 0 | D115: =IF(A115="","",Feiertage!B115) -> 7 | R115: =AC115 -> GHD3 | S115: =IF($Q$2=1,(AD115 / (1 + (AE115 / (P$2- 40)) ^ AF115) + AG115)*VLOOKUP($Q$2,$Z$113:$AA$119,2,FALSE),1) -> 1 | T115: =IF($Q$2=2,(AD115 / (1 + (AE115 / (P$2- 40)) ^ AF115) + AG115)*VLOOKUP($Q$2,$Z$113:$AA$119,2,FALSE),1) -> 1 | U115: =IF($Q$2=3,(AD115 / (1 + (AE115 / (P$2- 40)) ^ AF115) + AG115)*VLOOKUP($Q$2,$Z$113:$AA$119,2,FALSE),1) -> 1 | V115: =IF($Q$2=4,(AD115 / (1 + (AE115 / (P$2- 40)) ^ AF115) + AG115)*VLOOKUP($Q$2,$Z$113:$AA$119,2,FALSE),1) -> 1.809327753 | W115: =IF($Q$2=5,(AD115 / (1 + (AE115 / (P$2- 40)) ^ AF115) + AG115)*VLOOKUP($Q$2,$Z$113:$AA$119,2,FALSE),1) -> 1 | X115: =IF($Q$2=6,(AD115 / (1 + (AE115 / (P$2- 40)) ^ AF115) + AG115)*VLOOKUP($Q$2,$Z$113:$AA$119,2,FALSE),1) -> 1 | Y115: =IF($Q$2=7,(AD115 / (1 + (AE115 / (P$2- 40)) ^ AF115) + AG115)*VLOOKUP($Q$2,$Z$113:$AA$119,2,FALSE),1) -> 1 | Z115: 3 | AA115: ='Koeffizientenübersicht NB'!$H$65 -> 1.02 | AC115: =AJ64 -> GHD3 | AD115: ='Koeffizientenübersicht NB'!B65 -> 2.579251014 | AE115: ='Koeffizientenübersicht NB'!C65 -> -35.6816144 | AF115: ='Koeffizientenübersicht NB'!D65 -> 6.685797612 | AG115: ='Koeffizientenübersicht NB'!E65 -> 0.199554099
A116: =Tageswerte!A116 -> 00:00:00 | B116: =Tageswerte!I116 -> 0 | D116: =IF(A116="","",Feiertage!B116) -> 1 | R116: =AC116 -> GHD4 | S116: =IF($Q$2=1,(AD116 / (1 + (AE116 / (P$2- 40)) ^ AF116) + AG116)*VLOOKUP($Q$2,$Z$113:$AA$119,2,FALSE),1) -> 1 | T116: =IF($Q$2=2,(AD116 / (1 + (AE116 / (P$2- 40)) ^ AF116) + AG116)*VLOOKUP($Q$2,$Z$113:$AA$119,2,FALSE),1) -> 1 | U116: =IF($Q$2=3,(AD116 / (1 + (AE116 / (P$2- 40)) ^ AF116) + AG116)*VLOOKUP($Q$2,$Z$113:$AA$119,2,FALSE),1) -> 1 | V116: =IF($Q$2=4,(AD116 / (1 + (AE116 / (P$2- 40)) ^ AF116) + AG116)*VLOOKUP($Q$2,$Z$113:$AA$119,2,FALSE),1) -> 1.91933284 | W116: =IF($Q$2=5,(AD116 / (1 + (AE116 / (P$2- 40)) ^ AF116) + AG116)*VLOOKUP($Q$2,$Z$113:$AA$119,2,FALSE),1) -> 1 | X116: =IF($Q$2=6,(AD116 / (1 + (AE116 / (P$2- 40)) ^ AF116) + AG116)*VLOOKUP($Q$2,$Z$113:$AA$119,2,FALSE),1) -> 1 | Y116: =IF($Q$2=7,(AD116 / (1 + (AE116 / (P$2- 40)) ^ AF116) + AG116)*VLOOKUP($Q$2,$Z$113:$AA$119,2,FALSE),1) -> 1 | Z116: 4 | AA116: ='Koeffizientenübersicht NB'!$I$65 -> 1.03 | AC116: =AJ65 -> GHD4 | AD116: ='Koeffizientenübersicht NB'!B66 -> 3.008434556 | AE116: ='Koeffizientenübersicht NB'!C66 -> -36.60784527 | AF116: ='Koeffizientenübersicht NB'!D66 -> 7.321186953 | AG116: ='Koeffizientenübersicht NB'!E66 -> 0.154966031
A117: =Tageswerte!A117 -> 00:00:00 | B117: =Tageswerte!I117 -> 0 | D117: =IF(A117="","",Feiertage!B117) -> 2 | Z117: 5 | AA117: ='Koeffizientenübersicht NB'!$J$65 -> 1.01
A118: =Tageswerte!A118 -> 00:00:00 | B118: =Tageswerte!I118 -> 0 | D118: =IF(A118="","",Feiertage!B118) -> 3 | Z118: 6 | AA118: ='Koeffizientenübersicht NB'!$K$65 -> 0.93
A119: =Tageswerte!A119 -> 00:00:00 | B119: =Tageswerte!I119 -> 0 | D119: =IF(A119="","",Feiertage!B119) -> 4 | Z119: 7 | AA119: ='Koeffizientenübersicht NB'!$L$65 -> 0.95
A120: =Tageswerte!A120 -> 00:00:00 | B120: =Tageswerte!I120 -> 0 | D120: =IF(A120="","",Feiertage!B120) -> 5
A121: =Tageswerte!A121 -> 00:00:00 | B121: =Tageswerte!I121 -> 0 | D121: =IF(A121="","",Feiertage!B121) -> 6
A122: =Tageswerte!A122 -> 00:00:00 | B122: =Tageswerte!I122 -> 0 | D122: =IF(A122="","",Feiertage!B122) -> 7
A123: =Tageswerte!A123 -> 00:00:00 | B123: =Tageswerte!I123 -> 0 | D123: =IF(A123="","",Feiertage!B123) -> 1
A124: =Tageswerte!A124 -> 00:00:00 | B124: =Tageswerte!I124 -> 0 | D124: =IF(A124="","",Feiertage!B124) -> 7
A125: =Tageswerte!A125 -> 00:00:00 | B125: =Tageswerte!I125 -> 0 | D125: =IF(A125="","",Feiertage!B125) -> 3
A126: =Tageswerte!A126 -> 00:00:00 | B126: =Tageswerte!I126 -> 0 | D126: =IF(A126="","",Feiertage!B126) -> 4
A127: =Tageswerte!A127 -> 00:00:00 | B127: =Tageswerte!I127 -> 0 | D127: =IF(A127="","",Feiertage!B127) -> 5
A128: =Tageswerte!A128 -> 00:00:00 | B128: =Tageswerte!I128 -> 0 | D128: =IF(A128="","",Feiertage!B128) -> 6
A129: =Tageswerte!A129 -> 00:00:00 | B129: =Tageswerte!I129 -> 0 | D129: =IF(A129="","",Feiertage!B129) -> 7
A130: =Tageswerte!A130 -> 00:00:00 | B130: =Tageswerte!I130 -> 0 | D130: =IF(A130="","",Feiertage!B130) -> 1
A131: =Tageswerte!A131 -> 00:00:00 | B131: =Tageswerte!I131 -> 0 | D131: =IF(A131="","",Feiertage!B131) -> 2
A132: =Tageswerte!A132 -> 00:00:00 | B132: =Tageswerte!I132 -> 0 | D132: =IF(A132="","",Feiertage!B132) -> 3
A133: =Tageswerte!A133 -> 00:00:00 | B133: =Tageswerte!I133 -> 0 | D133: =IF(A133="","",Feiertage!B133) -> 4
A134: =Tageswerte!A134 -> 00:00:00 | B134: =Tageswerte!I134 -> 0 | D134: =IF(A134="","",Feiertage!B134) -> 5
A135: =Tageswerte!A135 -> 00:00:00 | B135: =Tageswerte!I135 -> 0 | D135: =IF(A135="","",Feiertage!B135) -> 6
A136: =Tageswerte!A136 -> 00:00:00 | B136: =Tageswerte!I136 -> 0 | D136: =IF(A136="","",Feiertage!B136) -> 7
A137: =Tageswerte!A137 -> 00:00:00 | B137: =Tageswerte!I137 -> 0 | D137: =IF(A137="","",Feiertage!B137) -> 1
A138: =Tageswerte!A138 -> 00:00:00 | B138: =Tageswerte!I138 -> 0 | D138: =IF(A138="","",Feiertage!B138) -> 2
A139: =Tageswerte!A139 -> 00:00:00 | B139: =Tageswerte!I139 -> 0 | D139: =IF(A139="","",Feiertage!B139) -> 3
A140: =Tageswerte!A140 -> 00:00:00 | B140: =Tageswerte!I140 -> 0 | D140: =IF(A140="","",Feiertage!B140) -> 4
A141: =Tageswerte!A141 -> 00:00:00 | B141: =Tageswerte!I141 -> 0 | D141: =IF(A141="","",Feiertage!B141) -> 5
A142: =Tageswerte!A142 -> 00:00:00 | B142: =Tageswerte!I142 -> 0 | D142: =IF(A142="","",Feiertage!B142) -> 6
A143: =Tageswerte!A143 -> 00:00:00 | B143: =Tageswerte!I143 -> 0 | D143: =IF(A143="","",Feiertage!B143) -> 7
A144: =Tageswerte!A144 -> 00:00:00 | B144: =Tageswerte!I144 -> 0 | D144: =IF(A144="","",Feiertage!B144) -> 1
A145: =Tageswerte!A145 -> 00:00:00 | B145: =Tageswerte!I145 -> 0 | D145: =IF(A145="","",Feiertage!B145) -> 2
A146: =Tageswerte!A146 -> 00:00:00 | B146: =Tageswerte!I146 -> 0 | D146: =IF(A146="","",Feiertage!B146) -> 3
A147: =Tageswerte!A147 -> 00:00:00 | B147: =Tageswerte!I147 -> 0 | D147: =IF(A147="","",Feiertage!B147) -> 7
A148: =Tageswerte!A148 -> 00:00:00 | B148: =Tageswerte!I148 -> 0 | D148: =IF(A148="","",Feiertage!B148) -> 5
A149: =Tageswerte!A149 -> 00:00:00 | B149: =Tageswerte!I149 -> 0 | D149: =IF(A149="","",Feiertage!B149) -> 6
A150: =Tageswerte!A150 -> 00:00:00 | B150: =Tageswerte!I150 -> 0 | D150: =IF(A150="","",Feiertage!B150) -> 7
A151: =Tageswerte!A151 -> 00:00:00 | B151: =Tageswerte!I151 -> 0 | D151: =IF(A151="","",Feiertage!B151) -> 1
A152: =Tageswerte!A152 -> 00:00:00 | B152: =Tageswerte!I152 -> 0 | D152: =IF(A152="","",Feiertage!B152) -> 2
A153: =Tageswerte!A153 -> 00:00:00 | B153: =Tageswerte!I153 -> 0 | D153: =IF(A153="","",Feiertage!B153) -> 3
A154: =Tageswerte!A154 -> 00:00:00 | B154: =Tageswerte!I154 -> 0 | D154: =IF(A154="","",Feiertage!B154) -> 4
A155: =Tageswerte!A155 -> 00:00:00 | B155: =Tageswerte!I155 -> 0 | D155: =IF(A155="","",Feiertage!B155) -> 5
A156: =Tageswerte!A156 -> 00:00:00 | B156: =Tageswerte!I156 -> 0 | D156: =IF(A156="","",Feiertage!B156) -> 6
A157: =Tageswerte!A157 -> 00:00:00 | B157: =Tageswerte!I157 -> 0 | D157: =IF(A157="","",Feiertage!B157) -> 7
A158: =Tageswerte!A158 -> 00:00:00 | B158: =Tageswerte!I158 -> 0 | D158: =IF(A158="","",Feiertage!B158) -> 7
A159: =Tageswerte!A159 -> 00:00:00 | B159: =Tageswerte!I159 -> 0 | D159: =IF(A159="","",Feiertage!B159) -> 2
A160: =Tageswerte!A160 -> 00:00:00 | B160: =Tageswerte!I160 -> 0 | D160: =IF(A160="","",Feiertage!B160) -> 3
A161: =Tageswerte!A161 -> 00:00:00 | B161: =Tageswerte!I161 -> 0 | D161: =IF(A161="","",Feiertage!B161) -> 4
A162: =Tageswerte!A162 -> 00:00:00 | B162: =Tageswerte!I162 -> 0 | D162: =IF(A162="","",Feiertage!B162) -> 5
A163: =Tageswerte!A163 -> 00:00:00 | B163: =Tageswerte!I163 -> 0 | D163: =IF(A163="","",Feiertage!B163) -> 6
A164: =Tageswerte!A164 -> 00:00:00 | B164: =Tageswerte!I164 -> 0 | D164: =IF(A164="","",Feiertage!B164) -> 7
A165: =Tageswerte!A165 -> 00:00:00 | B165: =Tageswerte!I165 -> 0 | D165: =IF(A165="","",Feiertage!B165) -> 1
A166: =Tageswerte!A166 -> 00:00:00 | B166: =Tageswerte!I166 -> 0 | D166: =IF(A166="","",Feiertage!B166) -> 2
A167: =Tageswerte!A167 -> 00:00:00 | B167: =Tageswerte!I167 -> 0 | D167: =IF(A167="","",Feiertage!B167) -> 3
A168: =Tageswerte!A168 -> 00:00:00 | B168: =Tageswerte!I168 -> 0 | D168: =IF(A168="","",Feiertage!B168) -> 4
A169: =Tageswerte!A169 -> 00:00:00 | B169: =Tageswerte!I169 -> 0 | D169: =IF(A169="","",Feiertage!B169) -> 5
A170: =Tageswerte!A170 -> 00:00:00 | B170: =Tageswerte!I170 -> 0 | D170: =IF(A170="","",Feiertage!B170) -> 6
A171: =Tageswerte!A171 -> 00:00:00 | B171: =Tageswerte!I171 -> 0 | D171: =IF(A171="","",Feiertage!B171) -> 7
A172: =Tageswerte!A172 -> 00:00:00 | B172: =Tageswerte!I172 -> 0 | D172: =IF(A172="","",Feiertage!B172) -> 1
A173: =Tageswerte!A173 -> 00:00:00 | B173: =Tageswerte!I173 -> 0 | D173: =IF(A173="","",Feiertage!B173) -> 2
A174: =Tageswerte!A174 -> 00:00:00 | B174: =Tageswerte!I174 -> 0 | D174: =IF(A174="","",Feiertage!B174) -> 3
A175: =Tageswerte!A175 -> 00:00:00 | B175: =Tageswerte!I175 -> 0 | D175: =IF(A175="","",Feiertage!B175) -> 4
A176: =Tageswerte!A176 -> 00:00:00 | B176: =Tageswerte!I176 -> 0 | D176: =IF(A176="","",Feiertage!B176) -> 5
A177: =Tageswerte!A177 -> 00:00:00 | B177: =Tageswerte!I177 -> 0 | D177: =IF(A177="","",Feiertage!B177) -> 6
A178: =Tageswerte!A178 -> 00:00:00 | B178: =Tageswerte!I178 -> 0 | D178: =IF(A178="","",Feiertage!B178) -> 7
A179: =Tageswerte!A179 -> 00:00:00 | B179: =Tageswerte!I179 -> 0 | D179: =IF(A179="","",Feiertage!B179) -> 1
A180: =Tageswerte!A180 -> 00:00:00 | B180: =Tageswerte!I180 -> 0 | D180: =IF(A180="","",Feiertage!B180) -> 2
A181: =Tageswerte!A181 -> 00:00:00 | B181: =Tageswerte!I181 -> 0 | D181: =IF(A181="","",Feiertage!B181) -> 3
A182: =Tageswerte!A182 -> 00:00:00 | B182: =Tageswerte!I182 -> 0 | D182: =IF(A182="","",Feiertage!B182) -> 4
A183: =Tageswerte!A183 -> 00:00:00 | B183: =Tageswerte!I183 -> 0 | D183: =IF(A183="","",Feiertage!B183) -> 5
A184: =Tageswerte!A184 -> 00:00:00 | B184: =Tageswerte!I184 -> 0 | D184: =IF(A184="","",Feiertage!B184) -> 6
A185: =Tageswerte!A185 -> 00:00:00 | B185: =Tageswerte!I185 -> 0 | D185: =IF(A185="","",Feiertage!B185) -> 7
A186: =Tageswerte!A186 -> 00:00:00 | B186: =Tageswerte!I186 -> 0 | D186: =IF(A186="","",Feiertage!B186) -> 1
A187: =Tageswerte!A187 -> 00:00:00 | B187: =Tageswerte!I187 -> 0 | D187: =IF(A187="","",Feiertage!B187) -> 2
A188: =Tageswerte!A188 -> 00:00:00 | B188: =Tageswerte!I188 -> 0 | D188: =IF(A188="","",Feiertage!B188) -> 3
A189: =Tageswerte!A189 -> 00:00:00 | B189: =Tageswerte!I189 -> 0 | D189: =IF(A189="","",Feiertage!B189) -> 4
A190: =Tageswerte!A190 -> 00:00:00 | B190: =Tageswerte!I190 -> 0 | D190: =IF(A190="","",Feiertage!B190) -> 5
A191: =Tageswerte!A191 -> 00:00:00 | B191: =Tageswerte!I191 -> 0 | D191: =IF(A191="","",Feiertage!B191) -> 6
A192: =Tageswerte!A192 -> 00:00:00 | B192: =Tageswerte!I192 -> 0 | D192: =IF(A192="","",Feiertage!B192) -> 7
A193: =Tageswerte!A193 -> 00:00:00 | B193: =Tageswerte!I193 -> 0 | D193: =IF(A193="","",Feiertage!B193) -> 1
A194: =Tageswerte!A194 -> 00:00:00 | B194: =Tageswerte!I194 -> 0 | D194: =IF(A194="","",Feiertage!B194) -> 2
A195: =Tageswerte!A195 -> 00:00:00 | B195: =Tageswerte!I195 -> 0 | D195: =IF(A195="","",Feiertage!B195) -> 3
A196: =Tageswerte!A196 -> 00:00:00 | B196: =Tageswerte!I196 -> 0 | D196: =IF(A196="","",Feiertage!B196) -> 4
A197: =Tageswerte!A197 -> 00:00:00 | B197: =Tageswerte!I197 -> 0 | D197: =IF(A197="","",Feiertage!B197) -> 5
A198: =Tageswerte!A198 -> 00:00:00 | B198: =Tageswerte!I198 -> 0 | D198: =IF(A198="","",Feiertage!B198) -> 6
A199: =Tageswerte!A199 -> 00:00:00 | B199: =Tageswerte!I199 -> 0 | D199: =IF(A199="","",Feiertage!B199) -> 7
A200: =Tageswerte!A200 -> 00:00:00 | B200: =Tageswerte!I200 -> 0 | D200: =IF(A200="","",Feiertage!B200) -> 1
... 532 more rows

Sheet Allokationstool Prognose NB
A1: Datum | B1: =Tageswerte!J1 -> Allokations-Temperatur [°C] | C1: Allokationsmenge | D1: Wochentag gemäß Feiertags-kalender | O1: Monat/Jahr der Berechnung | P1: Temperatur | Q1: Wochentag | R1: Tages h-Werte und Tagesfaktoren entsprechend dem Wochentag (mit Berücksichtigung des Feiertagskalenders!) | AC1: Lastprofil | AD1: A | AE1: B | AF1: C | AG1: D | AJ1: Lastprofil | AM1: Summe Kundenwerte | AN1: Tagesmenge | AO1: =Kundenwerte!A1 -> Monat | AP1: =Kundenwerte!C1 -> Z13 | AQ1: =Kundenwerte!D1 -> Z14 | AR1: =Kundenwerte!E1 -> Z15 | AS1: =Kundenwerte!F1 -> Z23 | AT1: =Kundenwerte!G1 -> Z24 | AU1: =Kundenwerte!H1 -> Z25 | AV1: =Kundenwerte!I1 -> HK3 | AW1: =Kundenwerte!J1 -> BA1 | AX1: =Kundenwerte!K1 -> BA2 | AY1: =Kundenwerte!L1 -> BA3 | AZ1: =Kundenwerte!M1 -> BA4 | BA1: =Kundenwerte!N1 -> BA5 | BB1: =Kundenwerte!O1 -> BD1 | BC1: =Kundenwerte!P1 -> BD2 | BD1: =Kundenwerte!Q1 -> BD3 | BE1: =Kundenwerte!R1 -> BD4 | BF1: =Kundenwerte!S1 -> BD5 | BG1: =Kundenwerte!T1 -> BH1 | BH1: =Kundenwerte!U1 -> BH2 | BI1: =Kundenwerte!V1 -> BH3 | BJ1: =Kundenwerte!W1 -> BH4 | BK1: =Kundenwerte!X1 -> BH5 | BL1: =Kundenwerte!Y1 -> GA1 | BM1: =Kundenwerte!Z1 -> GA2 | BN1: =Kundenwerte!AA1 -> GA3 | BO1: =Kundenwerte!AB1 -> GA4 | BP1: =Kundenwerte!AC1 -> GA5 | BQ1: =Kundenwerte!AD1 -> GB1 | BR1: =Kundenwerte!AE1 -> GB2 | BS1: =Kundenwerte!AF1 -> GB3 | BT1: =Kundenwerte!AG1 -> GB4 | BU1: =Kundenwerte!AH1 -> GB5 | BV1: =Kundenwerte!AI1 -> HA1 | BW1: =Kundenwerte!AJ1 -> HA2 | BX1: =Kundenwerte!AK1 -> HA3 | BY1: =Kundenwerte!AL1 -> HA4 | BZ1: =Kundenwerte!AM1 -> HA5 | CA1: =Kundenwerte!AN1 -> KO1 | CB1: =Kundenwerte!AO1 -> KO2 | CC1: =Kundenwerte!AP1 -> KO3 | CD1: =Kundenwerte!AQ1 -> KO4 | CE1: =Kundenwerte!AR1 -> KO5 | CF1: =Kundenwerte!AS1 -> MK1 | CG1: =Kundenwerte!AT1 -> MK2 | CH1: =Kundenwerte!AU1 -> MK3 | CI1: =Kundenwerte!AV1 -> MK4 | CJ1: =Kundenwerte!AW1 -> MK5 | CK1: =Kundenwerte!AX1 -> MF1 | CL1: =Kundenwerte!AY1 -> MF2 | CM1: =Kundenwerte!AZ1 -> MF3 | CN1: =Kundenwerte!BA1 -> MF4 | CO1: =Kundenwerte!BB1 -> MF5 | CP1: =Kundenwerte!BC1 -> PD1 | CQ1: =Kundenwerte!BD1 -> PD2 | CR1: =Kundenwerte!BE1 -> PD3 | CS1: =Kundenwerte!BF1 -> PD4 | CT1: =Kundenwerte!BG1 -> PD5 | CU1: =Kundenwerte!BH1 -> WA1 | CV1: =Kundenwerte!BI1 -> WA2 | CW1: =Kundenwerte!BJ1 -> WA3 | CX1: =Kundenwerte!BK1 -> WA4 | CY1: =Kundenwerte!BL1 -> WA5 | CZ1: =Kundenwerte!BM1 -> GHD03 | DA1: =Kundenwerte!BN1 -> GHD04 | DB1: =Kundenwerte!BO1 -> Monatssumme
A2: =Tageswerte!A2 -> 00:00:00 | B2: =Tageswerte!J2 -> 0 | D2: =IF(A2="","",Feiertage!B2) -> 6 | O2: 122020 | P2: 2.4 | Q2: 4 | AJ2: =Kundenwerte!C1 -> Z13 | AM2: =VLOOKUP($O$2,$AO$2:$DA$25,2,FALSE) ->  | AN2: =AM2*S4 ->  | AO2: ='Koeffizientenübersicht BDEW'!T25 -> 1 | AP2: =Kundenwerte!C2 -> 0 | AQ2: =Kundenwerte!D2 -> 0 | AR2: =Kundenwerte!E2 -> 0 | AS2: =Kundenwerte!F2 -> 0 | AT2: =Kundenwerte!G2 -> 0 | AU2: =Kundenwerte!H2 -> 0 | AV2: =Kundenwerte!I2 -> 0 | AW2: =Kundenwerte!J2 -> 0 | AX2: =Kundenwerte!K2 -> 0 | AY2: =Kundenwerte!L2 -> 0 | AZ2: =Kundenwerte!M2 -> 0 | BA2: =Kundenwerte!N2 -> 0 | BB2: =Kundenwerte!O2 -> 0 | BC2: =Kundenwerte!P2 -> 0 | BD2: =Kundenwerte!Q2 -> 0 | BE2: =Kundenwerte!R2 -> 0 | BF2: =Kundenwerte!S2 -> 0 | BG2: =Kundenwerte!T2 -> 0 | BH2: =Kundenwerte!U2 -> 0 | BI2: =Kundenwerte!V2 -> 0 | BJ2: =Kundenwerte!W2 -> 0 | BK2: =Kundenwerte!X2 -> 0 | BL2: =Kundenwerte!Y2 -> 0 | BM2: =Kundenwerte!Z2 -> 0 | BN2: =Kundenwerte!AA2 -> 0 | BO2: =Kundenwerte!AB2 -> 0 | BP2: =Kundenwerte!AC2 -> 0 | BQ2: =Kundenwerte!AD2 -> 0 | BR2: =Kundenwerte!AE2 -> 0 | BS2: =Kundenwerte!AF2 -> 0 | BT2: =Kundenwerte!AG2 -> 0 | BU2: =Kundenwerte!AH2 -> 0 | BV2: =Kundenwerte!AI2 -> 0 | BW2: =Kundenwerte!AJ2 -> 0 | BX2: =Kundenwerte!AK2 -> 0 | BY2: =Kundenwerte!AL2 -> 0 | BZ2: =Kundenwerte!AM2 -> 0 | CA2: =Kundenwerte!AN2 -> 0 | CB2: =Kundenwerte!AO2 -> 0 | CC2: =Kundenwerte!AP2 -> 0 | CD2: =Kundenwerte!AQ2 -> 0 | CE2: =Kundenwerte!AR2 -> 0 | CF2: =Kundenwerte!AS2 -> 0 | CG2: =Kundenwerte!AT2 -> 0 | CH2: =Kundenwerte!AU2 -> 0 | CI2: =Kundenwerte!AV2 -> 0 | CJ2: =Kundenwerte!AW2 -> 0 | CK2: =Kundenwerte!AX2 -> 0 | CL2: =Kundenwerte!AY2 -> 0 | CM2: =Kundenwerte!AZ2 -> 0 | CN2: =Kundenwerte!BA2 -> 0 | CO2: =Kundenwerte!BB2 -> 0 | CP2: =Kundenwerte!BC2 -> 0 | CQ2: =Kundenwerte!BD2 -> 0 | CR2: =Kundenwerte!BE2 -> 0 | CS2: =Kundenwerte!BF2 -> 0 | CT2: =Kundenwerte!BG2 -> 0 | CU2: =Kundenwerte!BH2 -> 0 | CV2: =Kundenwerte!BI2 -> 0 | CW2: =Kundenwerte!BJ2 -> 0 | CX2: =Kundenwerte!BK2 -> 0 | CY2: =Kundenwerte!BL2 -> 0 | CZ2: =Kundenwerte!BM2 -> 0 | DA2: =Kundenwerte!BN2 -> 0 | DB2: =SUM(AP2:DA2) -> 0
A3: =Tageswerte!A3 -> 00:00:00 | B3: =Tageswerte!J3 -> 0 | D3: =IF(A3="","",Feiertage!B3) -> 7 | AJ3: =AQ1 -> Z14 | AM3: =VLOOKUP($O$2,$AO$2:$DA$25,3,FALSE) ->  | AN3: =AM3*S5 ->  | AO3: ='Koeffizientenübersicht BDEW'!T26 -> 2 | AP3: =Kundenwerte!C3 -> 0 | AQ3: =Kundenwerte!D3 -> 0 | AR3: =Kundenwerte!E3 -> 0 | AS3: =Kundenwerte!F3 -> 0 | AT3: =Kundenwerte!G3 -> 0 | AU3: =Kundenwerte!H3 -> 0 | AV3: =Kundenwerte!I3 -> 0 | AW3: =Kundenwerte!J3 -> 0 | AX3: =Kundenwerte!K3 -> 0 | AY3: =Kundenwerte!L3 -> 0 | AZ3: =Kundenwerte!M3 -> 0 | BA3: =Kundenwerte!N3 -> 0 | BB3: =Kundenwerte!O3 -> 0 | BC3: =Kundenwerte!P3 -> 0 | BD3: =Kundenwerte!Q3 -> 0 | BE3: =Kundenwerte!R3 -> 0 | BF3: =Kundenwerte!S3 -> 0 | BG3: =Kundenwerte!T3 -> 0 | BH3: =Kundenwerte!U3 -> 0 | BI3: =Kundenwerte!V3 -> 0 | BJ3: =Kundenwerte!W3 -> 0 | BK3: =Kundenwerte!X3 -> 0 | BL3: =Kundenwerte!Y3 -> 0 | BM3: =Kundenwerte!Z3 -> 0 | BN3: =Kundenwerte!AA3 -> 0 | BO3: =Kundenwerte!AB3 -> 0 | BP3: =Kundenwerte!AC3 -> 0 | BQ3: =Kundenwerte!AD3 -> 0 | BR3: =Kundenwerte!AE3 -> 0 | BS3: =Kundenwerte!AF3 -> 0 | BT3: =Kundenwerte!AG3 -> 0 | BU3: =Kundenwerte!AH3 -> 0 | BV3: =Kundenwerte!AI3 -> 0 | BW3: =Kundenwerte!AJ3 -> 0 | BX3: =Kundenwerte!AK3 -> 0 | BY3: =Kundenwerte!AL3 -> 0 | BZ3: =Kundenwerte!AM3 -> 0 | CA3: =Kundenwerte!AN3 -> 0 | CB3: =Kundenwerte!AO3 -> 0 | CC3: =Kundenwerte!AP3 -> 0 | CD3: =Kundenwerte!AQ3 -> 0 | CE3: =Kundenwerte!AR3 -> 0 | CF3: =Kundenwerte!AS3 -> 0 | CG3: =Kundenwerte!AT3 -> 0 | CH3: =Kundenwerte!AU3 -> 0 | CI3: =Kundenwerte!AV3 -> 0 | CJ3: =Kundenwerte!AW3 -> 0 | CK3: =Kundenwerte!AX3 -> 0 | CL3: =Kundenwerte!AY3 -> 0 | CM3: =Kundenwerte!AZ3 -> 0 | CN3: =Kundenwerte!BA3 -> 0 | CO3: =Kundenwerte!BB3 -> 0 | CP3: =Kundenwerte!BC3 -> 0 | CQ3: =Kundenwerte!BD3 -> 0 | CR3: =Kundenwerte!BE3 -> 0 | CS3: =Kundenwerte!BF3 -> 0 | CT3: =Kundenwerte!BG3 -> 0 | CU3: =Kundenwerte!BH3 -> 0 | CV3: =Kundenwerte!BI3 -> 0 | CW3: =Kundenwerte!BJ3 -> 0 | CX3: =Kundenwerte!BK3 -> 0 | CY3: =Kundenwerte!BL3 -> 0 | CZ3: =Kundenwerte!BM3 -> 0 | DA3: =Kundenwerte!BN3 -> 0 | DB3: =SUM(AP3:DA3) -> 0
A4: =Tageswerte!A4 -> 00:00:00 | B4: =Tageswerte!J4 -> 0 | D4: =IF(A4="","",Feiertage!B4) -> 7 | R4: =AC4 -> Z13 | S4: =(AD4/(1+(AE4/(P2-40))^AF4))+AG4 -> 1.667816934 | V4: =AC7 -> Z23 | W4: =(AD7/(1+(AE7/($P$2-40))^AF7))+AG7 -> 1.586404323 | AC4: ='Koeffizientenübersicht NB'!A3 -> Z13 | AD4: ='Koeffizientenübersicht NB'!B3 -> 3.04696946 | AE4: ='Koeffizientenübersicht NB'!C3 -> -37.18331413 | AF4: ='Koeffizientenübersicht NB'!D3 -> 5.672784662 | AG4: ='Koeffizientenübersicht NB'!E3 -> 0.09619306 | AJ4: D15 | AM4: =VLOOKUP($O$2,$AO$2:$DA$25,4,FALSE) ->  | AN4: =AM4*S6 ->  | AO4: ='Koeffizientenübersicht BDEW'!T27 -> 3 | AP4: =Kundenwerte!C4 -> 0 | AQ4: =Kundenwerte!D4 -> 0 | AR4: =Kundenwerte!E4 -> 0 | AS4: =Kundenwerte!F4 -> 0 | AT4: =Kundenwerte!G4 -> 0 | AU4: =Kundenwerte!H4 -> 0 | AV4: =Kundenwerte!I4 -> 0 | AW4: =Kundenwerte!J4 -> 0 | AX4: =Kundenwerte!K4 -> 0 | AY4: =Kundenwerte!L4 -> 0 | AZ4: =Kundenwerte!M4 -> 0 | BA4: =Kundenwerte!N4 -> 0 | BB4: =Kundenwerte!O4 -> 0 | BC4: =Kundenwerte!P4 -> 0 | BD4: =Kundenwerte!Q4 -> 0 | BE4: =Kundenwerte!R4 -> 0 | BF4: =Kundenwerte!S4 -> 0 | BG4: =Kundenwerte!T4 -> 0 | BH4: =Kundenwerte!U4 -> 0 | BI4: =Kundenwerte!V4 -> 0 | BJ4: =Kundenwerte!W4 -> 0 | BK4: =Kundenwerte!X4 -> 0 | BL4: =Kundenwerte!Y4 -> 0 | BM4: =Kundenwerte!Z4 -> 0 | BN4: =Kundenwerte!AA4 -> 0 | BO4: =Kundenwerte!AB4 -> 0 | BP4: =Kundenwerte!AC4 -> 0 | BQ4: =Kundenwerte!AD4 -> 0 | BR4: =Kundenwerte!AE4 -> 0 | BS4: =Kundenwerte!AF4 -> 0 | BT4: =Kundenwerte!AG4 -> 0 | BU4: =Kundenwerte!AH4 -> 0 | BV4: =Kundenwerte!AI4 -> 0 | BW4: =Kundenwerte!AJ4 -> 0 | BX4: =Kundenwerte!AK4 -> 0 | BY4: =Kundenwerte!AL4 -> 0 | BZ4: =Kundenwerte!AM4 -> 0 | CA4: =Kundenwerte!AN4 -> 0 | CB4: =Kundenwerte!AO4 -> 0 | CC4: =Kundenwerte!AP4 -> 0 | CD4: =Kundenwerte!AQ4 -> 0 | CE4: =Kundenwerte!AR4 -> 0 | CF4: =Kundenwerte!AS4 -> 0 | CG4: =Kundenwerte!AT4 -> 0 | CH4: =Kundenwerte!AU4 -> 0 | CI4: =Kundenwerte!AV4 -> 0 | CJ4: =Kundenwerte!AW4 -> 0 | CK4: =Kundenwerte!AX4 -> 0 | CL4: =Kundenwerte!AY4 -> 0 | CM4: =Kundenwerte!AZ4 -> 0 | CN4: =Kundenwerte!BA4 -> 0 | CO4: =Kundenwerte!BB4 -> 0 | CP4: =Kundenwerte!BC4 -> 0 | CQ4: =Kundenwerte!BD4 -> 0 | CR4: =Kundenwerte!BE4 -> 0 | CS4: =Kundenwerte!BF4 -> 0 | CT4: =Kundenwerte!BG4 -> 0 | CU4: =Kundenwerte!BH4 -> 0 | CV4: =Kundenwerte!BI4 -> 0 | CW4: =Kundenwerte!BJ4 -> 0 | CX4: =Kundenwerte!BK4 -> 0 | CY4: =Kundenwerte!BL4 -> 0 | CZ4: =Kundenwerte!BM4 -> 0 | DA4: =Kundenwerte!BN4 -> 0 | DB4: 0
A5: =Tageswerte!A5 -> 00:00:00 | B5: =Tageswerte!J5 -> 0 | D5: =IF(A5="","",Feiertage!B5) -> 2 | R5: =AC5 -> Z14 | S5: =(AD5/(1+(AE5/(P2-40))^AF5))+AG5 -> 1.693197953 | V5: =AC8 -> Z24 | W5: =(AD8/(1+(AE8/($P$2-40))^AF8))+AG8 -> 1.633182804 | AC5: ='Koeffizientenübersicht NB'!A4 -> Z14 | AD5: ='Koeffizientenübersicht NB'!B4 -> 3.18501913 | AE5: ='Koeffizientenübersicht NB'!C4 -> -37.41241549 | AF5: ='Koeffizientenübersicht NB'!D4 -> 6.172317873 | AG5: ='Koeffizientenübersicht NB'!E4 -> 0.076109594 | AJ5: =AS1 -> Z23 | AM5: =VLOOKUP($O$2,$AO$2:$DA$25,5,FALSE) ->  | AN5: =AM5*W4 ->  | AO5: ='Koeffizientenübersicht BDEW'!T28 -> 4 | AP5: =Kundenwerte!C5 -> 0 | AQ5: =Kundenwerte!D5 -> 0 | AR5: =Kundenwerte!E5 -> 0 | AS5: =Kundenwerte!F5 -> 0 | AT5: =Kundenwerte!G5 -> 0 | AU5: =Kundenwerte!H5 -> 0 | AV5: =Kundenwerte!I5 -> 0 | AW5: =Kundenwerte!J5 -> 0 | AX5: =Kundenwerte!K5 -> 0 | AY5: =Kundenwerte!L5 -> 0 | AZ5: =Kundenwerte!M5 -> 0 | BA5: =Kundenwerte!N5 -> 0 | BB5: =Kundenwerte!O5 -> 0 | BC5: =Kundenwerte!P5 -> 0 | BD5: =Kundenwerte!Q5 -> 0 | BE5: =Kundenwerte!R5 -> 0 | BF5: =Kundenwerte!S5 -> 0 | BG5: =Kundenwerte!T5 -> 0 | BH5: =Kundenwerte!U5 -> 0 | BI5: =Kundenwerte!V5 -> 0 | BJ5: =Kundenwerte!W5 -> 0 | BK5: =Kundenwerte!X5 -> 0 | BL5: =Kundenwerte!Y5 -> 0 | BM5: =Kundenwerte!Z5 -> 0 | BN5: =Kundenwerte!AA5 -> 0 | BO5: =Kundenwerte!AB5 -> 0 | BP5: =Kundenwerte!AC5 -> 0 | BQ5: =Kundenwerte!AD5 -> 0 | BR5: =Kundenwerte!AE5 -> 0 | BS5: =Kundenwerte!AF5 -> 0 | BT5: =Kundenwerte!AG5 -> 0 | BU5: =Kundenwerte!AH5 -> 0 | BV5: =Kundenwerte!AI5 -> 0 | BW5: =Kundenwerte!AJ5 -> 0 | BX5: =Kundenwerte!AK5 -> 0 | BY5: =Kundenwerte!AL5 -> 0 | BZ5: =Kundenwerte!AM5 -> 0 | CA5: =Kundenwerte!AN5 -> 0 | CB5: =Kundenwerte!AO5 -> 0 | CC5: =Kundenwerte!AP5 -> 0 | CD5: =Kundenwerte!AQ5 -> 0 | CE5: =Kundenwerte!AR5 -> 0 | CF5: =Kundenwerte!AS5 -> 0 | CG5: =Kundenwerte!AT5 -> 0 | CH5: =Kundenwerte!AU5 -> 0 | CI5: =Kundenwerte!AV5 -> 0 | CJ5: =Kundenwerte!AW5 -> 0 | CK5: =Kundenwerte!AX5 -> 0 | CL5: =Kundenwerte!AY5 -> 0 | CM5: =Kundenwerte!AZ5 -> 0 | CN5: =Kundenwerte!BA5 -> 0 | CO5: =Kundenwerte!BB5 -> 0 | CP5: =Kundenwerte!BC5 -> 0 | CQ5: =Kundenwerte!BD5 -> 0 | CR5: =Kundenwerte!BE5 -> 0 | CS5: =Kundenwerte!BF5 -> 0 | CT5: =Kundenwerte!BG5 -> 0 | CU5: =Kundenwerte!BH5 -> 0 | CV5: =Kundenwerte!BI5 -> 0 | CW5: =Kundenwerte!BJ5 -> 0 | CX5: =Kundenwerte!BK5 -> 0 | CY5: =Kundenwerte!BL5 -> 0 | CZ5: =Kundenwerte!BM5 -> 0 | DA5: =Kundenwerte!BN5 -> 0 | DB5: 0
A6: =Tageswerte!A6 -> 00:00:00 | B6: =Tageswerte!J6 -> 0 | D6: =IF(A6="","",Feiertage!B6) -> 3 | R6: =AC6 -> Z15 | S6: =(AD6 / (1 + (AE6 / (P2 - 40)) ^ AF6)) + AG6 -> 1.739570455 | V6: D25 | W6: =(AD9 / (1 + (AE9 / ($P$2 - 40)) ^ AF9)) + AG9 -> 1.684556068 | AC6: ='Koeffizientenübersicht NB'!A5 -> Z15 | AD6: ='Koeffizientenübersicht NB'!B5 -> 3.345666672 | AE6: ='Koeffizientenübersicht NB'!C5 -> -37.52683159 | AF6: ='Koeffizientenübersicht NB'!D5 -> 6.432893683 | AG6: ='Koeffizientenübersicht NB'!E5 -> 0.056256618 | AJ6: =AT1 -> Z24 | AM6: =VLOOKUP($O$2,$AO$2:$DA$25,6,FALSE) ->  | AN6: =AM6*W5 ->  | AO6: ='Koeffizientenübersicht BDEW'!T29 -> 5 | AP6: =Kundenwerte!C6 -> 0 | AQ6: =Kundenwerte!D6 -> 0 | AR6: =Kundenwerte!E6 -> 0 | AS6: =Kundenwerte!F6 -> 0 | AT6: =Kundenwerte!G6 -> 0 | AU6: =Kundenwerte!H6 -> 0 | AV6: =Kundenwerte!I6 -> 0 | AW6: =Kundenwerte!J6 -> 0 | AX6: =Kundenwerte!K6 -> 0 | AY6: =Kundenwerte!L6 -> 0 | AZ6: =Kundenwerte!M6 -> 0 | BA6: =Kundenwerte!N6 -> 0 | BB6: =Kundenwerte!O6 -> 0 | BC6: =Kundenwerte!P6 -> 0 | BD6: =Kundenwerte!Q6 -> 0 | BE6: =Kundenwerte!R6 -> 0 | BF6: =Kundenwerte!S6 -> 0 | BG6: =Kundenwerte!T6 -> 0 | BH6: =Kundenwerte!U6 -> 0 | BI6: =Kundenwerte!V6 -> 0 | BJ6: =Kundenwerte!W6 -> 0 | BK6: =Kundenwerte!X6 -> 0 | BL6: =Kundenwerte!Y6 -> 0 | BM6: =Kundenwerte!Z6 -> 0 | BN6: =Kundenwerte!AA6 -> 0 | BO6: =Kundenwerte!AB6 -> 0 | BP6: =Kundenwerte!AC6 -> 0 | BQ6: =Kundenwerte!AD6 -> 0 | BR6: =Kundenwerte!AE6 -> 0 | BS6: =Kundenwerte!AF6 -> 0 | BT6: =Kundenwerte!AG6 -> 0 | BU6: =Kundenwerte!AH6 -> 0 | BV6: =Kundenwerte!AI6 -> 0 | BW6: =Kundenwerte!AJ6 -> 0 | BX6: =Kundenwerte!AK6 -> 0 | BY6: =Kundenwerte!AL6 -> 0 | BZ6: =Kundenwerte!AM6 -> 0 | CA6: =Kundenwerte!AN6 -> 0 | CB6: =Kundenwerte!AO6 -> 0 | CC6: =Kundenwerte!AP6 -> 0 | CD6: =Kundenwerte!AQ6 -> 0 | CE6: =Kundenwerte!AR6 -> 0 | CF6: =Kundenwerte!AS6 -> 0 | CG6: =Kundenwerte!AT6 -> 0 | CH6: =Kundenwerte!AU6 -> 0 | CI6: =Kundenwerte!AV6 -> 0 | CJ6: =Kundenwerte!AW6 -> 0 | CK6: =Kundenwerte!AX6 -> 0 | CL6: =Kundenwerte!AY6 -> 0 | CM6: =Kundenwerte!AZ6 -> 0 | CN6: =Kundenwerte!BA6 -> 0 | CO6: =Kundenwerte!BB6 -> 0 | CP6: =Kundenwerte!BC6 -> 0 | CQ6: =Kundenwerte!BD6 -> 0 | CR6: =Kundenwerte!BE6 -> 0 | CS6: =Kundenwerte!BF6 -> 0 | CT6: =Kundenwerte!BG6 -> 0 | CU6: =Kundenwerte!BH6 -> 0 | CV6: =Kundenwerte!BI6 -> 0 | CW6: =Kundenwerte!BJ6 -> 0 | CX6: =Kundenwerte!BK6 -> 0 | CY6: =Kundenwerte!BL6 -> 0 | CZ6: =Kundenwerte!BM6 -> 0 | DA6: =Kundenwerte!BN6 -> 0 | DB6: 0
A7: =Tageswerte!A7 -> 00:00:00 | B7: =Tageswerte!J7 -> 0 | D7: =IF(A7="","",Feiertage!B7) -> 4 | AC7: ='Koeffizientenübersicht NB'!A6 -> Z23 | AD7: ='Koeffizientenübersicht NB'!B6 -> 2.387761791 | AE7: ='Koeffizientenübersicht NB'!C6 -> -34.72136051 | AF7: ='Koeffizientenübersicht NB'!D6 -> 5.816430402 | AG7: ='Koeffizientenübersicht NB'!E6 -> 0.120819368 | AJ7: D25 | AM7: =VLOOKUP($O$2,$AO$2:$DA$25,7,FALSE) ->  | AN7: =AM7*W6 ->  | AO7: ='Koeffizientenübersicht BDEW'!T30 -> 6 | AP7: =Kundenwerte!C7 -> 0 | AQ7: =Kundenwerte!D7 -> 0 | AR7: =Kundenwerte!E7 -> 0 | AS7: =Kundenwerte!F7 -> 0 | AT7: =Kundenwerte!G7 -> 0 | AU7: =Kundenwerte!H7 -> 0 | AV7: =Kundenwerte!I7 -> 0 | AW7: =Kundenwerte!J7 -> 0 | AX7: =Kundenwerte!K7 -> 0 | AY7: =Kundenwerte!L7 -> 0 | AZ7: =Kundenwerte!M7 -> 0 | BA7: =Kundenwerte!N7 -> 0 | BB7: =Kundenwerte!O7 -> 0 | BC7: =Kundenwerte!P7 -> 0 | BD7: =Kundenwerte!Q7 -> 0 | BE7: =Kundenwerte!R7 -> 0 | BF7: =Kundenwerte!S7 -> 0 | BG7: =Kundenwerte!T7 -> 0 | BH7: =Kundenwerte!U7 -> 0 | BI7: =Kundenwerte!V7 -> 0 | BJ7: =Kundenwerte!W7 -> 0 | BK7: =Kundenwerte!X7 -> 0 | BL7: =Kundenwerte!Y7 -> 0 | BM7: =Kundenwerte!Z7 -> 0 | BN7: =Kundenwerte!AA7 -> 0 | BO7: =Kundenwerte!AB7 -> 0 | BP7: =Kundenwerte!AC7 -> 0 | BQ7: =Kundenwerte!AD7 -> 0 | BR7: =Kundenwerte!AE7 -> 0 | BS7: =Kundenwerte!AF7 -> 0 | BT7: =Kundenwerte!AG7 -> 0 | BU7: =Kundenwerte!AH7 -> 0 | BV7: =Kundenwerte!AI7 -> 0 | BW7: =Kundenwerte!AJ7 -> 0 | BX7: =Kundenwerte!AK7 -> 0 | BY7: =Kundenwerte!AL7 -> 0 | BZ7: =Kundenwerte!AM7 -> 0 | CA7: =Kundenwerte!AN7 -> 0 | CB7: =Kundenwerte!AO7 -> 0 | CC7: =Kundenwerte!AP7 -> 0 | CD7: =Kundenwerte!AQ7 -> 0 | CE7: =Kundenwerte!AR7 -> 0 | CF7: =Kundenwerte!AS7 -> 0 | CG7: =Kundenwerte!AT7 -> 0 | CH7: =Kundenwerte!AU7 -> 0 | CI7: =Kundenwerte!AV7 -> 0 | CJ7: =Kundenwerte!AW7 -> 0 | CK7: =Kundenwerte!AX7 -> 0 | CL7: =Kundenwerte!AY7 -> 0 | CM7: =Kundenwerte!AZ7 -> 0 | CN7: =Kundenwerte!BA7 -> 0 | CO7: =Kundenwerte!BB7 -> 0 | CP7: =Kundenwerte!BC7 -> 0 | CQ7: =Kundenwerte!BD7 -> 0 | CR7: =Kundenwerte!BE7 -> 0 | CS7: =Kundenwerte!BF7 -> 0 | CT7: =Kundenwerte!BG7 -> 0 | CU7: =Kundenwerte!BH7 -> 0 | CV7: =Kundenwerte!BI7 -> 0 | CW7: =Kundenwerte!BJ7 -> 0 | CX7: =Kundenwerte!BK7 -> 0 | CY7: =Kundenwerte!BL7 -> 0 | CZ7: =Kundenwerte!BM7 -> 0 | DA7: =Kundenwerte!BN7 -> 0 | DB7: 0
A8: =Tageswerte!A8 -> 00:00:00 | B8: =Tageswerte!J8 -> 0 | D8: =IF(A8="","",Feiertage!B8) -> 5 | R8: Kochgas | AC8: ='Koeffizientenübersicht NB'!A7 -> Z24 | AD8: ='Koeffizientenübersicht NB'!B7 -> 2.518777519 | AE8: ='Koeffizientenübersicht NB'!C7 -> -35.03337542 | AF8: ='Koeffizientenübersicht NB'!D7 -> 6.224063396 | AG8: ='Koeffizientenübersicht NB'!E7 -> 0.101078172 | AJ8: HK3 | AM8: =VLOOKUP($O$2,$AO$2:$DA$25,8,FALSE) ->  | AN8: =AM8*S11 ->  | AO8: ='Koeffizientenübersicht BDEW'!T31 -> 7 | AP8: =Kundenwerte!C8 -> 0 | AQ8: =Kundenwerte!D8 -> 0 | AR8: =Kundenwerte!E8 -> 0 | AS8: =Kundenwerte!F8 -> 0 | AT8: =Kundenwerte!G8 -> 0 | AU8: =Kundenwerte!H8 -> 0 | AV8: =Kundenwerte!I8 -> 0 | AW8: =Kundenwerte!J8 -> 0 | AX8: =Kundenwerte!K8 -> 0 | AY8: =Kundenwerte!L8 -> 0 | AZ8: =Kundenwerte!M8 -> 0 | BA8: =Kundenwerte!N8 -> 0 | BB8: =Kundenwerte!O8 -> 0 | BC8: =Kundenwerte!P8 -> 0 | BD8: =Kundenwerte!Q8 -> 0 | BE8: =Kundenwerte!R8 -> 0 | BF8: =Kundenwerte!S8 -> 0 | BG8: =Kundenwerte!T8 -> 0 | BH8: =Kundenwerte!U8 -> 0 | BI8: =Kundenwerte!V8 -> 0 | BJ8: =Kundenwerte!W8 -> 0 | BK8: =Kundenwerte!X8 -> 0 | BL8: =Kundenwerte!Y8 -> 0 | BM8: =Kundenwerte!Z8 -> 0 | BN8: =Kundenwerte!AA8 -> 0 | BO8: =Kundenwerte!AB8 -> 0 | BP8: =Kundenwerte!AC8 -> 0 | BQ8: =Kundenwerte!AD8 -> 0 | BR8: =Kundenwerte!AE8 -> 0 | BS8: =Kundenwerte!AF8 -> 0 | BT8: =Kundenwerte!AG8 -> 0 | BU8: =Kundenwerte!AH8 -> 0 | BV8: =Kundenwerte!AI8 -> 0 | BW8: =Kundenwerte!AJ8 -> 0 | BX8: =Kundenwerte!AK8 -> 0 | BY8: =Kundenwerte!AL8 -> 0 | BZ8: =Kundenwerte!AM8 -> 0 | CA8: =Kundenwerte!AN8 -> 0 | CB8: =Kundenwerte!AO8 -> 0 | CC8: =Kundenwerte!AP8 -> 0 | CD8: =Kundenwerte!AQ8 -> 0 | CE8: =Kundenwerte!AR8 -> 0 | CF8: =Kundenwerte!AS8 -> 0 | CG8: =Kundenwerte!AT8 -> 0 | CH8: =Kundenwerte!AU8 -> 0 | CI8: =Kundenwerte!AV8 -> 0 | CJ8: =Kundenwerte!AW8 -> 0 | CK8: =Kundenwerte!AX8 -> 0 | CL8: =Kundenwerte!AY8 -> 0 | CM8: =Kundenwerte!AZ8 -> 0 | CN8: =Kundenwerte!BA8 -> 0 | CO8: =Kundenwerte!BB8 -> 0 | CP8: =Kundenwerte!BC8 -> 0 | CQ8: =Kundenwerte!BD8 -> 0 | CR8: =Kundenwerte!BE8 -> 0 | CS8: =Kundenwerte!BF8 -> 0 | CT8: =Kundenwerte!BG8 -> 0 | CU8: =Kundenwerte!BH8 -> 0 | CV8: =Kundenwerte!BI8 -> 0 | CW8: =Kundenwerte!BJ8 -> 0 | CX8: =Kundenwerte!BK8 -> 0 | CY8: =Kundenwerte!BL8 -> 0 | CZ8: =Kundenwerte!BM8 -> 0 | DA8: =Kundenwerte!BN8 -> 0 | DB8: 0
A9: =Tageswerte!A9 -> 00:00:00 | B9: =Tageswerte!J9 -> 0 | D9: =IF(A9="","",Feiertage!B9) -> 6 | AC9: ='Koeffizientenübersicht BDEW'!A10 -> D25 | AD9: ='Koeffizientenübersicht NB'!B8 -> 2.656440592 | AE9: ='Koeffizientenübersicht NB'!C8 -> -35.25169267 | AF9: ='Koeffizientenübersicht NB'!D8 -> 6.518265862 | AG9: ='Koeffizientenübersicht NB'!E8 -> 0.081205866 | AJ9: BA1 | AM9: =VLOOKUP($O$2,$AO$2:$DA$25,9,FALSE) ->  | AN9: =AM9*S16*T16*U16*V16*W16*X16*Y16 ->  | AO9: ='Koeffizientenübersicht BDEW'!T32 -> 8 | AP9: =Kundenwerte!C9 -> 0 | AQ9: =Kundenwerte!D9 -> 0 | AR9: =Kundenwerte!E9 -> 0 | AS9: =Kundenwerte!F9 -> 0 | AT9: =Kundenwerte!G9 -> 0 | AU9: =Kundenwerte!H9 -> 0 | AV9: =Kundenwerte!I9 -> 0 | AW9: =Kundenwerte!J9 -> 0 | AX9: =Kundenwerte!K9 -> 0 | AY9: =Kundenwerte!L9 -> 0 | AZ9: =Kundenwerte!M9 -> 0 | BA9: =Kundenwerte!N9 -> 0 | BB9: =Kundenwerte!O9 -> 0 | BC9: =Kundenwerte!P9 -> 0 | BD9: =Kundenwerte!Q9 -> 0 | BE9: =Kundenwerte!R9 -> 0 | BF9: =Kundenwerte!S9 -> 0 | BG9: =Kundenwerte!T9 -> 0 | BH9: =Kundenwerte!U9 -> 0 | BI9: =Kundenwerte!V9 -> 0 | BJ9: =Kundenwerte!W9 -> 0 | BK9: =Kundenwerte!X9 -> 0 | BL9: =Kundenwerte!Y9 -> 0 | BM9: =Kundenwerte!Z9 -> 0 | BN9: =Kundenwerte!AA9 -> 0 | BO9: =Kundenwerte!AB9 -> 0 | BP9: =Kundenwerte!AC9 -> 0 | BQ9: =Kundenwerte!AD9 -> 0 | BR9: =Kundenwerte!AE9 -> 0 | BS9: =Kundenwerte!AF9 -> 0 | BT9: =Kundenwerte!AG9 -> 0 | BU9: =Kundenwerte!AH9 -> 0 | BV9: =Kundenwerte!AI9 -> 0 | BW9: =Kundenwerte!AJ9 -> 0 | BX9: =Kundenwerte!AK9 -> 0 | BY9: =Kundenwerte!AL9 -> 0 | BZ9: =Kundenwerte!AM9 -> 0 | CA9: =Kundenwerte!AN9 -> 0 | CB9: =Kundenwerte!AO9 -> 0 | CC9: =Kundenwerte!AP9 -> 0 | CD9: =Kundenwerte!AQ9 -> 0 | CE9: =Kundenwerte!AR9 -> 0 | CF9: =Kundenwerte!AS9 -> 0 | CG9: =Kundenwerte!AT9 -> 0 | CH9: =Kundenwerte!AU9 -> 0 | CI9: =Kundenwerte!AV9 -> 0 | CJ9: =Kundenwerte!AW9 -> 0 | CK9: =Kundenwerte!AX9 -> 0 | CL9: =Kundenwerte!AY9 -> 0 | CM9: =Kundenwerte!AZ9 -> 0 | CN9: =Kundenwerte!BA9 -> 0 | CO9: =Kundenwerte!BB9 -> 0 | CP9: =Kundenwerte!BC9 -> 0 | CQ9: =Kundenwerte!BD9 -> 0 | CR9: =Kundenwerte!BE9 -> 0 | CS9: =Kundenwerte!BF9 -> 0 | CT9: =Kundenwerte!BG9 -> 0 | CU9: =Kundenwerte!BH9 -> 0 | CV9: =Kundenwerte!BI9 -> 0 | CW9: =Kundenwerte!BJ9 -> 0 | CX9: =Kundenwerte!BK9 -> 0 | CY9: =Kundenwerte!BL9 -> 0 | CZ9: =Kundenwerte!BM9 -> 0 | DA9: =Kundenwerte!BN9 -> 0 | DB9: 0
A10: =Tageswerte!A10 -> 00:00:00 | B10: =Tageswerte!J10 -> 0 | D10: =IF(A10="","",Feiertage!B10) -> 7 | AJ10: BA2 | AM10: =VLOOKUP($O$2,$AO$2:$DA$25,10,FALSE) ->  | AN10: =AM10*S17*T17*U17*V17*W17*X17*Y17 ->  | AO10: ='Koeffizientenübersicht BDEW'!T33 -> 9 | AP10: =Kundenwerte!C10 -> 0 | AQ10: =Kundenwerte!D10 -> 0 | AR10: =Kundenwerte!E10 -> 0 | AS10: =Kundenwerte!F10 -> 0 | AT10: =Kundenwerte!G10 -> 0 | AU10: =Kundenwerte!H10 -> 0 | AV10: =Kundenwerte!I10 -> 0 | AW10: =Kundenwerte!J10 -> 0 | AX10: =Kundenwerte!K10 -> 0 | AY10: =Kundenwerte!L10 -> 0 | AZ10: =Kundenwerte!M10 -> 0 | BA10: =Kundenwerte!N10 -> 0 | BB10: =Kundenwerte!O10 -> 0 | BC10: =Kundenwerte!P10 -> 0 | BD10: =Kundenwerte!Q10 -> 0 | BE10: =Kundenwerte!R10 -> 0 | BF10: =Kundenwerte!S10 -> 0 | BG10: =Kundenwerte!T10 -> 0 | BH10: =Kundenwerte!U10 -> 0 | BI10: =Kundenwerte!V10 -> 0 | BJ10: =Kundenwerte!W10 -> 0 | BK10: =Kundenwerte!X10 -> 0 | BL10: =Kundenwerte!Y10 -> 0 | BM10: =Kundenwerte!Z10 -> 0 | BN10: =Kundenwerte!AA10 -> 0 | BO10: =Kundenwerte!AB10 -> 0 | BP10: =Kundenwerte!AC10 -> 0 | BQ10: =Kundenwerte!AD10 -> 0 | BR10: =Kundenwerte!AE10 -> 0 | BS10: =Kundenwerte!AF10 -> 0 | BT10: =Kundenwerte!AG10 -> 0 | BU10: =Kundenwerte!AH10 -> 0 | BV10: =Kundenwerte!AI10 -> 0 | BW10: =Kundenwerte!AJ10 -> 0 | BX10: =Kundenwerte!AK10 -> 0 | BY10: =Kundenwerte!AL10 -> 0 | BZ10: =Kundenwerte!AM10 -> 0 | CA10: =Kundenwerte!AN10 -> 0 | CB10: =Kundenwerte!AO10 -> 0 | CC10: =Kundenwerte!AP10 -> 0 | CD10: =Kundenwerte!AQ10 -> 0 | CE10: =Kundenwerte!AR10 -> 0 | CF10: =Kundenwerte!AS10 -> 0 | CG10: =Kundenwerte!AT10 -> 0 | CH10: =Kundenwerte!AU10 -> 0 | CI10: =Kundenwerte!AV10 -> 0 | CJ10: =Kundenwerte!AW10 -> 0 | CK10: =Kundenwerte!AX10 -> 0 | CL10: =Kundenwerte!AY10 -> 0 | CM10: =Kundenwerte!AZ10 -> 0 | CN10: =Kundenwerte!BA10 -> 0 | CO10: =Kundenwerte!BB10 -> 0 | CP10: =Kundenwerte!BC10 -> 0 | CQ10: =Kundenwerte!BD10 -> 0 | CR10: =Kundenwerte!BE10 -> 0 | CS10: =Kundenwerte!BF10 -> 0 | CT10: =Kundenwerte!BG10 -> 0 | CU10: =Kundenwerte!BH10 -> 0 | CV10: =Kundenwerte!BI10 -> 0 | CW10: =Kundenwerte!BJ10 -> 0 | CX10: =Kundenwerte!BK10 -> 0 | CY10: =Kundenwerte!BL10 -> 0 | CZ10: =Kundenwerte!BM10 -> 0 | DA10: =Kundenwerte!BN10 -> 0 | DB10: 0
A11: =Tageswerte!A11 -> 00:00:00 | B11: =Tageswerte!J11 -> 0 | D11: =IF(A11="","",Feiertage!B11) -> 1 | R11: =AC11 -> HK3 | S11: =(AD11 / (1 + (AE11 / (P2 - 40)) ^ AF11)) + AG11 -> 1.092372187 | AC11: HK3 | AD11: ='Koeffizientenübersicht NB'!B9 -> 0.4040932 | AE11: ='Koeffizientenübersicht NB'!C9 -> -24.4392968 | AF11: ='Koeffizientenübersicht NB'!D9 -> 6.5718175 | AG11: ='Koeffizientenübersicht NB'!E9 -> 0.710771 | AJ11: BA3 | AM11: =VLOOKUP($O$2,$AO$2:$DA$25,11,FALSE) ->  | AO11: ='Koeffizientenübersicht BDEW'!T34 -> 10 | AP11: =Kundenwerte!C11 -> 0 | AQ11: =Kundenwerte!D11 -> 0 | AR11: =Kundenwerte!E11 -> 0 | AS11: =Kundenwerte!F11 -> 0 | AT11: =Kundenwerte!G11 -> 0 | AU11: =Kundenwerte!H11 -> 0 | AV11: =Kundenwerte!I11 -> 0 | AW11: =Kundenwerte!J11 -> 0 | AX11: =Kundenwerte!K11 -> 0 | AY11: =Kundenwerte!L11 -> 0 | AZ11: =Kundenwerte!M11 -> 0 | BA11: =Kundenwerte!N11 -> 0 | BB11: =Kundenwerte!O11 -> 0 | BC11: =Kundenwerte!P11 -> 0 | BD11: =Kundenwerte!Q11 -> 0 | BE11: =Kundenwerte!R11 -> 0 | BF11: =Kundenwerte!S11 -> 0 | BG11: =Kundenwerte!T11 -> 0 | BH11: =Kundenwerte!U11 -> 0 | BI11: =Kundenwerte!V11 -> 0 | BJ11: =Kundenwerte!W11 -> 0 | BK11: =Kundenwerte!X11 -> 0 | BL11: =Kundenwerte!Y11 -> 0 | BM11: =Kundenwerte!Z11 -> 0 | BN11: =Kundenwerte!AA11 -> 0 | BO11: =Kundenwerte!AB11 -> 0 | BP11: =Kundenwerte!AC11 -> 0 | BQ11: =Kundenwerte!AD11 -> 0 | BR11: =Kundenwerte!AE11 -> 0 | BS11: =Kundenwerte!AF11 -> 0 | BT11: =Kundenwerte!AG11 -> 0 | BU11: =Kundenwerte!AH11 -> 0 | BV11: =Kundenwerte!AI11 -> 0 | BW11: =Kundenwerte!AJ11 -> 0 | BX11: =Kundenwerte!AK11 -> 0 | BY11: =Kundenwerte!AL11 -> 0 | BZ11: =Kundenwerte!AM11 -> 0 | CA11: =Kundenwerte!AN11 -> 0 | CB11: =Kundenwerte!AO11 -> 0 | CC11: =Kundenwerte!AP11 -> 0 | CD11: =Kundenwerte!AQ11 -> 0 | CE11: =Kundenwerte!AR11 -> 0 | CF11: =Kundenwerte!AS11 -> 0 | CG11: =Kundenwerte!AT11 -> 0 | CH11: =Kundenwerte!AU11 -> 0 | CI11: =Kundenwerte!AV11 -> 0 | CJ11: =Kundenwerte!AW11 -> 0 | CK11: =Kundenwerte!AX11 -> 0 | CL11: =Kundenwerte!AY11 -> 0 | CM11: =Kundenwerte!AZ11 -> 0 | CN11: =Kundenwerte!BA11 -> 0 | CO11: =Kundenwerte!BB11 -> 0 | CP11: =Kundenwerte!BC11 -> 0 | CQ11: =Kundenwerte!BD11 -> 0 | CR11: =Kundenwerte!BE11 -> 0 | CS11: =Kundenwerte!BF11 -> 0 | CT11: =Kundenwerte!BG11 -> 0 | CU11: =Kundenwerte!BH11 -> 0 | CV11: =Kundenwerte!BI11 -> 0 | CW11: =Kundenwerte!BJ11 -> 0 | CX11: =Kundenwerte!BK11 -> 0 | CY11: =Kundenwerte!BL11 -> 0 | CZ11: =Kundenwerte!BM11 -> 0 | DA11: =Kundenwerte!BN11 -> 0 | DB11: 0
A12: =Tageswerte!A12 -> 00:00:00 | B12: =Tageswerte!J12 -> 0 | D12: =IF(A12="","",Feiertage!B12) -> 2 | AJ12: BA4 | AM12: =VLOOKUP($O$2,$AO$2:$DA$25,12,FALSE) ->  | AN12: =AM12*S19*T19*U19*V19*W19*X19*Y19 ->  | AO12: ='Koeffizientenübersicht BDEW'!T35 -> 11 | AP12: =Kundenwerte!C12 -> 0 | AQ12: =Kundenwerte!D12 -> 0 | AR12: =Kundenwerte!E12 -> 0 | AS12: =Kundenwerte!F12 -> 0 | AT12: =Kundenwerte!G12 -> 0 | AU12: =Kundenwerte!H12 -> 0 | AV12: =Kundenwerte!I12 -> 0 | AW12: =Kundenwerte!J12 -> 0 | AX12: =Kundenwerte!K12 -> 0 | AY12: =Kundenwerte!L12 -> 0 | AZ12: =Kundenwerte!M12 -> 0 | BA12: =Kundenwerte!N12 -> 0 | BB12: =Kundenwerte!O12 -> 0 | BC12: =Kundenwerte!P12 -> 0 | BD12: =Kundenwerte!Q12 -> 0 | BE12: =Kundenwerte!R12 -> 0 | BF12: =Kundenwerte!S12 -> 0 | BG12: =Kundenwerte!T12 -> 0 | BH12: =Kundenwerte!U12 -> 0 | BI12: =Kundenwerte!V12 -> 0 | BJ12: =Kundenwerte!W12 -> 0 | BK12: =Kundenwerte!X12 -> 0 | BL12: =Kundenwerte!Y12 -> 0 | BM12: =Kundenwerte!Z12 -> 0 | BN12: =Kundenwerte!AA12 -> 0 | BO12: =Kundenwerte!AB12 -> 0 | BP12: =Kundenwerte!AC12 -> 0 | BQ12: =Kundenwerte!AD12 -> 0 | BR12: =Kundenwerte!AE12 -> 0 | BS12: =Kundenwerte!AF12 -> 0 | BT12: =Kundenwerte!AG12 -> 0 | BU12: =Kundenwerte!AH12 -> 0 | BV12: =Kundenwerte!AI12 -> 0 | BW12: =Kundenwerte!AJ12 -> 0 | BX12: =Kundenwerte!AK12 -> 0 | BY12: =Kundenwerte!AL12 -> 0 | BZ12: =Kundenwerte!AM12 -> 0 | CA12: =Kundenwerte!AN12 -> 0 | CB12: =Kundenwerte!AO12 -> 0 | CC12: =Kundenwerte!AP12 -> 0 | CD12: =Kundenwerte!AQ12 -> 0 | CE12: =Kundenwerte!AR12 -> 0 | CF12: =Kundenwerte!AS12 -> 0 | CG12: =Kundenwerte!AT12 -> 0 | CH12: =Kundenwerte!AU12 -> 0 | CI12: =Kundenwerte!AV12 -> 0 | CJ12: =Kundenwerte!AW12 -> 0 | CK12: =Kundenwerte!AX12 -> 0 | CL12: =Kundenwerte!AY12 -> 0 | CM12: =Kundenwerte!AZ12 -> 0 | CN12: =Kundenwerte!BA12 -> 0 | CO12: =Kundenwerte!BB12 -> 0 | CP12: =Kundenwerte!BC12 -> 0 | CQ12: =Kundenwerte!BD12 -> 0 | CR12: =Kundenwerte!BE12 -> 0 | CS12: =Kundenwerte!BF12 -> 0 | CT12: =Kundenwerte!BG12 -> 0 | CU12: =Kundenwerte!BH12 -> 0 | CV12: =Kundenwerte!BI12 -> 0 | CW12: =Kundenwerte!BJ12 -> 0 | CX12: =Kundenwerte!BK12 -> 0 | CY12: =Kundenwerte!BL12 -> 0 | CZ12: =Kundenwerte!BM12 -> 0 | DA12: =Kundenwerte!BN12 -> 0 | DB12: 0
A13: =Tageswerte!A13 -> 00:00:00 | B13: =Tageswerte!J13 -> 0 | D13: =IF(A13="","",Feiertage!B13) -> 3 | R13: Bäckereien | Z13: Tagesfaktoren | AJ13: BA5 | AM13: =VLOOKUP($O$2,$AO$2:$DA$25,13,FALSE) ->  | AO13: ='Koeffizientenübersicht BDEW'!T36 -> 12 | AP13: =Kundenwerte!C13 -> 0 | AQ13: =Kundenwerte!D13 -> 0 | AR13: =Kundenwerte!E13 -> 0 | AS13: =Kundenwerte!F13 -> 0 | AT13: =Kundenwerte!G13 -> 0 | AU13: =Kundenwerte!H13 -> 0 | AV13: =Kundenwerte!I13 -> 0 | AW13: =Kundenwerte!J13 -> 0 | AX13: =Kundenwerte!K13 -> 0 | AY13: =Kundenwerte!L13 -> 0 | AZ13: =Kundenwerte!M13 -> 0 | BA13: =Kundenwerte!N13 -> 0 | BB13: =Kundenwerte!O13 -> 0 | BC13: =Kundenwerte!P13 -> 0 | BD13: =Kundenwerte!Q13 -> 0 | BE13: =Kundenwerte!R13 -> 0 | BF13: =Kundenwerte!S13 -> 0 | BG13: =Kundenwerte!T13 -> 0 | BH13: =Kundenwerte!U13 -> 0 | BI13: =Kundenwerte!V13 -> 0 | BJ13: =Kundenwerte!W13 -> 0 | BK13: =Kundenwerte!X13 -> 0 | BL13: =Kundenwerte!Y13 -> 0 | BM13: =Kundenwerte!Z13 -> 0 | BN13: =Kundenwerte!AA13 -> 0 | BO13: =Kundenwerte!AB13 -> 0 | BP13: =Kundenwerte!AC13 -> 0 | BQ13: =Kundenwerte!AD13 -> 0 | BR13: =Kundenwerte!AE13 -> 0 | BS13: =Kundenwerte!AF13 -> 0 | BT13: =Kundenwerte!AG13 -> 0 | BU13: =Kundenwerte!AH13 -> 0 | BV13: =Kundenwerte!AI13 -> 0 | BW13: =Kundenwerte!AJ13 -> 0 | BX13: =Kundenwerte!AK13 -> 0 | BY13: =Kundenwerte!AL13 -> 0 | BZ13: =Kundenwerte!AM13 -> 0 | CA13: =Kundenwerte!AN13 -> 0 | CB13: =Kundenwerte!AO13 -> 0 | CC13: =Kundenwerte!AP13 -> 0 | CD13: =Kundenwerte!AQ13 -> 0 | CE13: =Kundenwerte!AR13 -> 0 | CF13: =Kundenwerte!AS13 -> 0 | CG13: =Kundenwerte!AT13 -> 0 | CH13: =Kundenwerte!AU13 -> 0 | CI13: =Kundenwerte!AV13 -> 0 | CJ13: =Kundenwerte!AW13 -> 0 | CK13: =Kundenwerte!AX13 -> 0 | CL13: =Kundenwerte!AY13 -> 0 | CM13: =Kundenwerte!AZ13 -> 0 | CN13: =Kundenwerte!BA13 -> 0 | CO13: =Kundenwerte!BB13 -> 0 | CP13: =Kundenwerte!BC13 -> 0 | CQ13: =Kundenwerte!BD13 -> 0 | CR13: =Kundenwerte!BE13 -> 0 | CS13: =Kundenwerte!BF13 -> 0 | CT13: =Kundenwerte!BG13 -> 0 | CU13: =Kundenwerte!BH13 -> 0 | CV13: =Kundenwerte!BI13 -> 0 | CW13: =Kundenwerte!BJ13 -> 0 | CX13: =Kundenwerte!BK13 -> 0 | CY13: =Kundenwerte!BL13 -> 0 | CZ13: =Kundenwerte!BM13 -> 0 | DA13: =Kundenwerte!BN13 -> 0 | DB13: 0
A14: =Tageswerte!A14 -> 00:00:00 | B14: =Tageswerte!J14 -> 0 | D14: =IF(A14="","",Feiertage!B14) -> 4 | Z14: 1 | AA14: ='Koeffizientenübersicht NB'!$F$50 -> 1.0848 | AJ14: BD1 | AM14: =VLOOKUP($O$2,$AO$2:$DA$25,14,FALSE) ->  | AN14: =AM14*S70*T70*U70*V70*W70*X70*Y70 ->  | AO14: ='Koeffizientenübersicht BDEW'!T37 -> 1 | AP14: =Kundenwerte!C14 -> 0 | AQ14: =Kundenwerte!D14 -> 0 | AR14: =Kundenwerte!E14 -> 0 | AS14: =Kundenwerte!F14 -> 0 | AT14: =Kundenwerte!G14 -> 0 | AU14: =Kundenwerte!H14 -> 0 | AV14: =Kundenwerte!I14 -> 0 | AW14: =Kundenwerte!J14 -> 0 | AX14: =Kundenwerte!K14 -> 0 | AY14: =Kundenwerte!L14 -> 0 | AZ14: =Kundenwerte!M14 -> 0 | BA14: =Kundenwerte!N14 -> 0 | BB14: =Kundenwerte!O14 -> 0 | BC14: =Kundenwerte!P14 -> 0 | BD14: =Kundenwerte!Q14 -> 0 | BE14: =Kundenwerte!R14 -> 0 | BF14: =Kundenwerte!S14 -> 0 | BG14: =Kundenwerte!T14 -> 0 | BH14: =Kundenwerte!U14 -> 0 | BI14: =Kundenwerte!V14 -> 0 | BJ14: =Kundenwerte!W14 -> 0 | BK14: =Kundenwerte!X14 -> 0 | BL14: =Kundenwerte!Y14 -> 0 | BM14: =Kundenwerte!Z14 -> 0 | BN14: =Kundenwerte!AA14 -> 0 | BO14: =Kundenwerte!AB14 -> 0 | BP14: =Kundenwerte!AC14 -> 0 | BQ14: =Kundenwerte!AD14 -> 0 | BR14: =Kundenwerte!AE14 -> 0 | BS14: =Kundenwerte!AF14 -> 0 | BT14: =Kundenwerte!AG14 -> 0 | BU14: =Kundenwerte!AH14 -> 0 | BV14: =Kundenwerte!AI14 -> 0 | BW14: =Kundenwerte!AJ14 -> 0 | BX14: =Kundenwerte!AK14 -> 0 | BY14: =Kundenwerte!AL14 -> 0 | BZ14: =Kundenwerte!AM14 -> 0 | CA14: =Kundenwerte!AN14 -> 0 | CB14: =Kundenwerte!AO14 -> 0 | CC14: =Kundenwerte!AP14 -> 0 | CD14: =Kundenwerte!AQ14 -> 0 | CE14: =Kundenwerte!AR14 -> 0 | CF14: =Kundenwerte!AS14 -> 0 | CG14: =Kundenwerte!AT14 -> 0 | CH14: =Kundenwerte!AU14 -> 0 | CI14: =Kundenwerte!AV14 -> 0 | CJ14: =Kundenwerte!AW14 -> 0 | CK14: =Kundenwerte!AX14 -> 0 | CL14: =Kundenwerte!AY14 -> 0 | CM14: =Kundenwerte!AZ14 -> 0 | CN14: =Kundenwerte!BA14 -> 0 | CO14: =Kundenwerte!BB14 -> 0 | CP14: =Kundenwerte!BC14 -> 0 | CQ14: =Kundenwerte!BD14 -> 0 | CR14: =Kundenwerte!BE14 -> 0 | CS14: =Kundenwerte!BF14 -> 0 | CT14: =Kundenwerte!BG14 -> 0 | CU14: =Kundenwerte!BH14 -> 0 | CV14: =Kundenwerte!BI14 -> 0 | CW14: =Kundenwerte!BJ14 -> 0 | CX14: =Kundenwerte!BK14 -> 0 | CY14: =Kundenwerte!BL14 -> 0 | CZ14: =Kundenwerte!BM14 -> 0 | DA14: =Kundenwerte!BN14 -> 0 | DB14: 0
A15: =Tageswerte!A15 -> 00:00:00 | B15: =Tageswerte!J15 -> 0 | D15: =IF(A15="","",Feiertage!B15) -> 5 | S15: Montag | T15: Dienstag | U15: Mittwoch | V15: Donnerstag | W15: Freitag | X15: Samstag | Y15: Sonntag | Z15: 2 | AA15: ='Koeffizientenübersicht NB'!$G$50 -> 1.1211 | AJ15: BD2 | AM15: =VLOOKUP($O$2,$AO$2:$DA$25,15,FALSE) ->  | AN15: =AM15*S71*T71*U71*V71*W71*X71*Y71 ->  | AO15: ='Koeffizientenübersicht BDEW'!T38 -> 2 | AP15: =Kundenwerte!C15 -> 0 | AQ15: =Kundenwerte!D15 -> 0 | AR15: =Kundenwerte!E15 -> 0 | AS15: =Kundenwerte!F15 -> 0 | AT15: =Kundenwerte!G15 -> 0 | AU15: =Kundenwerte!H15 -> 0 | AV15: =Kundenwerte!I15 -> 0 | AW15: =Kundenwerte!J15 -> 0 | AX15: =Kundenwerte!K15 -> 0 | AY15: =Kundenwerte!L15 -> 0 | AZ15: =Kundenwerte!M15 -> 0 | BA15: =Kundenwerte!N15 -> 0 | BB15: =Kundenwerte!O15 -> 0 | BC15: =Kundenwerte!P15 -> 0 | BD15: =Kundenwerte!Q15 -> 0 | BE15: =Kundenwerte!R15 -> 0 | BF15: =Kundenwerte!S15 -> 0 | BG15: =Kundenwerte!T15 -> 0 | BH15: =Kundenwerte!U15 -> 0 | BI15: =Kundenwerte!V15 -> 0 | BJ15: =Kundenwerte!W15 -> 0 | BK15: =Kundenwerte!X15 -> 0 | BL15: =Kundenwerte!Y15 -> 0 | BM15: =Kundenwerte!Z15 -> 0 | BN15: =Kundenwerte!AA15 -> 0 | BO15: =Kundenwerte!AB15 -> 0 | BP15: =Kundenwerte!AC15 -> 0 | BQ15: =Kundenwerte!AD15 -> 0 | BR15: =Kundenwerte!AE15 -> 0 | BS15: =Kundenwerte!AF15 -> 0 | BT15: =Kundenwerte!AG15 -> 0 | BU15: =Kundenwerte!AH15 -> 0 | BV15: =Kundenwerte!AI15 -> 0 | BW15: =Kundenwerte!AJ15 -> 0 | BX15: =Kundenwerte!AK15 -> 0 | BY15: =Kundenwerte!AL15 -> 0 | BZ15: =Kundenwerte!AM15 -> 0 | CA15: =Kundenwerte!AN15 -> 0 | CB15: =Kundenwerte!AO15 -> 0 | CC15: =Kundenwerte!AP15 -> 0 | CD15: =Kundenwerte!AQ15 -> 0 | CE15: =Kundenwerte!AR15 -> 0 | CF15: =Kundenwerte!AS15 -> 0 | CG15: =Kundenwerte!AT15 -> 0 | CH15: =Kundenwerte!AU15 -> 0 | CI15: =Kundenwerte!AV15 -> 0 | CJ15: =Kundenwerte!AW15 -> 0 | CK15: =Kundenwerte!AX15 -> 0 | CL15: =Kundenwerte!AY15 -> 0 | CM15: =Kundenwerte!AZ15 -> 0 | CN15: =Kundenwerte!BA15 -> 0 | CO15: =Kundenwerte!BB15 -> 0 | CP15: =Kundenwerte!BC15 -> 0 | CQ15: =Kundenwerte!BD15 -> 0 | CR15: =Kundenwerte!BE15 -> 0 | CS15: =Kundenwerte!BF15 -> 0 | CT15: =Kundenwerte!BG15 -> 0 | CU15: =Kundenwerte!BH15 -> 0 | CV15: =Kundenwerte!BI15 -> 0 | CW15: =Kundenwerte!BJ15 -> 0 | CX15: =Kundenwerte!BK15 -> 0 | CY15: =Kundenwerte!BL15 -> 0 | CZ15: =Kundenwerte!BM15 -> 0 | DA15: =Kundenwerte!BN15 -> 0 | DB15: 0
A16: =Tageswerte!A16 -> 00:00:00 | B16: =Tageswerte!J16 -> 0 | D16: =IF(A16="","",Feiertage!B16) -> 6 | R16: =AC16 -> BA1 | S16: =IF($Q$2=1,(AD16/(1+(AE16/(P$2-40))^AF16)+AG16)*VLOOKUP($Q$2,$Z$14:$AA$20,2),1) -> 1 | T16: =IF($Q$2=2,(AD16/(1+(AE16/(P$2-40))^AF16)+AG16)*VLOOKUP($Q$2,$Z$14:$AA$20,2),1) -> 1 | U16: =IF($Q$2=3,(AD16/(1+(AE16/(P$2-40))^AF16)+AG16)*VLOOKUP($Q$2,$Z$14:$AA$20,2),1) -> 1 | V16: =IF($Q$2=4,(AD16/(1+(AE16/(P$2-40))^AF16)+AG16)*VLOOKUP($Q$2,$Z$14:$AA$20,2),1) -> 1.224147816 | W16: =IF($Q$2=5,(AD16/(1+(AE16/(P$2-40))^AF16)+AG16)*VLOOKUP($Q$2,$Z$14:$AA$20,2),1) -> 1 | X16: =IF($Q$2=6,(AD16/(1+(AE16/(P$2-40))^AF16)+AG16)*VLOOKUP($Q$2,$Z$14:$AA$20,2),1) -> 1 | Y16: =IF($Q$2=7,(AD16/(1+(AE16/(P$2-40))^AF16)+AG16)*VLOOKUP($Q$2,$Z$14:$AA$20,2),1) -> 1 | Z16: 3 | AA16: ='Koeffizientenübersicht NB'!$H$50 -> 1.0769 | AC16: BA1 | AD16: ='Koeffizientenübersicht NB'!B50 -> 0.15 | AE16: ='Koeffizientenübersicht NB'!C50 -> -36 | AF16: ='Koeffizientenübersicht NB'!D50 -> 2 | AG16: ='Koeffizientenübersicht NB'!E50 -> 1 | AJ16: BD3 | AM16: =VLOOKUP($O$2,$AO$2:$DA$25,16,FALSE) ->  | AO16: ='Koeffizientenübersicht BDEW'!T39 -> 3 | AP16: =Kundenwerte!C16 -> 0 | AQ16: =Kundenwerte!D16 -> 0 | AR16: =Kundenwerte!E16 -> 0 | AS16: =Kundenwerte!F16 -> 0 | AT16: =Kundenwerte!G16 -> 0 | AU16: =Kundenwerte!H16 -> 0 | AV16: =Kundenwerte!I16 -> 0 | AW16: =Kundenwerte!J16 -> 0 | AX16: =Kundenwerte!K16 -> 0 | AY16: =Kundenwerte!L16 -> 0 | AZ16: =Kundenwerte!M16 -> 0 | BA16: =Kundenwerte!N16 -> 0 | BB16: =Kundenwerte!O16 -> 0 | BC16: =Kundenwerte!P16 -> 0 | BD16: =Kundenwerte!Q16 -> 0 | BE16: =Kundenwerte!R16 -> 0 | BF16: =Kundenwerte!S16 -> 0 | BG16: =Kundenwerte!T16 -> 0 | BH16: =Kundenwerte!U16 -> 0 | BI16: =Kundenwerte!V16 -> 0 | BJ16: =Kundenwerte!W16 -> 0 | BK16: =Kundenwerte!X16 -> 0 | BL16: =Kundenwerte!Y16 -> 0 | BM16: =Kundenwerte!Z16 -> 0 | BN16: =Kundenwerte!AA16 -> 0 | BO16: =Kundenwerte!AB16 -> 0 | BP16: =Kundenwerte!AC16 -> 0 | BQ16: =Kundenwerte!AD16 -> 0 | BR16: =Kundenwerte!AE16 -> 0 | BS16: =Kundenwerte!AF16 -> 0 | BT16: =Kundenwerte!AG16 -> 0 | BU16: =Kundenwerte!AH16 -> 0 | BV16: =Kundenwerte!AI16 -> 0 | BW16: =Kundenwerte!AJ16 -> 0 | BX16: =Kundenwerte!AK16 -> 0 | BY16: =Kundenwerte!AL16 -> 0 | BZ16: =Kundenwerte!AM16 -> 0 | CA16: =Kundenwerte!AN16 -> 0 | CB16: =Kundenwerte!AO16 -> 0 | CC16: =Kundenwerte!AP16 -> 0 | CD16: =Kundenwerte!AQ16 -> 0 | CE16: =Kundenwerte!AR16 -> 0 | CF16: =Kundenwerte!AS16 -> 0 | CG16: =Kundenwerte!AT16 -> 0 | CH16: =Kundenwerte!AU16 -> 0 | CI16: =Kundenwerte!AV16 -> 0 | CJ16: =Kundenwerte!AW16 -> 0 | CK16: =Kundenwerte!AX16 -> 0 | CL16: =Kundenwerte!AY16 -> 0 | CM16: =Kundenwerte!AZ16 -> 0 | CN16: =Kundenwerte!BA16 -> 0 | CO16: =Kundenwerte!BB16 -> 0 | CP16: =Kundenwerte!BC16 -> 0 | CQ16: =Kundenwerte!BD16 -> 0 | CR16: =Kundenwerte!BE16 -> 0 | CS16: =Kundenwerte!BF16 -> 0 | CT16: =Kundenwerte!BG16 -> 0 | CU16: =Kundenwerte!BH16 -> 0 | CV16: =Kundenwerte!BI16 -> 0 | CW16: =Kundenwerte!BJ16 -> 0 | CX16: =Kundenwerte!BK16 -> 0 | CY16: =Kundenwerte!BL16 -> 0 | CZ16: =Kundenwerte!BM16 -> 0 | DA16: =Kundenwerte!BN16 -> 0 | DB16: 0
A17: =Tageswerte!A17 -> 00:00:00 | B17: =Tageswerte!J17 -> 0 | D17: =IF(A17="","",Feiertage!B17) -> 7 | R17: =AC17 -> BA2 | S17: =IF($Q$2=1,(AD17/(1+(AE17/(P$2-40))^AF17)+AG17)*VLOOKUP($Q$2,$Z$14:$AA$20,2),1) -> 1 | T17: =IF($Q$2=2,(AD17/(1+(AE17/(P$2-40))^AF17)+AG17)*VLOOKUP($Q$2,$Z$14:$AA$20,2),1) -> 1 | U17: =IF($Q$2=3,(AD17/(1+(AE17/(P$2-40))^AF17)+AG17)*VLOOKUP($Q$2,$Z$14:$AA$20,2),1) -> 1 | V17: =IF($Q$2=4,(AD17/(1+(AE17/(P$2-40))^AF17)+AG17)*VLOOKUP($Q$2,$Z$14:$AA$20,2),1) -> 1.273395241 | W17: =IF($Q$2=5,(AD17/(1+(AE17/(P$2-40))^AF17)+AG17)*VLOOKUP($Q$2,$Z$14:$AA$20,2),1) -> 1 | X17: =IF($Q$2=6,(AD17/(1+(AE17/(P$2-40))^AF17)+AG17)*VLOOKUP($Q$2,$Z$14:$AA$20,2),1) -> 1 | Y17: =IF($Q$2=7,(AD17/(1+(AE17/(P$2-40))^AF17)+AG17)*VLOOKUP($Q$2,$Z$14:$AA$20,2),1) -> 1 | Z17: 4 | AA17: ='Koeffizientenübersicht NB'!$I$50 -> 1.1353 | AC17: BA2 | AD17: ='Koeffizientenübersicht NB'!B51 -> 0.387919104 | AE17: ='Koeffizientenübersicht NB'!C51 -> -35.5 | AF17: ='Koeffizientenübersicht NB'!D51 -> 4 | AG17: ='Koeffizientenübersicht NB'!E51 -> 0.905481543 | AJ17: BD4 | AM17: =VLOOKUP($O$2,$AO$2:$DA$25,17,FALSE) ->  | AO17: ='Koeffizientenübersicht BDEW'!T40 -> 4 | AP17: =Kundenwerte!C17 -> 0 | AQ17: =Kundenwerte!D17 -> 0 | AR17: =Kundenwerte!E17 -> 0 | AS17: =Kundenwerte!F17 -> 0 | AT17: =Kundenwerte!G17 -> 0 | AU17: =Kundenwerte!H17 -> 0 | AV17: =Kundenwerte!I17 -> 0 | AW17: =Kundenwerte!J17 -> 0 | AX17: =Kundenwerte!K17 -> 0 | AY17: =Kundenwerte!L17 -> 0 | AZ17: =Kundenwerte!M17 -> 0 | BA17: =Kundenwerte!N17 -> 0 | BB17: =Kundenwerte!O17 -> 0 | BC17: =Kundenwerte!P17 -> 0 | BD17: =Kundenwerte!Q17 -> 0 | BE17: =Kundenwerte!R17 -> 0 | BF17: =Kundenwerte!S17 -> 0 | BG17: =Kundenwerte!T17 -> 0 | BH17: =Kundenwerte!U17 -> 0 | BI17: =Kundenwerte!V17 -> 0 | BJ17: =Kundenwerte!W17 -> 0 | BK17: =Kundenwerte!X17 -> 0 | BL17: =Kundenwerte!Y17 -> 0 | BM17: =Kundenwerte!Z17 -> 0 | BN17: =Kundenwerte!AA17 -> 0 | BO17: =Kundenwerte!AB17 -> 0 | BP17: =Kundenwerte!AC17 -> 0 | BQ17: =Kundenwerte!AD17 -> 0 | BR17: =Kundenwerte!AE17 -> 0 | BS17: =Kundenwerte!AF17 -> 0 | BT17: =Kundenwerte!AG17 -> 0 | BU17: =Kundenwerte!AH17 -> 0 | BV17: =Kundenwerte!AI17 -> 0 | BW17: =Kundenwerte!AJ17 -> 0 | BX17: =Kundenwerte!AK17 -> 0 | BY17: =Kundenwerte!AL17 -> 0 | BZ17: =Kundenwerte!AM17 -> 0 | CA17: =Kundenwerte!AN17 -> 0 | CB17: =Kundenwerte!AO17 -> 0 | CC17: =Kundenwerte!AP17 -> 0 | CD17: =Kundenwerte!AQ17 -> 0 | CE17: =Kundenwerte!AR17 -> 0 | CF17: =Kundenwerte!AS17 -> 0 | CG17: =Kundenwerte!AT17 -> 0 | CH17: =Kundenwerte!AU17 -> 0 | CI17: =Kundenwerte!AV17 -> 0 | CJ17: =Kundenwerte!AW17 -> 0 | CK17: =Kundenwerte!AX17 -> 0 | CL17: =Kundenwerte!AY17 -> 0 | CM17: =Kundenwerte!AZ17 -> 0 | CN17: =Kundenwerte!BA17 -> 0 | CO17: =Kundenwerte!BB17 -> 0 | CP17: =Kundenwerte!BC17 -> 0 | CQ17: =Kundenwerte!BD17 -> 0 | CR17: =Kundenwerte!BE17 -> 0 | CS17: =Kundenwerte!BF17 -> 0 | CT17: =Kundenwerte!BG17 -> 0 | CU17: =Kundenwerte!BH17 -> 0 | CV17: =Kundenwerte!BI17 -> 0 | CW17: =Kundenwerte!BJ17 -> 0 | CX17: =Kundenwerte!BK17 -> 0 | CY17: =Kundenwerte!BL17 -> 0 | CZ17: =Kundenwerte!BM17 -> 0 | DA17: =Kundenwerte!BN17 -> 0 | DB17: 0
A18: =Tageswerte!A18 -> 00:00:00 | B18: =Tageswerte!J18 -> 0 | D18: =IF(A18="","",Feiertage!B18) -> 1 | R18: =AC18 -> BA3 | S18: =IF($Q$2=1,(AD18/(1+(AE18/(P$2-40))^AF18)+AG18)*VLOOKUP($Q$2,$Z$14:$AA$20,2),1) -> 1 | T18: =IF($Q$2=2,(AD18/(1+(AE18/(P$2-40))^AF18)+AG18)*VLOOKUP($Q$2,$Z$14:$AA$20,2),1) -> 1 | U18: =IF($Q$2=3,(AD18/(1+(AE18/(P$2-40))^AF18)+AG18)*VLOOKUP($Q$2,$Z$14:$AA$20,2),1) -> 1 | V18: =IF($Q$2=4,(AD18/(1+(AE18/(P$2-40))^AF18)+AG18)*VLOOKUP($Q$2,$Z$14:$AA$20,2),1) -> 1.374167641 | W18: =IF($Q$2=5,(AD18/(1+(AE18/(P$2-40))^AF18)+AG18)*VLOOKUP($Q$2,$Z$14:$AA$20,2),1) -> 1 | X18: =IF($Q$2=6,(AD18/(1+(AE18/(P$2-40))^AF18)+AG18)*VLOOKUP($Q$2,$Z$14:$AA$20,2),1) -> 1 | Y18: =IF($Q$2=7,(AD18/(1+(AE18/(P$2-40))^AF18)+AG18)*VLOOKUP($Q$2,$Z$14:$AA$20,2),1) -> 1 | Z18: 5 | AA18: ='Koeffizientenübersicht NB'!$J$50 -> 1.1402 | AC18: BA3 | AD18: ='Koeffizientenübersicht NB'!B52 -> 0.626196216 | AE18: ='Koeffizientenübersicht NB'!C52 -> -33 | AF18: ='Koeffizientenübersicht NB'!D52 -> 5.72123025 | AG18: ='Koeffizientenübersicht NB'!E52 -> 0.78556546 | AJ18: BD5 | AM18: =VLOOKUP($O$2,$AO$2:$DA$25,18,FALSE) ->  | AO18: ='Koeffizientenübersicht BDEW'!T41 -> 5 | AP18: =Kundenwerte!C18 -> 0 | AQ18: =Kundenwerte!D18 -> 0 | AR18: =Kundenwerte!E18 -> 0 | AS18: =Kundenwerte!F18 -> 0 | AT18: =Kundenwerte!G18 -> 0 | AU18: =Kundenwerte!H18 -> 0 | AV18: =Kundenwerte!I18 -> 0 | AW18: =Kundenwerte!J18 -> 0 | AX18: =Kundenwerte!K18 -> 0 | AY18: =Kundenwerte!L18 -> 0 | AZ18: =Kundenwerte!M18 -> 0 | BA18: =Kundenwerte!N18 -> 0 | BB18: =Kundenwerte!O18 -> 0 | BC18: =Kundenwerte!P18 -> 0 | BD18: =Kundenwerte!Q18 -> 0 | BE18: =Kundenwerte!R18 -> 0 | BF18: =Kundenwerte!S18 -> 0 | BG18: =Kundenwerte!T18 -> 0 | BH18: =Kundenwerte!U18 -> 0 | BI18: =Kundenwerte!V18 -> 0 | BJ18: =Kundenwerte!W18 -> 0 | BK18: =Kundenwerte!X18 -> 0 | BL18: =Kundenwerte!Y18 -> 0 | BM18: =Kundenwerte!Z18 -> 0 | BN18: =Kundenwerte!AA18 -> 0 | BO18: =Kundenwerte!AB18 -> 0 | BP18: =Kundenwerte!AC18 -> 0 | BQ18: =Kundenwerte!AD18 -> 0 | BR18: =Kundenwerte!AE18 -> 0 | BS18: =Kundenwerte!AF18 -> 0 | BT18: =Kundenwerte!AG18 -> 0 | BU18: =Kundenwerte!AH18 -> 0 | BV18: =Kundenwerte!AI18 -> 0 | BW18: =Kundenwerte!AJ18 -> 0 | BX18: =Kundenwerte!AK18 -> 0 | BY18: =Kundenwerte!AL18 -> 0 | BZ18: =Kundenwerte!AM18 -> 0 | CA18: =Kundenwerte!AN18 -> 0 | CB18: =Kundenwerte!AO18 -> 0 | CC18: =Kundenwerte!AP18 -> 0 | CD18: =Kundenwerte!AQ18 -> 0 | CE18: =Kundenwerte!AR18 -> 0 | CF18: =Kundenwerte!AS18 -> 0 | CG18: =Kundenwerte!AT18 -> 0 | CH18: =Kundenwerte!AU18 -> 0 | CI18: =Kundenwerte!AV18 -> 0 | CJ18: =Kundenwerte!AW18 -> 0 | CK18: =Kundenwerte!AX18 -> 0 | CL18: =Kundenwerte!AY18 -> 0 | CM18: =Kundenwerte!AZ18 -> 0 | CN18: =Kundenwerte!BA18 -> 0 | CO18: =Kundenwerte!BB18 -> 0 | CP18: =Kundenwerte!BC18 -> 0 | CQ18: =Kundenwerte!BD18 -> 0 | CR18: =Kundenwerte!BE18 -> 0 | CS18: =Kundenwerte!BF18 -> 0 | CT18: =Kundenwerte!BG18 -> 0 | CU18: =Kundenwerte!BH18 -> 0 | CV18: =Kundenwerte!BI18 -> 0 | CW18: =Kundenwerte!BJ18 -> 0 | CX18: =Kundenwerte!BK18 -> 0 | CY18: =Kundenwerte!BL18 -> 0 | CZ18: =Kundenwerte!BM18 -> 0 | DA18: =Kundenwerte!BN18 -> 0 | DB18: 0
A19: =Tageswerte!A19 -> 00:00:00 | B19: =Tageswerte!J19 -> 0 | D19: =IF(A19="","",Feiertage!B19) -> 2 | R19: =AC19 -> BA4 | S19: =IF($Q$2=1,(AD19/(1+(AE19/(P$2-40))^AF19)+AG19)*VLOOKUP($Q$2,$Z$14:$AA$20,2),1) -> 1 | T19: =IF($Q$2=2,(AD19/(1+(AE19/(P$2-40))^AF19)+AG19)*VLOOKUP($Q$2,$Z$14:$AA$20,2),1) -> 1 | U19: =IF($Q$2=3,(AD19/(1+(AE19/(P$2-40))^AF19)+AG19)*VLOOKUP($Q$2,$Z$14:$AA$20,2),1) -> 1 | V19: =IF($Q$2=4,(AD19/(1+(AE19/(P$2-40))^AF19)+AG19)*VLOOKUP($Q$2,$Z$14:$AA$20,2),1) -> 1.459175133 | W19: =IF($Q$2=5,(AD19/(1+(AE19/(P$2-40))^AF19)+AG19)*VLOOKUP($Q$2,$Z$14:$AA$20,2),1) -> 1 | X19: =IF($Q$2=6,(AD19/(1+(AE19/(P$2-40))^AF19)+AG19)*VLOOKUP($Q$2,$Z$14:$AA$20,2),1) -> 1 | Y19: =IF($Q$2=7,(AD19/(1+(AE19/(P$2-40))^AF19)+AG19)*VLOOKUP($Q$2,$Z$14:$AA$20,2),1) -> 1 | Z19: 6 | AA19: ='Koeffizientenübersicht NB'!$K$50 -> 0.4852 | AC19: BA4 | AD19: ='Koeffizientenübersicht NB'!B53 -> 0.931588901 | AE19: ='Koeffizientenübersicht NB'!C53 -> -33.35 | AF19: ='Koeffizientenübersicht NB'!D53 -> 5.72123025 | AG19: ='Koeffizientenübersicht NB'!E53 -> 0.665649377 | AJ19: BH1 | AM19: =VLOOKUP($O$2,$AO$2:$DA$25,19,FALSE) ->  | AN19: =AM19*S25*T25*U25*V25*W25*X25*Y25 ->  | AO19: ='Koeffizientenübersicht BDEW'!T42 -> 6 | AP19: =Kundenwerte!C19 -> 0 | AQ19: =Kundenwerte!D19 -> 0 | AR19: =Kundenwerte!E19 -> 0 | AS19: =Kundenwerte!F19 -> 0 | AT19: =Kundenwerte!G19 -> 0 | AU19: =Kundenwerte!H19 -> 0 | AV19: =Kundenwerte!I19 -> 0 | AW19: =Kundenwerte!J19 -> 0 | AX19: =Kundenwerte!K19 -> 0 | AY19: =Kundenwerte!L19 -> 0 | AZ19: =Kundenwerte!M19 -> 0 | BA19: =Kundenwerte!N19 -> 0 | BB19: =Kundenwerte!O19 -> 0 | BC19: =Kundenwerte!P19 -> 0 | BD19: =Kundenwerte!Q19 -> 0 | BE19: =Kundenwerte!R19 -> 0 | BF19: =Kundenwerte!S19 -> 0 | BG19: =Kundenwerte!T19 -> 0 | BH19: =Kundenwerte!U19 -> 0 | BI19: =Kundenwerte!V19 -> 0 | BJ19: =Kundenwerte!W19 -> 0 | BK19: =Kundenwerte!X19 -> 0 | BL19: =Kundenwerte!Y19 -> 0 | BM19: =Kundenwerte!Z19 -> 0 | BN19: =Kundenwerte!AA19 -> 0 | BO19: =Kundenwerte!AB19 -> 0 | BP19: =Kundenwerte!AC19 -> 0 | BQ19: =Kundenwerte!AD19 -> 0 | BR19: =Kundenwerte!AE19 -> 0 | BS19: =Kundenwerte!AF19 -> 0 | BT19: =Kundenwerte!AG19 -> 0 | BU19: =Kundenwerte!AH19 -> 0 | BV19: =Kundenwerte!AI19 -> 0 | BW19: =Kundenwerte!AJ19 -> 0 | BX19: =Kundenwerte!AK19 -> 0 | BY19: =Kundenwerte!AL19 -> 0 | BZ19: =Kundenwerte!AM19 -> 0 | CA19: =Kundenwerte!AN19 -> 0 | CB19: =Kundenwerte!AO19 -> 0 | CC19: =Kundenwerte!AP19 -> 0 | CD19: =Kundenwerte!AQ19 -> 0 | CE19: =Kundenwerte!AR19 -> 0 | CF19: =Kundenwerte!AS19 -> 0 | CG19: =Kundenwerte!AT19 -> 0 | CH19: =Kundenwerte!AU19 -> 0 | CI19: =Kundenwerte!AV19 -> 0 | CJ19: =Kundenwerte!AW19 -> 0 | CK19: =Kundenwerte!AX19 -> 0 | CL19: =Kundenwerte!AY19 -> 0 | CM19: =Kundenwerte!AZ19 -> 0 | CN19: =Kundenwerte!BA19 -> 0 | CO19: =Kundenwerte!BB19 -> 0 | CP19: =Kundenwerte!BC19 -> 0 | CQ19: =Kundenwerte!BD19 -> 0 | CR19: =Kundenwerte!BE19 -> 0 | CS19: =Kundenwerte!BF19 -> 0 | CT19: =Kundenwerte!BG19 -> 0 | CU19: =Kundenwerte!BH19 -> 0 | CV19: =Kundenwerte!BI19 -> 0 | CW19: =Kundenwerte!BJ19 -> 0 | CX19: =Kundenwerte!BK19 -> 0 | CY19: =Kundenwerte!BL19 -> 0 | CZ19: =Kundenwerte!BM19 -> 0 | DA19: =Kundenwerte!BN19 -> 0 | DB19: 0
A20: =Tageswerte!A20 -> 00:00:00 | B20: =Tageswerte!J20 -> 0 | D20: =IF(A20="","",Feiertage!B20) -> 3 | R20: =AC20 -> BA5 | S20: =IF($Q$2=1,(AD20/(1+(AE20/(P$2-40))^AF20)+AG20)*VLOOKUP($Q$2,$Z$14:$AA$20,2),1) -> 1 | T20: =IF($Q$2=2,(AD20/(1+(AE20/(P$2-40))^AF20)+AG20)*VLOOKUP($Q$2,$Z$14:$AA$20,2),1) -> 1 | U20: =IF($Q$2=3,(AD20/(1+(AE20/(P$2-40))^AF20)+AG20)*VLOOKUP($Q$2,$Z$14:$AA$20,2),1) -> 1 | V20: =IF($Q$2=4,(AD20/(1+(AE20/(P$2-40))^AF20)+AG20)*VLOOKUP($Q$2,$Z$14:$AA$20,2),1) -> 1.519055595 | W20: =IF($Q$2=5,(AD20/(1+(AE20/(P$2-40))^AF20)+AG20)*VLOOKUP($Q$2,$Z$14:$AA$20,2),1) -> 1 | X20: =IF($Q$2=6,(AD20/(1+(AE20/(P$2-40))^AF20)+AG20)*VLOOKUP($Q$2,$Z$14:$AA$20,2),1) -> 1 | Y20: =IF($Q$2=7,(AD20/(1+(AE20/(P$2-40))^AF20)+AG20)*VLOOKUP($Q$2,$Z$14:$AA$20,2),1) -> 1 | Z20: 7 | AA20: ='Koeffizientenübersicht NB'!$L$50 -> 0.9565 | AC20: BA5 | AD20: ='Koeffizientenübersicht NB'!B54 -> 1.27795673 | AE20: ='Koeffizientenübersicht NB'!C54 -> -34.517392 | AF20: ='Koeffizientenübersicht NB'!D54 -> 5.72123025 | AG20: ='Koeffizientenübersicht NB'!E54 -> 0.545733294 | AJ20: BH2 | AM20: =VLOOKUP($O$2,$AO$2:$DA$25,20,FALSE) ->  | AN20: =AM20*S26*T26*U26*V26*W26*X26*Y26 ->  | AO20: ='Koeffizientenübersicht BDEW'!T43 -> 7 | AP20: =Kundenwerte!C20 -> 0 | AQ20: =Kundenwerte!D20 -> 0 | AR20: =Kundenwerte!E20 -> 0 | AS20: =Kundenwerte!F20 -> 0 | AT20: =Kundenwerte!G20 -> 0 | AU20: =Kundenwerte!H20 -> 0 | AV20: =Kundenwerte!I20 -> 0 | AW20: =Kundenwerte!J20 -> 0 | AX20: =Kundenwerte!K20 -> 0 | AY20: =Kundenwerte!L20 -> 0 | AZ20: =Kundenwerte!M20 -> 0 | BA20: =Kundenwerte!N20 -> 0 | BB20: =Kundenwerte!O20 -> 0 | BC20: =Kundenwerte!P20 -> 0 | BD20: =Kundenwerte!Q20 -> 0 | BE20: =Kundenwerte!R20 -> 0 | BF20: =Kundenwerte!S20 -> 0 | BG20: =Kundenwerte!T20 -> 0 | BH20: =Kundenwerte!U20 -> 0 | BI20: =Kundenwerte!V20 -> 0 | BJ20: =Kundenwerte!W20 -> 0 | BK20: =Kundenwerte!X20 -> 0 | BL20: =Kundenwerte!Y20 -> 0 | BM20: =Kundenwerte!Z20 -> 0 | BN20: =Kundenwerte!AA20 -> 0 | BO20: =Kundenwerte!AB20 -> 0 | BP20: =Kundenwerte!AC20 -> 0 | BQ20: =Kundenwerte!AD20 -> 0 | BR20: =Kundenwerte!AE20 -> 0 | BS20: =Kundenwerte!AF20 -> 0 | BT20: =Kundenwerte!AG20 -> 0 | BU20: =Kundenwerte!AH20 -> 0 | BV20: =Kundenwerte!AI20 -> 0 | BW20: =Kundenwerte!AJ20 -> 0 | BX20: =Kundenwerte!AK20 -> 0 | BY20: =Kundenwerte!AL20 -> 0 | BZ20: =Kundenwerte!AM20 -> 0 | CA20: =Kundenwerte!AN20 -> 0 | CB20: =Kundenwerte!AO20 -> 0 | CC20: =Kundenwerte!AP20 -> 0 | CD20: =Kundenwerte!AQ20 -> 0 | CE20: =Kundenwerte!AR20 -> 0 | CF20: =Kundenwerte!AS20 -> 0 | CG20: =Kundenwerte!AT20 -> 0 | CH20: =Kundenwerte!AU20 -> 0 | CI20: =Kundenwerte!AV20 -> 0 | CJ20: =Kundenwerte!AW20 -> 0 | CK20: =Kundenwerte!AX20 -> 0 | CL20: =Kundenwerte!AY20 -> 0 | CM20: =Kundenwerte!AZ20 -> 0 | CN20: =Kundenwerte!BA20 -> 0 | CO20: =Kundenwerte!BB20 -> 0 | CP20: =Kundenwerte!BC20 -> 0 | CQ20: =Kundenwerte!BD20 -> 0 | CR20: =Kundenwerte!BE20 -> 0 | CS20: =Kundenwerte!BF20 -> 0 | CT20: =Kundenwerte!BG20 -> 0 | CU20: =Kundenwerte!BH20 -> 0 | CV20: =Kundenwerte!BI20 -> 0 | CW20: =Kundenwerte!BJ20 -> 0 | CX20: =Kundenwerte!BK20 -> 0 | CY20: =Kundenwerte!BL20 -> 0 | CZ20: =Kundenwerte!BM20 -> 0 | DA20: =Kundenwerte!BN20 -> 0 | DB20: 0
A21: =Tageswerte!A21 -> 00:00:00 | B21: =Tageswerte!J21 -> 0 | D21: =IF(A21="","",Feiertage!B21) -> 4 | AJ21: BH3 | AM21: =VLOOKUP($O$2,$AO$2:$DA$25,21,FALSE) ->  | AO21: ='Koeffizientenübersicht BDEW'!T44 -> 8 | AP21: =Kundenwerte!C21 -> 0 | AQ21: =Kundenwerte!D21 -> 0 | AR21: =Kundenwerte!E21 -> 0 | AS21: =Kundenwerte!F21 -> 0 | AT21: =Kundenwerte!G21 -> 0 | AU21: =Kundenwerte!H21 -> 0 | AV21: =Kundenwerte!I21 -> 0 | AW21: =Kundenwerte!J21 -> 0 | AX21: =Kundenwerte!K21 -> 0 | AY21: =Kundenwerte!L21 -> 0 | AZ21: =Kundenwerte!M21 -> 0 | BA21: =Kundenwerte!N21 -> 0 | BB21: =Kundenwerte!O21 -> 0 | BC21: =Kundenwerte!P21 -> 0 | BD21: =Kundenwerte!Q21 -> 0 | BE21: =Kundenwerte!R21 -> 0 | BF21: =Kundenwerte!S21 -> 0 | BG21: =Kundenwerte!T21 -> 0 | BH21: =Kundenwerte!U21 -> 0 | BI21: =Kundenwerte!V21 -> 0 | BJ21: =Kundenwerte!W21 -> 0 | BK21: =Kundenwerte!X21 -> 0 | BL21: =Kundenwerte!Y21 -> 0 | BM21: =Kundenwerte!Z21 -> 0 | BN21: =Kundenwerte!AA21 -> 0 | BO21: =Kundenwerte!AB21 -> 0 | BP21: =Kundenwerte!AC21 -> 0 | BQ21: =Kundenwerte!AD21 -> 0 | BR21: =Kundenwerte!AE21 -> 0 | BS21: =Kundenwerte!AF21 -> 0 | BT21: =Kundenwerte!AG21 -> 0 | BU21: =Kundenwerte!AH21 -> 0 | BV21: =Kundenwerte!AI21 -> 0 | BW21: =Kundenwerte!AJ21 -> 0 | BX21: =Kundenwerte!AK21 -> 0 | BY21: =Kundenwerte!AL21 -> 0 | BZ21: =Kundenwerte!AM21 -> 0 | CA21: =Kundenwerte!AN21 -> 0 | CB21: =Kundenwerte!AO21 -> 0 | CC21: =Kundenwerte!AP21 -> 0 | CD21: =Kundenwerte!AQ21 -> 0 | CE21: =Kundenwerte!AR21 -> 0 | CF21: =Kundenwerte!AS21 -> 0 | CG21: =Kundenwerte!AT21 -> 0 | CH21: =Kundenwerte!AU21 -> 0 | CI21: =Kundenwerte!AV21 -> 0 | CJ21: =Kundenwerte!AW21 -> 0 | CK21: =Kundenwerte!AX21 -> 0 | CL21: =Kundenwerte!AY21 -> 0 | CM21: =Kundenwerte!AZ21 -> 0 | CN21: =Kundenwerte!BA21 -> 0 | CO21: =Kundenwerte!BB21 -> 0 | CP21: =Kundenwerte!BC21 -> 0 | CQ21: =Kundenwerte!BD21 -> 0 | CR21: =Kundenwerte!BE21 -> 0 | CS21: =Kundenwerte!BF21 -> 0 | CT21: =Kundenwerte!BG21 -> 0 | CU21: =Kundenwerte!BH21 -> 0 | CV21: =Kundenwerte!BI21 -> 0 | CW21: =Kundenwerte!BJ21 -> 0 | CX21: =Kundenwerte!BK21 -> 0 | CY21: =Kundenwerte!BL21 -> 0 | CZ21: =Kundenwerte!BM21 -> 0 | DA21: =Kundenwerte!BN21 -> 0 | DB21: 0
A22: =Tageswerte!A22 -> 00:00:00 | B22: =Tageswerte!J22 -> 0 | D22: =IF(A22="","",Feiertage!B22) -> 5 | R22: Beherbergung | Z22: Tagesfaktoren | AJ22: BH4 | AM22: =VLOOKUP($O$2,$AO$2:$DA$25,22,FALSE) ->  | AO22: ='Koeffizientenübersicht BDEW'!T45 -> 9 | AP22: =Kundenwerte!C22 -> 0 | AQ22: =Kundenwerte!D22 -> 0 | AR22: =Kundenwerte!E22 -> 0 | AS22: =Kundenwerte!F22 -> 0 | AT22: =Kundenwerte!G22 -> 0 | AU22: =Kundenwerte!H22 -> 0 | AV22: =Kundenwerte!I22 -> 0 | AW22: =Kundenwerte!J22 -> 0 | AX22: =Kundenwerte!K22 -> 0 | AY22: =Kundenwerte!L22 -> 0 | AZ22: =Kundenwerte!M22 -> 0 | BA22: =Kundenwerte!N22 -> 0 | BB22: =Kundenwerte!O22 -> 0 | BC22: =Kundenwerte!P22 -> 0 | BD22: =Kundenwerte!Q22 -> 0 | BE22: =Kundenwerte!R22 -> 0 | BF22: =Kundenwerte!S22 -> 0 | BG22: =Kundenwerte!T22 -> 0 | BH22: =Kundenwerte!U22 -> 0 | BI22: =Kundenwerte!V22 -> 0 | BJ22: =Kundenwerte!W22 -> 0 | BK22: =Kundenwerte!X22 -> 0 | BL22: =Kundenwerte!Y22 -> 0 | BM22: =Kundenwerte!Z22 -> 0 | BN22: =Kundenwerte!AA22 -> 0 | BO22: =Kundenwerte!AB22 -> 0 | BP22: =Kundenwerte!AC22 -> 0 | BQ22: =Kundenwerte!AD22 -> 0 | BR22: =Kundenwerte!AE22 -> 0 | BS22: =Kundenwerte!AF22 -> 0 | BT22: =Kundenwerte!AG22 -> 0 | BU22: =Kundenwerte!AH22 -> 0 | BV22: =Kundenwerte!AI22 -> 0 | BW22: =Kundenwerte!AJ22 -> 0 | BX22: =Kundenwerte!AK22 -> 0 | BY22: =Kundenwerte!AL22 -> 0 | BZ22: =Kundenwerte!AM22 -> 0 | CA22: =Kundenwerte!AN22 -> 0 | CB22: =Kundenwerte!AO22 -> 0 | CC22: =Kundenwerte!AP22 -> 0 | CD22: =Kundenwerte!AQ22 -> 0 | CE22: =Kundenwerte!AR22 -> 0 | CF22: =Kundenwerte!AS22 -> 0 | CG22: =Kundenwerte!AT22 -> 0 | CH22: =Kundenwerte!AU22 -> 0 | CI22: =Kundenwerte!AV22 -> 0 | CJ22: =Kundenwerte!AW22 -> 0 | CK22: =Kundenwerte!AX22 -> 0 | CL22: =Kundenwerte!AY22 -> 0 | CM22: =Kundenwerte!AZ22 -> 0 | CN22: =Kundenwerte!BA22 -> 0 | CO22: =Kundenwerte!BB22 -> 0 | CP22: =Kundenwerte!BC22 -> 0 | CQ22: =Kundenwerte!BD22 -> 0 | CR22: =Kundenwerte!BE22 -> 0 | CS22: =Kundenwerte!BF22 -> 0 | CT22: =Kundenwerte!BG22 -> 0 | CU22: =Kundenwerte!BH22 -> 0 | CV22: =Kundenwerte!BI22 -> 0 | CW22: =Kundenwerte!BJ22 -> 0 | CX22: =Kundenwerte!BK22 -> 0 | CY22: =Kundenwerte!BL22 -> 0 | CZ22: =Kundenwerte!BM22 -> 0 | DA22: =Kundenwerte!BN22 -> 0 | DB22: 0
A23: =Tageswerte!A23 -> 00:00:00 | B23: =Tageswerte!J23 -> 0 | D23: =IF(A23="","",Feiertage!B23) -> 6 | Z23: 1 | AA23: ='Koeffizientenübersicht NB'!$F$35 -> 1.0848 | AJ23: BH5 | AM23: =VLOOKUP($O$2,$AO$2:$DA$25,23,FALSE) ->  | AO23: ='Koeffizientenübersicht BDEW'!T46 -> 10 | AP23: =Kundenwerte!C23 -> 0 | AQ23: =Kundenwerte!D23 -> 0 | AR23: =Kundenwerte!E23 -> 0 | AS23: =Kundenwerte!F23 -> 0 | AT23: =Kundenwerte!G23 -> 0 | AU23: =Kundenwerte!H23 -> 0 | AV23: =Kundenwerte!I23 -> 0 | AW23: =Kundenwerte!J23 -> 0 | AX23: =Kundenwerte!K23 -> 0 | AY23: =Kundenwerte!L23 -> 0 | AZ23: =Kundenwerte!M23 -> 0 | BA23: =Kundenwerte!N23 -> 0 | BB23: =Kundenwerte!O23 -> 0 | BC23: =Kundenwerte!P23 -> 0 | BD23: =Kundenwerte!Q23 -> 0 | BE23: =Kundenwerte!R23 -> 0 | BF23: =Kundenwerte!S23 -> 0 | BG23: =Kundenwerte!T23 -> 0 | BH23: =Kundenwerte!U23 -> 0 | BI23: =Kundenwerte!V23 -> 0 | BJ23: =Kundenwerte!W23 -> 0 | BK23: =Kundenwerte!X23 -> 0 | BL23: =Kundenwerte!Y23 -> 0 | BM23: =Kundenwerte!Z23 -> 0 | BN23: =Kundenwerte!AA23 -> 0 | BO23: =Kundenwerte!AB23 -> 0 | BP23: =Kundenwerte!AC23 -> 0 | BQ23: =Kundenwerte!AD23 -> 0 | BR23: =Kundenwerte!AE23 -> 0 | BS23: =Kundenwerte!AF23 -> 0 | BT23: =Kundenwerte!AG23 -> 0 | BU23: =Kundenwerte!AH23 -> 0 | BV23: =Kundenwerte!AI23 -> 0 | BW23: =Kundenwerte!AJ23 -> 0 | BX23: =Kundenwerte!AK23 -> 0 | BY23: =Kundenwerte!AL23 -> 0 | BZ23: =Kundenwerte!AM23 -> 0 | CA23: =Kundenwerte!AN23 -> 0 | CB23: =Kundenwerte!AO23 -> 0 | CC23: =Kundenwerte!AP23 -> 0 | CD23: =Kundenwerte!AQ23 -> 0 | CE23: =Kundenwerte!AR23 -> 0 | CF23: =Kundenwerte!AS23 -> 0 | CG23: =Kundenwerte!AT23 -> 0 | CH23: =Kundenwerte!AU23 -> 0 | CI23: =Kundenwerte!AV23 -> 0 | CJ23: =Kundenwerte!AW23 -> 0 | CK23: =Kundenwerte!AX23 -> 0 | CL23: =Kundenwerte!AY23 -> 0 | CM23: =Kundenwerte!AZ23 -> 0 | CN23: =Kundenwerte!BA23 -> 0 | CO23: =Kundenwerte!BB23 -> 0 | CP23: =Kundenwerte!BC23 -> 0 | CQ23: =Kundenwerte!BD23 -> 0 | CR23: =Kundenwerte!BE23 -> 0 | CS23: =Kundenwerte!BF23 -> 0 | CT23: =Kundenwerte!BG23 -> 0 | CU23: =Kundenwerte!BH23 -> 0 | CV23: =Kundenwerte!BI23 -> 0 | CW23: =Kundenwerte!BJ23 -> 0 | CX23: =Kundenwerte!BK23 -> 0 | CY23: =Kundenwerte!BL23 -> 0 | CZ23: =Kundenwerte!BM23 -> 0 | DA23: =Kundenwerte!BN23 -> 0 | DB23: 0
A24: =Tageswerte!A24 -> 00:00:00 | B24: =Tageswerte!J24 -> 0 | D24: =IF(A24="","",Feiertage!B24) -> 7 | S24: Montag | T24: Dienstag | U24: Mittwoch | V24: Donnerstag | W24: Freitag | X24: Samstag | Y24: Sonntag | Z24: 2 | AA24: ='Koeffizientenübersicht NB'!$G$35 -> 1.1211 | AJ24: GA1 | AM24: =VLOOKUP($O$2,$AO$2:$DA$25,24,FALSE) ->  | AN24: =AM24*S79*T79*U79*V79*W79*X79*Y79 ->  | AO24: ='Koeffizientenübersicht BDEW'!T47 -> 11 | AP24: =Kundenwerte!C24 -> 0 | AQ24: =Kundenwerte!D24 -> 0 | AR24: =Kundenwerte!E24 -> 0 | AS24: =Kundenwerte!F24 -> 0 | AT24: =Kundenwerte!G24 -> 0 | AU24: =Kundenwerte!H24 -> 0 | AV24: =Kundenwerte!I24 -> 0 | AW24: =Kundenwerte!J24 -> 0 | AX24: =Kundenwerte!K24 -> 0 | AY24: =Kundenwerte!L24 -> 0 | AZ24: =Kundenwerte!M24 -> 0 | BA24: =Kundenwerte!N24 -> 0 | BB24: =Kundenwerte!O24 -> 0 | BC24: =Kundenwerte!P24 -> 0 | BD24: =Kundenwerte!Q24 -> 0 | BE24: =Kundenwerte!R24 -> 0 | BF24: =Kundenwerte!S24 -> 0 | BG24: =Kundenwerte!T24 -> 0 | BH24: =Kundenwerte!U24 -> 0 | BI24: =Kundenwerte!V24 -> 0 | BJ24: =Kundenwerte!W24 -> 0 | BK24: =Kundenwerte!X24 -> 0 | BL24: =Kundenwerte!Y24 -> 0 | BM24: =Kundenwerte!Z24 -> 0 | BN24: =Kundenwerte!AA24 -> 0 | BO24: =Kundenwerte!AB24 -> 0 | BP24: =Kundenwerte!AC24 -> 0 | BQ24: =Kundenwerte!AD24 -> 0 | BR24: =Kundenwerte!AE24 -> 0 | BS24: =Kundenwerte!AF24 -> 0 | BT24: =Kundenwerte!AG24 -> 0 | BU24: =Kundenwerte!AH24 -> 0 | BV24: =Kundenwerte!AI24 -> 0 | BW24: =Kundenwerte!AJ24 -> 0 | BX24: =Kundenwerte!AK24 -> 0 | BY24: =Kundenwerte!AL24 -> 0 | BZ24: =Kundenwerte!AM24 -> 0 | CA24: =Kundenwerte!AN24 -> 0 | CB24: =Kundenwerte!AO24 -> 0 | CC24: =Kundenwerte!AP24 -> 0 | CD24: =Kundenwerte!AQ24 -> 0 | CE24: =Kundenwerte!AR24 -> 0 | CF24: =Kundenwerte!AS24 -> 0 | CG24: =Kundenwerte!AT24 -> 0 | CH24: =Kundenwerte!AU24 -> 0 | CI24: =Kundenwerte!AV24 -> 0 | CJ24: =Kundenwerte!AW24 -> 0 | CK24: =Kundenwerte!AX24 -> 0 | CL24: =Kundenwerte!AY24 -> 0 | CM24: =Kundenwerte!AZ24 -> 0 | CN24: =Kundenwerte!BA24 -> 0 | CO24: =Kundenwerte!BB24 -> 0 | CP24: =Kundenwerte!BC24 -> 0 | CQ24: =Kundenwerte!BD24 -> 0 | CR24: =Kundenwerte!BE24 -> 0 | CS24: =Kundenwerte!BF24 -> 0 | CT24: =Kundenwerte!BG24 -> 0 | CU24: =Kundenwerte!BH24 -> 0 | CV24: =Kundenwerte!BI24 -> 0 | CW24: =Kundenwerte!BJ24 -> 0 | CX24: =Kundenwerte!BK24 -> 0 | CY24: =Kundenwerte!BL24 -> 0 | CZ24: =Kundenwerte!BM24 -> 0 | DA24: =Kundenwerte!BN24 -> 0 | DB24: 0
A25: =Tageswerte!A25 -> 00:00:00 | B25: =Tageswerte!J25 -> 0 | D25: =IF(A25="","",Feiertage!B25) -> 1 | R25: =AC25 -> BH1 | S25: =IF($Q$2=1,(AD25 / (1 + (AE25 / (P$2- 40)) ^ AF25) + AG25)*VLOOKUP($Q$2,$Z$23:$AA$29,2),1) -> 1 | T25: =IF($Q$2=2,(AD25 / (1 + (AE25 / (P$2- 40)) ^ AF25) + AG25)*VLOOKUP($Q$2,$Z$23:$AA$29,2),1) -> 1 | U25: =IF($Q$2=3,(AD25 / (1 + (AE25 / (P$2- 40)) ^ AF25) + AG25)*VLOOKUP($Q$2,$Z$23:$AA$29,2),1) -> 1 | V25: =IF($Q$2=4,(AD25 / (1 + (AE25 / (P$2- 40)) ^ AF25) + AG25)*VLOOKUP($Q$2,$Z$23:$AA$29,2),1) -> 1.53251743 | W25: =IF($Q$2=5,(AD25 / (1 + (AE25 / (P$2- 40)) ^ AF25) + AG25)*VLOOKUP($Q$2,$Z$23:$AA$29,2),1) -> 1 | X25: =IF($Q$2=6,(AD25 / (1 + (AE25 / (P$2- 40)) ^ AF25) + AG25)*VLOOKUP($Q$2,$Z$23:$AA$29,2),1) -> 1 | Y25: =IF($Q$2=7,(AD25 / (1 + (AE25 / (P$2- 40)) ^ AF25) + AG25)*VLOOKUP($Q$2,$Z$23:$AA$29,2),1) -> 1 | Z25: 3 | AA25: ='Koeffizientenübersicht NB'!$H$35 -> 1.0769 | AC25: BH1 | AD25: ='Koeffizientenübersicht NB'!B35 -> 1.477178569 | AE25: ='Koeffizientenübersicht NB'!C35 -> -35.08344471 | AF25: ='Koeffizientenübersicht NB'!D35 -> 5.412342465 | AG25: ='Koeffizientenübersicht NB'!E35 -> 0.474426408 | AJ25: GA2 | AM25: =VLOOKUP($O$2,$AO$2:$DA$25,25,FALSE) ->  | AN25: =AM25*S80*T80*U80*V80*W80*X80*Y80 ->  | AO25: ='Koeffizientenübersicht BDEW'!T48 -> 12 | AP25: =Kundenwerte!C25 -> 0 | AQ25: =Kundenwerte!D25 -> 0 | AR25: =Kundenwerte!E25 -> 0 | AS25: =Kundenwerte!F25 -> 0 | AT25: =Kundenwerte!G25 -> 0 | AU25: =Kundenwerte!H25 -> 0 | AV25: =Kundenwerte!I25 -> 0 | AW25: =Kundenwerte!J25 -> 0 | AX25: =Kundenwerte!K25 -> 0 | AY25: =Kundenwerte!L25 -> 0 | AZ25: =Kundenwerte!M25 -> 0 | BA25: =Kundenwerte!N25 -> 0 | BB25: =Kundenwerte!O25 -> 0 | BC25: =Kundenwerte!P25 -> 0 | BD25: =Kundenwerte!Q25 -> 0 | BE25: =Kundenwerte!R25 -> 0 | BF25: =Kundenwerte!S25 -> 0 | BG25: =Kundenwerte!T25 -> 0 | BH25: =Kundenwerte!U25 -> 0 | BI25: =Kundenwerte!V25 -> 0 | BJ25: =Kundenwerte!W25 -> 0 | BK25: =Kundenwerte!X25 -> 0 | BL25: =Kundenwerte!Y25 -> 0 | BM25: =Kundenwerte!Z25 -> 0 | BN25: =Kundenwerte!AA25 -> 0 | BO25: =Kundenwerte!AB25 -> 0 | BP25: =Kundenwerte!AC25 -> 0 | BQ25: =Kundenwerte!AD25 -> 0 | BR25: =Kundenwerte!AE25 -> 0 | BS25: =Kundenwerte!AF25 -> 0 | BT25: =Kundenwerte!AG25 -> 0 | BU25: =Kundenwerte!AH25 -> 0 | BV25: =Kundenwerte!AI25 -> 0 | BW25: =Kundenwerte!AJ25 -> 0 | BX25: =Kundenwerte!AK25 -> 0 | BY25: =Kundenwerte!AL25 -> 0 | BZ25: =Kundenwerte!AM25 -> 0 | CA25: =Kundenwerte!AN25 -> 0 | CB25: =Kundenwerte!AO25 -> 0 | CC25: =Kundenwerte!AP25 -> 0 | CD25: =Kundenwerte!AQ25 -> 0 | CE25: =Kundenwerte!AR25 -> 0 | CF25: =Kundenwerte!AS25 -> 0 | CG25: =Kundenwerte!AT25 -> 0 | CH25: =Kundenwerte!AU25 -> 0 | CI25: =Kundenwerte!AV25 -> 0 | CJ25: =Kundenwerte!AW25 -> 0 | CK25: =Kundenwerte!AX25 -> 0 | CL25: =Kundenwerte!AY25 -> 0 | CM25: =Kundenwerte!AZ25 -> 0 | CN25: =Kundenwerte!BA25 -> 0 | CO25: =Kundenwerte!BB25 -> 0 | CP25: =Kundenwerte!BC25 -> 0 | CQ25: =Kundenwerte!BD25 -> 0 | CR25: =Kundenwerte!BE25 -> 0 | CS25: =Kundenwerte!BF25 -> 0 | CT25: =Kundenwerte!BG25 -> 0 | CU25: =Kundenwerte!BH25 -> 0 | CV25: =Kundenwerte!BI25 -> 0 | CW25: =Kundenwerte!BJ25 -> 0 | CX25: =Kundenwerte!BK25 -> 0 | CY25: =Kundenwerte!BL25 -> 0 | CZ25: =Kundenwerte!BM25 -> 0 | DA25: =Kundenwerte!BN25 -> 0 | DB25: =SUM(AP25:DA25) -> 0
